Workbook

Sheet INFO Blatt
A1: INFO
A3: Mannschaften | B3: 7
A5: Wertungsvorschrift | B5: P-Stufen
A7: Liga | B7: Schülerliga Süd
A9: Wettkampftag | B9: 3.
A11: Ort | B11: Hehlen
A13: Datum | B13: 2018-03-03
A16: Kleine Einführung in die Auswertung:
A18: 1. Es wird MS Ecxel ab 2007 benötigt. Auf Wunsch kann ich es auch in die 97 Version runterspeichern.
A19: 2. Bitte die Datei für den 1 Wettkampftag öffnen. Bzw. den aktuellen. Die Ergebnisse werden von dem letzten Wettkampftag eingelesen. Dort müsste eventuell der Datenpfad geändert werden.
B20: a. Im Datenblatt Formeln / Daten à Verknüpfung bearbeiten à Quelle ändern à die Datei des letzten Wettkampfes angeben.
B21: b. Wenn ich die Ergebnisse bekomme, kann ich auch die aktuelle Datei an den Ausrichter senden.
A22: 3. Für den Wettkampf müssen die Wettkampfzettel ausgedruckt werden. Es gibt immer 2stk. pro Mannschaft. Dort sind immer 3 Geräte aufgeführt. Die Zettel können abwechseln eingegeben werden bzw. am Kari Tisch liegen.
A23: 4. Es wird empfohlen das vor Wettkampfbeginn alle anwesenden Turner in die Auswertungstabellen eingelesen werden. Dazu in der Tabelle der Mannschaft / Spalte Namen und dem ersten Namensfeld auf den Pfeil klicken. Es werden alle gemeldeten Turner der Mannschaft aufgelistet.
B24: a. Wenn die Reihenfolge der Wertungszettel übernommen wird ist es einfacher für die Eingabe.
B25: b. Falls ein Turner fehlt oder ein Rechtschreibfehler vorliegt. Kann dies unter dem Datenblatt „Wertungszettel M?“ (Nummer der Mannschaft) geändert werden. Danach im muss der Turner neu angewählt werden. Um die Änderung anzuzeigen!
A26: 5. Die Wertungen müssen dann unter den Mannschaften eingetragen werden.
A27: Bitte den
B28: a. Ausgang : 1,4 bzw. bei P-Stufen für P7 = 7
B29: b. E-Abzug: die Abzüge eintragen ( z.B.1,8) bitte immer 2 Werte eintragen
A30: 6. Platzierungen kann man und dem Datenblatt „Ergebnisse“ finden. Zum Sortieren auf den Button klicken.
B31: a. Achtung dafür müssen die Makro aktiviert sein. Die Dateien sind mit Norton Antivir geprüft.
B32: b. Die Seite ist so ein gestellt das Seite 1 die Mannschaftergebnisse sind und die folgenden die Einzelergebnisse
B33: c. Die Arbeitsmappe wird nach dem sortieren automatisch gespeichert.
A34: 7. AK Turner werden in dem Programm wie folgt behandelt
B35: a. Ausgang: Ausgangswerte für Ak Turner müssen negativ eingegeben werden z.B. P7 = -7
B36: b. Die Endwerte der Ak Turner werden vom Programm automatisch farblich markiert
B37: c. Für die Einzelergebnisse der Turner werden alle Endwerte korrekt berücksichtigt
A38: 8. Falls Fragen und Hilfen benötigt wird bitte einfach mailen carsten.jeschke@t-online.de
B40: © Alexander Gläsener

Sheet Ergebnisse
A7: ='INFO Blatt'!B7 -> Schülerliga Süd | C7: ='INFO Blatt'!B11 -> Hehlen | D7: ='INFO Blatt'!B13 -> 2018-03-03 | I7: =A7 -> Schülerliga Süd | K7: =C7 -> Hehlen | M7: =D7 -> 2018-03-03
A9: Einzelergebnisse | I9: Mannschaftsergebnisse
A11: Platz | B11: Name | C11: Verein | D11: Punkte
A12: =IF(D12=0,F12*10+1,RANK(D12,D$12:D$91,0)) -> 1 | B12: =Hehlen!A15 -> Niclas Brinkmann | C12: =Hehlen!B15 -> TC Jahn Hehlen | D12: =Hehlen!AB15 -> 97.25 | F12: ='INFO Blatt'!B3 -> 7
A13: =IF(D13=0,F13*10+1,RANK(D13,D$12:D$91,0)) -> 2 | B13: ='TG Oker SZ 1'!A15 -> Robert Knoke | C13: ='TG Oker SZ 1'!B15 -> TG Oker Salzgitter 1 | D13: ='TG Oker SZ 1'!AB15 -> 96.8 | F13: =F12 -> 7 | I13: Platz | J13: Verein | K13: WK Punkte | L13: Gerät Punkt | M13: Punkte | N13: Nach Geräten
A14: =IF(D14=0,F14*10+1,RANK(D14,D$12:D$91,0)) -> 3 | B14: ='Einbeck 2'!A13 -> Leon Freye | C14: ='Einbeck 2'!B13 -> Einbecker SV 2 | D14: ='Einbeck 2'!AB13 -> 90.9 | F14: =F13 -> 7 | I14: =Formeln!C7 -> 1 | J14: =Formeln!A7 -> TG Oker Salzgitter 1 | K14: =Formeln!D7 -> 14 | L14: =Formeln!E7 -> 78 | M14: =Formeln!B7 -> 270.35 | N14: ='TG Oker SZ 1'!AG18 -> 6
A15: =IF(D15=0,F15*10+1,RANK(D15,D$12:D$91,0)) -> 4 | B15: ='TG Oker SZ 1'!A9 -> Nils Honisch | C15: ='TG Oker SZ 1'!B9 -> TG Oker Salzgitter 1 | D15: ='TG Oker SZ 1'!AB9 -> 88.75 | F15: 7 | I15: =Formeln!C10 -> 2 | J15: =Formeln!A10 -> Einbecker SV 2 | K15: =Formeln!D10 -> 12 | L15: =Formeln!E10 -> 72 | M15: =Formeln!B10 -> 268.55 | N15: ='Einbeck 2'!AG18 -> 6
A16: =IF(D16=0,F16*10+1,RANK(D16,D$12:D$91,0)) -> 5 | B16: ='Einbeck 2'!A11 -> Dominik Kumarasamy | C16: ='Einbeck 2'!B11 -> Einbecker SV 2 | D16: ='Einbeck 2'!AB11 -> 86.9 | F16: 7 | I16: =Formeln!C6 -> 3 | J16: =Formeln!A6 -> TC Jahn Hehlen | K16: =Formeln!D6 -> 10 | L16: =Formeln!E6 -> 66 | M16: =Formeln!B6 -> 261.8 | N16: =Hehlen!AG18 -> 6
A17: =IF(D17=0,F17*10+1,RANK(D17,D$12:D$91,0)) -> 6 | B17: ='Einbeck 2'!A9 -> Wiliam Lampe | C17: ='Einbeck 2'!B9 -> Einbecker SV 2 | D17: ='Einbeck 2'!AB9 -> 84.8 | F17: 7 | I17: =Formeln!C5 -> 4 | J17: =Formeln!A5 -> MTV Boffzen | K17: =Formeln!D5 -> 8 | L17: =Formeln!E5 -> 40 | M17: =Formeln!B5 -> 240.35 | N17: =Boffzen!AG18 -> 6
A18: =IF(D18=0,F18*10+1,RANK(D18,D$12:D$91,0)) -> 7 | B18: =Boffzen!A13 -> Marc Ormann | C18: =Boffzen!B13 -> MTV Boffzen | D18: =Boffzen!AB13 -> 83.4 | F18: 7 | I18: =Formeln!C8 -> 5 | J18: =Formeln!A8 -> TG Oker Salzgitter 2 | K18: =Formeln!D8 -> 6 | L18: =Formeln!E8 -> 30 | M18: =Formeln!B8 -> 232.05 | N18: ='TG Oker SZ 2'!AG18 -> 6
A19: =IF(D19=0,F19*10+1,RANK(D19,D$12:D$91,0)) -> 8 | B19: ='TG Oker SZ 1'!A11 -> Tim Honisch | C19: ='TG Oker SZ 1'!B11 -> TG Oker Salzgitter 1 | D19: ='TG Oker SZ 1'!AB11 -> 82.2 | F19: 7 | I19: =Formeln!C11 -> 6 | J19: =Formeln!A11 -> TG Hehlen Dielmissen | K19: =Formeln!D11 -> 4 | L19: =Formeln!E11 -> 32 | M19: =Formeln!B11 -> 228.6 | N19: ='TG Hehlen Dielmissen'!AG18 -> 6
A20: =IF(D20=0,F20*10+1,RANK(D20,D$12:D$91,0)) -> 9 | B20: =Hehlen!A23 -> Frederik Zwickert | C20: =Hehlen!B23 -> TC Jahn Hehlen | D20: =Hehlen!AB23 -> 81.05 | F20: 7 | I20: =Formeln!C9 -> 7 | J20: =Formeln!A9 -> Einbecker SV 1 | K20: =Formeln!D9 -> 2 | L20: =Formeln!E9 -> 18 | M20: =Formeln!B9 -> 216.3 | N20: ='Einbeck 1'!AG18 -> 6
A21: =IF(D21=0,F21*10+1,RANK(D21,D$12:D$91,0)) -> 10 | B21: =Hehlen!A11 -> Benjamin Berg | C21: =Hehlen!B11 -> TC Jahn Hehlen | D21: =Hehlen!AB11 -> 80.45 | F21: 7 | I21: =Formeln!C12 -> 8 | J21: =Formeln!A12 -> M8 | K21: =Formeln!D12 -> 0 | L21: =Formeln!E12 -> 0 | M21: =Formeln!B12 -> 0 | N21: ='M8'!AG18 -> 0
A22: =IF(D22=0,F22*10+1,RANK(D22,D$12:D$91,0)) -> 11 | B22: ='TG Oker SZ 2'!A15 -> Eric Siebenhaar | C22: ='TG Oker SZ 2'!B15 -> TG Oker Salzgitter 2 | D22: ='TG Oker SZ 2'!AB15 -> 79.05 | F22: 7
A23: =IF(D23=0,F23*10+1,RANK(D23,D$12:D$91,0)) -> 12 | B23: =Boffzen!A15 -> Erik Schäfer | C23: =Boffzen!B15 -> MTV Boffzen | D23: =Boffzen!AB15 -> 78.75 | F23: 7
A24: =IF(D24=0,F24*10+1,RANK(D24,D$12:D$91,0)) -> 12 | B24: ='Einbeck 1'!A9 -> Tom Leonhard | C24: ='Einbeck 1'!B9 -> Einbecker SV 1 | D24: ='Einbeck 1'!AB9 -> 78.75 | F24: 7
A25: =IF(D25=0,F25*10+1,RANK(D25,D$12:D$91,0)) -> 14 | B25: =Boffzen!A17 -> Emil Meisner | C25: =Boffzen!B17 -> MTV Boffzen | D25: =Boffzen!AB17 -> 77.1 | F25: 7
A26: =IF(D26=0,F26*10+1,RANK(D26,D$12:D$91,0)) -> 15 | B26: ='TG Oker SZ 2'!A13 -> Emmanuel Taube | C26: ='TG Oker SZ 2'!B13 -> TG Oker Salzgitter 2 | D26: ='TG Oker SZ 2'!AB13 -> 76.85 | F26: 7
A27: =IF(D27=0,F27*10+1,RANK(D27,D$12:D$91,0)) -> 15 | B27: =Hehlen!A17 -> Jonas Firedrich | C27: =Hehlen!B17 -> TC Jahn Hehlen | D27: =Hehlen!AB17 -> 76.85 | F27: 7
A28: =IF(D28=0,F28*10+1,RANK(D28,D$12:D$91,0)) -> 17 | B28: ='TG Hehlen Dielmissen'!A9 -> Viktor Brauer | C28: ='TG Hehlen Dielmissen'!B9 -> TG Hehlen Dielmissen | D28: ='TG Hehlen Dielmissen'!AB9 -> 76.25 | F28: 7
A29: =IF(D29=0,F29*10+1,RANK(D29,D$12:D$91,0)) -> 18 | B29: ='TG Hehlen Dielmissen'!A19 -> Yvo Vehling | C29: ='TG Hehlen Dielmissen'!B19 -> TG Hehlen Dielmissen | D29: ='TG Hehlen Dielmissen'!AB19 -> 76.15 | F29: 7
A30: =IF(D30=0,F30*10+1,RANK(D30,D$12:D$91,0)) -> 19 | B30: =Hehlen!A19 -> Ilja Kant | C30: =Hehlen!B19 -> TC Jahn Hehlen | D30: =Hehlen!AB19 -> 75.55 | F30: 7
A31: =IF(D31=0,F31*10+1,RANK(D31,D$12:D$91,0)) -> 20 | B31: ='TG Hehlen Dielmissen'!A11 -> Norwin Eilers | C31: ='TG Hehlen Dielmissen'!B11 -> TG Hehlen Dielmissen | D31: ='TG Hehlen Dielmissen'!AB11 -> 75.3 | F31: 7
A32: =IF(D32=0,F32*10+1,RANK(D32,D$12:D$91,0)) -> 21 | B32: ='TG Oker SZ 2'!A11 -> Jamie Schnabel | C32: ='TG Oker SZ 2'!B11 -> TG Oker Salzgitter 2 | D32: ='TG Oker SZ 2'!AB11 -> 73.65 | F32: 7
A33: =IF(D33=0,F33*10+1,RANK(D33,D$12:D$91,0)) -> 22 | B33: ='TG Oker SZ 2'!A9 -> Patrick Gernowski | C33: ='TG Oker SZ 2'!B9 -> TG Oker Salzgitter 2 | D33: ='TG Oker SZ 2'!AB9 -> 73.55 | F33: 7
A34: =IF(D34=0,F34*10+1,RANK(D34,D$12:D$91,0)) -> 23 | B34: ='TG Hehlen Dielmissen'!A13 -> Thore Gruppe | C34: ='TG Hehlen Dielmissen'!B13 -> TG Hehlen Dielmissen | D34: ='TG Hehlen Dielmissen'!AB13 -> 72.95 | F34: 7
A35: =IF(D35=0,F35*10+1,RANK(D35,D$12:D$91,0)) -> 24 | B35: =Boffzen!A11 -> Moritz Böhm | C35: =Boffzen!B11 -> MTV Boffzen | D35: =Boffzen!AB11 -> 72.95 | F35: 7 | I35: =I7 -> Schülerliga Süd | K35: =K7 -> Hehlen | M35: =M7 -> 2018-03-03
A36: =IF(D36=0,F36*10+1,RANK(D36,D$12:D$91,0)) -> 25 | B36: ='Einbeck 1'!A17 -> Marlon Sassin | C36: ='Einbeck 1'!B17 -> Einbecker SV 1 | D36: ='Einbeck 1'!AB17 -> 68.8 | F36: 7
A37: =IF(D37=0,F37*10+1,RANK(D37,D$12:D$91,0)) -> 26 | B37: ='Einbeck 2'!A17 -> Lu Rosebrock | C37: ='Einbeck 2'!B17 -> Einbecker SV 2 | D37: ='Einbeck 2'!AB17 -> 63.5 | F37: 7 | I37: Ergebnis nach dem | K37: ='INFO Blatt'!B9 -> 3. | L37: Wettkampftag
A38: =IF(D38=0,F38*10+1,RANK(D38,D$12:D$91,0)) -> 27 | B38: ='TG Oker SZ 2'!A17 -> Lasse Sticka | C38: ='TG Oker SZ 2'!B17 -> TG Oker Salzgitter 2 | D38: ='TG Oker SZ 2'!AB17 -> 62.6 | F38: 7
A39: =IF(D39=0,F39*10+1,RANK(D39,D$12:D$91,0)) -> 28 | B39: ='Einbeck 2'!A15 -> Johann Mickat | C39: ='Einbeck 2'!B15 -> Einbecker SV 2 | D39: ='Einbeck 2'!AB15 -> 60.65 | F39: 7 | I39: Platz | J39: Verein | K39: WK Punkte | L39: Gerät Punkt | M39: Punkte
A40: =IF(D40=0,F40*10+1,RANK(D40,D$12:D$91,0)) -> 29 | B40: ='Einbeck 1'!A25 -> Joel Eitemeier | C40: ='Einbeck 1'!B25 -> Einbecker SV 1 | D40: ='Einbeck 1'!AB25 -> 56.75 | F40: 7 | I40: =Formeln!H10 -> 1 | J40: =Formeln!G10 -> Einbecker SV 2 | K40: =Formeln!I10 -> 36 | L40: =Formeln!J10 -> 210 | M40: =Formeln!K10 -> 794.1
A41: =IF(D41=0,F41*10+1,RANK(D41,D$12:D$91,0)) -> 30 | B41: ='TG Oker SZ 1'!A17 -> Leon Müller | C41: ='TG Oker SZ 1'!B17 -> TG Oker Salzgitter 1 | D41: ='TG Oker SZ 1'!AB17 -> 55.95 | F41: 7 | I41: =Formeln!H7 -> 2 | J41: =Formeln!G7 -> TG Oker Salzgitter 1 | K41: =Formeln!I7 -> 36 | L41: =Formeln!J7 -> 198 | M41: =Formeln!K7 -> 782.695
A42: =IF(D42=0,F42*10+1,RANK(D42,D$12:D$91,0)) -> 31 | B42: ='Einbeck 1'!A23 -> Fiete Linneweber | C42: ='Einbeck 1'!B23 -> Einbecker SV 1 | D42: ='Einbeck 1'!AB23 -> 55.6 | F42: 7 | I42: =Formeln!H6 -> 3 | J42: =Formeln!G6 -> TC Jahn Hehlen | K42: =Formeln!I6 -> 34 | L42: =Formeln!J6 -> 216 | M42: =Formeln!K6 -> 790.45
A43: =IF(D43=0,F43*10+1,RANK(D43,D$12:D$91,0)) -> 32 | B43: ='TG Oker SZ 1'!A21 -> Christian Rath | C43: ='TG Oker SZ 1'!B21 -> TG Oker Salzgitter 1 | D43: ='TG Oker SZ 1'!AB21 -> 54.8 | F43: 7 | I43: =Formeln!H5 -> 4 | J43: =Formeln!G5 -> MTV Boffzen | K43: =Formeln!I5 -> 26 | L43: =Formeln!J5 -> 140 | M43: =Formeln!K5 -> 736.6
A44: =IF(D44=0,F44*10+1,RANK(D44,D$12:D$91,0)) -> 33 | B44: ='TG Oker SZ 1'!A13 -> Jarik Siebold | C44: ='TG Oker SZ 1'!B13 -> TG Oker Salzgitter 1 | D44: ='TG Oker SZ 1'!AB13 -> 51 | F44: 7 | I44: =Formeln!H8 -> 5 | J44: =Formeln!G8 -> TG Oker Salzgitter 2 | K44: =Formeln!I8 -> 16 | L44: =Formeln!J8 -> 96 | M44: =Formeln!K8 -> 703.25
A45: =IF(D45=0,F45*10+1,RANK(D45,D$12:D$91,0)) -> 34 | B45: =Hehlen!A13 -> Niklas Bohlender | C45: =Hehlen!B13 -> TC Jahn Hehlen | D45: =Hehlen!AB13 -> 41.45 | F45: 7 | I45: =Formeln!H9 -> 6 | J45: =Formeln!G9 -> Einbecker SV 1 | K45: =Formeln!I9 -> 12 | L45: =Formeln!J9 -> 78 | M45: =Formeln!K9 -> 686.85
A46: =IF(D46=0,F46*10+1,RANK(D46,D$12:D$91,0)) -> 71 | B46: =Boffzen!A25 -> 0 | C46: =Boffzen!B25 ->  | D46: =Boffzen!AB25 -> 0 | F46: 7 | I46: =Formeln!H11 -> 7 | J46: =Formeln!G11 -> TG Hehlen Dielmissen | K46: =Formeln!I11 -> 8 | L46: =Formeln!J11 -> 72 | M46: =Formeln!K11 -> 688.05
A47: =IF(D47=0,F47*10+1,RANK(D47,D$12:D$91,0)) -> 71 | B47: =Boffzen!A27 -> 0 | C47: =Boffzen!B27 ->  | D47: =Boffzen!AB27 -> 0 | F47: 7 | I47: =Formeln!H12 -> 8 | J47: =Formeln!G12 -> M8 | K47: =Formeln!I12 -> 0 | L47: =Formeln!J12 -> 0 | M47: =Formeln!K12 -> 0
A48: =IF(D48=0,F48*10+1,RANK(D48,D$12:D$91,0)) -> 71 | B48: =Hehlen!A25 -> 0 | C48: =Hehlen!B25 ->  | D48: =Hehlen!AB25 -> 0 | F48: 7
A49: =IF(D49=0,F49*10+1,RANK(D49,D$12:D$91,0)) -> 71 | B49: =Hehlen!A27 -> 0 | C49: =Hehlen!B27 ->  | D49: =Hehlen!AB27 -> 0 | F49: 7
A50: =IF(D50=0,F50*10+1,RANK(D50,D$12:D$91,0)) -> 71 | B50: ='TG Oker SZ 2'!A21 -> 0 | C50: ='TG Oker SZ 2'!B21 ->  | D50: ='TG Oker SZ 2'!AB21 -> 0 | F50: 7
A51: =IF(D51=0,F51*10+1,RANK(D51,D$12:D$91,0)) -> 71 | B51: ='TG Oker SZ 2'!A23 -> 0 | C51: ='TG Oker SZ 2'!B23 ->  | D51: ='TG Oker SZ 2'!AB23 -> 0 | F51: 7
A52: =IF(D52=0,F52*10+1,RANK(D52,D$12:D$91,0)) -> 71 | B52: ='TG Oker SZ 2'!A25 -> 0 | C52: ='TG Oker SZ 2'!B25 ->  | D52: ='TG Oker SZ 2'!AB25 -> 0 | F52: 7
A53: =IF(D53=0,F53*10+1,RANK(D53,D$12:D$91,0)) -> 71 | B53: ='TG Oker SZ 2'!A27 -> 0 | C53: ='TG Oker SZ 2'!B27 ->  | D53: ='TG Oker SZ 2'!AB27 -> 0 | F53: 7
A54: =IF(D54=0,F54*10+1,RANK(D54,D$12:D$91,0)) -> 71 | B54: ='Einbeck 1'!A27 -> 0 | C54: ='Einbeck 1'!B27 ->  | D54: ='Einbeck 1'!AB27 -> 0 | F54: 7
A55: =IF(D55=0,F55*10+1,RANK(D55,D$12:D$91,0)) -> 71 | B55: ='TG Hehlen Dielmissen'!A27 -> 0 | C55: ='TG Hehlen Dielmissen'!B27 ->  | D55: ='TG Hehlen Dielmissen'!AB27 -> 0 | F55: 7
A56: =IF(D56=0,F56*10+1,RANK(D56,D$12:D$91,0)) -> 71 | B56: ='TG Oker SZ 1'!A27 -> 0 | C56: ='TG Oker SZ 1'!B27 ->  | D56: ='TG Oker SZ 1'!AB27 -> 0 | F56: 7
A57: =IF(D57=0,F57*10+1,RANK(D57,D$12:D$91,0)) -> 71 | B57: ='Einbeck 2'!A19 -> 0 | C57: ='Einbeck 2'!B19 ->  | D57: ='Einbeck 2'!AB19 -> 0 | F57: 7
A58: =IF(D58=0,F58*10+1,RANK(D58,D$12:D$91,0)) -> 71 | B58: ='M8'!A19 -> 0 | C58: ='M8'!B19 ->  | D58: ='M8'!AB19 -> 0 | F58: 7
A59: =IF(D59=0,F59*10+1,RANK(D59,D$12:D$91,0)) -> 71 | B59: ='Einbeck 2'!A25 -> 0 | C59: ='Einbeck 2'!B25 ->  | D59: ='Einbeck 2'!AB25 -> 0 | F59: 7
A60: =IF(D60=0,F60*10+1,RANK(D60,D$12:D$91,0)) -> 71 | B60: ='M8'!A17 -> 0 | C60: ='M8'!B17 ->  | D60: ='M8'!AB17 -> 0 | F60: 7
A61: =IF(D61=0,F61*10+1,RANK(D61,D$12:D$91,0)) -> 71 | B61: ='TG Oker SZ 1'!A25 -> 0 | C61: ='TG Oker SZ 1'!B25 ->  | D61: ='TG Oker SZ 1'!AB25 -> 0 | F61: 7
A62: =IF(D62=0,F62*10+1,RANK(D62,D$12:D$91,0)) -> 71 | B62: ='TG Hehlen Dielmissen'!A23 -> 0 | C62: ='TG Hehlen Dielmissen'!B23 ->  | D62: ='TG Hehlen Dielmissen'!AB23 -> 0 | F62: 7
A63: =IF(D63=0,F63*10+1,RANK(D63,D$12:D$91,0)) -> 71 | B63: =Boffzen!A19 -> 0 | C63: =Boffzen!B19 ->  | D63: =Boffzen!AB19 -> 0 | F63: 7
A64: =IF(D64=0,F64*10+1,RANK(D64,D$12:D$91,0)) -> 71 | B64: ='M8'!A23 -> 0 | C64: ='M8'!B23 ->  | D64: ='M8'!AB23 -> 0 | F64: 7
A65: =IF(D65=0,F65*10+1,RANK(D65,D$12:D$91,0)) -> 71 | B65: =Boffzen!A23 -> 0 | C65: =Boffzen!B23 ->  | D65: =Boffzen!AB23 -> 0 | F65: 7
A66: =IF(D66=0,F66*10+1,RANK(D66,D$12:D$91,0)) -> 71 | B66: ='M8'!A13 -> 0 | C66: ='M8'!B13 ->  | D66: ='M8'!AB13 -> 0 | F66: 7
A67: =IF(D67=0,F67*10+1,RANK(D67,D$12:D$91,0)) -> 71 | B67: ='M8'!A21 -> 0 | C67: ='M8'!B21 ->  | D67: ='M8'!AB21 -> 0 | F67: 7
A68: =IF(D68=0,F68*10+1,RANK(D68,D$12:D$91,0)) -> 71 | B68: ='M8'!A15 -> 0 | C68: ='M8'!B15 ->  | D68: ='M8'!AB15 -> 0 | F68: 7
A69: =IF(D69=0,F69*10+1,RANK(D69,D$12:D$91,0)) -> 71 | B69: ='M8'!A11 -> 0 | C69: ='M8'!B11 ->  | D69: ='M8'!AB11 -> 0 | F69: 7
A70: =IF(D70=0,F70*10+1,RANK(D70,D$12:D$91,0)) -> 71 | B70: ='Einbeck 2'!A27 -> 0 | C70: ='Einbeck 2'!B27 ->  | D70: ='Einbeck 2'!AB27 -> 0 | F70: 7
A71: =IF(D71=0,F71*10+1,RANK(D71,D$12:D$91,0)) -> 71 | B71: ='TG Hehlen Dielmissen'!A25 -> 0 | C71: ='TG Hehlen Dielmissen'!B25 ->  | D71: ='TG Hehlen Dielmissen'!AB25 -> 0 | F71: 7
A72: =IF(D72=0,F72*10+1,RANK(D72,D$12:D$91,0)) -> 71 | B72: ='M8'!A25 -> 0 | C72: ='M8'!B25 ->  | D72: ='M8'!AB25 -> 0 | F72: 7
A73: =IF(D73=0,F73*10+1,RANK(D73,D$12:D$91,0)) -> 71 | B73: ='M8'!A27 -> 0 | C73: ='M8'!B27 ->  | D73: ='M8'!AB27 -> 0 | F73: 7
A74: =IF(D74=0,F74*10+1,RANK(D74,D$12:D$91,0)) -> 71 | B74: ='M8'!A9 -> 0 | C74: ='M8'!B9 -> M8 | D74: ='M8'!AB9 -> 0 | F74: 7
A75: =IF(D75=0,F75*10+1,RANK(D75,D$12:D$91,0)) -> 71 | B75: ='Einbeck 2'!A23 -> 0 | C75: ='Einbeck 2'!B23 ->  | D75: ='Einbeck 2'!AB23 -> 0 | F75: 7
A76: =IF(D76=0,F76*10+1,RANK(D76,D$12:D$91,0)) -> 71 | B76: ='TG Oker SZ 1'!A23 -> 0 | C76: ='TG Oker SZ 1'!B23 ->  | D76: ='TG Oker SZ 1'!AB23 -> 0 | F76: 7
A77: =IF(D77=0,F77*10+1,RANK(D77,D$12:D$91,0)) -> 71 | B77: ='Einbeck 2'!A21 -> 0 | C77: ='Einbeck 2'!B21 ->  | D77: ='Einbeck 2'!AB21 -> 0 | F77: 7
A78: =IF(D78=0,F78*10+1,RANK(D78,D$12:D$91,0)) -> 71 | B78: =Boffzen!A21 -> 0 | C78: =Boffzen!B21 ->  | D78: =Boffzen!AB21 -> 0 | F78: =F77 -> 7
A79: =IF(D79=0,F79*10+1,RANK(D79,D$12:D$91,0)) -> 71 | B79: ='TG Oker SZ 2'!A19 -> 0 | C79: ='TG Oker SZ 2'!B19 ->  | D79: ='TG Oker SZ 2'!AB19 -> 0 | F79: 7
A80: =IF(D80=0,F80*10+1,RANK(D80,D$12:D$91,0)) -> 71 | B80: ='Einbeck 1'!A21 -> Dins Kozlovskis | C80: ='Einbeck 1'!B21 -> Einbecker SV 1 | D80: ='Einbeck 1'!AB21 -> 0 | F80: 7
A81: =IF(D81=0,F81*10+1,RANK(D81,D$12:D$91,0)) -> 71 | B81: ='Einbeck 1'!A13 -> Dominic Kobben | C81: ='Einbeck 1'!B13 -> Einbecker SV 1 | D81: ='Einbeck 1'!AB13 -> 0 | F81: 7
A82: =IF(D82=0,F82*10+1,RANK(D82,D$12:D$91,0)) -> 71 | B82: =Boffzen!A9 -> Erik Komnick | C82: =Boffzen!B9 -> MTV Boffzen | D82: =Boffzen!AB9 -> 0 | F82: 7
A83: =IF(D83=0,F83*10+1,RANK(D83,D$12:D$91,0)) -> 71 | B83: ='Einbeck 1'!A11 -> Eugen Dahl | C83: ='Einbeck 1'!B11 -> Einbecker SV 1 | D83: ='Einbeck 1'!AB11 -> 0 | F83: 7
A84: =IF(D84=0,F84*10+1,RANK(D84,D$12:D$91,0)) -> 71 | B84: ='Einbeck 1'!A15 -> Illes Törjek | C84: ='Einbeck 1'!B15 -> Einbecker SV 1 | D84: ='Einbeck 1'!AB15 -> 0 | F84: 7
A85: =IF(D85=0,F85*10+1,RANK(D85,D$12:D$91,0)) -> 71 | B85: ='TG Hehlen Dielmissen'!A15 -> Jakob Kammel | C85: ='TG Hehlen Dielmissen'!B15 -> TG Hehlen Dielmissen | D85: ='TG Hehlen Dielmissen'!AB15 -> 0 | F85: 7
A86: =IF(D86=0,F86*10+1,RANK(D86,D$12:D$91,0)) -> 71 | B86: ='TG Oker SZ 1'!A19 -> Jannis Volkmer | C86: ='TG Oker SZ 1'!B19 -> TG Oker Salzgitter 1 | D86: ='TG Oker SZ 1'!AB19 -> 0 | F86: 7
A87: =IF(D87=0,F87*10+1,RANK(D87,D$12:D$91,0)) -> 71 | B87: ='TG Hehlen Dielmissen'!A17 -> Luca Puls | C87: ='TG Hehlen Dielmissen'!B17 -> TG Hehlen Dielmissen | D87: ='TG Hehlen Dielmissen'!AB17 -> 0 | F87: 7
A88: =IF(D88=0,F88*10+1,RANK(D88,D$12:D$91,0)) -> 71 | B88: ='Einbeck 1'!A19 -> Nicolas Buchholz | C88: ='Einbeck 1'!B19 -> Einbecker SV 1 | D88: ='Einbeck 1'!AB19 -> 0 | F88: 7
A89: =IF(D89=0,F89*10+1,RANK(D89,D$12:D$91,0)) -> 71 | B89: =Hehlen!A9 -> Paul Bähr | C89: =Hehlen!B9 -> TC Jahn Hehlen | D89: =Hehlen!AB9 -> 0 | F89: 7
A90: =IF(D90=0,F90*10+1,RANK(D90,D$12:D$91,0)) -> 71 | B90: ='TG Hehlen Dielmissen'!A21 -> Timm Zuchold | C90: ='TG Hehlen Dielmissen'!B21 -> TG Hehlen Dielmissen | D90: ='TG Hehlen Dielmissen'!AB21 -> 0 | F90: 7
A91: =IF(D91=0,F91*10+1,RANK(D91,D$12:D$91,0)) -> 71 | B91: =Hehlen!A21 -> Tom Weper | C91: =Hehlen!B21 -> TC Jahn Hehlen | D91: =Hehlen!AB21 -> 0 | F91: 7

Sheet Startreihenfolge (hidden)
B2: 1. Runde
B4: Boden | D4: Pauschenpferd | F4: Ringe
B6: =Ergebnisse!J40 -> Einbecker SV 2 | D6: =Ergebnisse!J42 -> TC Jahn Hehlen | F6: =Ergebnisse!J44 -> TG Oker Salzgitter 2
B7: =Ergebnisse!J41 -> TG Oker Salzgitter 1 | D7: =Ergebnisse!J43 -> MTV Boffzen | F7: =Ergebnisse!J45 -> Einbecker SV 1
B10: Sprung | D10: Barren | F10: Reck
B12: TV Kleefeld 1 | D12: SC Melle | F12: TG Braunschweig -Hondelage
B13: 1860 Bremen | D13: TG Oker Salzgitter 2 | F13: TG Rinteln - Hehlen 1
B17: 2. Runde
B19: Boden | D19: Pauschenpferd | F19: Ringe
B21: =F7 -> Einbecker SV 1 | D21: =B7 -> TG Oker Salzgitter 1 | F21: =D7 -> MTV Boffzen
B22: =F6 -> TG Oker Salzgitter 2 | D22: =B6 -> Einbecker SV 2 | F22: =D6 -> TC Jahn Hehlen
B25: Sprung | D25: Barren | F25: Reck
B27: =F13 -> TG Rinteln - Hehlen 1 | D27: =B13 -> 1860 Bremen | F27: =D13 -> TG Oker Salzgitter 2
B28: =F12 -> TG Braunschweig -Hondelage | D28: =B12 -> TV Kleefeld 1 | F28: =D12 -> SC Melle
B32: 3. Runde
B34: Boden | D34: Pauschenpferd | F34: Ringe
B36: =F22 -> TC Jahn Hehlen | D36: =B22 -> TG Oker Salzgitter 2 | F36: =D22 -> Einbecker SV 2
B37: =F21 -> MTV Boffzen | D37: =B21 -> Einbecker SV 1 | F37: =D21 -> TG Oker Salzgitter 1
B40: Sprung | D40: Barren | F40: Reck
B42: =F28 -> SC Melle | D42: =B28 -> TG Braunschweig -Hondelage | F42: =D28 -> TV Kleefeld 1
B43: =F27 -> TG Oker Salzgitter 2 | D43: =B27 -> TG Rinteln - Hehlen 1 | F43: =D27 -> 1860 Bremen
B47: 4. Runde
B49: Boden | D49: Pauschenpferd | F49: Ringe
B51: =F43 -> 1860 Bremen | D51: =B43 -> TG Oker Salzgitter 2 | F51: =D43 -> TG Rinteln - Hehlen 1
B52: =F42 -> TV Kleefeld 1 | D52: =B42 -> SC Melle | F52: =D42 -> TG Braunschweig -Hondelage
B55: Sprung | D55: Barren | F55: Reck
B57: =F37 -> TG Oker Salzgitter 1 | D57: =B37 -> MTV Boffzen | F57: =D37 -> Einbecker SV 1
B58: =F36 -> Einbecker SV 2 | D58: =B36 -> TC Jahn Hehlen | F58: =D36 -> TG Oker Salzgitter 2
B62: 5. Runde
B64: Boden | D64: Pauschenpferd | F64: Ringe
B66: =F52 -> TG Braunschweig -Hondelage | D66: =B52 -> TV Kleefeld 1 | F66: =D52 -> SC Melle
B67: =F51 -> TG Rinteln - Hehlen 1 | D67: =B51 -> 1860 Bremen | F67: =D51 -> TG Oker Salzgitter 2
B70: Sprung | D70: Barren | F70: Reck
B72: =F58 -> TG Oker Salzgitter 2 | D72: =B58 -> Einbecker SV 2 | F72: =D58 -> TC Jahn Hehlen
B73: =F57 -> Einbecker SV 1 | D73: =B57 -> TG Oker Salzgitter 1 | F73: =D57 -> MTV Boffzen
B77: 6. Runde
B79: Boden | D79: Pauschenpferd | F79: Ringe
B81: =F67 -> TG Oker Salzgitter 2 | D81: =B67 -> TG Rinteln - Hehlen 1 | F81: =D67 -> 1860 Bremen
B82: =F66 -> SC Melle | D82: =B66 -> TG Braunschweig -Hondelage | F82: =D66 -> TV Kleefeld 1
B85: Sprung | D85: Barren | F85: Reck
B87: =F73 -> MTV Boffzen | D87: =B73 -> Einbecker SV 1 | F87: =D73 -> TG Oker Salzgitter 1
B88: =F72 -> TC Jahn Hehlen | D88: =B72 -> TG Oker Salzgitter 2 | F88: =D72 -> Einbecker SV 2

Sheet Formeln
A3: Gesamt | G3: Gesamt 1. WK
B4: Punkte | C4: Platz | D4: WK Punkte | E4: Gerät Punkt | H4: Platz | I4: WK Punkte | J4: Gerät Punkt | K4: Punkte | L4: Rang WK | M4: Rang Geräte | N4: Rang Punkte | O4: Hilfsliste
A5: MTV Boffzen | B5: =Boffzen!AB$30 -> 240.35 | C5: =IF(B5=0,'INFO Blatt'!B$3+1,RANK(B5,B$5:B$14,0)) -> 4 | D5: =IF('INFO Blatt'!B$3<6,14-C5*2,'INFO Blatt'!B$3*2+2-C5*2) -> 8 | E5: =SUM(D20,I20,N20,D33,I33,N33) -> 40 | G5: =A5 -> MTV Boffzen | H5: =IF(K5=0,'INFO Blatt'!B$3+1,RANK(O5,O$5:O$14,1)) -> 4 | I5: =D5+[1]Formeln!$I5 -> 26 | J5: =E5+[1]Formeln!$J5 -> 140 | K5: =B5+[1]Formeln!$K5 -> 736.6 | L5: =RANK(I5,I5:I14,0) -> 4 | M5: =RANK(J5,J5:J14,0) -> 4 | N5: =RANK(K5,K$5:K$14,0) -> 4 | O5: =L5+(M5/10)+(N5/100) -> 4.44
A6: TC Jahn Hehlen | B6: =Hehlen!AB$30 -> 261.8 | C6: =IF(B6=0,'INFO Blatt'!B$3+1,RANK(B6,B$5:B$14,0)) -> 3 | D6: =IF('INFO Blatt'!B$3<6,14-C6*2,'INFO Blatt'!B$3*2+2-C6*2) -> 10 | E6: 66 | G6: =A6 -> TC Jahn Hehlen | H6: =IF(K6=0,'INFO Blatt'!B$3+1,RANK(O6,O$5:O$14,1)) -> 3 | I6: =D6+[1]Formeln!$I6 -> 34 | J6: =E6+[1]Formeln!$J6 -> 216 | K6: =B6+[1]Formeln!$K6 -> 790.45 | L6: =RANK(I6,I5:I14,0) -> 3 | M6: =RANK(J6,J5:J14,0) -> 1 | N6: =RANK(K6,K$5:K$14,0) -> 2 | O6: =L6+(M6/10)+(N6/100) -> 3.12
A7: TG Oker Salzgitter 1 | B7: ='TG Oker SZ 1'!AB$30 -> 270.35 | C7: =IF(B7=0,'INFO Blatt'!B$3+1,RANK(B7,B$5:B$14,0)) -> 1 | D7: =IF('INFO Blatt'!B$3<6,14-C7*2,'INFO Blatt'!B$3*2+2-C7*2) -> 14 | E7: 78 | G7: TG Oker Salzgitter 1 | H7: =IF(K7=0,'INFO Blatt'!B$3+1,RANK(O7,O$5:O$14,1)) -> 2 | I7: =D7+[1]Formeln!$I7 -> 36 | J7: =E7+[1]Formeln!$J7 -> 198 | K7: =B7+[1]Formeln!$K7 -> 782.695 | L7: =RANK(I7,I5:I14,0) -> 1 | M7: =RANK(J7,J5:J14,0) -> 3 | N7: 3 | O7: 1.33
A8: TG Oker Salzgitter 2 | B8: ='TG Oker SZ 2'!AB$30 -> 232.05 | C8: =IF(B8=0,'INFO Blatt'!B$3+1,RANK(B8,B$5:B$14,0)) -> 5 | D8: =IF('INFO Blatt'!B$3<6,14-C8*2,'INFO Blatt'!B$3*2+2-C8*2) -> 6 | E8: 30 | G8: TG Oker Salzgitter 2 | H8: =IF(K8=0,'INFO Blatt'!B$3+1,RANK(O8,O$5:O$14,1)) -> 5 | I8: =D8+[1]Formeln!$I8 -> 16 | J8: =E8+[1]Formeln!$J8 -> 96 | K8: =B8+[1]Formeln!$K8 -> 703.25 | L8: =RANK(I8,I5:I14,0) -> 5 | M8: =RANK(J8,J5:J14,0) -> 5 | N8: 5 | O8: 5.55
A9: Einbecker SV 1 | B9: ='Einbeck 1'!AB$30 -> 216.3 | C9: =IF(B9=0,'INFO Blatt'!B$3+1,RANK(B9,B$5:B$14,0)) -> 7 | D9: =IF('INFO Blatt'!B$3<6,14-C9*2,'INFO Blatt'!B$3*2+2-C9*2) -> 2 | E9: 18 | G9: Einbecker SV 1 | H9: =IF(K9=0,'INFO Blatt'!B$3+1,RANK(O9,O$5:O$14,1)) -> 6 | I9: =D9+[1]Formeln!$I9 -> 12 | J9: =E9+[1]Formeln!$J9 -> 78 | K9: =B9+[1]Formeln!$K9 -> 686.85 | L9: =RANK(I9,I5:I14,0) -> 6 | M9: =RANK(J9,J5:J14,0) -> 6 | N9: 7 | O9: 6.67
A10: Einbecker SV 2 | B10: ='Einbeck 2'!AB$30 -> 268.55 | C10: =IF(B10=0,'INFO Blatt'!B$3+1,RANK(B10,B$5:B$14,0)) -> 2 | D10: =IF('INFO Blatt'!B$3<6,14-C10*2,'INFO Blatt'!B$3*2+2-C10*2) -> 12 | E10: 72 | G10: Einbecker SV 2 | H10: =IF(K10=0,'INFO Blatt'!B$3+1,RANK(O10,O$5:O$14,1)) -> 1 | I10: =D10+[1]Formeln!$I10 -> 36 | J10: =E10+[1]Formeln!$J10 -> 210 | K10: =B10+[1]Formeln!$K10 -> 794.1 | L10: =RANK(I10,I5:I14,0) -> 1 | M10: =RANK(J10,J5:J14,0) -> 2 | N10: 1 | O10: 1.21
A11: TG Hehlen Dielmissen | B11: ='TG Hehlen Dielmissen'!AB$30 -> 228.6 | C11: =IF(B11=0,'INFO Blatt'!B$3+1,RANK(B11,B$5:B$14,0)) -> 6 | D11: =IF('INFO Blatt'!B$3<6,14-C11*2,'INFO Blatt'!B$3*2+2-C11*2) -> 4 | E11: 32 | G11: TG Hehlen Dielmissen | H11: =IF(K11=0,'INFO Blatt'!B$3+1,RANK(O11,O$5:O$14,1)) -> 7 | I11: =D11+[1]Formeln!$I11 -> 8 | J11: =E11+[1]Formeln!$J11 -> 72 | K11: =B11+[1]Formeln!$K11 -> 688.05 | L11: =RANK(I11,I5:I14,0) -> 7 | M11: =RANK(J11,J5:J14,0) -> 7 | N11: 6 | O11: 7.76
A12: M8 | B12: ='M8'!AB$30 -> 0 | C12: =IF(B12=0,'INFO Blatt'!B$3+1,RANK(B12,B$5:B$14,0)) -> 8 | D12: =IF('INFO Blatt'!B$3<6,14-C12*2,'INFO Blatt'!B$3*2+2-C12*2) -> 0 | E12: 0 | G12: M8 | H12: =IF(K12=0,'INFO Blatt'!B$3+1,RANK(O12,O$5:O$14,1)) -> 8 | I12: =D12+[1]Formeln!$I12 -> 0 | J12: =E12+[1]Formeln!$J12 -> 0 | K12: =B12+[1]Formeln!$K12 -> 0 | L12: =RANK(I12,I5:I14,0) -> 8 | M12: =RANK(J12,J5:J14,0) -> 8 | N12: 8 | O12: 8.88
A13: M9 | B13: ='M9'!AB$30 -> 0 | C13: =IF(B13=0,'INFO Blatt'!B$3+1,RANK(B13,B$5:B$14,0)) -> 8 | D13: =IF('INFO Blatt'!B$3<6,14-C13*2,'INFO Blatt'!B$3*2+2-C13*2) -> 0 | E13: 0 | G13: M9 | H13: =IF(K13=0,'INFO Blatt'!B$3+1,RANK(O13,O$5:O$14,1)) -> 8 | I13: =D13+[1]Formeln!$I13 -> 0 | J13: =E13+[1]Formeln!$J13 -> 0 | K13: =B13+[1]Formeln!$K13 -> 0 | L13: =RANK(I13,I5:I14,0) -> 8 | M13: =RANK(J13,J5:J14,0) -> 8 | N13: 8 | O13: 8.88
A14: M10 | B14: ='M10'!AB$30 -> 0 | C14: =IF(B14=0,'INFO Blatt'!B$3+1,RANK(B14,B$5:B$14,0)) -> 8 | D14: =IF('INFO Blatt'!B$3<6,14-C14*2,'INFO Blatt'!B$3*2+2-C14*2) -> 0 | E14: 0 | G14: M10 | H14: =IF(K14=0,'INFO Blatt'!B$3+1,RANK(O14,O$5:O$14,1)) -> 8 | I14: =D14+[1]Formeln!$I14 -> 0 | J14: =E14+[1]Formeln!$J14 -> 0 | K14: =B14+[1]Formeln!$K14 -> 0 | L14: =RANK(I14,I5:I14,0) -> 8 | M14: =RANK(J14,J5:J14,0) -> 8 | N14: 8 | O14: 8.88
A16: Gerätepunkte
A18: Boden | F18: Pferd | K18: Ringe
B19: Punkte | C19: Platz | D19: Gerät Punkt | G19: Punkte | H19: Platz | I19: Gerät Punkt | L19: Punkte | M19: Platz | N19: Gerät Punkt
A20: =A5 -> MTV Boffzen | B20: =ROUND(Boffzen!$G$30,2) -> 40.9 | C20: =IF(B20=0,,RANK(B20,B$20:B$29,0)) -> 5 | D20: =IF(C20=0,,IF('INFO Blatt'!B$3<6,14-C20*2,'INFO Blatt'!B$3*2+2-C20*2)) -> 6 | F20: =A5 -> MTV Boffzen | G20: =ROUND(Boffzen!$K$30,2) -> 40 | H20: =IF(G20=0,,RANK(G20,G$20:G$29,0)) -> 4 | I20: =IF(H20=0,,IF('INFO Blatt'!B$3<6,14-H20*2,'INFO Blatt'!B$3*2+2-H20*2)) -> 8 | K20: =A5 -> MTV Boffzen | L20: =ROUND(Boffzen!$O$30,2) -> 40.05 | M20: =IF(L20=0,,RANK(L20,L$20:L$29,0)) -> 4 | N20: =IF(M20=0,,IF('INFO Blatt'!B$3<6,14-M20*2,'INFO Blatt'!B$3*2+2-M20*2)) -> 8
A21: TC Jahn Hehlen | B21: =ROUND(Hehlen!G30,2) -> 44.05 | C21: 3 | D21: =IF(C21=0,,IF('INFO Blatt'!B$3<6,14-C21*2,'INFO Blatt'!B$3*2+2-C21*2)) -> 10 | F21: TC Jahn Hehlen | G21: =ROUND(Hehlen!K30,2) -> 40.85 | H21: 3 | I21: =IF(H21=0,,IF('INFO Blatt'!B$3<6,14-H21*2,'INFO Blatt'!B$3*2+2-H21*2)) -> 10 | K21: TC Jahn Hehlen | L21: =ROUND(Hehlen!O30,2) -> 46.9 | M21: =IF(L21=0,,RANK(L21,L$20:L$29,0)) -> 1 | N21: =IF(M21=0,,IF('INFO Blatt'!B$3<6,14-M21*2,'INFO Blatt'!B$3*2+2-M21*2)) -> 14
A22: TG Oker Salzgitter 1 | B22: =ROUND('TG Oker SZ 1'!$G$30,2) -> 44.5 | C22: 2 | D22: =IF(C22=0,,IF('INFO Blatt'!B$3<6,14-C22*2,'INFO Blatt'!B$3*2+2-C22*2)) -> 12 | F22: TG Oker Salzgitter 1 | G22: =ROUND('TG Oker SZ 1'!$K$30,2) -> 45.8 | H22: 1 | I22: =IF(H22=0,,IF('INFO Blatt'!B$3<6,14-H22*2,'INFO Blatt'!B$3*2+2-H22*2)) -> 14 | K22: =A7 -> TG Oker Salzgitter 1 | L22: =ROUND('TG Oker SZ 1'!$O$30,2) -> 45.5 | M22: 3 | N22: =IF(M22=0,,IF('INFO Blatt'!B$3<6,14-M22*2,'INFO Blatt'!B$3*2+2-M22*2)) -> 10
A23: TG Oker Salzgitter 2 | B23: =ROUND('TG Oker SZ 2'!$G$30,2) -> 38.2 | C23: 7 | D23: =IF(C23=0,,IF('INFO Blatt'!B$3<6,14-C23*2,'INFO Blatt'!B$3*2+2-C23*2)) -> 2 | F23: TG Oker Salzgitter 2 | G23: =ROUND('TG Oker SZ 2'!$K$30,2) -> 35.65 | H23: 6 | I23: =IF(H23=0,,IF('INFO Blatt'!B$3<6,14-H23*2,'INFO Blatt'!B$3*2+2-H23*2)) -> 4 | K23: TG Oker Salzgitter 2 | L23: =ROUND('TG Oker SZ 2'!$O$30,2) -> 36.7 | M23: 6 | N23: =IF(M23=0,,IF('INFO Blatt'!B$3<6,14-M23*2,'INFO Blatt'!B$3*2+2-M23*2)) -> 4
A24: Einbecker SV 1 | B24: =ROUND('Einbeck 1'!$G$30,2) -> 38.9 | C24: 6 | D24: =IF(C24=0,,IF('INFO Blatt'!B$3<6,14-C24*2,'INFO Blatt'!B$3*2+2-C24*2)) -> 4 | F24: Einbecker SV 1 | G24: =ROUND('Einbeck 1'!$K$30,2) -> 30.3 | H24: 7 | I24: =IF(H24=0,,IF('INFO Blatt'!B$3<6,14-H24*2,'INFO Blatt'!B$3*2+2-H24*2)) -> 2 | K24: Einbecker SV 1 | L24: =ROUND('Einbeck 1'!$O$30,2) -> 33.9 | M24: 7 | N24: =IF(M24=0,,IF('INFO Blatt'!B$3<6,14-M24*2,'INFO Blatt'!B$3*2+2-M24*2)) -> 2
A25: Einbecker SV 2 | B25: =ROUND('Einbeck 2'!$G$30,2) -> 47.35 | C25: 1 | D25: =IF(C25=0,,IF('INFO Blatt'!B$3<6,14-C25*2,'INFO Blatt'!B$3*2+2-C25*2)) -> 14 | F25: Einbecker SV 2 | G25: =ROUND('Einbeck 2'!$K$30,2) -> 43.1 | H25: 2 | I25: =IF(H25=0,,IF('INFO Blatt'!B$3<6,14-H25*2,'INFO Blatt'!B$3*2+2-H25*2)) -> 12 | K25: Einbecker SV 2 | L25: =ROUND('Einbeck 2'!$O$30,2) -> 46.2 | M25: 2 | N25: =IF(M25=0,,IF('INFO Blatt'!B$3<6,14-M25*2,'INFO Blatt'!B$3*2+2-M25*2)) -> 12
A26: TG Hehlen Dielmissen | B26: =ROUND('TG Hehlen Dielmissen'!G30,2) -> 41.1 | C26: 4 | D26: =IF(C26=0,,IF('INFO Blatt'!B$3<6,14-C26*2,'INFO Blatt'!B$3*2+2-C26*2)) -> 8 | F26: TG Hehlen Dielmissen | G26: =ROUND('TG Hehlen Dielmissen'!K30,2) -> 36.4 | H26: 5 | I26: =IF(H26=0,,IF('INFO Blatt'!B$3<6,14-H26*2,'INFO Blatt'!B$3*2+2-H26*2)) -> 6 | K26: TG Hehlen Dielmissen | L26: =ROUND('TG Hehlen Dielmissen'!O30,2) -> 38.1 | M26: =IF(L26=0,,RANK(L26,L$20:L$29,0)) -> 5 | N26: =IF(M26=0,,IF('INFO Blatt'!B$3<6,14-M26*2,'INFO Blatt'!B$3*2+2-M26*2)) -> 6
A27: M8 | B27: ='M8'!$G$30 -> 0 | C27: 0 | D27: =IF(C27=0,,IF('INFO Blatt'!B$3<6,14-C27*2,'INFO Blatt'!B$3*2+2-C27*2)) -> 0 | F27: M8 | G27: ='M8'!K$30 -> 0 | H27: 0 | I27: =IF(H27=0,,IF('INFO Blatt'!B$3<6,14-H27*2,'INFO Blatt'!B$3*2+2-H27*2)) -> 0 | K27: M8 | L27: ='M8'!O$30 -> 0 | M27: 0 | N27: =IF(M27=0,,IF('INFO Blatt'!B$3<6,14-M27*2,'INFO Blatt'!B$3*2+2-M27*2)) -> 0
A28: M9 | B28: ='M9'!$G$30 -> 0 | C28: 0 | D28: =IF(C28=0,,IF('INFO Blatt'!B$3<6,14-C28*2,'INFO Blatt'!B$3*2+2-C28*2)) -> 0 | F28: M9 | G28: ='M9'!K$30 -> 0 | H28: 0 | I28: =IF(H28=0,,IF('INFO Blatt'!B$3<6,14-H28*2,'INFO Blatt'!B$3*2+2-H28*2)) -> 0 | K28: M9 | L28: ='M9'!O$30 -> 0 | M28: 0 | N28: =IF(M28=0,,IF('INFO Blatt'!B$3<6,14-M28*2,'INFO Blatt'!B$3*2+2-M28*2)) -> 0
A29: M10 | B29: ='M10'!$G$30 -> 0 | C29: 0 | D29: =IF(C29=0,,IF('INFO Blatt'!B$3<6,14-C29*2,'INFO Blatt'!B$3*2+2-C29*2)) -> 0 | F29: M10 | G29: ='M10'!K$30 -> 0 | H29: 0 | I29: =IF(H29=0,,IF('INFO Blatt'!B$3<6,14-H29*2,'INFO Blatt'!B$3*2+2-H29*2)) -> 0 | K29: M10 | L29: ='M10'!O$30 -> 0 | M29: 0 | N29: =IF(M29=0,,IF('INFO Blatt'!B$3<6,14-M29*2,'INFO Blatt'!B$3*2+2-M29*2)) -> 0
A31: Sprung | F31: Barren | K31: Reck
B32: Punkte | C32: Platz | D32: Gerät Punkt | G32: Punkte | H32: Platz | I32: Gerät Punkt | L32: Punkte | M32: Platz | N32: Gerät Punkt
A33: =A5 -> MTV Boffzen | B33: =ROUND(Boffzen!$S$30,2) -> 40.6 | C33: =IF(B33=0,,RANK(B33,B$33:B$42,0)) -> 7 | D33: =IF(C33=0,,IF('INFO Blatt'!B$3<6,14-C33*2,'INFO Blatt'!B$3*2+2-C33*2)) -> 2 | F33: =A5 -> MTV Boffzen | G33: =ROUND(Boffzen!$W$30,2) -> 40.3 | H33: =IF(G33=0,,RANK(G33,G$33:G$42,0)) -> 4 | I33: =IF(H33=0,,IF('INFO Blatt'!B$3<6,14-H33*2,'INFO Blatt'!B$3*2+2-H33*2)) -> 8 | K33: =A5 -> MTV Boffzen | L33: =ROUND(Boffzen!$AA$30,2) -> 38.5 | M33: =IF(L33=0,,RANK(L33,L$33:L$42,0)) -> 4 | N33: =IF(M33=0,,IF('INFO Blatt'!B$3<6,14-M33*2,'INFO Blatt'!B$3*2+2-M33*2)) -> 8
A34: TC Jahn Hehlen | B34: =ROUND(Hehlen!S30,2) -> 45.2 | C34: 2 | D34: =IF(C34=0,,IF('INFO Blatt'!B$3<6,14-C34*2,'INFO Blatt'!B$3*2+2-C34*2)) -> 12 | F34: TC Jahn Hehlen | G34: =ROUND(Hehlen!W30,2) -> 42.35 | H34: 3 | I34: =IF(H34=0,,IF('INFO Blatt'!B$3<6,14-H34*2,'INFO Blatt'!B$3*2+2-H34*2)) -> 10 | K34: TC Jahn Hehlen | L34: =ROUND(Hehlen!AA30,2) -> 42.45 | M34: =IF(L34=0,,RANK(L34,L$33:L$42,0)) -> 3 | N34: =IF(M34=0,,IF('INFO Blatt'!B$3<6,14-M34*2,'INFO Blatt'!B$3*2+2-M34*2)) -> 10
A35: TG Oker Salzgitter 1 | B35: =ROUND('TG Oker SZ 1'!$S$30,2) -> 46.8 | C35: 1 | D35: =IF(C35=0,,IF('INFO Blatt'!B$3<6,14-C35*2,'INFO Blatt'!B$3*2+2-C35*2)) -> 14 | F35: TG Oker Salzgitter 1 | G35: =ROUND('TG Oker SZ 1'!$W$30,2) -> 44.65 | H35: 1 | I35: =IF(H35=0,,IF('INFO Blatt'!B$3<6,14-H35*2,'INFO Blatt'!B$3*2+2-H35*2)) -> 14 | K35: TG Oker Salzgitter 1 | L35: =ROUND('TG Oker SZ 1'!$AA$30,2) -> 43.1 | M35: 1 | N35: =IF(M35=0,,IF('INFO Blatt'!B$3<6,14-M35*2,'INFO Blatt'!B$3*2+2-M35*2)) -> 14
A36: TG Oker Salzgitter 2 | B36: =ROUND('TG Oker SZ 2'!$S$30,2) -> 44.75 | C36: 4 | D36: =IF(C36=0,,IF('INFO Blatt'!B$3<6,14-C36*2,'INFO Blatt'!B$3*2+2-C36*2)) -> 8 | F36: TG Oker Salzgitter 2 | G36: =ROUND('TG Oker SZ 2'!$W$30,2) -> 38.55 | H36: 5 | I36: =IF(H36=0,,IF('INFO Blatt'!B$3<6,14-H36*2,'INFO Blatt'!B$3*2+2-H36*2)) -> 6 | K36: TG Oker Salzgitter 2 | L36: =ROUND('TG Oker SZ 2'!$AA$30,2) -> 38.2 | M36: 5 | N36: =IF(M36=0,,IF('INFO Blatt'!B$3<6,14-M36*2,'INFO Blatt'!B$3*2+2-M36*2)) -> 6
A37: Einbecker SV 1 | B37: =ROUND('Einbeck 1'!$S$30,2) -> 41.3 | C37: 6 | D37: =IF(C37=0,,IF('INFO Blatt'!B$3<6,14-C37*2,'INFO Blatt'!B$3*2+2-C37*2)) -> 4 | F37: Einbecker SV 1 | G37: =ROUND('Einbeck 1'!$W$30,2) -> 36.3 | H37: 6 | I37: =IF(H37=0,,IF('INFO Blatt'!B$3<6,14-H37*2,'INFO Blatt'!B$3*2+2-H37*2)) -> 4 | K37: Einbecker SV 1 | L37: =ROUND('Einbeck 1'!$AA$30,2) -> 35.6 | M37: 7 | N37: =IF(M37=0,,IF('INFO Blatt'!B$3<6,14-M37*2,'INFO Blatt'!B$3*2+2-M37*2)) -> 2
A38: Einbecker SV 2 | B38: =ROUND('Einbeck 2'!$S$30,2) -> 44.9 | C38: 3 | D38: =IF(C38=0,,IF('INFO Blatt'!B$3<6,14-C38*2,'INFO Blatt'!B$3*2+2-C38*2)) -> 10 | F38: Einbecker SV 2 | G38: =ROUND('Einbeck 2'!$W$30,2) -> 44.1 | H38: 2 | I38: =IF(H38=0,,IF('INFO Blatt'!B$3<6,14-H38*2,'INFO Blatt'!B$3*2+2-H38*2)) -> 12 | K38: Einbecker SV 2 | L38: =ROUND('Einbeck 2'!$AA$30,2) -> 42.9 | M38: 2 | N38: =IF(M38=0,,IF('INFO Blatt'!B$3<6,14-M38*2,'INFO Blatt'!B$3*2+2-M38*2)) -> 12
A39: TG Hehlen Dielmissen | B39: =ROUND('TG Hehlen Dielmissen'!S30,2) -> 41.75 | C39: 5 | D39: =IF(C39=0,,IF('INFO Blatt'!B$3<6,14-C39*2,'INFO Blatt'!B$3*2+2-C39*2)) -> 6 | F39: TG Hehlen Dielmissen | G39: =ROUND('TG Hehlen Dielmissen'!W30,2) -> 33.7 | H39: 7 | I39: =IF(H39=0,,IF('INFO Blatt'!B$3<6,14-H39*2,'INFO Blatt'!B$3*2+2-H39*2)) -> 2 | K39: TG Hehlen Dielmissen | L39: =ROUND('TG Hehlen Dielmissen'!AA30,2) -> 37.55 | M39: =IF(L39=0,,RANK(L39,L$33:L$42,0)) -> 6 | N39: =IF(M39=0,,IF('INFO Blatt'!B$3<6,14-M39*2,'INFO Blatt'!B$3*2+2-M39*2)) -> 4
A40: M8 | B40: ='M8'!S$30 -> 0 | C40: 0 | D40: =IF(C40=0,,IF('INFO Blatt'!B$3<6,14-C40*2,'INFO Blatt'!B$3*2+2-C40*2)) -> 0 | F40: M8 | G40: ='M8'!W$30 -> 0 | H40: 0 | I40: =IF(H40=0,,IF('INFO Blatt'!B$3<6,14-H40*2,'INFO Blatt'!B$3*2+2-H40*2)) -> 0 | K40: M8 | L40: ='M8'!AA$30 -> 0 | M40: 0 | N40: =IF(M40=0,,IF('INFO Blatt'!B$3<6,14-M40*2,'INFO Blatt'!B$3*2+2-M40*2)) -> 0
A41: M9 | B41: ='M9'!S$30 -> 0 | C41: 0 | D41: =IF(C41=0,,IF('INFO Blatt'!B$3<6,14-C41*2,'INFO Blatt'!B$3*2+2-C41*2)) -> 0 | F41: M9 | G41: ='M9'!W$30 -> 0 | H41: 0 | I41: =IF(H41=0,,IF('INFO Blatt'!B$3<6,14-H41*2,'INFO Blatt'!B$3*2+2-H41*2)) -> 0 | K41: M9 | L41: ='M9'!AA$30 -> 0 | M41: 0 | N41: =IF(M41=0,,IF('INFO Blatt'!B$3<6,14-M41*2,'INFO Blatt'!B$3*2+2-M41*2)) -> 0
A42: M10 | B42: ='M10'!S$30 -> 0 | C42: 0 | D42: =IF(C42=0,,IF('INFO Blatt'!B$3<6,14-C42*2,'INFO Blatt'!B$3*2+2-C42*2)) -> 0 | F42: M10 | G42: ='M10'!W$30 -> 0 | H42: 0 | I42: =IF(H42=0,,IF('INFO Blatt'!B$3<6,14-H42*2,'INFO Blatt'!B$3*2+2-H42*2)) -> 0 | K42: M10 | L42: ='M10'!AA$30 -> 0 | M42: 0 | N42: =IF(M42=0,,IF('INFO Blatt'!B$3<6,14-M42*2,'INFO Blatt'!B$3*2+2-M42*2)) -> 0

Sheet Hehlen
A1: Wettkampfbogen | M1: Datum: | O1: ='INFO Blatt'!B13 -> 2018-03-03
M3: Ort: | O3: ='INFO Blatt'!B11 -> Hehlen
N5: Liga: | O5: ='INFO Blatt'!B7 -> Schülerliga Süd
A7: Name | B7: Verein | C7: Jg | D7: Boden | H7: Pferd | L7: Ringe | P7: Sprung | T7: Barren | X7: Reck | AB7: Ges.
D8: D-Note | E8: Abzug OK | F8: E- Abzug | G8: Note | H8: D-Note | I8: Abzug OK | J8: E- Abzug | K8: Note | L8: D-Note | M8: Abzug OK | N8: E-Abzug | O8: Note | P8: D-Note | Q8: Abzug OK | R8: E-Abzug | S8: Note | T8: D-Note | U8: Abzug OK | V8: E-Abzug | W8: Note | X8: D-Note | Y8: Abzug OK | Z8: E-Abzug | AA8: Note
A9: Paul Bähr | B9: =Formeln!A6 -> TC Jahn Hehlen | C9: =IF(A9<>"",VLOOKUP(A9,'Wertungszettel M2'!A$7:B$36,2,0),"") -> 05 | G9: =IF(AND(F9>0,F10>0),IF(OR(F9>10,F9<0,F10>10,F10<0),"Fehler",IF(ABS(D9)-ABS(E9)-(F9+F10)/2+10>0,IF(D9<0,-(ABS(D9)-ABS(E9)-(F9+F10)/2+10),D9-ABS(E9)-(F9+F10)/2+10),0)),0) -> 0 | K9: =IF(AND(J9>0,J10>0),IF(OR(J9>10,J9<0,J10>10,J10<0),"Fehler",IF(ABS(H9)-ABS(I9)-(J9+J10)/2+10>0,IF(H9<0,-(ABS(H9)-ABS(I9)-(J9+J10)/2+10),H9-ABS(I9)-(J9+J10)/2+10),0)),0) -> 0 | O9: =IF(AND(N9>0,N10>0),IF(OR(N9>10,N9<0,N10>10,N10<0),"Fehler",IF(ABS(L9)-ABS(M9)-(N9+N10)/2+10>0,IF(L9<0,-(ABS(L9)-ABS(M9)-(N9+N10)/2+10),L9-ABS(M9)-(N9+N10)/2+10),0)),0) -> 0 | S9: =IF(AND(R9>0,R10>0),IF(OR(R9>10,R9<0,R10>10,R10<0),"Fehler",IF(ABS(P9)-ABS(Q9)-(R9+R10)/2+10>0,IF(P9<0,-(ABS(P9)-ABS(Q9)-(R9+R10)/2+10),P9-ABS(Q9)-(R9+R10)/2+10),0)),0) -> 0 | W9: =IF(AND(V9>0,V10>0),IF(OR(V9>10,V9<0,V10>10,V10<0),"Fehler",IF(ABS(T9)-ABS(U9)-(V9+V10)/2+10>0,IF(T9<0,-(ABS(T9)-ABS(U9)-(V9+V10)/2+10),T9-ABS(U9)-(V9+V10)/2+10),0)),0) -> 0 | AA9: =IF(AND(Z9>0,Z10>0),IF(OR(Z9>10,Z9<0,Z10>10,Z10<0),"Fehler",IF(ABS(X9)-ABS(Y9)-(Z9+Z10)/2+10>0,IF(X9<0,-(ABS(X9)-ABS(Y9)-(Z9+Z10)/2+10),X9-ABS(Y9)-(Z9+Z10)/2+10),0)),0) -> 0 | AB9: =ABS(G9)+ABS(K9)+ABS(O9)+ABS(S9)+ABS(W9)+ABS(AA9) -> 0
A11: Benjamin Berg | B11: =IF(A11>0,B9,"") -> TC Jahn Hehlen | C11: =IF(A11<>"",VLOOKUP(A11,'Wertungszettel M2'!A$7:B$36,2,0),"") -> 07 | D11: 5 | F11: 1.2 | G11: =IF(AND(F11>0,F12>0),IF(OR(F11>10,F11<0,F12>10,F12<0),"Fehler",IF(ABS(D11)-ABS(E11)-(F11+F12)/2+10>0,IF(D11<0,-(ABS(D11)-ABS(E11)-(F11+F12)/2+10),D11-ABS(E11)-(F11+F12)/2+10),0)),0) -> 13.8 | H11: 5 | J11: 2.5 | K11: =IF(AND(J11>0,J12>0),IF(OR(J11>10,J11<0,J12>10,J12<0),"Fehler",IF(ABS(H11)-ABS(I11)-(J11+J12)/2+10>0,IF(H11<0,-(ABS(H11)-ABS(I11)-(J11+J12)/2+10),H11-ABS(I11)-(J11+J12)/2+10),0)),0) -> 12.5 | L11: 6 | N11: 2.6 | O11: =IF(AND(N11>0,N12>0),IF(OR(N11>10,N11<0,N12>10,N12<0),"Fehler",IF(ABS(L11)-ABS(M11)-(N11+N12)/2+10>0,IF(L11<0,-(ABS(L11)-ABS(M11)-(N11+N12)/2+10),L11-ABS(M11)-(N11+N12)/2+10),0)),0) -> 13.5 | P11: 7 | R11: 2.2 | S11: =IF(AND(R11>0,R12>0),IF(OR(R11>10,R11<0,R12>10,R12<0),"Fehler",IF(ABS(P11)-ABS(Q11)-(R11+R12)/2+10>0,IF(P11<0,-(ABS(P11)-ABS(Q11)-(R11+R12)/2+10),P11-ABS(Q11)-(R11+R12)/2+10),0)),0) -> 14.6 | T11: 5 | V11: 2.1 | W11: =IF(AND(V11>0,V12>0),IF(OR(V11>10,V11<0,V12>10,V12<0),"Fehler",IF(ABS(T11)-ABS(U11)-(V11+V12)/2+10>0,IF(T11<0,-(ABS(T11)-ABS(U11)-(V11+V12)/2+10),T11-ABS(U11)-(V11+V12)/2+10),0)),0) -> 12.8 | X11: 5 | Z11: 1.6 | AA11: =IF(AND(Z11>0,Z12>0),IF(OR(Z11>10,Z11<0,Z12>10,Z12<0),"Fehler",IF(ABS(X11)-ABS(Y11)-(Z11+Z12)/2+10>0,IF(X11<0,-(ABS(X11)-ABS(Y11)-(Z11+Z12)/2+10),X11-ABS(Y11)-(Z11+Z12)/2+10),0)),0) -> 13.25 | AB11: =ABS(G11)+ABS(K11)+ABS(O11)+ABS(S11)+ABS(W11)+ABS(AA11) -> 80.45 | AF11: Boden | AG11: =IF(G30>1,1,0) -> 1
F12: 1.2 | J12: 2.5 | N12: 2.4 | R12: 2.6 | V12: 2.3 | Z12: 1.9 | AF12: pauschenpferd | AG12: =IF(K30>1,1,0) -> 1
A13: Niklas Bohlender | B13: =IF(A13>0,B11,"") -> TC Jahn Hehlen | C13: =IF(A13<>"",VLOOKUP(A13,'Wertungszettel M2'!A$7:B$36,2,0),"") -> 04 | G13: =IF(AND(F13>0,F14>0),IF(OR(F13>10,F13<0,F14>10,F14<0),"Fehler",IF(ABS(D13)-ABS(E13)-(F13+F14)/2+10>0,IF(D13<0,-(ABS(D13)-ABS(E13)-(F13+F14)/2+10),D13-ABS(E13)-(F13+F14)/2+10),0)),0) -> 0 | K13: =IF(AND(J13>0,J14>0),IF(OR(J13>10,J13<0,J14>10,J14<0),"Fehler",IF(ABS(H13)-ABS(I13)-(J13+J14)/2+10>0,IF(H13<0,-(ABS(H13)-ABS(I13)-(J13+J14)/2+10),H13-ABS(I13)-(J13+J14)/2+10),0)),0) -> 0 | L13: 8 | N13: 3 | O13: =IF(AND(N13>0,N14>0),IF(OR(N13>10,N13<0,N14>10,N14<0),"Fehler",IF(ABS(L13)-ABS(M13)-(N13+N14)/2+10>0,IF(L13<0,-(ABS(L13)-ABS(M13)-(N13+N14)/2+10),L13-ABS(M13)-(N13+N14)/2+10),0)),0) -> 15 | S13: =IF(AND(R13>0,R14>0),IF(OR(R13>10,R13<0,R14>10,R14<0),"Fehler",IF(ABS(P13)-ABS(Q13)-(R13+R14)/2+10>0,IF(P13<0,-(ABS(P13)-ABS(Q13)-(R13+R14)/2+10),P13-ABS(Q13)-(R13+R14)/2+10),0)),0) -> 0 | T13: 6 | V13: 2.9 | W13: =IF(AND(V13>0,V14>0),IF(OR(V13>10,V13<0,V14>10,V14<0),"Fehler",IF(ABS(T13)-ABS(U13)-(V13+V14)/2+10>0,IF(T13<0,-(ABS(T13)-ABS(U13)-(V13+V14)/2+10),T13-ABS(U13)-(V13+V14)/2+10),0)),0) -> 13.05 | X13: 6 | Z13: 2.5 | AA13: =IF(AND(Z13>0,Z14>0),IF(OR(Z13>10,Z13<0,Z14>10,Z14<0),"Fehler",IF(ABS(X13)-ABS(Y13)-(Z13+Z14)/2+10>0,IF(X13<0,-(ABS(X13)-ABS(Y13)-(Z13+Z14)/2+10),X13-ABS(Y13)-(Z13+Z14)/2+10),0)),0) -> 13.4 | AB13: =ABS(G13)+ABS(K13)+ABS(O13)+ABS(S13)+ABS(W13)+ABS(AA13) -> 41.45 | AF13: ringe | AG13: =IF(O30>1,1,0) -> 1
N14: 3 | V14: 3 | Z14: 2.7 | AF14: sprung | AG14: =IF(S30>1,1,0) -> 1
A15: Niclas Brinkmann | B15: =IF(A15>0,B13,"") -> TC Jahn Hehlen | C15: =IF(A15<>"",VLOOKUP(A15,'Wertungszettel M2'!A$7:B$36,2,0),"") -> 05 | D15: 9 | F15: 2.5 | G15: =IF(AND(F15>0,F16>0),IF(OR(F15>10,F15<0,F16>10,F16<0),"Fehler",IF(ABS(D15)-ABS(E15)-(F15+F16)/2+10>0,IF(D15<0,-(ABS(D15)-ABS(E15)-(F15+F16)/2+10),D15-ABS(E15)-(F15+F16)/2+10),0)),0) -> 16.4 | H15: 7 | J15: 0.8 | K15: =IF(AND(J15>0,J16>0),IF(OR(J15>10,J15<0,J16>10,J16<0),"Fehler",IF(ABS(H15)-ABS(I15)-(J15+J16)/2+10>0,IF(H15<0,-(ABS(H15)-ABS(I15)-(J15+J16)/2+10),H15-ABS(I15)-(J15+J16)/2+10),0)),0) -> 16.15 | L15: 8 | N15: 1.1 | O15: =IF(AND(N15>0,N16>0),IF(OR(N15>10,N15<0,N16>10,N16<0),"Fehler",IF(ABS(L15)-ABS(M15)-(N15+N16)/2+10>0,IF(L15<0,-(ABS(L15)-ABS(M15)-(N15+N16)/2+10),L15-ABS(M15)-(N15+N16)/2+10),0)),0) -> 17 | P15: 7 | R15: 1.1 | S15: =IF(AND(R15>0,R16>0),IF(OR(R15>10,R15<0,R16>10,R16<0),"Fehler",IF(ABS(P15)-ABS(Q15)-(R15+R16)/2+10>0,IF(P15<0,-(ABS(P15)-ABS(Q15)-(R15+R16)/2+10),P15-ABS(Q15)-(R15+R16)/2+10),0)),0) -> 15.9 | T15: 7 | V15: 1 | W15: =IF(AND(V15>0,V16>0),IF(OR(V15>10,V15<0,V16>10,V16<0),"Fehler",IF(ABS(T15)-ABS(U15)-(V15+V16)/2+10>0,IF(T15<0,-(ABS(T15)-ABS(U15)-(V15+V16)/2+10),T15-ABS(U15)-(V15+V16)/2+10),0)),0) -> 16 | X15: 8 | Z15: 2.2 | AA15: =IF(AND(Z15>0,Z16>0),IF(OR(Z15>10,Z15<0,Z16>10,Z16<0),"Fehler",IF(ABS(X15)-ABS(Y15)-(Z15+Z16)/2+10>0,IF(X15<0,-(ABS(X15)-ABS(Y15)-(Z15+Z16)/2+10),X15-ABS(Y15)-(Z15+Z16)/2+10),0)),0) -> 15.8 | AB15: =ABS(G15)+ABS(K15)+ABS(O15)+ABS(S15)+ABS(W15)+ABS(AA15) -> 97.25 | AF15: Barren | AG15: =IF(W30>1,1,0) -> 1
F16: 2.7 | J16: 0.9 | N16: 0.9 | R16: 1.1 | V16: 1 | Z16: 2.2 | AF16: Reck | AG16: =IF(AA30>1,1,0) -> 1
A17: Jonas Firedrich | B17: =IF(A17>0,B15,"") -> TC Jahn Hehlen | C17: =IF(A17<>"",VLOOKUP(A17,'Wertungszettel M2'!A$7:B$36,2,0),"") -> 07 | D17: 5 | F17: 1.3 | G17: =IF(AND(F17>0,F18>0),IF(OR(F17>10,F17<0,F18>10,F18<0),"Fehler",IF(ABS(D17)-ABS(E17)-(F17+F18)/2+10>0,IF(D17<0,-(ABS(D17)-ABS(E17)-(F17+F18)/2+10),D17-ABS(E17)-(F17+F18)/2+10),0)),0) -> 13.85 | H17: 5 | J17: 3 | K17: =IF(AND(J17>0,J18>0),IF(OR(J17>10,J17<0,J18>10,J18<0),"Fehler",IF(ABS(H17)-ABS(I17)-(J17+J18)/2+10>0,IF(H17<0,-(ABS(H17)-ABS(I17)-(J17+J18)/2+10),H17-ABS(I17)-(J17+J18)/2+10),0)),0) -> 12 | L17: 6 | M17: 1.5 | N17: 2.8 | O17: =IF(AND(N17>0,N18>0),IF(OR(N17>10,N17<0,N18>10,N18<0),"Fehler",IF(ABS(L17)-ABS(M17)-(N17+N18)/2+10>0,IF(L17<0,-(ABS(L17)-ABS(M17)-(N17+N18)/2+10),L17-ABS(M17)-(N17+N18)/2+10),0)),0) -> 11.8 | P17: 5 | R17: 1.4 | S17: =IF(AND(R17>0,R18>0),IF(OR(R17>10,R17<0,R18>10,R18<0),"Fehler",IF(ABS(P17)-ABS(Q17)-(R17+R18)/2+10>0,IF(P17<0,-(ABS(P17)-ABS(Q17)-(R17+R18)/2+10),P17-ABS(Q17)-(R17+R18)/2+10),0)),0) -> 13.6 | T17: 5 | V17: 2.3 | W17: =IF(AND(V17>0,V18>0),IF(OR(V17>10,V17<0,V18>10,V18<0),"Fehler",IF(ABS(T17)-ABS(U17)-(V17+V18)/2+10>0,IF(T17<0,-(ABS(T17)-ABS(U17)-(V17+V18)/2+10),T17-ABS(U17)-(V17+V18)/2+10),0)),0) -> 12.6 | X17: 5 | Z17: 2.1 | AA17: =IF(AND(Z17>0,Z18>0),IF(OR(Z17>10,Z17<0,Z18>10,Z18<0),"Fehler",IF(ABS(X17)-ABS(Y17)-(Z17+Z18)/2+10>0,IF(X17<0,-(ABS(X17)-ABS(Y17)-(Z17+Z18)/2+10),X17-ABS(Y17)-(Z17+Z18)/2+10),0)),0) -> 13 | AB17: =ABS(G17)+ABS(K17)+ABS(O17)+ABS(S17)+ABS(W17)+ABS(AA17) -> 76.85
F18: 1 | J18: 3 | N18: 2.6 | R18: 1.4 | V18: 2.5 | Z18: 1.9 | AF18: Gesamt | AG18: =SUM(AG11:AG17) -> 6
A19: Ilja Kant | B19: =IF(A19>0,B17,"") -> TC Jahn Hehlen | C19: =IF(A19<>"",VLOOKUP(A19,'Wertungszettel M2'!A$7:B$36,2,0),"") -> 06 | D19: 5 | F19: 2.1 | G19: =IF(AND(F19>0,F20>0),IF(OR(F19>10,F19<0,F20>10,F20<0),"Fehler",IF(ABS(D19)-ABS(E19)-(F19+F20)/2+10>0,IF(D19<0,-(ABS(D19)-ABS(E19)-(F19+F20)/2+10),D19-ABS(E19)-(F19+F20)/2+10),0)),0) -> 12.9 | H19: 5 | J19: 2.8 | K19: =IF(AND(J19>0,J20>0),IF(OR(J19>10,J19<0,J20>10,J20<0),"Fehler",IF(ABS(H19)-ABS(I19)-(J19+J20)/2+10>0,IF(H19<0,-(ABS(H19)-ABS(I19)-(J19+J20)/2+10),H19-ABS(I19)-(J19+J20)/2+10),0)),0) -> 12.15 | L19: 6 | M19: 1 | N19: 2.6 | O19: =IF(AND(N19>0,N20>0),IF(OR(N19>10,N19<0,N20>10,N20<0),"Fehler",IF(ABS(L19)-ABS(M19)-(N19+N20)/2+10>0,IF(L19<0,-(ABS(L19)-ABS(M19)-(N19+N20)/2+10),L19-ABS(M19)-(N19+N20)/2+10),0)),0) -> 12.5 | P19: 7 | R19: 2.3 | S19: =IF(AND(R19>0,R20>0),IF(OR(R19>10,R19<0,R20>10,R20<0),"Fehler",IF(ABS(P19)-ABS(Q19)-(R19+R20)/2+10>0,IF(P19<0,-(ABS(P19)-ABS(Q19)-(R19+R20)/2+10),P19-ABS(Q19)-(R19+R20)/2+10),0)),0) -> 14.7 | T19: 5 | U19: 1.5 | V19: 2.5 | W19: =IF(AND(V19>0,V20>0),IF(OR(V19>10,V19<0,V20>10,V20<0),"Fehler",IF(ABS(T19)-ABS(U19)-(V19+V20)/2+10>0,IF(T19<0,-(ABS(T19)-ABS(U19)-(V19+V20)/2+10),T19-ABS(U19)-(V19+V20)/2+10),0)),0) -> 10.9 | X19: 5 | Z19: 2.8 | AA19: =IF(AND(Z19>0,Z20>0),IF(OR(Z19>10,Z19<0,Z20>10,Z20<0),"Fehler",IF(ABS(X19)-ABS(Y19)-(Z19+Z20)/2+10>0,IF(X19<0,-(ABS(X19)-ABS(Y19)-(Z19+Z20)/2+10),X19-ABS(Y19)-(Z19+Z20)/2+10),0)),0) -> 12.4 | AB19: =ABS(G19)+ABS(K19)+ABS(O19)+ABS(S19)+ABS(W19)+ABS(AA19) -> 75.55
F20: 2.1 | J20: 2.9 | N20: 2.4 | R20: 2.3 | V20: 2.7 | Z20: 2.4
A21: Tom Weper | B21: =IF(A21>0,B19,"") -> TC Jahn Hehlen | C21: =IF(A21<>"",VLOOKUP(A21,'Wertungszettel M2'!A$7:B$36,2,0),"") -> 06 | G21: =IF(AND(F21>0,F22>0),IF(OR(F21>10,F21<0,F22>10,F22<0),"Fehler",IF(ABS(D21)-ABS(E21)-(F21+F22)/2+10>0,IF(D21<0,-(ABS(D21)-ABS(E21)-(F21+F22)/2+10),D21-ABS(E21)-(F21+F22)/2+10),0)),0) -> 0 | K21: =IF(AND(J21>0,J22>0),IF(OR(J21>10,J21<0,J22>10,J22<0),"Fehler",IF(ABS(H21)-ABS(I21)-(J21+J22)/2+10>0,IF(H21<0,-(ABS(H21)-ABS(I21)-(J21+J22)/2+10),H21-ABS(I21)-(J21+J22)/2+10),0)),0) -> 0 | O21: =IF(AND(N21>0,N22>0),IF(OR(N21>10,N21<0,N22>10,N22<0),"Fehler",IF(ABS(L21)-ABS(M21)-(N21+N22)/2+10>0,IF(L21<0,-(ABS(L21)-ABS(M21)-(N21+N22)/2+10),L21-ABS(M21)-(N21+N22)/2+10),0)),0) -> 0 | S21: =IF(AND(R21>0,R22>0),IF(OR(R21>10,R21<0,R22>10,R22<0),"Fehler",IF(ABS(P21)-ABS(Q21)-(R21+R22)/2+10>0,IF(P21<0,-(ABS(P21)-ABS(Q21)-(R21+R22)/2+10),P21-ABS(Q21)-(R21+R22)/2+10),0)),0) -> 0 | W21: =IF(AND(V21>0,V22>0),IF(OR(V21>10,V21<0,V22>10,V22<0),"Fehler",IF(ABS(T21)-ABS(U21)-(V21+V22)/2+10>0,IF(T21<0,-(ABS(T21)-ABS(U21)-(V21+V22)/2+10),T21-ABS(U21)-(V21+V22)/2+10),0)),0) -> 0 | AA21: =IF(AND(Z21>0,Z22>0),IF(OR(Z21>10,Z21<0,Z22>10,Z22<0),"Fehler",IF(ABS(X21)-ABS(Y21)-(Z21+Z22)/2+10>0,IF(X21<0,-(ABS(X21)-ABS(Y21)-(Z21+Z22)/2+10),X21-ABS(Y21)-(Z21+Z22)/2+10),0)),0) -> 0 | AB21: =ABS(G21)+ABS(K21)+ABS(O21)+ABS(S21)+ABS(W21)+ABS(AA21) -> 0
A23: Frederik Zwickert | B23: =IF(A23>0,B21,"") -> TC Jahn Hehlen | C23: =IF(A23<>"",VLOOKUP(A23,'Wertungszettel M2'!A$7:B$36,2,0),"") -> 07 | D23: 5 | F23: 1.5 | G23: =IF(AND(F23>0,F24>0),IF(OR(F23>10,F23<0,F24>10,F24<0),"Fehler",IF(ABS(D23)-ABS(E23)-(F23+F24)/2+10>0,IF(D23<0,-(ABS(D23)-ABS(E23)-(F23+F24)/2+10),D23-ABS(E23)-(F23+F24)/2+10),0)),0) -> 13.5 | H23: 5 | J23: 2.8 | K23: =IF(AND(J23>0,J24>0),IF(OR(J23>10,J23<0,J24>10,J24<0),"Fehler",IF(ABS(H23)-ABS(I23)-(J23+J24)/2+10>0,IF(H23<0,-(ABS(H23)-ABS(I23)-(J23+J24)/2+10),H23-ABS(I23)-(J23+J24)/2+10),0)),0) -> 12.2 | L23: 7 | N23: 2.1 | O23: =IF(AND(N23>0,N24>0),IF(OR(N23>10,N23<0,N24>10,N24<0),"Fehler",IF(ABS(L23)-ABS(M23)-(N23+N24)/2+10>0,IF(L23<0,-(ABS(L23)-ABS(M23)-(N23+N24)/2+10),L23-ABS(M23)-(N23+N24)/2+10),0)),0) -> 14.9 | P23: 5 | R23: 1.1 | S23: =IF(AND(R23>0,R24>0),IF(OR(R23>10,R23<0,R24>10,R24<0),"Fehler",IF(ABS(P23)-ABS(Q23)-(R23+R24)/2+10>0,IF(P23<0,-(ABS(P23)-ABS(Q23)-(R23+R24)/2+10),P23-ABS(Q23)-(R23+R24)/2+10),0)),0) -> 13.9 | T23: 5 | V23: 1.6 | W23: =IF(AND(V23>0,V24>0),IF(OR(V23>10,V23<0,V24>10,V24<0),"Fehler",IF(ABS(T23)-ABS(U23)-(V23+V24)/2+10>0,IF(T23<0,-(ABS(T23)-ABS(U23)-(V23+V24)/2+10),T23-ABS(U23)-(V23+V24)/2+10),0)),0) -> 13.3 | X23: 5 | Z23: 1.8 | AA23: =IF(AND(Z23>0,Z24>0),IF(OR(Z23>10,Z23<0,Z24>10,Z24<0),"Fehler",IF(ABS(X23)-ABS(Y23)-(Z23+Z24)/2+10>0,IF(X23<0,-(ABS(X23)-ABS(Y23)-(Z23+Z24)/2+10),X23-ABS(Y23)-(Z23+Z24)/2+10),0)),0) -> 13.25 | AB23: =ABS(G23)+ABS(K23)+ABS(O23)+ABS(S23)+ABS(W23)+ABS(AA23) -> 81.05
F24: 1.5 | J24: 2.8 | N24: 2.1 | R24: 1.1 | V24: 1.8 | Z24: 1.7
B25: =IF(A25>0,B23,"") ->  | C25: =IF(A25<>"",VLOOKUP(A25,'Wertungszettel M2'!A$7:B$36,2,0),"") ->  | G25: =IF(AND(F25>0,F26>0),IF(OR(F25>10,F25<0,F26>10,F26<0),"Fehler",IF(ABS(D25)-ABS(E25)-(F25+F26)/2+10>0,IF(D25<0,-(ABS(D25)-ABS(E25)-(F25+F26)/2+10),D25-ABS(E25)-(F25+F26)/2+10),0)),0) -> 0 | K25: =IF(AND(J25>0,J26>0),IF(OR(J25>10,J25<0,J26>10,J26<0),"Fehler",IF(ABS(H25)-ABS(I25)-(J25+J26)/2+10>0,IF(H25<0,-(ABS(H25)-ABS(I25)-(J25+J26)/2+10),H25-ABS(I25)-(J25+J26)/2+10),0)),0) -> 0 | O25: =IF(AND(N25>0,N26>0),IF(OR(N25>10,N25<0,N26>10,N26<0),"Fehler",IF(ABS(L25)-ABS(M25)-(N25+N26)/2+10>0,IF(L25<0,-(ABS(L25)-ABS(M25)-(N25+N26)/2+10),L25-ABS(M25)-(N25+N26)/2+10),0)),0) -> 0 | S25: =IF(AND(R25>0,R26>0),IF(OR(R25>10,R25<0,R26>10,R26<0),"Fehler",IF(ABS(P25)-ABS(Q25)-(R25+R26)/2+10>0,IF(P25<0,-(ABS(P25)-ABS(Q25)-(R25+R26)/2+10),P25-ABS(Q25)-(R25+R26)/2+10),0)),0) -> 0 | W25: =IF(AND(V25>0,V26>0),IF(OR(V25>10,V25<0,V26>10,V26<0),"Fehler",IF(ABS(T25)-ABS(U25)-(V25+V26)/2+10>0,IF(T25<0,-(ABS(T25)-ABS(U25)-(V25+V26)/2+10),T25-ABS(U25)-(V25+V26)/2+10),0)),0) -> 0 | AA25: =IF(AND(Z25>0,Z26>0),IF(OR(Z25>10,Z25<0,Z26>10,Z26<0),"Fehler",IF(ABS(X25)-ABS(Y25)-(Z25+Z26)/2+10>0,IF(X25<0,-(ABS(X25)-ABS(Y25)-(Z25+Z26)/2+10),X25-ABS(Y25)-(Z25+Z26)/2+10),0)),0) -> 0 | AB25: =ABS(G25)+ABS(K25)+ABS(O25)+ABS(S25)+ABS(W25)+ABS(AA25) -> 0
B27: =IF(A27>0,B25,"") ->  | C27: =IF(A27<>"",VLOOKUP(A27,'Wertungszettel M2'!A$7:B$36,2,0),"") ->  | G27: =IF(AND(F27>0,F28>0),IF(OR(F27>10,F27<0,F28>10,F28<0),"Fehler",IF(ABS(D27)-ABS(E27)-(F27+F28)/2+10>0,IF(D27<0,-(ABS(D27)-ABS(E27)-(F27+F28)/2+10),D27-ABS(E27)-(F27+F28)/2+10),0)),0) -> 0 | K27: =IF(AND(J27>0,J28>0),IF(OR(J27>10,J27<0,J28>10,J28<0),"Fehler",IF(ABS(H27)-ABS(I27)-(J27+J28)/2+10>0,IF(H27<0,-(ABS(H27)-ABS(I27)-(J27+J28)/2+10),H27-ABS(I27)-(J27+J28)/2+10),0)),0) -> 0 | O27: =IF(AND(N27>0,N28>0),IF(OR(N27>10,N27<0,N28>10,N28<0),"Fehler",IF(ABS(L27)-ABS(M27)-(N27+N28)/2+10>0,IF(L27<0,-(ABS(L27)-ABS(M27)-(N27+N28)/2+10),L27-ABS(M27)-(N27+N28)/2+10),0)),0) -> 0 | S27: =IF(AND(R27>0,R28>0),IF(OR(R27>10,R27<0,R28>10,R28<0),"Fehler",IF(ABS(P27)-ABS(Q27)-(R27+R28)/2+10>0,IF(P27<0,-(ABS(P27)-ABS(Q27)-(R27+R28)/2+10),P27-ABS(Q27)-(R27+R28)/2+10),0)),0) -> 0 | W27: =IF(AND(V27>0,V28>0),IF(OR(V27>10,V27<0,V28>10,V28<0),"Fehler",IF(ABS(T27)-ABS(U27)-(V27+V28)/2+10>0,IF(T27<0,-(ABS(T27)-ABS(U27)-(V27+V28)/2+10),T27-ABS(U27)-(V27+V28)/2+10),0)),0) -> 0 | AA27: =IF(AND(Z27>0,Z28>0),IF(OR(Z27>10,Z27<0,Z28>10,Z28<0),"Fehler",IF(ABS(X27)-ABS(Y27)-(Z27+Z28)/2+10>0,IF(X27<0,-(ABS(X27)-ABS(Y27)-(Z27+Z28)/2+10),X27-ABS(Y27)-(Z27+Z28)/2+10),0)),0) -> 0 | AB27: =ABS(G27)+ABS(K27)+ABS(O27)+ABS(S27)+ABS(W27)+ABS(AA27) -> 0
G30: =SUM(LARGE(G9:G28,1),LARGE(G9:G28,2),LARGE(G9:G28,3)) -> 44.05 | K30: =SUM(LARGE(K9:K28,1),LARGE(K9:K28,2),LARGE(K9:K28,3)) -> 40.85 | O30: =SUM(LARGE(O9:O28,1),LARGE(O9:O28,2),LARGE(O9:O28,3)) -> 46.9 | S30: =SUM(LARGE(S9:S28,1),LARGE(S9:S28,2),LARGE(S9:S28,3)) -> 45.2 | W30: =SUM(LARGE(W9:W28,1),LARGE(W9:W28,2),LARGE(W9:W28,3)) -> 42.35 | AA30: =SUM(LARGE(AA9:AA28,1),LARGE(AA9:AA28,2),LARGE(AA9:AA28,3)) -> 42.45 | AB30: =SUM(G30,K30,O30,S30,W30,AA30) -> 261.8

Sheet TG Oker SZ 1
A1: Wettkampfbogen | M1: Datum: | O1: ='INFO Blatt'!B13 -> 2018-03-03
M3: Ort: | O3: ='INFO Blatt'!B11 -> Hehlen
N5: Liga: | O5: ='INFO Blatt'!B7 -> Schülerliga Süd
A7: Name | B7: Verein | C7: Jg | D7: Boden | H7: Pferd | L7: Ringe | P7: Sprung | T7: Barren | X7: Reck | AB7: Ges.
D8: D-Note | E8: Abzug OK | F8: E- Abzug | G8: Note | H8: D-Note | I8: Abzug OK | J8: E- Abzug | K8: Note | L8: D-Note | M8: Abzug OK | N8: E-Abzug | O8: Note | P8: D-Note | Q8: Abzug OK | R8: E-Abzug | S8: Note | T8: D-Note | U8: Abzug OK | V8: E-Abzug | W8: Note | X8: D-Note | Y8: Abzug OK | Z8: E-Abzug | AA8: Note
A9: Nils Honisch | B9: =Formeln!A7 -> TG Oker Salzgitter 1 | C9: =IF(A9<>"", VLOOKUP(A9,'Wertungszettel M3'!A$7:B$40,2,0),"") -> 04 | D9: 6 | F9: 2 | G9: =IF(AND(F9>0,F10>0),IF(OR(F9>10,F9<0,F10>10,F10<0),"Fehler",IF(ABS(D9)-ABS(E9)-(F9+F10)/2+10>0,IF(D9<0,-(ABS(D9)-ABS(E9)-(F9+F10)/2+10),D9-ABS(E9)-(F9+F10)/2+10),0)),0) -> 14.1 | H9: 7 | J9: 1.8 | K9: =IF(AND(J9>0,J10>0),IF(OR(J9>10,J9<0,J10>10,J10<0),"Fehler",IF(ABS(H9)-ABS(I9)-(J9+J10)/2+10>0,IF(H9<0,-(ABS(H9)-ABS(I9)-(J9+J10)/2+10),H9-ABS(I9)-(J9+J10)/2+10),0)),0) -> 15.25 | L9: 6 | M9: 0.5 | N9: 1.2 | O9: =IF(AND(N9>0,N10>0),IF(OR(N9>10,N9<0,N10>10,N10<0),"Fehler",IF(ABS(L9)-ABS(M9)-(N9+N10)/2+10>0,IF(L9<0,-(ABS(L9)-ABS(M9)-(N9+N10)/2+10),L9-ABS(M9)-(N9+N10)/2+10),0)),0) -> 14.3 | P9: 8 | R9: 1.8 | S9: =IF(AND(R9>0,R10>0),IF(OR(R9>10,R9<0,R10>10,R10<0),"Fehler",IF(ABS(P9)-ABS(Q9)-(R9+R10)/2+10>0,IF(P9<0,-(ABS(P9)-ABS(Q9)-(R9+R10)/2+10),P9-ABS(Q9)-(R9+R10)/2+10),0)),0) -> 16.1 | T9: 7 | V9: 2.3 | W9: =IF(AND(V9>0,V10>0),IF(OR(V9>10,V9<0,V10>10,V10<0),"Fehler",IF(ABS(T9)-ABS(U9)-(V9+V10)/2+10>0,IF(T9<0,-(ABS(T9)-ABS(U9)-(V9+V10)/2+10),T9-ABS(U9)-(V9+V10)/2+10),0)),0) -> 14.6 | X9: 7 | Z9: 2.6 | AA9: =IF(AND(Z9>0,Z10>0),IF(OR(Z9>10,Z9<0,Z10>10,Z10<0),"Fehler",IF(ABS(X9)-ABS(Y9)-(Z9+Z10)/2+10>0,IF(X9<0,-(ABS(X9)-ABS(Y9)-(Z9+Z10)/2+10),X9-ABS(Y9)-(Z9+Z10)/2+10),0)),0) -> 14.4 | AB9: =ABS(G9)+ABS(K9)+ABS(O9)+ABS(S9)+ABS(W9)+ABS(AA9) -> 88.75
F10: 1.8 | J10: 1.7 | N10: 1.2 | R10: 2 | V10: 2.5 | Z10: 2.6
A11: Tim Honisch | B11: =IF(A11>0,B9,"") -> TG Oker Salzgitter 1 | C11: =IF(A11<>"", VLOOKUP(A11,'Wertungszettel M3'!A$7:B$40,2,0),"") -> 06 | D11: 6 | F11: 2 | G11: =IF(AND(F11>0,F12>0),IF(OR(F11>10,F11<0,F12>10,F12<0),"Fehler",IF(ABS(D11)-ABS(E11)-(F11+F12)/2+10>0,IF(D11<0,-(ABS(D11)-ABS(E11)-(F11+F12)/2+10),D11-ABS(E11)-(F11+F12)/2+10),0)),0) -> 13.95 | H11: 7 | J11: 3 | K11: =IF(AND(J11>0,J12>0),IF(OR(J11>10,J11<0,J12>10,J12<0),"Fehler",IF(ABS(H11)-ABS(I11)-(J11+J12)/2+10>0,IF(H11<0,-(ABS(H11)-ABS(I11)-(J11+J12)/2+10),H11-ABS(I11)-(J11+J12)/2+10),0)),0) -> 13.9 | L11: 6 | N11: 2.5 | O11: =IF(AND(N11>0,N12>0),IF(OR(N11>10,N11<0,N12>10,N12<0),"Fehler",IF(ABS(L11)-ABS(M11)-(N11+N12)/2+10>0,IF(L11<0,-(ABS(L11)-ABS(M11)-(N11+N12)/2+10),L11-ABS(M11)-(N11+N12)/2+10),0)),0) -> 13.5 | P11: 7 | R11: 2.4 | S11: =IF(AND(R11>0,R12>0),IF(OR(R11>10,R11<0,R12>10,R12<0),"Fehler",IF(ABS(P11)-ABS(Q11)-(R11+R12)/2+10>0,IF(P11<0,-(ABS(P11)-ABS(Q11)-(R11+R12)/2+10),P11-ABS(Q11)-(R11+R12)/2+10),0)),0) -> 14.55 | T11: 6 | V11: 2 | W11: =IF(AND(V11>0,V12>0),IF(OR(V11>10,V11<0,V12>10,V12<0),"Fehler",IF(ABS(T11)-ABS(U11)-(V11+V12)/2+10>0,IF(T11<0,-(ABS(T11)-ABS(U11)-(V11+V12)/2+10),T11-ABS(U11)-(V11+V12)/2+10),0)),0) -> 14.25 | X11: 6 | Z11: 4 | AA11: =IF(AND(Z11>0,Z12>0),IF(OR(Z11>10,Z11<0,Z12>10,Z12<0),"Fehler",IF(ABS(X11)-ABS(Y11)-(Z11+Z12)/2+10>0,IF(X11<0,-(ABS(X11)-ABS(Y11)-(Z11+Z12)/2+10),X11-ABS(Y11)-(Z11+Z12)/2+10),0)),0) -> 12.05 | AB11: =ABS(G11)+ABS(K11)+ABS(O11)+ABS(S11)+ABS(W11)+ABS(AA11) -> 82.2 | AF11: Boden | AG11: =IF(G30>1,1,0) -> 1
F12: 2.1 | J12: 3.2 | N12: 2.5 | R12: 2.5 | V12: 1.5 | Z12: 3.9 | AF12: pauschenpferd | AG12: =IF(K30>1,1,0) -> 1
A13: Jarik Siebold | B13: =IF(A13>0,B11,"") -> TG Oker Salzgitter 1 | C13: =IF(A13<>"", VLOOKUP(A13,'Wertungszettel M3'!A$7:B$40,2,0),"") -> 06 | G13: =IF(AND(F13>0,F14>0),IF(OR(F13>10,F13<0,F14>10,F14<0),"Fehler",IF(ABS(D13)-ABS(E13)-(F13+F14)/2+10>0,IF(D13<0,-(ABS(D13)-ABS(E13)-(F13+F14)/2+10),D13-ABS(E13)-(F13+F14)/2+10),0)),0) -> 0 | H13: 5 | J13: 2.4 | K13: =IF(AND(J13>0,J14>0),IF(OR(J13>10,J13<0,J14>10,J14<0),"Fehler",IF(ABS(H13)-ABS(I13)-(J13+J14)/2+10>0,IF(H13<0,-(ABS(H13)-ABS(I13)-(J13+J14)/2+10),H13-ABS(I13)-(J13+J14)/2+10),0)),0) -> 12.45 | L13: 6 | N13: 2.3 | O13: =IF(AND(N13>0,N14>0),IF(OR(N13>10,N13<0,N14>10,N14<0),"Fehler",IF(ABS(L13)-ABS(M13)-(N13+N14)/2+10>0,IF(L13<0,-(ABS(L13)-ABS(M13)-(N13+N14)/2+10),L13-ABS(M13)-(N13+N14)/2+10),0)),0) -> 13.7 | S13: =IF(AND(R13>0,R14>0),IF(OR(R13>10,R13<0,R14>10,R14<0),"Fehler",IF(ABS(P13)-ABS(Q13)-(R13+R14)/2+10>0,IF(P13<0,-(ABS(P13)-ABS(Q13)-(R13+R14)/2+10),P13-ABS(Q13)-(R13+R14)/2+10),0)),0) -> 0 | T13: 5 | V13: 2.9 | W13: =IF(AND(V13>0,V14>0),IF(OR(V13>10,V13<0,V14>10,V14<0),"Fehler",IF(ABS(T13)-ABS(U13)-(V13+V14)/2+10>0,IF(T13<0,-(ABS(T13)-ABS(U13)-(V13+V14)/2+10),T13-ABS(U13)-(V13+V14)/2+10),0)),0) -> 11.95 | X13: 5 | Z13: 2.2 | AA13: =IF(AND(Z13>0,Z14>0),IF(OR(Z13>10,Z13<0,Z14>10,Z14<0),"Fehler",IF(ABS(X13)-ABS(Y13)-(Z13+Z14)/2+10>0,IF(X13<0,-(ABS(X13)-ABS(Y13)-(Z13+Z14)/2+10),X13-ABS(Y13)-(Z13+Z14)/2+10),0)),0) -> 12.9 | AB13: =ABS(G13)+ABS(K13)+ABS(O13)+ABS(S13)+ABS(W13)+ABS(AA13) -> 51 | AF13: ringe | AG13: =IF(O30>1,1,0) -> 1
J14: 2.7 | N14: 2.3 | V14: 3.2 | Z14: 2 | AF14: sprung | AG14: =IF(S30>1,1,0) -> 1
A15: Robert Knoke | B15: =IF(A15>0,B13,"") -> TG Oker Salzgitter 1 | C15: =IF(A15<>"", VLOOKUP(A15,'Wertungszettel M3'!A$7:B$40,2,0),"") -> 05 | D15: 9 | F15: 2.6 | G15: =IF(AND(F15>0,F16>0),IF(OR(F15>10,F15<0,F16>10,F16<0),"Fehler",IF(ABS(D15)-ABS(E15)-(F15+F16)/2+10>0,IF(D15<0,-(ABS(D15)-ABS(E15)-(F15+F16)/2+10),D15-ABS(E15)-(F15+F16)/2+10),0)),0) -> 16.4 | H15: 7 | J15: 0.9 | K15: =IF(AND(J15>0,J16>0),IF(OR(J15>10,J15<0,J16>10,J16<0),"Fehler",IF(ABS(H15)-ABS(I15)-(J15+J16)/2+10>0,IF(H15<0,-(ABS(H15)-ABS(I15)-(J15+J16)/2+10),H15-ABS(I15)-(J15+J16)/2+10),0)),0) -> 16.1 | L15: 8 | N15: 0.5 | O15: =IF(AND(N15>0,N16>0),IF(OR(N15>10,N15<0,N16>10,N16<0),"Fehler",IF(ABS(L15)-ABS(M15)-(N15+N16)/2+10>0,IF(L15<0,-(ABS(L15)-ABS(M15)-(N15+N16)/2+10),L15-ABS(M15)-(N15+N16)/2+10),0)),0) -> 17.4 | P15: 7 | R15: 1.2 | S15: =IF(AND(R15>0,R16>0),IF(OR(R15>10,R15<0,R16>10,R16<0),"Fehler",IF(ABS(P15)-ABS(Q15)-(R15+R16)/2+10>0,IF(P15<0,-(ABS(P15)-ABS(Q15)-(R15+R16)/2+10),P15-ABS(Q15)-(R15+R16)/2+10),0)),0) -> 15.8 | T15: 7 | V15: 1.4 | W15: =IF(AND(V15>0,V16>0),IF(OR(V15>10,V15<0,V16>10,V16<0),"Fehler",IF(ABS(T15)-ABS(U15)-(V15+V16)/2+10>0,IF(T15<0,-(ABS(T15)-ABS(U15)-(V15+V16)/2+10),T15-ABS(U15)-(V15+V16)/2+10),0)),0) -> 15.8 | X15: 7 | Z15: 1.7 | AA15: =IF(AND(Z15>0,Z16>0),IF(OR(Z15>10,Z15<0,Z16>10,Z16<0),"Fehler",IF(ABS(X15)-ABS(Y15)-(Z15+Z16)/2+10>0,IF(X15<0,-(ABS(X15)-ABS(Y15)-(Z15+Z16)/2+10),X15-ABS(Y15)-(Z15+Z16)/2+10),0)),0) -> 15.3 | AB15: =ABS(G15)+ABS(K15)+ABS(O15)+ABS(S15)+ABS(W15)+ABS(AA15) -> 96.8 | AF15: Barren | AG15: =IF(W30>1,1,0) -> 1
F16: 2.6 | J16: 0.9 | N16: 0.7 | R16: 1.2 | V16: 1 | Z16: 1.7 | AF16: Reck | AG16: =IF(AA30>1,1,0) -> 1
A17: Leon Müller | B17: =IF(A17>0,B15,"") -> TG Oker Salzgitter 1 | C17: =IF(A17<>"", VLOOKUP(A17,'Wertungszettel M3'!A$7:B$40,2,0),"") -> 05 | D17: 6 | F17: 1.9 | G17: =IF(AND(F17>0,F18>0),IF(OR(F17>10,F17<0,F18>10,F18<0),"Fehler",IF(ABS(D17)-ABS(E17)-(F17+F18)/2+10>0,IF(D17<0,-(ABS(D17)-ABS(E17)-(F17+F18)/2+10),D17-ABS(E17)-(F17+F18)/2+10),0)),0) -> 14 | H17: 7 | J17: 2.5 | K17: =IF(AND(J17>0,J18>0),IF(OR(J17>10,J17<0,J18>10,J18<0),"Fehler",IF(ABS(H17)-ABS(I17)-(J17+J18)/2+10>0,IF(H17<0,-(ABS(H17)-ABS(I17)-(J17+J18)/2+10),H17-ABS(I17)-(J17+J18)/2+10),0)),0) -> 14.45 | O17: =IF(AND(N17>0,N18>0),IF(OR(N17>10,N17<0,N18>10,N18<0),"Fehler",IF(ABS(L17)-ABS(M17)-(N17+N18)/2+10>0,IF(L17<0,-(ABS(L17)-ABS(M17)-(N17+N18)/2+10),L17-ABS(M17)-(N17+N18)/2+10),0)),0) -> 0 | P17: 7 | R17: 2.9 | S17: =IF(AND(R17>0,R18>0),IF(OR(R17>10,R17<0,R18>10,R18<0),"Fehler",IF(ABS(P17)-ABS(Q17)-(R17+R18)/2+10>0,IF(P17<0,-(ABS(P17)-ABS(Q17)-(R17+R18)/2+10),P17-ABS(Q17)-(R17+R18)/2+10),0)),0) -> 14.1 | W17: =IF(AND(V17>0,V18>0),IF(OR(V17>10,V17<0,V18>10,V18<0),"Fehler",IF(ABS(T17)-ABS(U17)-(V17+V18)/2+10>0,IF(T17<0,-(ABS(T17)-ABS(U17)-(V17+V18)/2+10),T17-ABS(U17)-(V17+V18)/2+10),0)),0) -> 0 | X17: 5 | Z17: 1.8 | AA17: =IF(AND(Z17>0,Z18>0),IF(OR(Z17>10,Z17<0,Z18>10,Z18<0),"Fehler",IF(ABS(X17)-ABS(Y17)-(Z17+Z18)/2+10>0,IF(X17<0,-(ABS(X17)-ABS(Y17)-(Z17+Z18)/2+10),X17-ABS(Y17)-(Z17+Z18)/2+10),0)),0) -> 13.4 | AB17: =ABS(G17)+ABS(K17)+ABS(O17)+ABS(S17)+ABS(W17)+ABS(AA17) -> 55.95
F18: 2.1 | J18: 2.6 | R18: 2.9 | Z18: 1.4 | AF18: Gesamt | AG18: =SUM(AG11:AG17) -> 6
A19: Jannis Volkmer | B19: =IF(A19>0,B17,"") -> TG Oker Salzgitter 1 | C19: =IF(A19<>"", VLOOKUP(A19,'Wertungszettel M3'!A$7:B$40,2,0),"") -> 05 | G19: =IF(AND(F19>0,F20>0),IF(OR(F19>10,F19<0,F20>10,F20<0),"Fehler",IF(ABS(D19)-ABS(E19)-(F19+F20)/2+10>0,IF(D19<0,-(ABS(D19)-ABS(E19)-(F19+F20)/2+10),D19-ABS(E19)-(F19+F20)/2+10),0)),0) -> 0 | K19: =IF(AND(J19>0,J20>0),IF(OR(J19>10,J19<0,J20>10,J20<0),"Fehler",IF(ABS(H19)-ABS(I19)-(J19+J20)/2+10>0,IF(H19<0,-(ABS(H19)-ABS(I19)-(J19+J20)/2+10),H19-ABS(I19)-(J19+J20)/2+10),0)),0) -> 0 | O19: =IF(AND(N19>0,N20>0),IF(OR(N19>10,N19<0,N20>10,N20<0),"Fehler",IF(ABS(L19)-ABS(M19)-(N19+N20)/2+10>0,IF(L19<0,-(ABS(L19)-ABS(M19)-(N19+N20)/2+10),L19-ABS(M19)-(N19+N20)/2+10),0)),0) -> 0 | S19: =IF(AND(R19>0,R20>0),IF(OR(R19>10,R19<0,R20>10,R20<0),"Fehler",IF(ABS(P19)-ABS(Q19)-(R19+R20)/2+10>0,IF(P19<0,-(ABS(P19)-ABS(Q19)-(R19+R20)/2+10),P19-ABS(Q19)-(R19+R20)/2+10),0)),0) -> 0 | W19: =IF(AND(V19>0,V20>0),IF(OR(V19>10,V19<0,V20>10,V20<0),"Fehler",IF(ABS(T19)-ABS(U19)-(V19+V20)/2+10>0,IF(T19<0,-(ABS(T19)-ABS(U19)-(V19+V20)/2+10),T19-ABS(U19)-(V19+V20)/2+10),0)),0) -> 0 | AA19: =IF(AND(Z19>0,Z20>0),IF(OR(Z19>10,Z19<0,Z20>10,Z20<0),"Fehler",IF(ABS(X19)-ABS(Y19)-(Z19+Z20)/2+10>0,IF(X19<0,-(ABS(X19)-ABS(Y19)-(Z19+Z20)/2+10),X19-ABS(Y19)-(Z19+Z20)/2+10),0)),0) -> 0 | AB19: =ABS(G19)+ABS(K19)+ABS(O19)+ABS(S19)+ABS(W19)+ABS(AA19) -> 0
A21: Christian Rath | B21: =IF(A21>0,B19,"") -> TG Oker Salzgitter 1 | C21: =IF(A21<>"", VLOOKUP(A21,'Wertungszettel M3'!A$7:B$40,2,0),"") -> 06 | D21: 6 | F21: 2.1 | G21: =IF(AND(F21>0,F22>0),IF(OR(F21>10,F21<0,F22>10,F22<0),"Fehler",IF(ABS(D21)-ABS(E21)-(F21+F22)/2+10>0,IF(D21<0,-(ABS(D21)-ABS(E21)-(F21+F22)/2+10),D21-ABS(E21)-(F21+F22)/2+10),0)),0) -> 13.8 | K21: =IF(AND(J21>0,J22>0),IF(OR(J21>10,J21<0,J22>10,J22<0),"Fehler",IF(ABS(H21)-ABS(I21)-(J21+J22)/2+10>0,IF(H21<0,-(ABS(H21)-ABS(I21)-(J21+J22)/2+10),H21-ABS(I21)-(J21+J22)/2+10),0)),0) -> 0 | L21: 6 | N21: 2.2 | O21: =IF(AND(N21>0,N22>0),IF(OR(N21>10,N21<0,N22>10,N22<0),"Fehler",IF(ABS(L21)-ABS(M21)-(N21+N22)/2+10>0,IF(L21<0,-(ABS(L21)-ABS(M21)-(N21+N22)/2+10),L21-ABS(M21)-(N21+N22)/2+10),0)),0) -> 13.8 | P21: 7 | R21: 2 | S21: =IF(AND(R21>0,R22>0),IF(OR(R21>10,R21<0,R22>10,R22<0),"Fehler",IF(ABS(P21)-ABS(Q21)-(R21+R22)/2+10>0,IF(P21<0,-(ABS(P21)-ABS(Q21)-(R21+R22)/2+10),P21-ABS(Q21)-(R21+R22)/2+10),0)),0) -> 14.9 | T21: 6 | V21: 3.8 | W21: =IF(AND(V21>0,V22>0),IF(OR(V21>10,V21<0,V22>10,V22<0),"Fehler",IF(ABS(T21)-ABS(U21)-(V21+V22)/2+10>0,IF(T21<0,-(ABS(T21)-ABS(U21)-(V21+V22)/2+10),T21-ABS(U21)-(V21+V22)/2+10),0)),0) -> 12.3 | AA21: =IF(AND(Z21>0,Z22>0),IF(OR(Z21>10,Z21<0,Z22>10,Z22<0),"Fehler",IF(ABS(X21)-ABS(Y21)-(Z21+Z22)/2+10>0,IF(X21<0,-(ABS(X21)-ABS(Y21)-(Z21+Z22)/2+10),X21-ABS(Y21)-(Z21+Z22)/2+10),0)),0) -> 0 | AB21: =ABS(G21)+ABS(K21)+ABS(O21)+ABS(S21)+ABS(W21)+ABS(AA21) -> 54.8
F22: 2.3 | N22: 2.2 | R22: 2.2 | V22: 3.6
B23: =IF(A23>0,B21,"") ->  | C23: =IF(A23<>"", VLOOKUP(A23,'Wertungszettel M3'!A$7:B$40,2,0),"") ->  | G23: =IF(AND(F23>0,F24>0),IF(OR(F23>10,F23<0,F24>10,F24<0),"Fehler",IF(ABS(D23)-ABS(E23)-(F23+F24)/2+10>0,IF(D23<0,-(ABS(D23)-ABS(E23)-(F23+F24)/2+10),D23-ABS(E23)-(F23+F24)/2+10),0)),0) -> 0 | K23: =IF(AND(J23>0,J24>0),IF(OR(J23>10,J23<0,J24>10,J24<0),"Fehler",IF(ABS(H23)-ABS(I23)-(J23+J24)/2+10>0,IF(H23<0,-(ABS(H23)-ABS(I23)-(J23+J24)/2+10),H23-ABS(I23)-(J23+J24)/2+10),0)),0) -> 0 | O23: =IF(AND(N23>0,N24>0),IF(OR(N23>10,N23<0,N24>10,N24<0),"Fehler",IF(ABS(L23)-ABS(M23)-(N23+N24)/2+10>0,IF(L23<0,-(ABS(L23)-ABS(M23)-(N23+N24)/2+10),L23-ABS(M23)-(N23+N24)/2+10),0)),0) -> 0 | S23: =IF(AND(R23>0,R24>0),IF(OR(R23>10,R23<0,R24>10,R24<0),"Fehler",IF(ABS(P23)-ABS(Q23)-(R23+R24)/2+10>0,IF(P23<0,-(ABS(P23)-ABS(Q23)-(R23+R24)/2+10),P23-ABS(Q23)-(R23+R24)/2+10),0)),0) -> 0 | W23: =IF(AND(V23>0,V24>0),IF(OR(V23>10,V23<0,V24>10,V24<0),"Fehler",IF(ABS(T23)-ABS(U23)-(V23+V24)/2+10>0,IF(T23<0,-(ABS(T23)-ABS(U23)-(V23+V24)/2+10),T23-ABS(U23)-(V23+V24)/2+10),0)),0) -> 0 | AA23: =IF(AND(Z23>0,Z24>0),IF(OR(Z23>10,Z23<0,Z24>10,Z24<0),"Fehler",IF(ABS(X23)-ABS(Y23)-(Z23+Z24)/2+10>0,IF(X23<0,-(ABS(X23)-ABS(Y23)-(Z23+Z24)/2+10),X23-ABS(Y23)-(Z23+Z24)/2+10),0)),0) -> 0 | AB23: =ABS(G23)+ABS(K23)+ABS(O23)+ABS(S23)+ABS(W23)+ABS(AA23) -> 0
B25: =IF(A25>0,B23,"") ->  | C25: =IF(A25<>"", VLOOKUP(A25,'Wertungszettel M3'!A$7:B$40,2,0),"") ->  | G25: =IF(AND(F25>0,F26>0),IF(OR(F25>10,F25<0,F26>10,F26<0),"Fehler",IF(ABS(D25)-ABS(E25)-(F25+F26)/2+10>0,IF(D25<0,-(ABS(D25)-ABS(E25)-(F25+F26)/2+10),D25-ABS(E25)-(F25+F26)/2+10),0)),0) -> 0 | K25: =IF(AND(J25>0,J26>0),IF(OR(J25>10,J25<0,J26>10,J26<0),"Fehler",IF(ABS(H25)-ABS(I25)-(J25+J26)/2+10>0,IF(H25<0,-(ABS(H25)-ABS(I25)-(J25+J26)/2+10),H25-ABS(I25)-(J25+J26)/2+10),0)),0) -> 0 | O25: =IF(AND(N25>0,N26>0),IF(OR(N25>10,N25<0,N26>10,N26<0),"Fehler",IF(ABS(L25)-ABS(M25)-(N25+N26)/2+10>0,IF(L25<0,-(ABS(L25)-ABS(M25)-(N25+N26)/2+10),L25-ABS(M25)-(N25+N26)/2+10),0)),0) -> 0 | S25: =IF(AND(R25>0,R26>0),IF(OR(R25>10,R25<0,R26>10,R26<0),"Fehler",IF(ABS(P25)-ABS(Q25)-(R25+R26)/2+10>0,IF(P25<0,-(ABS(P25)-ABS(Q25)-(R25+R26)/2+10),P25-ABS(Q25)-(R25+R26)/2+10),0)),0) -> 0 | W25: =IF(AND(V25>0,V26>0),IF(OR(V25>10,V25<0,V26>10,V26<0),"Fehler",IF(ABS(T25)-ABS(U25)-(V25+V26)/2+10>0,IF(T25<0,-(ABS(T25)-ABS(U25)-(V25+V26)/2+10),T25-ABS(U25)-(V25+V26)/2+10),0)),0) -> 0 | AA25: =IF(AND(Z25>0,Z26>0),IF(OR(Z25>10,Z25<0,Z26>10,Z26<0),"Fehler",IF(ABS(X25)-ABS(Y25)-(Z25+Z26)/2+10>0,IF(X25<0,-(ABS(X25)-ABS(Y25)-(Z25+Z26)/2+10),X25-ABS(Y25)-(Z25+Z26)/2+10),0)),0) -> 0 | AB25: =ABS(G25)+ABS(K25)+ABS(O25)+ABS(S25)+ABS(W25)+ABS(AA25) -> 0
B27: =IF(A27>0,B25,"") ->  | C27: =IF(A27<>"", VLOOKUP(A27,'Wertungszettel M3'!A$7:B$40,2,0),"") ->  | G27: =IF(AND(F27>0,F28>0),IF(OR(F27>10,F27<0,F28>10,F28<0),"Fehler",IF(ABS(D27)-ABS(E27)-(F27+F28)/2+10>0,IF(D27<0,-(ABS(D27)-ABS(E27)-(F27+F28)/2+10),D27-ABS(E27)-(F27+F28)/2+10),0)),0) -> 0 | K27: =IF(AND(J27>0,J28>0),IF(OR(J27>10,J27<0,J28>10,J28<0),"Fehler",IF(ABS(H27)-ABS(I27)-(J27+J28)/2+10>0,IF(H27<0,-(ABS(H27)-ABS(I27)-(J27+J28)/2+10),H27-ABS(I27)-(J27+J28)/2+10),0)),0) -> 0 | O27: =IF(AND(N27>0,N28>0),IF(OR(N27>10,N27<0,N28>10,N28<0),"Fehler",IF(ABS(L27)-ABS(M27)-(N27+N28)/2+10>0,IF(L27<0,-(ABS(L27)-ABS(M27)-(N27+N28)/2+10),L27-ABS(M27)-(N27+N28)/2+10),0)),0) -> 0 | S27: =IF(AND(R27>0,R28>0),IF(OR(R27>10,R27<0,R28>10,R28<0),"Fehler",IF(ABS(P27)-ABS(Q27)-(R27+R28)/2+10>0,IF(P27<0,-(ABS(P27)-ABS(Q27)-(R27+R28)/2+10),P27-ABS(Q27)-(R27+R28)/2+10),0)),0) -> 0 | W27: =IF(AND(V27>0,V28>0),IF(OR(V27>10,V27<0,V28>10,V28<0),"Fehler",IF(ABS(T27)-ABS(U27)-(V27+V28)/2+10>0,IF(T27<0,-(ABS(T27)-ABS(U27)-(V27+V28)/2+10),T27-ABS(U27)-(V27+V28)/2+10),0)),0) -> 0 | AA27: =IF(AND(Z27>0,Z28>0),IF(OR(Z27>10,Z27<0,Z28>10,Z28<0),"Fehler",IF(ABS(X27)-ABS(Y27)-(Z27+Z28)/2+10>0,IF(X27<0,-(ABS(X27)-ABS(Y27)-(Z27+Z28)/2+10),X27-ABS(Y27)-(Z27+Z28)/2+10),0)),0) -> 0 | AB27: =ABS(G27)+ABS(K27)+ABS(O27)+ABS(S27)+ABS(W27)+ABS(AA27) -> 0
G30: =SUM(LARGE(G9:G28,1),LARGE(G9:G28,2),LARGE(G9:G28,3)) -> 44.5 | K30: =SUM(LARGE(K9:K28,1),LARGE(K9:K28,2),LARGE(K9:K28,3)) -> 45.8 | O30: =SUM(LARGE(O9:O28,1),LARGE(O9:O28,2),LARGE(O9:O28,3)) -> 45.5 | S30: =SUM(LARGE(S9:S28,1),LARGE(S9:S28,2),LARGE(S9:S28,3)) -> 46.8 | W30: =SUM(LARGE(W9:W28,1),LARGE(W9:W28,2),LARGE(W9:W28,3)) -> 44.65 | AA30: =SUM(LARGE(AA9:AA28,1),LARGE(AA9:AA28,2),LARGE(AA9:AA28,3)) -> 43.1 | AB30: =SUM(G30,K30,O30,S30,W30,AA30) -> 270.35

Sheet TG Oker SZ 2
A1: Wettkampfbogen | M1: Datum: | O1: ='INFO Blatt'!B13 -> 2018-03-03
M3: Ort: | O3: ='INFO Blatt'!B11 -> Hehlen
N5: Liga: | O5: ='INFO Blatt'!B7 -> Schülerliga Süd
A7: Name | B7: Verein | C7: Jg | D7: Boden | H7: Pferd | L7: Ringe | P7: Sprung | T7: Barren | X7: Reck | AB7: Ges.
D8: D-Note | E8: Abzug OK | F8: E- Abzug | G8: Note | H8: D-Note | I8: Abzug OK | J8: E- Abzug | K8: Note | L8: D-Note | M8: Abzug OK | N8: E-Abzug | O8: Note | P8: D-Note | Q8: Abzug OK | R8: E-Abzug | S8: Note | T8: D-Note | U8: Abzug OK | V8: E-Abzug | W8: Note | X8: D-Note | Y8: Abzug OK | Z8: E-Abzug | AA8: Note
A9: Patrick Gernowski | B9: =Formeln!A8 -> TG Oker Salzgitter 2 | C9: =IF(A9<>"", VLOOKUP(A9,'Wertungszettel M4'!A$7:B$36,2,0),"") -> 04 | D9: 5 | E9: 0.5 | F9: 2.2 | G9: =IF(AND(F9>0,F10>0),IF(OR(F9>10,F9<0,F10>10,F10<0),"Fehler",IF(ABS(D9)-ABS(E9)-(F9+F10)/2+10>0,IF(D9<0,-(ABS(D9)-ABS(E9)-(F9+F10)/2+10),D9-ABS(E9)-(F9+F10)/2+10),0)),0) -> 12 | H9: 5 | J9: 3.3 | K9: =IF(AND(J9>0,J10>0),IF(OR(J9>10,J9<0,J10>10,J10<0),"Fehler",IF(ABS(H9)-ABS(I9)-(J9+J10)/2+10>0,IF(H9<0,-(ABS(H9)-ABS(I9)-(J9+J10)/2+10),H9-ABS(I9)-(J9+J10)/2+10),0)),0) -> 11.7 | L9: 5 | M9: 1.5 | N9: 2.7 | O9: =IF(AND(N9>0,N10>0),IF(OR(N9>10,N9<0,N10>10,N10<0),"Fehler",IF(ABS(L9)-ABS(M9)-(N9+N10)/2+10>0,IF(L9<0,-(ABS(L9)-ABS(M9)-(N9+N10)/2+10),L9-ABS(M9)-(N9+N10)/2+10),0)),0) -> 10.7 | P9: 7 | R9: 2.1 | S9: =IF(AND(R9>0,R10>0),IF(OR(R9>10,R9<0,R10>10,R10<0),"Fehler",IF(ABS(P9)-ABS(Q9)-(R9+R10)/2+10>0,IF(P9<0,-(ABS(P9)-ABS(Q9)-(R9+R10)/2+10),P9-ABS(Q9)-(R9+R10)/2+10),0)),0) -> 14.9 | T9: 5 | V9: 3.1 | W9: =IF(AND(V9>0,V10>0),IF(OR(V9>10,V9<0,V10>10,V10<0),"Fehler",IF(ABS(T9)-ABS(U9)-(V9+V10)/2+10>0,IF(T9<0,-(ABS(T9)-ABS(U9)-(V9+V10)/2+10),T9-ABS(U9)-(V9+V10)/2+10),0)),0) -> 11.9 | X9: 5 | Z9: 2.6 | AA9: =IF(AND(Z9>0,Z10>0),IF(OR(Z9>10,Z9<0,Z10>10,Z10<0),"Fehler",IF(ABS(X9)-ABS(Y9)-(Z9+Z10)/2+10>0,IF(X9<0,-(ABS(X9)-ABS(Y9)-(Z9+Z10)/2+10),X9-ABS(Y9)-(Z9+Z10)/2+10),0)),0) -> 12.35 | AB9: =ABS(G9)+ABS(K9)+ABS(O9)+ABS(S9)+ABS(W9)+ABS(AA9) -> 73.55
F10: 2.8 | J10: 3.3 | N10: 2.9 | R10: 2.1 | V10: 3.1 | Z10: 2.7
A11: Jamie Schnabel | B11: =IF(A11>0,B9,"") -> TG Oker Salzgitter 2 | C11: =IF(A11<>"", VLOOKUP(A11,'Wertungszettel M4'!A$7:B$36,2,0),"") -> 05 | D11: 5 | F11: 2.5 | G11: =IF(AND(F11>0,F12>0),IF(OR(F11>10,F11<0,F12>10,F12<0),"Fehler",IF(ABS(D11)-ABS(E11)-(F11+F12)/2+10>0,IF(D11<0,-(ABS(D11)-ABS(E11)-(F11+F12)/2+10),D11-ABS(E11)-(F11+F12)/2+10),0)),0) -> 12.4 | H11: 5 | J11: 3.6 | K11: =IF(AND(J11>0,J12>0),IF(OR(J11>10,J11<0,J12>10,J12<0),"Fehler",IF(ABS(H11)-ABS(I11)-(J11+J12)/2+10>0,IF(H11<0,-(ABS(H11)-ABS(I11)-(J11+J12)/2+10),H11-ABS(I11)-(J11+J12)/2+10),0)),0) -> 11.5 | L11: 5 | M11: 0.5 | N11: 2.8 | O11: =IF(AND(N11>0,N12>0),IF(OR(N11>10,N11<0,N12>10,N12<0),"Fehler",IF(ABS(L11)-ABS(M11)-(N11+N12)/2+10>0,IF(L11<0,-(ABS(L11)-ABS(M11)-(N11+N12)/2+10),L11-ABS(M11)-(N11+N12)/2+10),0)),0) -> 11.7 | P11: 5 | R11: 0.9 | S11: =IF(AND(R11>0,R12>0),IF(OR(R11>10,R11<0,R12>10,R12<0),"Fehler",IF(ABS(P11)-ABS(Q11)-(R11+R12)/2+10>0,IF(P11<0,-(ABS(P11)-ABS(Q11)-(R11+R12)/2+10),P11-ABS(Q11)-(R11+R12)/2+10),0)),0) -> 14.1 | T11: 5 | V11: 3.4 | W11: =IF(AND(V11>0,V12>0),IF(OR(V11>10,V11<0,V12>10,V12<0),"Fehler",IF(ABS(T11)-ABS(U11)-(V11+V12)/2+10>0,IF(T11<0,-(ABS(T11)-ABS(U11)-(V11+V12)/2+10),T11-ABS(U11)-(V11+V12)/2+10),0)),0) -> 11.5 | X11: 5 | Z11: 2.4 | AA11: =IF(AND(Z11>0,Z12>0),IF(OR(Z11>10,Z11<0,Z12>10,Z12<0),"Fehler",IF(ABS(X11)-ABS(Y11)-(Z11+Z12)/2+10>0,IF(X11<0,-(ABS(X11)-ABS(Y11)-(Z11+Z12)/2+10),X11-ABS(Y11)-(Z11+Z12)/2+10),0)),0) -> 12.45 | AB11: =ABS(G11)+ABS(K11)+ABS(O11)+ABS(S11)+ABS(W11)+ABS(AA11) -> 73.65 | AF11: Boden | AG11: =IF(G30>1,1,0) -> 1
F12: 2.7 | J12: 3.4 | N12: 2.8 | R12: 0.9 | V12: 3.6 | Z12: 2.7 | AF12: pauschenpferd | AG12: =IF(K30>1,1,0) -> 1
A13: Emmanuel Taube | B13: =IF(A13>0,B11,"") -> TG Oker Salzgitter 2 | C13: =IF(A13<>"", VLOOKUP(A13,'Wertungszettel M4'!A$7:B$36,2,0),"") -> 05 | D13: 5 | F13: 2.4 | G13: =IF(AND(F13>0,F14>0),IF(OR(F13>10,F13<0,F14>10,F14<0),"Fehler",IF(ABS(D13)-ABS(E13)-(F13+F14)/2+10>0,IF(D13<0,-(ABS(D13)-ABS(E13)-(F13+F14)/2+10),D13-ABS(E13)-(F13+F14)/2+10),0)),0) -> 12.5 | H13: 6 | J13: 3.9 | K13: =IF(AND(J13>0,J14>0),IF(OR(J13>10,J13<0,J14>10,J14<0),"Fehler",IF(ABS(H13)-ABS(I13)-(J13+J14)/2+10>0,IF(H13<0,-(ABS(H13)-ABS(I13)-(J13+J14)/2+10),H13-ABS(I13)-(J13+J14)/2+10),0)),0) -> 12.05 | L13: 5 | N13: 2.5 | O13: =IF(AND(N13>0,N14>0),IF(OR(N13>10,N13<0,N14>10,N14<0),"Fehler",IF(ABS(L13)-ABS(M13)-(N13+N14)/2+10>0,IF(L13<0,-(ABS(L13)-ABS(M13)-(N13+N14)/2+10),L13-ABS(M13)-(N13+N14)/2+10),0)),0) -> 12.4 | P13: 7 | R13: 2.4 | S13: =IF(AND(R13>0,R14>0),IF(OR(R13>10,R13<0,R14>10,R14<0),"Fehler",IF(ABS(P13)-ABS(Q13)-(R13+R14)/2+10>0,IF(P13<0,-(ABS(P13)-ABS(Q13)-(R13+R14)/2+10),P13-ABS(Q13)-(R13+R14)/2+10),0)),0) -> 14.55 | T13: 5 | V13: 2.6 | W13: =IF(AND(V13>0,V14>0),IF(OR(V13>10,V13<0,V14>10,V14<0),"Fehler",IF(ABS(T13)-ABS(U13)-(V13+V14)/2+10>0,IF(T13<0,-(ABS(T13)-ABS(U13)-(V13+V14)/2+10),T13-ABS(U13)-(V13+V14)/2+10),0)),0) -> 12.45 | X13: 5 | Z13: 1.8 | AA13: =IF(AND(Z13>0,Z14>0),IF(OR(Z13>10,Z13<0,Z14>10,Z14<0),"Fehler",IF(ABS(X13)-ABS(Y13)-(Z13+Z14)/2+10>0,IF(X13<0,-(ABS(X13)-ABS(Y13)-(Z13+Z14)/2+10),X13-ABS(Y13)-(Z13+Z14)/2+10),0)),0) -> 12.9 | AB13: =ABS(G13)+ABS(K13)+ABS(O13)+ABS(S13)+ABS(W13)+ABS(AA13) -> 76.85 | AF13: ringe | AG13: =IF(O30>1,1,0) -> 1
F14: 2.6 | J14: 4 | N14: 2.7 | R14: 2.5 | V14: 2.5 | Z14: 2.4 | AF14: sprung | AG14: =IF(S30>1,1,0) -> 1
A15: Eric Siebenhaar | B15: =IF(A15>0,B13,"") -> TG Oker Salzgitter 2 | C15: =IF(A15<>"", VLOOKUP(A15,'Wertungszettel M4'!A$7:B$36,2,0),"") -> 07 | D15: 5 | F15: 1.6 | G15: =IF(AND(F15>0,F16>0),IF(OR(F15>10,F15<0,F16>10,F16<0),"Fehler",IF(ABS(D15)-ABS(E15)-(F15+F16)/2+10>0,IF(D15<0,-(ABS(D15)-ABS(E15)-(F15+F16)/2+10),D15-ABS(E15)-(F15+F16)/2+10),0)),0) -> 13.3 | H15: 5 | J15: 3.4 | K15: =IF(AND(J15>0,J16>0),IF(OR(J15>10,J15<0,J16>10,J16<0),"Fehler",IF(ABS(H15)-ABS(I15)-(J15+J16)/2+10>0,IF(H15<0,-(ABS(H15)-ABS(I15)-(J15+J16)/2+10),H15-ABS(I15)-(J15+J16)/2+10),0)),0) -> 11.55 | L15: 6 | M15: 0.5 | N15: 2.9 | O15: =IF(AND(N15>0,N16>0),IF(OR(N15>10,N15<0,N16>10,N16<0),"Fehler",IF(ABS(L15)-ABS(M15)-(N15+N16)/2+10>0,IF(L15<0,-(ABS(L15)-ABS(M15)-(N15+N16)/2+10),L15-ABS(M15)-(N15+N16)/2+10),0)),0) -> 12.6 | P15: 7 | R15: 1.6 | S15: =IF(AND(R15>0,R16>0),IF(OR(R15>10,R15<0,R16>10,R16<0),"Fehler",IF(ABS(P15)-ABS(Q15)-(R15+R16)/2+10>0,IF(P15<0,-(ABS(P15)-ABS(Q15)-(R15+R16)/2+10),P15-ABS(Q15)-(R15+R16)/2+10),0)),0) -> 15.3 | T15: 6 | V15: 2.5 | W15: =IF(AND(V15>0,V16>0),IF(OR(V15>10,V15<0,V16>10,V16<0),"Fehler",IF(ABS(T15)-ABS(U15)-(V15+V16)/2+10>0,IF(T15<0,-(ABS(T15)-ABS(U15)-(V15+V16)/2+10),T15-ABS(U15)-(V15+V16)/2+10),0)),0) -> 13.45 | X15: 5 | Z15: 2.1 | AA15: =IF(AND(Z15>0,Z16>0),IF(OR(Z15>10,Z15<0,Z16>10,Z16<0),"Fehler",IF(ABS(X15)-ABS(Y15)-(Z15+Z16)/2+10>0,IF(X15<0,-(ABS(X15)-ABS(Y15)-(Z15+Z16)/2+10),X15-ABS(Y15)-(Z15+Z16)/2+10),0)),0) -> 12.85 | AB15: =ABS(G15)+ABS(K15)+ABS(O15)+ABS(S15)+ABS(W15)+ABS(AA15) -> 79.05 | AF15: Barren | AG15: =IF(W30>1,1,0) -> 1
F16: 1.8 | J16: 3.5 | N16: 2.9 | R16: 1.8 | V16: 2.6 | Z16: 2.2 | AF16: Reck | AG16: =IF(AA30>1,1,0) -> 1
A17: Lasse Sticka | B17: =IF(A17>0,B15,"") -> TG Oker Salzgitter 2 | C17: =IF(A17<>"", VLOOKUP(A17,'Wertungszettel M4'!A$7:B$36,2,0),"") -> 07 | D17: 5 | F17: 3.6 | G17: =IF(AND(F17>0,F18>0),IF(OR(F17>10,F17<0,F18>10,F18<0),"Fehler",IF(ABS(D17)-ABS(E17)-(F17+F18)/2+10>0,IF(D17<0,-(ABS(D17)-ABS(E17)-(F17+F18)/2+10),D17-ABS(E17)-(F17+F18)/2+10),0)),0) -> 11.5 | H17: 5 | J17: 3.2 | K17: =IF(AND(J17>0,J18>0),IF(OR(J17>10,J17<0,J18>10,J18<0),"Fehler",IF(ABS(H17)-ABS(I17)-(J17+J18)/2+10>0,IF(H17<0,-(ABS(H17)-ABS(I17)-(J17+J18)/2+10),H17-ABS(I17)-(J17+J18)/2+10),0)),0) -> 11.9 | O17: =IF(AND(N17>0,N18>0),IF(OR(N17>10,N17<0,N18>10,N18<0),"Fehler",IF(ABS(L17)-ABS(M17)-(N17+N18)/2+10>0,IF(L17<0,-(ABS(L17)-ABS(M17)-(N17+N18)/2+10),L17-ABS(M17)-(N17+N18)/2+10),0)),0) -> 0 | P17: 5 | R17: 0.9 | S17: =IF(AND(R17>0,R18>0),IF(OR(R17>10,R17<0,R18>10,R18<0),"Fehler",IF(ABS(P17)-ABS(Q17)-(R17+R18)/2+10>0,IF(P17<0,-(ABS(P17)-ABS(Q17)-(R17+R18)/2+10),P17-ABS(Q17)-(R17+R18)/2+10),0)),0) -> 14.1 | T17: 5 | V17: 2.4 | W17: =IF(AND(V17>0,V18>0),IF(OR(V17>10,V17<0,V18>10,V18<0),"Fehler",IF(ABS(T17)-ABS(U17)-(V17+V18)/2+10>0,IF(T17<0,-(ABS(T17)-ABS(U17)-(V17+V18)/2+10),T17-ABS(U17)-(V17+V18)/2+10),0)),0) -> 12.65 | X17: 5 | Z17: 2.7 | AA17: =IF(AND(Z17>0,Z18>0),IF(OR(Z17>10,Z17<0,Z18>10,Z18<0),"Fehler",IF(ABS(X17)-ABS(Y17)-(Z17+Z18)/2+10>0,IF(X17<0,-(ABS(X17)-ABS(Y17)-(Z17+Z18)/2+10),X17-ABS(Y17)-(Z17+Z18)/2+10),0)),0) -> 12.45 | AB17: =ABS(G17)+ABS(K17)+ABS(O17)+ABS(S17)+ABS(W17)+ABS(AA17) -> 62.6
F18: 3.4 | J18: 3 | R18: 0.9 | V18: 2.3 | Z18: 2.4 | AF18: Gesamt | AG18: =SUM(AG11:AG17) -> 6
B19: =IF(A19>0,B17,"") ->  | C19: =IF(A19<>"", VLOOKUP(A19,'Wertungszettel M4'!A$7:B$36,2,0),"") ->  | G19: =IF(AND(F19>0,F20>0),IF(OR(F19>10,F19<0,F20>10,F20<0),"Fehler",IF(ABS(D19)-ABS(E19)-(F19+F20)/2+10>0,IF(D19<0,-(ABS(D19)-ABS(E19)-(F19+F20)/2+10),D19-ABS(E19)-(F19+F20)/2+10),0)),0) -> 0 | K19: =IF(AND(J19>0,J20>0),IF(OR(J19>10,J19<0,J20>10,J20<0),"Fehler",IF(ABS(H19)-ABS(I19)-(J19+J20)/2+10>0,IF(H19<0,-(ABS(H19)-ABS(I19)-(J19+J20)/2+10),H19-ABS(I19)-(J19+J20)/2+10),0)),0) -> 0 | O19: =IF(AND(N19>0,N20>0),IF(OR(N19>10,N19<0,N20>10,N20<0),"Fehler",IF(ABS(L19)-ABS(M19)-(N19+N20)/2+10>0,IF(L19<0,-(ABS(L19)-ABS(M19)-(N19+N20)/2+10),L19-ABS(M19)-(N19+N20)/2+10),0)),0) -> 0 | S19: =IF(AND(R19>0,R20>0),IF(OR(R19>10,R19<0,R20>10,R20<0),"Fehler",IF(ABS(P19)-ABS(Q19)-(R19+R20)/2+10>0,IF(P19<0,-(ABS(P19)-ABS(Q19)-(R19+R20)/2+10),P19-ABS(Q19)-(R19+R20)/2+10),0)),0) -> 0 | W19: =IF(AND(V19>0,V20>0),IF(OR(V19>10,V19<0,V20>10,V20<0),"Fehler",IF(ABS(T19)-ABS(U19)-(V19+V20)/2+10>0,IF(T19<0,-(ABS(T19)-ABS(U19)-(V19+V20)/2+10),T19-ABS(U19)-(V19+V20)/2+10),0)),0) -> 0 | AA19: =IF(AND(Z19>0,Z20>0),IF(OR(Z19>10,Z19<0,Z20>10,Z20<0),"Fehler",IF(ABS(X19)-ABS(Y19)-(Z19+Z20)/2+10>0,IF(X19<0,-(ABS(X19)-ABS(Y19)-(Z19+Z20)/2+10),X19-ABS(Y19)-(Z19+Z20)/2+10),0)),0) -> 0 | AB19: =ABS(G19)+ABS(K19)+ABS(O19)+ABS(S19)+ABS(W19)+ABS(AA19) -> 0
B21: =IF(A21>0,B19,"") ->  | C21: =IF(A21<>"", VLOOKUP(A21,'Wertungszettel M4'!A$7:B$36,2,0),"") ->  | G21: =IF(AND(F21>0,F22>0),IF(OR(F21>10,F21<0,F22>10,F22<0),"Fehler",IF(ABS(D21)-ABS(E21)-(F21+F22)/2+10>0,IF(D21<0,-(ABS(D21)-ABS(E21)-(F21+F22)/2+10),D21-ABS(E21)-(F21+F22)/2+10),0)),0) -> 0 | K21: =IF(AND(J21>0,J22>0),IF(OR(J21>10,J21<0,J22>10,J22<0),"Fehler",IF(ABS(H21)-ABS(I21)-(J21+J22)/2+10>0,IF(H21<0,-(ABS(H21)-ABS(I21)-(J21+J22)/2+10),H21-ABS(I21)-(J21+J22)/2+10),0)),0) -> 0 | O21: =IF(AND(N21>0,N22>0),IF(OR(N21>10,N21<0,N22>10,N22<0),"Fehler",IF(ABS(L21)-ABS(M21)-(N21+N22)/2+10>0,IF(L21<0,-(ABS(L21)-ABS(M21)-(N21+N22)/2+10),L21-ABS(M21)-(N21+N22)/2+10),0)),0) -> 0 | S21: =IF(AND(R21>0,R22>0),IF(OR(R21>10,R21<0,R22>10,R22<0),"Fehler",IF(ABS(P21)-ABS(Q21)-(R21+R22)/2+10>0,IF(P21<0,-(ABS(P21)-ABS(Q21)-(R21+R22)/2+10),P21-ABS(Q21)-(R21+R22)/2+10),0)),0) -> 0 | W21: =IF(AND(V21>0,V22>0),IF(OR(V21>10,V21<0,V22>10,V22<0),"Fehler",IF(ABS(T21)-ABS(U21)-(V21+V22)/2+10>0,IF(T21<0,-(ABS(T21)-ABS(U21)-(V21+V22)/2+10),T21-ABS(U21)-(V21+V22)/2+10),0)),0) -> 0 | AA21: =IF(AND(Z21>0,Z22>0),IF(OR(Z21>10,Z21<0,Z22>10,Z22<0),"Fehler",IF(ABS(X21)-ABS(Y21)-(Z21+Z22)/2+10>0,IF(X21<0,-(ABS(X21)-ABS(Y21)-(Z21+Z22)/2+10),X21-ABS(Y21)-(Z21+Z22)/2+10),0)),0) -> 0 | AB21: =ABS(G21)+ABS(K21)+ABS(O21)+ABS(S21)+ABS(W21)+ABS(AA21) -> 0
B23: =IF(A23>0,B21,"") ->  | C23: =IF(A23<>"", VLOOKUP(A23,'Wertungszettel M4'!A$7:B$36,2,0),"") ->  | G23: =IF(AND(F23>0,F24>0),IF(OR(F23>10,F23<0,F24>10,F24<0),"Fehler",IF(ABS(D23)-ABS(E23)-(F23+F24)/2+10>0,IF(D23<0,-(ABS(D23)-ABS(E23)-(F23+F24)/2+10),D23-ABS(E23)-(F23+F24)/2+10),0)),0) -> 0 | K23: =IF(AND(J23>0,J24>0),IF(OR(J23>10,J23<0,J24>10,J24<0),"Fehler",IF(ABS(H23)-ABS(I23)-(J23+J24)/2+10>0,IF(H23<0,-(ABS(H23)-ABS(I23)-(J23+J24)/2+10),H23-ABS(I23)-(J23+J24)/2+10),0)),0) -> 0 | O23: =IF(AND(N23>0,N24>0),IF(OR(N23>10,N23<0,N24>10,N24<0),"Fehler",IF(ABS(L23)-ABS(M23)-(N23+N24)/2+10>0,IF(L23<0,-(ABS(L23)-ABS(M23)-(N23+N24)/2+10),L23-ABS(M23)-(N23+N24)/2+10),0)),0) -> 0 | S23: =IF(AND(R23>0,R24>0),IF(OR(R23>10,R23<0,R24>10,R24<0),"Fehler",IF(ABS(P23)-ABS(Q23)-(R23+R24)/2+10>0,IF(P23<0,-(ABS(P23)-ABS(Q23)-(R23+R24)/2+10),P23-ABS(Q23)-(R23+R24)/2+10),0)),0) -> 0 | W23: =IF(AND(V23>0,V24>0),IF(OR(V23>10,V23<0,V24>10,V24<0),"Fehler",IF(ABS(T23)-ABS(U23)-(V23+V24)/2+10>0,IF(T23<0,-(ABS(T23)-ABS(U23)-(V23+V24)/2+10),T23-ABS(U23)-(V23+V24)/2+10),0)),0) -> 0 | AA23: =IF(AND(Z23>0,Z24>0),IF(OR(Z23>10,Z23<0,Z24>10,Z24<0),"Fehler",IF(ABS(X23)-ABS(Y23)-(Z23+Z24)/2+10>0,IF(X23<0,-(ABS(X23)-ABS(Y23)-(Z23+Z24)/2+10),X23-ABS(Y23)-(Z23+Z24)/2+10),0)),0) -> 0 | AB23: =ABS(G23)+ABS(K23)+ABS(O23)+ABS(S23)+ABS(W23)+ABS(AA23) -> 0
B25: =IF(A25>0,B23,"") ->  | C25: =IF(A25<>"", VLOOKUP(A25,'Wertungszettel M4'!A$7:B$36,2,0),"") ->  | G25: =IF(AND(F25>0,F26>0),IF(OR(F25>10,F25<0,F26>10,F26<0),"Fehler",IF(ABS(D25)-ABS(E25)-(F25+F26)/2+10>0,IF(D25<0,-(ABS(D25)-ABS(E25)-(F25+F26)/2+10),D25-ABS(E25)-(F25+F26)/2+10),0)),0) -> 0 | K25: =IF(AND(J25>0,J26>0),IF(OR(J25>10,J25<0,J26>10,J26<0),"Fehler",IF(ABS(H25)-ABS(I25)-(J25+J26)/2+10>0,IF(H25<0,-(ABS(H25)-ABS(I25)-(J25+J26)/2+10),H25-ABS(I25)-(J25+J26)/2+10),0)),0) -> 0 | O25: =IF(AND(N25>0,N26>0),IF(OR(N25>10,N25<0,N26>10,N26<0),"Fehler",IF(ABS(L25)-ABS(M25)-(N25+N26)/2+10>0,IF(L25<0,-(ABS(L25)-ABS(M25)-(N25+N26)/2+10),L25-ABS(M25)-(N25+N26)/2+10),0)),0) -> 0 | S25: =IF(AND(R25>0,R26>0),IF(OR(R25>10,R25<0,R26>10,R26<0),"Fehler",IF(ABS(P25)-ABS(Q25)-(R25+R26)/2+10>0,IF(P25<0,-(ABS(P25)-ABS(Q25)-(R25+R26)/2+10),P25-ABS(Q25)-(R25+R26)/2+10),0)),0) -> 0 | W25: =IF(AND(V25>0,V26>0),IF(OR(V25>10,V25<0,V26>10,V26<0),"Fehler",IF(ABS(T25)-ABS(U25)-(V25+V26)/2+10>0,IF(T25<0,-(ABS(T25)-ABS(U25)-(V25+V26)/2+10),T25-ABS(U25)-(V25+V26)/2+10),0)),0) -> 0 | AA25: =IF(AND(Z25>0,Z26>0),IF(OR(Z25>10,Z25<0,Z26>10,Z26<0),"Fehler",IF(ABS(X25)-ABS(Y25)-(Z25+Z26)/2+10>0,IF(X25<0,-(ABS(X25)-ABS(Y25)-(Z25+Z26)/2+10),X25-ABS(Y25)-(Z25+Z26)/2+10),0)),0) -> 0 | AB25: =ABS(G25)+ABS(K25)+ABS(O25)+ABS(S25)+ABS(W25)+ABS(AA25) -> 0
B27: =IF(A27>0,B25,"") ->  | C27: =IF(A27<>"", VLOOKUP(A27,'Wertungszettel M4'!A$7:B$36,2,0),"") ->  | G27: =IF(AND(F27>0,F28>0),IF(OR(F27>10,F27<0,F28>10,F28<0),"Fehler",IF(ABS(D27)-ABS(E27)-(F27+F28)/2+10>0,IF(D27<0,-(ABS(D27)-ABS(E27)-(F27+F28)/2+10),D27-ABS(E27)-(F27+F28)/2+10),0)),0) -> 0 | K27: =IF(AND(J27>0,J28>0),IF(OR(J27>10,J27<0,J28>10,J28<0),"Fehler",IF(ABS(H27)-ABS(I27)-(J27+J28)/2+10>0,IF(H27<0,-(ABS(H27)-ABS(I27)-(J27+J28)/2+10),H27-ABS(I27)-(J27+J28)/2+10),0)),0) -> 0 | O27: =IF(AND(N27>0,N28>0),IF(OR(N27>10,N27<0,N28>10,N28<0),"Fehler",IF(ABS(L27)-ABS(M27)-(N27+N28)/2+10>0,IF(L27<0,-(ABS(L27)-ABS(M27)-(N27+N28)/2+10),L27-ABS(M27)-(N27+N28)/2+10),0)),0) -> 0 | S27: =IF(AND(R27>0,R28>0),IF(OR(R27>10,R27<0,R28>10,R28<0),"Fehler",IF(ABS(P27)-ABS(Q27)-(R27+R28)/2+10>0,IF(P27<0,-(ABS(P27)-ABS(Q27)-(R27+R28)/2+10),P27-ABS(Q27)-(R27+R28)/2+10),0)),0) -> 0 | W27: =IF(AND(V27>0,V28>0),IF(OR(V27>10,V27<0,V28>10,V28<0),"Fehler",IF(ABS(T27)-ABS(U27)-(V27+V28)/2+10>0,IF(T27<0,-(ABS(T27)-ABS(U27)-(V27+V28)/2+10),T27-ABS(U27)-(V27+V28)/2+10),0)),0) -> 0 | AA27: =IF(AND(Z27>0,Z28>0),IF(OR(Z27>10,Z27<0,Z28>10,Z28<0),"Fehler",IF(ABS(X27)-ABS(Y27)-(Z27+Z28)/2+10>0,IF(X27<0,-(ABS(X27)-ABS(Y27)-(Z27+Z28)/2+10),X27-ABS(Y27)-(Z27+Z28)/2+10),0)),0) -> 0 | AB27: =ABS(G27)+ABS(K27)+ABS(O27)+ABS(S27)+ABS(W27)+ABS(AA27) -> 0
G30: =SUM(LARGE(G9:G28,1),LARGE(G9:G28,2),LARGE(G9:G28,3)) -> 38.2 | K30: =SUM(LARGE(K9:K28,1),LARGE(K9:K28,2),LARGE(K9:K28,3)) -> 35.65 | O30: =SUM(LARGE(O9:O28,1),LARGE(O9:O28,2),LARGE(O9:O28,3)) -> 36.7 | S30: =SUM(LARGE(S9:S28,1),LARGE(S9:S28,2),LARGE(S9:S28,3)) -> 44.75 | W30: =SUM(LARGE(W9:W28,1),LARGE(W9:W28,2),LARGE(W9:W28,3)) -> 38.55 | AA30: =SUM(LARGE(AA9:AA28,1),LARGE(AA9:AA28,2),LARGE(AA9:AA28,3)) -> 38.2 | AB30: =SUM(G30,K30,O30,S30,W30,AA30) -> 232.05

Sheet Einbeck 1
A1: Wettkampfbogen | M1: Datum: | O1: ='INFO Blatt'!B13 -> 2018-03-03
M3: Ort: | O3: ='INFO Blatt'!B11 -> Hehlen
N5: Liga: | O5: ='INFO Blatt'!B7 -> Schülerliga Süd
A7: Name | B7: Verein | C7: Jg | D7: Boden | H7: Pferd | L7: Ringe | P7: Sprung | T7: Barren | X7: Reck | AB7: Ges.
D8: D-Note | E8: Abzug OK | F8: E- Abzug | G8: Note | H8: D-Note | I8: Abzug OK | J8: E- Abzug | K8: Note | L8: D-Note | M8: Abzug OK | N8: E-Abzug | O8: Note | P8: D-Note | Q8: Abzug OK | R8: E-Abzug | S8: Note | T8: D-Note | U8: Abzug OK | V8: E-Abzug | W8: Note | X8: D-Note | Y8: Abzug OK | Z8: E-Abzug | AA8: Note
A9: Tom Leonhard | B9: =Formeln!A9 -> Einbecker SV 1 | C9: =IF(A9<>"", VLOOKUP(A9,'Wertungszettel M5'!A$7:B$36,2,0),"") -> 07 | D9: 7 | F9: 3.2 | G9: =IF(AND(F9>0,F10>0),IF(OR(F9>10,F9<0,F10>10,F10<0),"Fehler",IF(ABS(D9)-ABS(E9)-(F9+F10)/2+10>0,IF(D9<0,-(ABS(D9)-ABS(E9)-(F9+F10)/2+10),D9-ABS(E9)-(F9+F10)/2+10),0)),0) -> 13.9 | H9: 6 | J9: 4 | K9: =IF(AND(J9>0,J10>0),IF(OR(J9>10,J9<0,J10>10,J10<0),"Fehler",IF(ABS(H9)-ABS(I9)-(J9+J10)/2+10>0,IF(H9<0,-(ABS(H9)-ABS(I9)-(J9+J10)/2+10),H9-ABS(I9)-(J9+J10)/2+10),0)),0) -> 11.9 | L9: 6 | M9: 0.5 | N9: 2.6 | O9: =IF(AND(N9>0,N10>0),IF(OR(N9>10,N9<0,N10>10,N10<0),"Fehler",IF(ABS(L9)-ABS(M9)-(N9+N10)/2+10>0,IF(L9<0,-(ABS(L9)-ABS(M9)-(N9+N10)/2+10),L9-ABS(M9)-(N9+N10)/2+10),0)),0) -> 12.8 | P9: 6 | R9: 2 | S9: =IF(AND(R9>0,R10>0),IF(OR(R9>10,R9<0,R10>10,R10<0),"Fehler",IF(ABS(P9)-ABS(Q9)-(R9+R10)/2+10>0,IF(P9<0,-(ABS(P9)-ABS(Q9)-(R9+R10)/2+10),P9-ABS(Q9)-(R9+R10)/2+10),0)),0) -> 14 | T9: 5 | V9: 2 | W9: =IF(AND(V9>0,V10>0),IF(OR(V9>10,V9<0,V10>10,V10<0),"Fehler",IF(ABS(T9)-ABS(U9)-(V9+V10)/2+10>0,IF(T9<0,-(ABS(T9)-ABS(U9)-(V9+V10)/2+10),T9-ABS(U9)-(V9+V10)/2+10),0)),0) -> 13 | X9: 5 | Z9: 1.8 | AA9: =IF(AND(Z9>0,Z10>0),IF(OR(Z9>10,Z9<0,Z10>10,Z10<0),"Fehler",IF(ABS(X9)-ABS(Y9)-(Z9+Z10)/2+10>0,IF(X9<0,-(ABS(X9)-ABS(Y9)-(Z9+Z10)/2+10),X9-ABS(Y9)-(Z9+Z10)/2+10),0)),0) -> 13.15 | AB9: =ABS(G9)+ABS(K9)+ABS(O9)+ABS(S9)+ABS(W9)+ABS(AA9) -> 78.75
F10: 3 | J10: 4.2 | N10: 2.8 | R10: 2 | V10: 2 | Z10: 1.9
A11: Eugen Dahl | B11: =IF(A11>0,B9,"") -> Einbecker SV 1 | C11: =IF(A11<>"", VLOOKUP(A11,'Wertungszettel M5'!A$7:B$36,2,0),"") -> 05 | G11: =IF(AND(F11>0,F12>0),IF(OR(F11>10,F11<0,F12>10,F12<0),"Fehler",IF(ABS(D11)-ABS(E11)-(F11+F12)/2+10>0,IF(D11<0,-(ABS(D11)-ABS(E11)-(F11+F12)/2+10),D11-ABS(E11)-(F11+F12)/2+10),0)),0) -> 0 | K11: =IF(AND(J11>0,J12>0),IF(OR(J11>10,J11<0,J12>10,J12<0),"Fehler",IF(ABS(H11)-ABS(I11)-(J11+J12)/2+10>0,IF(H11<0,-(ABS(H11)-ABS(I11)-(J11+J12)/2+10),H11-ABS(I11)-(J11+J12)/2+10),0)),0) -> 0 | O11: =IF(AND(N11>0,N12>0),IF(OR(N11>10,N11<0,N12>10,N12<0),"Fehler",IF(ABS(L11)-ABS(M11)-(N11+N12)/2+10>0,IF(L11<0,-(ABS(L11)-ABS(M11)-(N11+N12)/2+10),L11-ABS(M11)-(N11+N12)/2+10),0)),0) -> 0 | S11: =IF(AND(R11>0,R12>0),IF(OR(R11>10,R11<0,R12>10,R12<0),"Fehler",IF(ABS(P11)-ABS(Q11)-(R11+R12)/2+10>0,IF(P11<0,-(ABS(P11)-ABS(Q11)-(R11+R12)/2+10),P11-ABS(Q11)-(R11+R12)/2+10),0)),0) -> 0 | W11: =IF(AND(V11>0,V12>0),IF(OR(V11>10,V11<0,V12>10,V12<0),"Fehler",IF(ABS(T11)-ABS(U11)-(V11+V12)/2+10>0,IF(T11<0,-(ABS(T11)-ABS(U11)-(V11+V12)/2+10),T11-ABS(U11)-(V11+V12)/2+10),0)),0) -> 0 | AA11: =IF(AND(Z11>0,Z12>0),IF(OR(Z11>10,Z11<0,Z12>10,Z12<0),"Fehler",IF(ABS(X11)-ABS(Y11)-(Z11+Z12)/2+10>0,IF(X11<0,-(ABS(X11)-ABS(Y11)-(Z11+Z12)/2+10),X11-ABS(Y11)-(Z11+Z12)/2+10),0)),0) -> 0 | AB11: =ABS(G11)+ABS(K11)+ABS(O11)+ABS(S11)+ABS(W11)+ABS(AA11) -> 0 | AF11: Boden | AG11: =IF(G30>1,1,0) -> 1
AF12: pauschenpferd | AG12: =IF(K30>1,1,0) -> 1
A13: Dominic Kobben | B13: =IF(A13>0,B11,"") -> Einbecker SV 1 | C13: =IF(A13<>"", VLOOKUP(A13,'Wertungszettel M5'!A$7:B$36,2,0),"") -> 05 | G13: =IF(AND(F13>0,F14>0),IF(OR(F13>10,F13<0,F14>10,F14<0),"Fehler",IF(ABS(D13)-ABS(E13)-(F13+F14)/2+10>0,IF(D13<0,-(ABS(D13)-ABS(E13)-(F13+F14)/2+10),D13-ABS(E13)-(F13+F14)/2+10),0)),0) -> 0 | K13: =IF(AND(J13>0,J14>0),IF(OR(J13>10,J13<0,J14>10,J14<0),"Fehler",IF(ABS(H13)-ABS(I13)-(J13+J14)/2+10>0,IF(H13<0,-(ABS(H13)-ABS(I13)-(J13+J14)/2+10),H13-ABS(I13)-(J13+J14)/2+10),0)),0) -> 0 | O13: =IF(AND(N13>0,N14>0),IF(OR(N13>10,N13<0,N14>10,N14<0),"Fehler",IF(ABS(L13)-ABS(M13)-(N13+N14)/2+10>0,IF(L13<0,-(ABS(L13)-ABS(M13)-(N13+N14)/2+10),L13-ABS(M13)-(N13+N14)/2+10),0)),0) -> 0 | S13: =IF(AND(R13>0,R14>0),IF(OR(R13>10,R13<0,R14>10,R14<0),"Fehler",IF(ABS(P13)-ABS(Q13)-(R13+R14)/2+10>0,IF(P13<0,-(ABS(P13)-ABS(Q13)-(R13+R14)/2+10),P13-ABS(Q13)-(R13+R14)/2+10),0)),0) -> 0 | W13: =IF(AND(V13>0,V14>0),IF(OR(V13>10,V13<0,V14>10,V14<0),"Fehler",IF(ABS(T13)-ABS(U13)-(V13+V14)/2+10>0,IF(T13<0,-(ABS(T13)-ABS(U13)-(V13+V14)/2+10),T13-ABS(U13)-(V13+V14)/2+10),0)),0) -> 0 | AA13: =IF(AND(Z13>0,Z14>0),IF(OR(Z13>10,Z13<0,Z14>10,Z14<0),"Fehler",IF(ABS(X13)-ABS(Y13)-(Z13+Z14)/2+10>0,IF(X13<0,-(ABS(X13)-ABS(Y13)-(Z13+Z14)/2+10),X13-ABS(Y13)-(Z13+Z14)/2+10),0)),0) -> 0 | AB13: =ABS(G13)+ABS(K13)+ABS(O13)+ABS(S13)+ABS(W13)+ABS(AA13) -> 0 | AF13: ringe | AG13: =IF(O30>1,1,0) -> 1
AF14: sprung | AG14: =IF(S30>1,1,0) -> 1
A15: Illes Törjek | B15: =IF(A15>0,B13,"") -> Einbecker SV 1 | C15: =IF(A15<>"", VLOOKUP(A15,'Wertungszettel M5'!A$7:B$36,2,0),"") -> 06 | G15: =IF(AND(F15>0,F16>0),IF(OR(F15>10,F15<0,F16>10,F16<0),"Fehler",IF(ABS(D15)-ABS(E15)-(F15+F16)/2+10>0,IF(D15<0,-(ABS(D15)-ABS(E15)-(F15+F16)/2+10),D15-ABS(E15)-(F15+F16)/2+10),0)),0) -> 0 | K15: =IF(AND(J15>0,J16>0),IF(OR(J15>10,J15<0,J16>10,J16<0),"Fehler",IF(ABS(H15)-ABS(I15)-(J15+J16)/2+10>0,IF(H15<0,-(ABS(H15)-ABS(I15)-(J15+J16)/2+10),H15-ABS(I15)-(J15+J16)/2+10),0)),0) -> 0 | O15: =IF(AND(N15>0,N16>0),IF(OR(N15>10,N15<0,N16>10,N16<0),"Fehler",IF(ABS(L15)-ABS(M15)-(N15+N16)/2+10>0,IF(L15<0,-(ABS(L15)-ABS(M15)-(N15+N16)/2+10),L15-ABS(M15)-(N15+N16)/2+10),0)),0) -> 0 | S15: =IF(AND(R15>0,R16>0),IF(OR(R15>10,R15<0,R16>10,R16<0),"Fehler",IF(ABS(P15)-ABS(Q15)-(R15+R16)/2+10>0,IF(P15<0,-(ABS(P15)-ABS(Q15)-(R15+R16)/2+10),P15-ABS(Q15)-(R15+R16)/2+10),0)),0) -> 0 | W15: =IF(AND(V15>0,V16>0),IF(OR(V15>10,V15<0,V16>10,V16<0),"Fehler",IF(ABS(T15)-ABS(U15)-(V15+V16)/2+10>0,IF(T15<0,-(ABS(T15)-ABS(U15)-(V15+V16)/2+10),T15-ABS(U15)-(V15+V16)/2+10),0)),0) -> 0 | AA15: =IF(AND(Z15>0,Z16>0),IF(OR(Z15>10,Z15<0,Z16>10,Z16<0),"Fehler",IF(ABS(X15)-ABS(Y15)-(Z15+Z16)/2+10>0,IF(X15<0,-(ABS(X15)-ABS(Y15)-(Z15+Z16)/2+10),X15-ABS(Y15)-(Z15+Z16)/2+10),0)),0) -> 0 | AB15: =ABS(G15)+ABS(K15)+ABS(O15)+ABS(S15)+ABS(W15)+ABS(AA15) -> 0 | AF15: Barren | AG15: =IF(W30>1,1,0) -> 1
AF16: Reck | AG16: =IF(AA30>1,1,0) -> 1
A17: Marlon Sassin | B17: =IF(A17>0,B15,"") -> Einbecker SV 1 | C17: =IF(A17<>"", VLOOKUP(A17,'Wertungszettel M5'!A$7:B$36,2,0),"") -> 09 | D17: 6 | F17: 2.9 | G17: =IF(AND(F17>0,F18>0),IF(OR(F17>10,F17<0,F18>10,F18<0),"Fehler",IF(ABS(D17)-ABS(E17)-(F17+F18)/2+10>0,IF(D17<0,-(ABS(D17)-ABS(E17)-(F17+F18)/2+10),D17-ABS(E17)-(F17+F18)/2+10),0)),0) -> 13 | H17: 5 | I17: 1.3 | J17: 4.5 | K17: =IF(AND(J17>0,J18>0),IF(OR(J17>10,J17<0,J18>10,J18<0),"Fehler",IF(ABS(H17)-ABS(I17)-(J17+J18)/2+10>0,IF(H17<0,-(ABS(H17)-ABS(I17)-(J17+J18)/2+10),H17-ABS(I17)-(J17+J18)/2+10),0)),0) -> 8.85 | L17: 5 | M17: 1.5 | N17: 2.7 | O17: =IF(AND(N17>0,N18>0),IF(OR(N17>10,N17<0,N18>10,N18<0),"Fehler",IF(ABS(L17)-ABS(M17)-(N17+N18)/2+10>0,IF(L17<0,-(ABS(L17)-ABS(M17)-(N17+N18)/2+10),L17-ABS(M17)-(N17+N18)/2+10),0)),0) -> 10.7 | P17: 5 | R17: 1.4 | S17: =IF(AND(R17>0,R18>0),IF(OR(R17>10,R17<0,R18>10,R18<0),"Fehler",IF(ABS(P17)-ABS(Q17)-(R17+R18)/2+10>0,IF(P17<0,-(ABS(P17)-ABS(Q17)-(R17+R18)/2+10),P17-ABS(Q17)-(R17+R18)/2+10),0)),0) -> 13.5 | T17: 5 | V17: 3.4 | W17: =IF(AND(V17>0,V18>0),IF(OR(V17>10,V17<0,V18>10,V18<0),"Fehler",IF(ABS(T17)-ABS(U17)-(V17+V18)/2+10>0,IF(T17<0,-(ABS(T17)-ABS(U17)-(V17+V18)/2+10),T17-ABS(U17)-(V17+V18)/2+10),0)),0) -> 11.7 | X17: 5 | Z17: 3.7 | AA17: =IF(AND(Z17>0,Z18>0),IF(OR(Z17>10,Z17<0,Z18>10,Z18<0),"Fehler",IF(ABS(X17)-ABS(Y17)-(Z17+Z18)/2+10>0,IF(X17<0,-(ABS(X17)-ABS(Y17)-(Z17+Z18)/2+10),X17-ABS(Y17)-(Z17+Z18)/2+10),0)),0) -> 11.05 | AB17: =ABS(G17)+ABS(K17)+ABS(O17)+ABS(S17)+ABS(W17)+ABS(AA17) -> 68.8
F18: 3.1 | J18: 5.2 | N18: 2.9 | R18: 1.6 | V18: 3.2 | Z18: 4.2 | AF18: Gesamt | AG18: =SUM(AG11:AG17) -> 6
A19: Nicolas Buchholz | B19: =IF(A19>0,B17,"") -> Einbecker SV 1 | C19: =IF(A19<>"", VLOOKUP(A19,'Wertungszettel M5'!A$7:B$36,2,0),"") -> 05 | G19: =IF(AND(F19>0,F20>0),IF(OR(F19>10,F19<0,F20>10,F20<0),"Fehler",IF(ABS(D19)-ABS(E19)-(F19+F20)/2+10>0,IF(D19<0,-(ABS(D19)-ABS(E19)-(F19+F20)/2+10),D19-ABS(E19)-(F19+F20)/2+10),0)),0) -> 0 | K19: =IF(AND(J19>0,J20>0),IF(OR(J19>10,J19<0,J20>10,J20<0),"Fehler",IF(ABS(H19)-ABS(I19)-(J19+J20)/2+10>0,IF(H19<0,-(ABS(H19)-ABS(I19)-(J19+J20)/2+10),H19-ABS(I19)-(J19+J20)/2+10),0)),0) -> 0 | O19: =IF(AND(N19>0,N20>0),IF(OR(N19>10,N19<0,N20>10,N20<0),"Fehler",IF(ABS(L19)-ABS(M19)-(N19+N20)/2+10>0,IF(L19<0,-(ABS(L19)-ABS(M19)-(N19+N20)/2+10),L19-ABS(M19)-(N19+N20)/2+10),0)),0) -> 0 | S19: =IF(AND(R19>0,R20>0),IF(OR(R19>10,R19<0,R20>10,R20<0),"Fehler",IF(ABS(P19)-ABS(Q19)-(R19+R20)/2+10>0,IF(P19<0,-(ABS(P19)-ABS(Q19)-(R19+R20)/2+10),P19-ABS(Q19)-(R19+R20)/2+10),0)),0) -> 0 | W19: =IF(AND(V19>0,V20>0),IF(OR(V19>10,V19<0,V20>10,V20<0),"Fehler",IF(ABS(T19)-ABS(U19)-(V19+V20)/2+10>0,IF(T19<0,-(ABS(T19)-ABS(U19)-(V19+V20)/2+10),T19-ABS(U19)-(V19+V20)/2+10),0)),0) -> 0 | AA19: =IF(AND(Z19>0,Z20>0),IF(OR(Z19>10,Z19<0,Z20>10,Z20<0),"Fehler",IF(ABS(X19)-ABS(Y19)-(Z19+Z20)/2+10>0,IF(X19<0,-(ABS(X19)-ABS(Y19)-(Z19+Z20)/2+10),X19-ABS(Y19)-(Z19+Z20)/2+10),0)),0) -> 0 | AB19: =ABS(G19)+ABS(K19)+ABS(O19)+ABS(S19)+ABS(W19)+ABS(AA19) -> 0
A21: Dins Kozlovskis | B21: =IF(A21>0,B19,"") -> Einbecker SV 1 | C21: =IF(A21<>"", VLOOKUP(A21,'Wertungszettel M5'!A$7:B$36,2,0),"") -> 06 | G21: =IF(AND(F21>0,F22>0),IF(OR(F21>10,F21<0,F22>10,F22<0),"Fehler",IF(ABS(D21)-ABS(E21)-(F21+F22)/2+10>0,IF(D21<0,-(ABS(D21)-ABS(E21)-(F21+F22)/2+10),D21-ABS(E21)-(F21+F22)/2+10),0)),0) -> 0 | K21: =IF(AND(J21>0,J22>0),IF(OR(J21>10,J21<0,J22>10,J22<0),"Fehler",IF(ABS(H21)-ABS(I21)-(J21+J22)/2+10>0,IF(H21<0,-(ABS(H21)-ABS(I21)-(J21+J22)/2+10),H21-ABS(I21)-(J21+J22)/2+10),0)),0) -> 0 | O21: =IF(AND(N21>0,N22>0),IF(OR(N21>10,N21<0,N22>10,N22<0),"Fehler",IF(ABS(L21)-ABS(M21)-(N21+N22)/2+10>0,IF(L21<0,-(ABS(L21)-ABS(M21)-(N21+N22)/2+10),L21-ABS(M21)-(N21+N22)/2+10),0)),0) -> 0 | S21: =IF(AND(R21>0,R22>0),IF(OR(R21>10,R21<0,R22>10,R22<0),"Fehler",IF(ABS(P21)-ABS(Q21)-(R21+R22)/2+10>0,IF(P21<0,-(ABS(P21)-ABS(Q21)-(R21+R22)/2+10),P21-ABS(Q21)-(R21+R22)/2+10),0)),0) -> 0 | W21: =IF(AND(V21>0,V22>0),IF(OR(V21>10,V21<0,V22>10,V22<0),"Fehler",IF(ABS(T21)-ABS(U21)-(V21+V22)/2+10>0,IF(T21<0,-(ABS(T21)-ABS(U21)-(V21+V22)/2+10),T21-ABS(U21)-(V21+V22)/2+10),0)),0) -> 0 | AA21: =IF(AND(Z21>0,Z22>0),IF(OR(Z21>10,Z21<0,Z22>10,Z22<0),"Fehler",IF(ABS(X21)-ABS(Y21)-(Z21+Z22)/2+10>0,IF(X21<0,-(ABS(X21)-ABS(Y21)-(Z21+Z22)/2+10),X21-ABS(Y21)-(Z21+Z22)/2+10),0)),0) -> 0 | AB21: =ABS(G21)+ABS(K21)+ABS(O21)+ABS(S21)+ABS(W21)+ABS(AA21) -> 0
A23: Fiete Linneweber | B23: =IF(A23>0,B21,"") -> Einbecker SV 1 | C23: =IF(A23<>"", VLOOKUP(A23,'Wertungszettel M5'!A$7:B$36,2,0),"") -> 07 | D23: 5 | F23: 3 | G23: =IF(AND(F23>0,F24>0),IF(OR(F23>10,F23<0,F24>10,F24<0),"Fehler",IF(ABS(D23)-ABS(E23)-(F23+F24)/2+10>0,IF(D23<0,-(ABS(D23)-ABS(E23)-(F23+F24)/2+10),D23-ABS(E23)-(F23+F24)/2+10),0)),0) -> 12 | H23: 5 | J23: 5.2 | K23: =IF(AND(J23>0,J24>0),IF(OR(J23>10,J23<0,J24>10,J24<0),"Fehler",IF(ABS(H23)-ABS(I23)-(J23+J24)/2+10>0,IF(H23<0,-(ABS(H23)-ABS(I23)-(J23+J24)/2+10),H23-ABS(I23)-(J23+J24)/2+10),0)),0) -> 9.55 | O23: =IF(AND(N23>0,N24>0),IF(OR(N23>10,N23<0,N24>10,N24<0),"Fehler",IF(ABS(L23)-ABS(M23)-(N23+N24)/2+10>0,IF(L23<0,-(ABS(L23)-ABS(M23)-(N23+N24)/2+10),L23-ABS(M23)-(N23+N24)/2+10),0)),0) -> 0 | P23: 5 | R23: 1.2 | S23: =IF(AND(R23>0,R24>0),IF(OR(R23>10,R23<0,R24>10,R24<0),"Fehler",IF(ABS(P23)-ABS(Q23)-(R23+R24)/2+10>0,IF(P23<0,-(ABS(P23)-ABS(Q23)-(R23+R24)/2+10),P23-ABS(Q23)-(R23+R24)/2+10),0)),0) -> 13.8 | T23: 4 | U23: 1 | V23: 4.1 | W23: =IF(AND(V23>0,V24>0),IF(OR(V23>10,V23<0,V24>10,V24<0),"Fehler",IF(ABS(T23)-ABS(U23)-(V23+V24)/2+10>0,IF(T23<0,-(ABS(T23)-ABS(U23)-(V23+V24)/2+10),T23-ABS(U23)-(V23+V24)/2+10),0)),0) -> 8.95 | X23: 4 | Z23: 2.6 | AA23: =IF(AND(Z23>0,Z24>0),IF(OR(Z23>10,Z23<0,Z24>10,Z24<0),"Fehler",IF(ABS(X23)-ABS(Y23)-(Z23+Z24)/2+10>0,IF(X23<0,-(ABS(X23)-ABS(Y23)-(Z23+Z24)/2+10),X23-ABS(Y23)-(Z23+Z24)/2+10),0)),0) -> 11.3 | AB23: =ABS(G23)+ABS(K23)+ABS(O23)+ABS(S23)+ABS(W23)+ABS(AA23) -> 55.6
F24: 3 | J24: 5.7 | R24: 1.2 | V24: 4 | Z24: 2.8
A25: Joel Eitemeier | B25: =IF(A25>0,B23,"") -> Einbecker SV 1 | C25: =IF(A25<>"", VLOOKUP(A25,'Wertungszettel M5'!A$7:B$36,2,0),"") -> 06 | D25: 4 | E25: 1.5 | F25: 2.4 | G25: =IF(AND(F25>0,F26>0),IF(OR(F25>10,F25<0,F26>10,F26<0),"Fehler",IF(ABS(D25)-ABS(E25)-(F25+F26)/2+10>0,IF(D25<0,-(ABS(D25)-ABS(E25)-(F25+F26)/2+10),D25-ABS(E25)-(F25+F26)/2+10),0)),0) -> 10.1 | K25: =IF(AND(J25>0,J26>0),IF(OR(J25>10,J25<0,J26>10,J26<0),"Fehler",IF(ABS(H25)-ABS(I25)-(J25+J26)/2+10>0,IF(H25<0,-(ABS(H25)-ABS(I25)-(J25+J26)/2+10),H25-ABS(I25)-(J25+J26)/2+10),0)),0) -> 0 | L25: 4 | M25: 0.5 | N25: 3.1 | O25: =IF(AND(N25>0,N26>0),IF(OR(N25>10,N25<0,N26>10,N26<0),"Fehler",IF(ABS(L25)-ABS(M25)-(N25+N26)/2+10>0,IF(L25<0,-(ABS(L25)-ABS(M25)-(N25+N26)/2+10),L25-ABS(M25)-(N25+N26)/2+10),0)),0) -> 10.4 | P25: 5 | R25: 1.4 | S25: =IF(AND(R25>0,R26>0),IF(OR(R25>10,R25<0,R26>10,R26<0),"Fehler",IF(ABS(P25)-ABS(Q25)-(R25+R26)/2+10>0,IF(P25<0,-(ABS(P25)-ABS(Q25)-(R25+R26)/2+10),P25-ABS(Q25)-(R25+R26)/2+10),0)),0) -> 13.5 | T25: 4 | V25: 2.2 | W25: =IF(AND(V25>0,V26>0),IF(OR(V25>10,V25<0,V26>10,V26<0),"Fehler",IF(ABS(T25)-ABS(U25)-(V25+V26)/2+10>0,IF(T25<0,-(ABS(T25)-ABS(U25)-(V25+V26)/2+10),T25-ABS(U25)-(V25+V26)/2+10),0)),0) -> 11.6 | X25: 4 | Z25: 2.8 | AA25: =IF(AND(Z25>0,Z26>0),IF(OR(Z25>10,Z25<0,Z26>10,Z26<0),"Fehler",IF(ABS(X25)-ABS(Y25)-(Z25+Z26)/2+10>0,IF(X25<0,-(ABS(X25)-ABS(Y25)-(Z25+Z26)/2+10),X25-ABS(Y25)-(Z25+Z26)/2+10),0)),0) -> 11.15 | AB25: =ABS(G25)+ABS(K25)+ABS(O25)+ABS(S25)+ABS(W25)+ABS(AA25) -> 56.75
F26: 2.4 | N26: 3.1 | R26: 1.6 | V26: 2.6 | Z26: 2.9
B27: =IF(A27>0,B25,"") ->  | C27: =IF(A27<>"", VLOOKUP(A27,'Wertungszettel M5'!A$7:B$36,2,0),"") ->  | G27: =IF(AND(F27>0,F28>0),IF(OR(F27>10,F27<0,F28>10,F28<0),"Fehler",IF(ABS(D27)-ABS(E27)-(F27+F28)/2+10>0,IF(D27<0,-(ABS(D27)-ABS(E27)-(F27+F28)/2+10),D27-ABS(E27)-(F27+F28)/2+10),0)),0) -> 0 | K27: =IF(AND(J27>0,J28>0),IF(OR(J27>10,J27<0,J28>10,J28<0),"Fehler",IF(ABS(H27)-ABS(I27)-(J27+J28)/2+10>0,IF(H27<0,-(ABS(H27)-ABS(I27)-(J27+J28)/2+10),H27-ABS(I27)-(J27+J28)/2+10),0)),0) -> 0 | O27: =IF(AND(N27>0,N28>0),IF(OR(N27>10,N27<0,N28>10,N28<0),"Fehler",IF(ABS(L27)-ABS(M27)-(N27+N28)/2+10>0,IF(L27<0,-(ABS(L27)-ABS(M27)-(N27+N28)/2+10),L27-ABS(M27)-(N27+N28)/2+10),0)),0) -> 0 | S27: =IF(AND(R27>0,R28>0),IF(OR(R27>10,R27<0,R28>10,R28<0),"Fehler",IF(ABS(P27)-ABS(Q27)-(R27+R28)/2+10>0,IF(P27<0,-(ABS(P27)-ABS(Q27)-(R27+R28)/2+10),P27-ABS(Q27)-(R27+R28)/2+10),0)),0) -> 0 | W27: =IF(AND(V27>0,V28>0),IF(OR(V27>10,V27<0,V28>10,V28<0),"Fehler",IF(ABS(T27)-ABS(U27)-(V27+V28)/2+10>0,IF(T27<0,-(ABS(T27)-ABS(U27)-(V27+V28)/2+10),T27-ABS(U27)-(V27+V28)/2+10),0)),0) -> 0 | AA27: =IF(AND(Z27>0,Z28>0),IF(OR(Z27>10,Z27<0,Z28>10,Z28<0),"Fehler",IF(ABS(X27)-ABS(Y27)-(Z27+Z28)/2+10>0,IF(X27<0,-(ABS(X27)-ABS(Y27)-(Z27+Z28)/2+10),X27-ABS(Y27)-(Z27+Z28)/2+10),0)),0) -> 0 | AB27: =ABS(G27)+ABS(K27)+ABS(O27)+ABS(S27)+ABS(W27)+ABS(AA27) -> 0
G30: =SUM(LARGE(G9:G28,1),LARGE(G9:G28,2),LARGE(G9:G28,3)) -> 38.9 | K30: =SUM(LARGE(K9:K28,1),LARGE(K9:K28,2),LARGE(K9:K28,3)) -> 30.3 | O30: =SUM(LARGE(O9:O28,1),LARGE(O9:O28,2),LARGE(O9:O28,3)) -> 33.9 | S30: =SUM(LARGE(S9:S28,1),LARGE(S9:S28,2),LARGE(S9:S28,3)) -> 41.3 | W30: =SUM(LARGE(W9:W28,1),LARGE(W9:W28,2),LARGE(W9:W28,3)) -> 36.3 | AA30: =SUM(LARGE(AA9:AA28,1),LARGE(AA9:AA28,2),LARGE(AA9:AA28,3)) -> 35.6 | AB30: =SUM(G30,K30,O30,S30,W30,AA30) -> 216.3

Sheet Boffzen
A1: Wettkampfbogen | M1: Datum: | O1: ='INFO Blatt'!B13 -> 2018-03-03
J3: =K4 -> 0 | M3: Ort: | O3: ='INFO Blatt'!B11 -> Hehlen
N5: Liga: | O5: ='INFO Blatt'!B7 -> Schülerliga Süd
A7: Name | B7: Verein | C7: Jg | D7: Boden | H7: Pferd | L7: Ringe | P7: Sprung | T7: Barren | X7: Reck | AB7: Ges.
D8: D-Note | E8: Abzug OK | F8: E- Abzug | G8: Note | H8: D-Note | I8: Abzug OK | J8: E- Abzug | K8: Note | L8: D-Note | M8: Abzug OK | N8: E-Abzug | O8: Note | P8: D-Note | Q8: Abzug OK | R8: E-Abzug | S8: Note | T8: D-Note | U8: Abzug OK | V8: E-Abzug | W8: Note | X8: D-Note | Y8: Abzug OK | Z8: E-Abzug | AA8: Note
A9: Erik Komnick | B9: =Formeln!A5 -> MTV Boffzen | C9: =IF(A9<>"",VLOOKUP(A9,'Wertungszettel M1'!A$7:B$36,2,0),"") -> 04 | G9: =IF(AND(F9>0,F10>0),IF(OR(F9>10,F9<0,F10>10,F10<0),"Fehler",IF(ABS(D9)-ABS(E9)-(F9+F10)/2+10>0,IF(D9<0,-(ABS(D9)-ABS(E9)-(F9+F10)/2+10),D9-ABS(E9)-(F9+F10)/2+10),0)),0) -> 0 | K9: =IF(AND(J9>0,J10>0),IF(OR(J9>10,J9<0,J10>10,J10<0),"Fehler",IF(ABS(H9)-ABS(I9)-(J9+J10)/2+10>0,IF(H9<0,-(ABS(H9)-ABS(I9)-(J9+J10)/2+10),H9-ABS(I9)-(J9+J10)/2+10),0)),0) -> 0 | O9: =IF(AND(N9>0,N10>0),IF(OR(N9>10,N9<0,N10>10,N10<0),"Fehler",IF(ABS(L9)-ABS(M9)-(N9+N10)/2+10>0,IF(L9<0,-(ABS(L9)-ABS(M9)-(N9+N10)/2+10),L9-ABS(M9)-(N9+N10)/2+10),0)),0) -> 0 | S9: =IF(AND(R9>0,R10>0),IF(OR(R9>10,R9<0,R10>10,R10<0),"Fehler",IF(ABS(P9)-ABS(Q9)-(R9+R10)/2+10>0,IF(P9<0,-(ABS(P9)-ABS(Q9)-(R9+R10)/2+10),P9-ABS(Q9)-(R9+R10)/2+10),0)),0) -> 0 | W9: =IF(AND(V9>0,V10>0),IF(OR(V9>10,V9<0,V10>10,V10<0),"Fehler",IF(ABS(T9)-ABS(U9)-(V9+V10)/2+10>0,IF(T9<0,-(ABS(T9)-ABS(U9)-(V9+V10)/2+10),T9-ABS(U9)-(V9+V10)/2+10),0)),0) -> 0 | AA9: =IF(AND(Z9>0,Z10>0),IF(OR(Z9>10,Z9<0,Z10>10,Z10<0),"Fehler",IF(ABS(X9)-ABS(Y9)-(Z9+Z10)/2+10>0,IF(X9<0,-(ABS(X9)-ABS(Y9)-(Z9+Z10)/2+10),X9-ABS(Y9)-(Z9+Z10)/2+10),0)),0) -> 0 | AB9: =ABS(G9)+ABS(K9)+ABS(O9)+ABS(S9)+ABS(W9)+ABS(AA9) -> 0
A11: Moritz Böhm | B11: =IF(A11>0,B9,"") -> MTV Boffzen | C11: =IF(A11<>"",VLOOKUP(A11,'Wertungszettel M1'!A$7:B$36,2,0),"") -> 04 | D11: 5 | F11: 2.3 | G11: =IF(AND(F11>0,F12>0),IF(OR(F11>10,F11<0,F12>10,F12<0),"Fehler",IF(ABS(D11)-ABS(E11)-(F11+F12)/2+10>0,IF(D11<0,-(ABS(D11)-ABS(E11)-(F11+F12)/2+10),D11-ABS(E11)-(F11+F12)/2+10),0)),0) -> 12.7 | H11: 6 | J11: 3.2 | K11: =IF(AND(J11>0,J12>0),IF(OR(J11>10,J11<0,J12>10,J12<0),"Fehler",IF(ABS(H11)-ABS(I11)-(J11+J12)/2+10>0,IF(H11<0,-(ABS(H11)-ABS(I11)-(J11+J12)/2+10),H11-ABS(I11)-(J11+J12)/2+10),0)),0) -> 12.7 | L11: 6 | M11: 1 | N11: 2.2 | O11: =IF(AND(N11>0,N12>0),IF(OR(N11>10,N11<0,N12>10,N12<0),"Fehler",IF(ABS(L11)-ABS(M11)-(N11+N12)/2+10>0,IF(L11<0,-(ABS(L11)-ABS(M11)-(N11+N12)/2+10),L11-ABS(M11)-(N11+N12)/2+10),0)),0) -> 12.9 | P11: 5 | R11: 1.4 | S11: =IF(AND(R11>0,R12>0),IF(OR(R11>10,R11<0,R12>10,R12<0),"Fehler",IF(ABS(P11)-ABS(Q11)-(R11+R12)/2+10>0,IF(P11<0,-(ABS(P11)-ABS(Q11)-(R11+R12)/2+10),P11-ABS(Q11)-(R11+R12)/2+10),0)),0) -> 13.55 | T11: 6 | V11: 2.8 | W11: =IF(AND(V11>0,V12>0),IF(OR(V11>10,V11<0,V12>10,V12<0),"Fehler",IF(ABS(T11)-ABS(U11)-(V11+V12)/2+10>0,IF(T11<0,-(ABS(T11)-ABS(U11)-(V11+V12)/2+10),T11-ABS(U11)-(V11+V12)/2+10),0)),0) -> 13.1 | X11: 6 | Z11: 8 | AA11: =IF(AND(Z11>0,Z12>0),IF(OR(Z11>10,Z11<0,Z12>10,Z12<0),"Fehler",IF(ABS(X11)-ABS(Y11)-(Z11+Z12)/2+10>0,IF(X11<0,-(ABS(X11)-ABS(Y11)-(Z11+Z12)/2+10),X11-ABS(Y11)-(Z11+Z12)/2+10),0)),0) -> 8 | AB11: =ABS(G11)+ABS(K11)+ABS(O11)+ABS(S11)+ABS(W11)+ABS(AA11) -> 72.95 | AF11: Boden | AG11: =IF(G30>1,1,0) -> 1
F12: 2.3 | J12: 3.4 | N12: 2 | R12: 1.5 | V12: 3 | Z12: 8 | AF12: pauschenpferd | AG12: =IF(K30>1,1,0) -> 1
A13: Marc Ormann | B13: =IF(A13>0,B11,"") -> MTV Boffzen | C13: =IF(A13<>"",VLOOKUP(A13,'Wertungszettel M1'!A$7:B$36,2,0),"") -> 04 | D13: 7 | F13: 2 | G13: =IF(AND(F13>0,F14>0),IF(OR(F13>10,F13<0,F14>10,F14<0),"Fehler",IF(ABS(D13)-ABS(E13)-(F13+F14)/2+10>0,IF(D13<0,-(ABS(D13)-ABS(E13)-(F13+F14)/2+10),D13-ABS(E13)-(F13+F14)/2+10),0)),0) -> 14.9 | H13: 7 | J13: 2.6 | K13: =IF(AND(J13>0,J14>0),IF(OR(J13>10,J13<0,J14>10,J14<0),"Fehler",IF(ABS(H13)-ABS(I13)-(J13+J14)/2+10>0,IF(H13<0,-(ABS(H13)-ABS(I13)-(J13+J14)/2+10),H13-ABS(I13)-(J13+J14)/2+10),0)),0) -> 14.3 | L13: 6 | N13: 2.2 | O13: =IF(AND(N13>0,N14>0),IF(OR(N13>10,N13<0,N14>10,N14<0),"Fehler",IF(ABS(L13)-ABS(M13)-(N13+N14)/2+10>0,IF(L13<0,-(ABS(L13)-ABS(M13)-(N13+N14)/2+10),L13-ABS(M13)-(N13+N14)/2+10),0)),0) -> 13.8 | P13: 7 | R13: 3.2 | S13: =IF(AND(R13>0,R14>0),IF(OR(R13>10,R13<0,R14>10,R14<0),"Fehler",IF(ABS(P13)-ABS(Q13)-(R13+R14)/2+10>0,IF(P13<0,-(ABS(P13)-ABS(Q13)-(R13+R14)/2+10),P13-ABS(Q13)-(R13+R14)/2+10),0)),0) -> 13.8 | T13: 7 | V13: 2.8 | W13: =IF(AND(V13>0,V14>0),IF(OR(V13>10,V13<0,V14>10,V14<0),"Fehler",IF(ABS(T13)-ABS(U13)-(V13+V14)/2+10>0,IF(T13<0,-(ABS(T13)-ABS(U13)-(V13+V14)/2+10),T13-ABS(U13)-(V13+V14)/2+10),0)),0) -> 14.15 | X13: 6 | Z13: 3.4 | AA13: =IF(AND(Z13>0,Z14>0),IF(OR(Z13>10,Z13<0,Z14>10,Z14<0),"Fehler",IF(ABS(X13)-ABS(Y13)-(Z13+Z14)/2+10>0,IF(X13<0,-(ABS(X13)-ABS(Y13)-(Z13+Z14)/2+10),X13-ABS(Y13)-(Z13+Z14)/2+10),0)),0) -> 12.45 | AB13: =ABS(G13)+ABS(K13)+ABS(O13)+ABS(S13)+ABS(W13)+ABS(AA13) -> 83.4 | AF13: ringe | AG13: =IF(O30>1,1,0) -> 1
F14: 2.2 | J14: 2.8 | N14: 2.2 | R14: 3.2 | V14: 2.9 | Z14: 3.7 | AF14: sprung | AG14: =IF(S30>1,1,0) -> 1
A15: Erik Schäfer | B15: =IF(A15>0,B13,"") -> MTV Boffzen | C15: =IF(A15<>"",VLOOKUP(A15,'Wertungszettel M1'!A$7:B$36,2,0),"") -> 05 | D15: 6 | F15: 2.7 | G15: =IF(AND(F15>0,F16>0),IF(OR(F15>10,F15<0,F16>10,F16<0),"Fehler",IF(ABS(D15)-ABS(E15)-(F15+F16)/2+10>0,IF(D15<0,-(ABS(D15)-ABS(E15)-(F15+F16)/2+10),D15-ABS(E15)-(F15+F16)/2+10),0)),0) -> 13.3 | H15: 6 | J15: 3.4 | K15: =IF(AND(J15>0,J16>0),IF(OR(J15>10,J15<0,J16>10,J16<0),"Fehler",IF(ABS(H15)-ABS(I15)-(J15+J16)/2+10>0,IF(H15<0,-(ABS(H15)-ABS(I15)-(J15+J16)/2+10),H15-ABS(I15)-(J15+J16)/2+10),0)),0) -> 12.65 | L15: 6 | N15: 2.7 | O15: =IF(AND(N15>0,N16>0),IF(OR(N15>10,N15<0,N16>10,N16<0),"Fehler",IF(ABS(L15)-ABS(M15)-(N15+N16)/2+10>0,IF(L15<0,-(ABS(L15)-ABS(M15)-(N15+N16)/2+10),L15-ABS(M15)-(N15+N16)/2+10),0)),0) -> 13.25 | P15: 7 | R15: 4 | S15: =IF(AND(R15>0,R16>0),IF(OR(R15>10,R15<0,R16>10,R16<0),"Fehler",IF(ABS(P15)-ABS(Q15)-(R15+R16)/2+10>0,IF(P15<0,-(ABS(P15)-ABS(Q15)-(R15+R16)/2+10),P15-ABS(Q15)-(R15+R16)/2+10),0)),0) -> 13 | T15: 6 | V15: 2.8 | W15: =IF(AND(V15>0,V16>0),IF(OR(V15>10,V15<0,V16>10,V16<0),"Fehler",IF(ABS(T15)-ABS(U15)-(V15+V16)/2+10>0,IF(T15<0,-(ABS(T15)-ABS(U15)-(V15+V16)/2+10),T15-ABS(U15)-(V15+V16)/2+10),0)),0) -> 13.05 | X15: 5 | Z15: 1.5 | AA15: =IF(AND(Z15>0,Z16>0),IF(OR(Z15>10,Z15<0,Z16>10,Z16<0),"Fehler",IF(ABS(X15)-ABS(Y15)-(Z15+Z16)/2+10>0,IF(X15<0,-(ABS(X15)-ABS(Y15)-(Z15+Z16)/2+10),X15-ABS(Y15)-(Z15+Z16)/2+10),0)),0) -> 13.5 | AB15: =ABS(G15)+ABS(K15)+ABS(O15)+ABS(S15)+ABS(W15)+ABS(AA15) -> 78.75 | AF15: Barren | AG15: =IF(W30>1,1,0) -> 1
F16: 2.7 | J16: 3.3 | N16: 2.8 | R16: 4 | V16: 3.1 | Z16: 1.5 | AF16: Reck | AG16: =IF(AA30>1,1,0) -> 1
A17: Emil Meisner | B17: =IF(A17>0,B15,"") -> MTV Boffzen | C17: =IF(A17<>"",VLOOKUP(A17,'Wertungszettel M1'!A$7:B$36,2,0),"") -> 06 | D17: 5 | F17: 2.6 | G17: =IF(AND(F17>0,F18>0),IF(OR(F17>10,F17<0,F18>10,F18<0),"Fehler",IF(ABS(D17)-ABS(E17)-(F17+F18)/2+10>0,IF(D17<0,-(ABS(D17)-ABS(E17)-(F17+F18)/2+10),D17-ABS(E17)-(F17+F18)/2+10),0)),0) -> 12.5 | H17: 5 | J17: 2 | K17: =IF(AND(J17>0,J18>0),IF(OR(J17>10,J17<0,J18>10,J18<0),"Fehler",IF(ABS(H17)-ABS(I17)-(J17+J18)/2+10>0,IF(H17<0,-(ABS(H17)-ABS(I17)-(J17+J18)/2+10),H17-ABS(I17)-(J17+J18)/2+10),0)),0) -> 13 | L17: 5 | M17: 0.5 | N17: 1.5 | O17: =IF(AND(N17>0,N18>0),IF(OR(N17>10,N17<0,N18>10,N18<0),"Fehler",IF(ABS(L17)-ABS(M17)-(N17+N18)/2+10>0,IF(L17<0,-(ABS(L17)-ABS(M17)-(N17+N18)/2+10),L17-ABS(M17)-(N17+N18)/2+10),0)),0) -> 13 | P17: 5 | R17: 1.8 | S17: =IF(AND(R17>0,R18>0),IF(OR(R17>10,R17<0,R18>10,R18<0),"Fehler",IF(ABS(P17)-ABS(Q17)-(R17+R18)/2+10>0,IF(P17<0,-(ABS(P17)-ABS(Q17)-(R17+R18)/2+10),P17-ABS(Q17)-(R17+R18)/2+10),0)),0) -> 13.25 | T17: 5 | V17: 2.2 | W17: =IF(AND(V17>0,V18>0),IF(OR(V17>10,V17<0,V18>10,V18<0),"Fehler",IF(ABS(T17)-ABS(U17)-(V17+V18)/2+10>0,IF(T17<0,-(ABS(T17)-ABS(U17)-(V17+V18)/2+10),T17-ABS(U17)-(V17+V18)/2+10),0)),0) -> 12.8 | X17: 5 | Z17: 2.3 | AA17: =IF(AND(Z17>0,Z18>0),IF(OR(Z17>10,Z17<0,Z18>10,Z18<0),"Fehler",IF(ABS(X17)-ABS(Y17)-(Z17+Z18)/2+10>0,IF(X17<0,-(ABS(X17)-ABS(Y17)-(Z17+Z18)/2+10),X17-ABS(Y17)-(Z17+Z18)/2+10),0)),0) -> 12.55 | AB17: =ABS(G17)+ABS(K17)+ABS(O17)+ABS(S17)+ABS(W17)+ABS(AA17) -> 77.1
F18: 2.4 | J18: 2 | N18: 1.5 | R18: 1.7 | V18: 2.2 | Z18: 2.6 | AF18: Gesamt | AG18: =SUM(AG11:AG17) -> 6
B19: =IF(A19>0,B17,"") ->  | C19: =IF(A19<>"",VLOOKUP(A19,'Wertungszettel M1'!A$7:B$36,2,0),"") ->  | G19: =IF(AND(F19>0,F20>0),IF(OR(F19>10,F19<0,F20>10,F20<0),"Fehler",IF(ABS(D19)-ABS(E19)-(F19+F20)/2+10>0,IF(D19<0,-(ABS(D19)-ABS(E19)-(F19+F20)/2+10),D19-ABS(E19)-(F19+F20)/2+10),0)),0) -> 0 | K19: =IF(AND(J19>0,J20>0),IF(OR(J19>10,J19<0,J20>10,J20<0),"Fehler",IF(ABS(H19)-ABS(I19)-(J19+J20)/2+10>0,IF(H19<0,-(ABS(H19)-ABS(I19)-(J19+J20)/2+10),H19-ABS(I19)-(J19+J20)/2+10),0)),0) -> 0 | O19: =IF(AND(N19>0,N20>0),IF(OR(N19>10,N19<0,N20>10,N20<0),"Fehler",IF(ABS(L19)-ABS(M19)-(N19+N20)/2+10>0,IF(L19<0,-(ABS(L19)-ABS(M19)-(N19+N20)/2+10),L19-ABS(M19)-(N19+N20)/2+10),0)),0) -> 0 | S19: =IF(AND(R19>0,R20>0),IF(OR(R19>10,R19<0,R20>10,R20<0),"Fehler",IF(ABS(P19)-ABS(Q19)-(R19+R20)/2+10>0,IF(P19<0,-(ABS(P19)-ABS(Q19)-(R19+R20)/2+10),P19-ABS(Q19)-(R19+R20)/2+10),0)),0) -> 0 | W19: =IF(AND(V19>0,V20>0),IF(OR(V19>10,V19<0,V20>10,V20<0),"Fehler",IF(ABS(T19)-ABS(U19)-(V19+V20)/2+10>0,IF(T19<0,-(ABS(T19)-ABS(U19)-(V19+V20)/2+10),T19-ABS(U19)-(V19+V20)/2+10),0)),0) -> 0 | AA19: =IF(AND(Z19>0,Z20>0),IF(OR(Z19>10,Z19<0,Z20>10,Z20<0),"Fehler",IF(ABS(X19)-ABS(Y19)-(Z19+Z20)/2+10>0,IF(X19<0,-(ABS(X19)-ABS(Y19)-(Z19+Z20)/2+10),X19-ABS(Y19)-(Z19+Z20)/2+10),0)),0) -> 0 | AB19: =ABS(G19)+ABS(K19)+ABS(O19)+ABS(S19)+ABS(W19)+ABS(AA19) -> 0
B21: =IF(A21>0,B19,"") ->  | C21: =IF(A21<>"",VLOOKUP(A21,'Wertungszettel M1'!A$7:B$36,2,0),"") ->  | G21: =IF(AND(F21>0,F22>0),IF(OR(F21>10,F21<0,F22>10,F22<0),"Fehler",IF(ABS(D21)-ABS(E21)-(F21+F22)/2+10>0,IF(D21<0,-(ABS(D21)-ABS(E21)-(F21+F22)/2+10),D21-ABS(E21)-(F21+F22)/2+10),0)),0) -> 0 | K21: =IF(AND(J21>0,J22>0),IF(OR(J21>10,J21<0,J22>10,J22<0),"Fehler",IF(ABS(H21)-ABS(I21)-(J21+J22)/2+10>0,IF(H21<0,-(ABS(H21)-ABS(I21)-(J21+J22)/2+10),H21-ABS(I21)-(J21+J22)/2+10),0)),0) -> 0 | O21: =IF(AND(N21>0,N22>0),IF(OR(N21>10,N21<0,N22>10,N22<0),"Fehler",IF(ABS(L21)-ABS(M21)-(N21+N22)/2+10>0,IF(L21<0,-(ABS(L21)-ABS(M21)-(N21+N22)/2+10),L21-ABS(M21)-(N21+N22)/2+10),0)),0) -> 0 | S21: =IF(AND(R21>0,R22>0),IF(OR(R21>10,R21<0,R22>10,R22<0),"Fehler",IF(ABS(P21)-ABS(Q21)-(R21+R22)/2+10>0,IF(P21<0,-(ABS(P21)-ABS(Q21)-(R21+R22)/2+10),P21-ABS(Q21)-(R21+R22)/2+10),0)),0) -> 0 | W21: =IF(AND(V21>0,V22>0),IF(OR(V21>10,V21<0,V22>10,V22<0),"Fehler",IF(ABS(T21)-ABS(U21)-(V21+V22)/2+10>0,IF(T21<0,-(ABS(T21)-ABS(U21)-(V21+V22)/2+10),T21-ABS(U21)-(V21+V22)/2+10),0)),0) -> 0 | AA21: =IF(AND(Z21>0,Z22>0),IF(OR(Z21>10,Z21<0,Z22>10,Z22<0),"Fehler",IF(ABS(X21)-ABS(Y21)-(Z21+Z22)/2+10>0,IF(X21<0,-(ABS(X21)-ABS(Y21)-(Z21+Z22)/2+10),X21-ABS(Y21)-(Z21+Z22)/2+10),0)),0) -> 0 | AB21: =ABS(G21)+ABS(K21)+ABS(O21)+ABS(S21)+ABS(W21)+ABS(AA21) -> 0
B23: =IF(A23>0,B21,"") ->  | C23: =IF(A23<>"",VLOOKUP(A23,'Wertungszettel M1'!A$7:B$36,2,0),"") ->  | G23: =IF(AND(F23>0,F24>0),IF(OR(F23>10,F23<0,F24>10,F24<0),"Fehler",IF(ABS(D23)-ABS(E23)-(F23+F24)/2+10>0,IF(D23<0,-(ABS(D23)-ABS(E23)-(F23+F24)/2+10),D23-ABS(E23)-(F23+F24)/2+10),0)),0) -> 0 | K23: =IF(AND(J23>0,J24>0),IF(OR(J23>10,J23<0,J24>10,J24<0),"Fehler",IF(ABS(H23)-ABS(I23)-(J23+J24)/2+10>0,IF(H23<0,-(ABS(H23)-ABS(I23)-(J23+J24)/2+10),H23-ABS(I23)-(J23+J24)/2+10),0)),0) -> 0 | O23: =IF(AND(N23>0,N24>0),IF(OR(N23>10,N23<0,N24>10,N24<0),"Fehler",IF(ABS(L23)-ABS(M23)-(N23+N24)/2+10>0,IF(L23<0,-(ABS(L23)-ABS(M23)-(N23+N24)/2+10),L23-ABS(M23)-(N23+N24)/2+10),0)),0) -> 0 | S23: =IF(AND(R23>0,R24>0),IF(OR(R23>10,R23<0,R24>10,R24<0),"Fehler",IF(ABS(P23)-ABS(Q23)-(R23+R24)/2+10>0,IF(P23<0,-(ABS(P23)-ABS(Q23)-(R23+R24)/2+10),P23-ABS(Q23)-(R23+R24)/2+10),0)),0) -> 0 | W23: =IF(AND(V23>0,V24>0),IF(OR(V23>10,V23<0,V24>10,V24<0),"Fehler",IF(ABS(T23)-ABS(U23)-(V23+V24)/2+10>0,IF(T23<0,-(ABS(T23)-ABS(U23)-(V23+V24)/2+10),T23-ABS(U23)-(V23+V24)/2+10),0)),0) -> 0 | AA23: =IF(AND(Z23>0,Z24>0),IF(OR(Z23>10,Z23<0,Z24>10,Z24<0),"Fehler",IF(ABS(X23)-ABS(Y23)-(Z23+Z24)/2+10>0,IF(X23<0,-(ABS(X23)-ABS(Y23)-(Z23+Z24)/2+10),X23-ABS(Y23)-(Z23+Z24)/2+10),0)),0) -> 0 | AB23: =ABS(G23)+ABS(K23)+ABS(O23)+ABS(S23)+ABS(W23)+ABS(AA23) -> 0
B25: =IF(A25>0,B23,"") ->  | C25: =IF(A25<>"",VLOOKUP(A25,'Wertungszettel M1'!A$7:B$36,2,0),"") ->  | G25: =IF(AND(F25>0,F26>0),IF(OR(F25>10,F25<0,F26>10,F26<0),"Fehler",IF(ABS(D25)-ABS(E25)-(F25+F26)/2+10>0,IF(D25<0,-(ABS(D25)-ABS(E25)-(F25+F26)/2+10),D25-ABS(E25)-(F25+F26)/2+10),0)),0) -> 0 | K25: =IF(AND(J25>0,J26>0),IF(OR(J25>10,J25<0,J26>10,J26<0),"Fehler",IF(ABS(H25)-ABS(I25)-(J25+J26)/2+10>0,IF(H25<0,-(ABS(H25)-ABS(I25)-(J25+J26)/2+10),H25-ABS(I25)-(J25+J26)/2+10),0)),0) -> 0 | O25: =IF(AND(N25>0,N26>0),IF(OR(N25>10,N25<0,N26>10,N26<0),"Fehler",IF(ABS(L25)-ABS(M25)-(N25+N26)/2+10>0,IF(L25<0,-(ABS(L25)-ABS(M25)-(N25+N26)/2+10),L25-ABS(M25)-(N25+N26)/2+10),0)),0) -> 0 | S25: =IF(AND(R25>0,R26>0),IF(OR(R25>10,R25<0,R26>10,R26<0),"Fehler",IF(ABS(P25)-ABS(Q25)-(R25+R26)/2+10>0,IF(P25<0,-(ABS(P25)-ABS(Q25)-(R25+R26)/2+10),P25-ABS(Q25)-(R25+R26)/2+10),0)),0) -> 0 | W25: =IF(AND(V25>0,V26>0),IF(OR(V25>10,V25<0,V26>10,V26<0),"Fehler",IF(ABS(T25)-ABS(U25)-(V25+V26)/2+10>0,IF(T25<0,-(ABS(T25)-ABS(U25)-(V25+V26)/2+10),T25-ABS(U25)-(V25+V26)/2+10),0)),0) -> 0 | AA25: =IF(AND(Z25>0,Z26>0),IF(OR(Z25>10,Z25<0,Z26>10,Z26<0),"Fehler",IF(ABS(X25)-ABS(Y25)-(Z25+Z26)/2+10>0,IF(X25<0,-(ABS(X25)-ABS(Y25)-(Z25+Z26)/2+10),X25-ABS(Y25)-(Z25+Z26)/2+10),0)),0) -> 0 | AB25: =ABS(G25)+ABS(K25)+ABS(O25)+ABS(S25)+ABS(W25)+ABS(AA25) -> 0
B27: =IF(A27>0,B25,"") ->  | C27: =IF(A27<>"",VLOOKUP(A27,'Wertungszettel M1'!A$7:B$36,2,0),"") ->  | G27: =IF(AND(F27>0,F28>0),IF(OR(F27>10,F27<0,F28>10,F28<0),"Fehler",IF(ABS(D27)-ABS(E27)-(F27+F28)/2+10>0,IF(D27<0,-(ABS(D27)-ABS(E27)-(F27+F28)/2+10),D27-ABS(E27)-(F27+F28)/2+10),0)),0) -> 0 | K27: =IF(AND(J27>0,J28>0),IF(OR(J27>10,J27<0,J28>10,J28<0),"Fehler",IF(ABS(H27)-ABS(I27)-(J27+J28)/2+10>0,IF(H27<0,-(ABS(H27)-ABS(I27)-(J27+J28)/2+10),H27-ABS(I27)-(J27+J28)/2+10),0)),0) -> 0 | O27: =IF(AND(N27>0,N28>0),IF(OR(N27>10,N27<0,N28>10,N28<0),"Fehler",IF(ABS(L27)-ABS(M27)-(N27+N28)/2+10>0,IF(L27<0,-(ABS(L27)-ABS(M27)-(N27+N28)/2+10),L27-ABS(M27)-(N27+N28)/2+10),0)),0) -> 0 | S27: =IF(AND(R27>0,R28>0),IF(OR(R27>10,R27<0,R28>10,R28<0),"Fehler",IF(ABS(P27)-ABS(Q27)-(R27+R28)/2+10>0,IF(P27<0,-(ABS(P27)-ABS(Q27)-(R27+R28)/2+10),P27-ABS(Q27)-(R27+R28)/2+10),0)),0) -> 0 | W27: =IF(AND(V27>0,V28>0),IF(OR(V27>10,V27<0,V28>10,V28<0),"Fehler",IF(ABS(T27)-ABS(U27)-(V27+V28)/2+10>0,IF(T27<0,-(ABS(T27)-ABS(U27)-(V27+V28)/2+10),T27-ABS(U27)-(V27+V28)/2+10),0)),0) -> 0 | AA27: =IF(AND(Z27>0,Z28>0),IF(OR(Z27>10,Z27<0,Z28>10,Z28<0),"Fehler",IF(ABS(X27)-ABS(Y27)-(Z27+Z28)/2+10>0,IF(X27<0,-(ABS(X27)-ABS(Y27)-(Z27+Z28)/2+10),X27-ABS(Y27)-(Z27+Z28)/2+10),0)),0) -> 0 | AB27: =ABS(G27)+ABS(K27)+ABS(O27)+ABS(S27)+ABS(W27)+ABS(AA27) -> 0
G30: =SUM(LARGE(G9:G28,1),LARGE(G9:G28,2),LARGE(G9:G28,3)) -> 40.9 | K30: =SUM(LARGE(K9:K28,1),LARGE(K9:K28,2),LARGE(K9:K28,3)) -> 40 | O30: =SUM(LARGE(O9:O28,1),LARGE(O9:O28,2),LARGE(O9:O28,3)) -> 40.05 | S30: =SUM(LARGE(S9:S28,1),LARGE(S9:S28,2),LARGE(S9:S28,3)) -> 40.6 | W30: =SUM(LARGE(W9:W28,1),LARGE(W9:W28,2),LARGE(W9:W28,3)) -> 40.3 | AA30: =SUM(LARGE(AA9:AA28,1),LARGE(AA9:AA28,2),LARGE(AA9:AA28,3)) -> 38.5 | AB30: =SUM(G30,K30,O30,S30,W30,AA30) -> 240.35

Sheet Einbeck 2
A1: Wettkampfbogen | M1: Datum: | O1: ='INFO Blatt'!B13 -> 2018-03-03
M3: Ort: | O3: ='INFO Blatt'!B11 -> Hehlen
N5: Liga: | O5: ='INFO Blatt'!B7 -> Schülerliga Süd
A7: Name | B7: Verein | C7: Jg | D7: Boden | H7: Pferd | L7: Ringe | P7: Sprung | T7: Barren | X7: Reck | AB7: Ges.
D8: D-Note | E8: Abzug OK | F8: E- Abzug | G8: Note | H8: D-Note | I8: Abzug OK | J8: E- Abzug | K8: Note | L8: D-Note | M8: Abzug OK | N8: E-Abzug | O8: Note | P8: D-Note | Q8: Abzug OK | R8: E-Abzug | S8: Note | T8: D-Note | U8: Abzug OK | V8: E-Abzug | W8: Note | X8: D-Note | Y8: Abzug OK | Z8: E-Abzug | AA8: Note
A9: Wiliam Lampe | B9: =Formeln!A10 -> Einbecker SV 2 | C9: =IF(A9<>"", VLOOKUP(A9,'Wertungszettel M6'!A$7:B$36,2,0),"") -> 07 | D9: 8 | F9: 2.4 | G9: =IF(AND(F9>0,F10>0),IF(OR(F9>10,F9<0,F10>10,F10<0),"Fehler",IF(ABS(D9)-ABS(E9)-(F9+F10)/2+10>0,IF(D9<0,-(ABS(D9)-ABS(E9)-(F9+F10)/2+10),D9-ABS(E9)-(F9+F10)/2+10),0)),0) -> 15.6 | H9: 6 | J9: 2.8 | K9: =IF(AND(J9>0,J10>0),IF(OR(J9>10,J9<0,J10>10,J10<0),"Fehler",IF(ABS(H9)-ABS(I9)-(J9+J10)/2+10>0,IF(H9<0,-(ABS(H9)-ABS(I9)-(J9+J10)/2+10),H9-ABS(I9)-(J9+J10)/2+10),0)),0) -> 13.15 | L9: 6 | N9: 1.2 | O9: =IF(AND(N9>0,N10>0),IF(OR(N9>10,N9<0,N10>10,N10<0),"Fehler",IF(ABS(L9)-ABS(M9)-(N9+N10)/2+10>0,IF(L9<0,-(ABS(L9)-ABS(M9)-(N9+N10)/2+10),L9-ABS(M9)-(N9+N10)/2+10),0)),0) -> 14.8 | P9: 7 | R9: 2.9 | S9: =IF(AND(R9>0,R10>0),IF(OR(R9>10,R9<0,R10>10,R10<0),"Fehler",IF(ABS(P9)-ABS(Q9)-(R9+R10)/2+10>0,IF(P9<0,-(ABS(P9)-ABS(Q9)-(R9+R10)/2+10),P9-ABS(Q9)-(R9+R10)/2+10),0)),0) -> 14.1 | T9: 6 | V9: 2.5 | W9: =IF(AND(V9>0,V10>0),IF(OR(V9>10,V9<0,V10>10,V10<0),"Fehler",IF(ABS(T9)-ABS(U9)-(V9+V10)/2+10>0,IF(T9<0,-(ABS(T9)-ABS(U9)-(V9+V10)/2+10),T9-ABS(U9)-(V9+V10)/2+10),0)),0) -> 13.65 | X9: 6 | Z9: 2.5 | AA9: =IF(AND(Z9>0,Z10>0),IF(OR(Z9>10,Z9<0,Z10>10,Z10<0),"Fehler",IF(ABS(X9)-ABS(Y9)-(Z9+Z10)/2+10>0,IF(X9<0,-(ABS(X9)-ABS(Y9)-(Z9+Z10)/2+10),X9-ABS(Y9)-(Z9+Z10)/2+10),0)),0) -> 13.5 | AB9: =ABS(G9)+ABS(K9)+ABS(O9)+ABS(S9)+ABS(W9)+ABS(AA9) -> 84.8
F10: 2.4 | J10: 2.9 | N10: 1.2 | R10: 2.9 | V10: 2.2 | Z10: 2.5
A11: Dominik Kumarasamy | B11: =IF(A11>0,B9,"") -> Einbecker SV 2 | C11: =IF(A11<>"", VLOOKUP(A11,'Wertungszettel M6'!A$7:B$36,2,0),"") -> 07 | D11: 8 | F11: 2.7 | G11: =IF(AND(F11>0,F12>0),IF(OR(F11>10,F11<0,F12>10,F12<0),"Fehler",IF(ABS(D11)-ABS(E11)-(F11+F12)/2+10>0,IF(D11<0,-(ABS(D11)-ABS(E11)-(F11+F12)/2+10),D11-ABS(E11)-(F11+F12)/2+10),0)),0) -> 15.3 | H11: 6 | J11: 2.1 | K11: =IF(AND(J11>0,J12>0),IF(OR(J11>10,J11<0,J12>10,J12<0),"Fehler",IF(ABS(H11)-ABS(I11)-(J11+J12)/2+10>0,IF(H11<0,-(ABS(H11)-ABS(I11)-(J11+J12)/2+10),H11-ABS(I11)-(J11+J12)/2+10),0)),0) -> 13.9 | L11: 6 | N11: 2.2 | O11: =IF(AND(N11>0,N12>0),IF(OR(N11>10,N11<0,N12>10,N12<0),"Fehler",IF(ABS(L11)-ABS(M11)-(N11+N12)/2+10>0,IF(L11<0,-(ABS(L11)-ABS(M11)-(N11+N12)/2+10),L11-ABS(M11)-(N11+N12)/2+10),0)),0) -> 13.8 | P11: 7 | R11: 1.5 | S11: =IF(AND(R11>0,R12>0),IF(OR(R11>10,R11<0,R12>10,R12<0),"Fehler",IF(ABS(P11)-ABS(Q11)-(R11+R12)/2+10>0,IF(P11<0,-(ABS(P11)-ABS(Q11)-(R11+R12)/2+10),P11-ABS(Q11)-(R11+R12)/2+10),0)),0) -> 15.5 | T11: 6 | V11: 1.5 | W11: =IF(AND(V11>0,V12>0),IF(OR(V11>10,V11<0,V12>10,V12<0),"Fehler",IF(ABS(T11)-ABS(U11)-(V11+V12)/2+10>0,IF(T11<0,-(ABS(T11)-ABS(U11)-(V11+V12)/2+10),T11-ABS(U11)-(V11+V12)/2+10),0)),0) -> 14.4 | X11: 6 | Z11: 1.9 | AA11: =IF(AND(Z11>0,Z12>0),IF(OR(Z11>10,Z11<0,Z12>10,Z12<0),"Fehler",IF(ABS(X11)-ABS(Y11)-(Z11+Z12)/2+10>0,IF(X11<0,-(ABS(X11)-ABS(Y11)-(Z11+Z12)/2+10),X11-ABS(Y11)-(Z11+Z12)/2+10),0)),0) -> 14 | AB11: =ABS(G11)+ABS(K11)+ABS(O11)+ABS(S11)+ABS(W11)+ABS(AA11) -> 86.9 | AF11: Boden | AG11: =IF(G30>1,1,0) -> 1
F12: 2.7 | J12: 2.1 | N12: 2.2 | R12: 1.5 | V12: 1.7 | Z12: 2.1 | AF12: pauschenpferd | AG12: =IF(K30>1,1,0) -> 1
A13: Leon Freye | B13: =IF(A13>0,B11,"") -> Einbecker SV 2 | C13: =IF(A13<>"", VLOOKUP(A13,'Wertungszettel M6'!A$7:B$36,2,0),"") -> 07 | D13: 8 | F13: 1.5 | G13: =IF(AND(F13>0,F14>0),IF(OR(F13>10,F13<0,F14>10,F14<0),"Fehler",IF(ABS(D13)-ABS(E13)-(F13+F14)/2+10>0,IF(D13<0,-(ABS(D13)-ABS(E13)-(F13+F14)/2+10),D13-ABS(E13)-(F13+F14)/2+10),0)),0) -> 16.45 | H13: 7 | J13: 2.5 | K13: =IF(AND(J13>0,J14>0),IF(OR(J13>10,J13<0,J14>10,J14<0),"Fehler",IF(ABS(H13)-ABS(I13)-(J13+J14)/2+10>0,IF(H13<0,-(ABS(H13)-ABS(I13)-(J13+J14)/2+10),H13-ABS(I13)-(J13+J14)/2+10),0)),0) -> 14.45 | L13: 7 | N13: 1.6 | O13: =IF(AND(N13>0,N14>0),IF(OR(N13>10,N13<0,N14>10,N14<0),"Fehler",IF(ABS(L13)-ABS(M13)-(N13+N14)/2+10>0,IF(L13<0,-(ABS(L13)-ABS(M13)-(N13+N14)/2+10),L13-ABS(M13)-(N13+N14)/2+10),0)),0) -> 15.4 | P13: 7 | R13: 2.4 | S13: =IF(AND(R13>0,R14>0),IF(OR(R13>10,R13<0,R14>10,R14<0),"Fehler",IF(ABS(P13)-ABS(Q13)-(R13+R14)/2+10>0,IF(P13<0,-(ABS(P13)-ABS(Q13)-(R13+R14)/2+10),P13-ABS(Q13)-(R13+R14)/2+10),0)),0) -> 14.6 | T13: 6 | V13: 1.5 | W13: =IF(AND(V13>0,V14>0),IF(OR(V13>10,V13<0,V14>10,V14<0),"Fehler",IF(ABS(T13)-ABS(U13)-(V13+V14)/2+10>0,IF(T13<0,-(ABS(T13)-ABS(U13)-(V13+V14)/2+10),T13-ABS(U13)-(V13+V14)/2+10),0)),0) -> 14.6 | X13: 6 | Z13: 0.6 | AA13: =IF(AND(Z13>0,Z14>0),IF(OR(Z13>10,Z13<0,Z14>10,Z14<0),"Fehler",IF(ABS(X13)-ABS(Y13)-(Z13+Z14)/2+10>0,IF(X13<0,-(ABS(X13)-ABS(Y13)-(Z13+Z14)/2+10),X13-ABS(Y13)-(Z13+Z14)/2+10),0)),0) -> 15.4 | AB13: =ABS(G13)+ABS(K13)+ABS(O13)+ABS(S13)+ABS(W13)+ABS(AA13) -> 90.9 | AF13: ringe | AG13: =IF(O30>1,1,0) -> 1
F14: 1.6 | J14: 2.6 | N14: 1.6 | R14: 2.4 | V14: 1.3 | Z14: 0.6 | AF14: sprung | AG14: =IF(S30>1,1,0) -> 1
A15: Johann Mickat | B15: =IF(A15>0,B13,"") -> Einbecker SV 2 | C15: =IF(A15<>"", VLOOKUP(A15,'Wertungszettel M6'!A$7:B$36,2,0),"") -> 06 | G15: =IF(AND(F15>0,F16>0),IF(OR(F15>10,F15<0,F16>10,F16<0),"Fehler",IF(ABS(D15)-ABS(E15)-(F15+F16)/2+10>0,IF(D15<0,-(ABS(D15)-ABS(E15)-(F15+F16)/2+10),D15-ABS(E15)-(F15+F16)/2+10),0)),0) -> 0 | H15: 7 | J15: 2.3 | K15: =IF(AND(J15>0,J16>0),IF(OR(J15>10,J15<0,J16>10,J16<0),"Fehler",IF(ABS(H15)-ABS(I15)-(J15+J16)/2+10>0,IF(H15<0,-(ABS(H15)-ABS(I15)-(J15+J16)/2+10),H15-ABS(I15)-(J15+J16)/2+10),0)),0) -> 14.75 | L15: 8 | N15: 2.2 | O15: =IF(AND(N15>0,N16>0),IF(OR(N15>10,N15<0,N16>10,N16<0),"Fehler",IF(ABS(L15)-ABS(M15)-(N15+N16)/2+10>0,IF(L15<0,-(ABS(L15)-ABS(M15)-(N15+N16)/2+10),L15-ABS(M15)-(N15+N16)/2+10),0)),0) -> 16 | P15: 7 | R15: 2.2 | S15: =IF(AND(R15>0,R16>0),IF(OR(R15>10,R15<0,R16>10,R16<0),"Fehler",IF(ABS(P15)-ABS(Q15)-(R15+R16)/2+10>0,IF(P15<0,-(ABS(P15)-ABS(Q15)-(R15+R16)/2+10),P15-ABS(Q15)-(R15+R16)/2+10),0)),0) -> 14.8 | T15: 6 | V15: 0.8 | W15: =IF(AND(V15>0,V16>0),IF(OR(V15>10,V15<0,V16>10,V16<0),"Fehler",IF(ABS(T15)-ABS(U15)-(V15+V16)/2+10>0,IF(T15<0,-(ABS(T15)-ABS(U15)-(V15+V16)/2+10),T15-ABS(U15)-(V15+V16)/2+10),0)),0) -> 15.1 | AA15: =IF(AND(Z15>0,Z16>0),IF(OR(Z15>10,Z15<0,Z16>10,Z16<0),"Fehler",IF(ABS(X15)-ABS(Y15)-(Z15+Z16)/2+10>0,IF(X15<0,-(ABS(X15)-ABS(Y15)-(Z15+Z16)/2+10),X15-ABS(Y15)-(Z15+Z16)/2+10),0)),0) -> 0 | AB15: =ABS(G15)+ABS(K15)+ABS(O15)+ABS(S15)+ABS(W15)+ABS(AA15) -> 60.65 | AF15: Barren | AG15: =IF(W30>1,1,0) -> 1
J16: 2.2 | N16: 1.8 | R16: 2.2 | V16: 1 | AF16: Reck | AG16: =IF(AA30>1,1,0) -> 1
A17: Lu Rosebrock | B17: =IF(A17>0,B15,"") -> Einbecker SV 2 | C17: =IF(A17<>"", VLOOKUP(A17,'Wertungszettel M6'!A$7:B$36,2,0),"") -> 06 | D17: 5 | F17: 4.3 | G17: =IF(AND(F17>0,F18>0),IF(OR(F17>10,F17<0,F18>10,F18<0),"Fehler",IF(ABS(D17)-ABS(E17)-(F17+F18)/2+10>0,IF(D17<0,-(ABS(D17)-ABS(E17)-(F17+F18)/2+10),D17-ABS(E17)-(F17+F18)/2+10),0)),0) -> 10.85 | H17: 5 | J17: 2.7 | K17: =IF(AND(J17>0,J18>0),IF(OR(J17>10,J17<0,J18>10,J18<0),"Fehler",IF(ABS(H17)-ABS(I17)-(J17+J18)/2+10>0,IF(H17<0,-(ABS(H17)-ABS(I17)-(J17+J18)/2+10),H17-ABS(I17)-(J17+J18)/2+10),0)),0) -> 12.4 | L17: 5 | N17: 2.2 | O17: =IF(AND(N17>0,N18>0),IF(OR(N17>10,N17<0,N18>10,N18<0),"Fehler",IF(ABS(L17)-ABS(M17)-(N17+N18)/2+10>0,IF(L17<0,-(ABS(L17)-ABS(M17)-(N17+N18)/2+10),L17-ABS(M17)-(N17+N18)/2+10),0)),0) -> 12.6 | P17: 5 | R17: 1.3 | S17: =IF(AND(R17>0,R18>0),IF(OR(R17>10,R17<0,R18>10,R18<0),"Fehler",IF(ABS(P17)-ABS(Q17)-(R17+R18)/2+10>0,IF(P17<0,-(ABS(P17)-ABS(Q17)-(R17+R18)/2+10),P17-ABS(Q17)-(R17+R18)/2+10),0)),0) -> 13.7 | T17: 6 | V17: 1.9 | W17: =IF(AND(V17>0,V18>0),IF(OR(V17>10,V17<0,V18>10,V18<0),"Fehler",IF(ABS(T17)-ABS(U17)-(V17+V18)/2+10>0,IF(T17<0,-(ABS(T17)-ABS(U17)-(V17+V18)/2+10),T17-ABS(U17)-(V17+V18)/2+10),0)),0) -> 13.95 | AA17: =IF(AND(Z17>0,Z18>0),IF(OR(Z17>10,Z17<0,Z18>10,Z18<0),"Fehler",IF(ABS(X17)-ABS(Y17)-(Z17+Z18)/2+10>0,IF(X17<0,-(ABS(X17)-ABS(Y17)-(Z17+Z18)/2+10),X17-ABS(Y17)-(Z17+Z18)/2+10),0)),0) -> 0 | AB17: =ABS(G17)+ABS(K17)+ABS(O17)+ABS(S17)+ABS(W17)+ABS(AA17) -> 63.5
F18: 4 | J18: 2.5 | N18: 2.6 | R18: 1.3 | V18: 2.2 | AF18: Gesamt | AG18: =SUM(AG11:AG17) -> 6
B19: =IF(A19>0,B17,"") ->  | C19: =IF(A19<>"", VLOOKUP(A19,'Wertungszettel M6'!A$7:B$36,2,0),"") ->  | G19: =IF(AND(F19>0,F20>0),IF(OR(F19>10,F19<0,F20>10,F20<0),"Fehler",IF(ABS(D19)-ABS(E19)-(F19+F20)/2+10>0,IF(D19<0,-(ABS(D19)-ABS(E19)-(F19+F20)/2+10),D19-ABS(E19)-(F19+F20)/2+10),0)),0) -> 0 | K19: =IF(AND(J19>0,J20>0),IF(OR(J19>10,J19<0,J20>10,J20<0),"Fehler",IF(ABS(H19)-ABS(I19)-(J19+J20)/2+10>0,IF(H19<0,-(ABS(H19)-ABS(I19)-(J19+J20)/2+10),H19-ABS(I19)-(J19+J20)/2+10),0)),0) -> 0 | O19: =IF(AND(N19>0,N20>0),IF(OR(N19>10,N19<0,N20>10,N20<0),"Fehler",IF(ABS(L19)-ABS(M19)-(N19+N20)/2+10>0,IF(L19<0,-(ABS(L19)-ABS(M19)-(N19+N20)/2+10),L19-ABS(M19)-(N19+N20)/2+10),0)),0) -> 0 | S19: =IF(AND(R19>0,R20>0),IF(OR(R19>10,R19<0,R20>10,R20<0),"Fehler",IF(ABS(P19)-ABS(Q19)-(R19+R20)/2+10>0,IF(P19<0,-(ABS(P19)-ABS(Q19)-(R19+R20)/2+10),P19-ABS(Q19)-(R19+R20)/2+10),0)),0) -> 0 | W19: =IF(AND(V19>0,V20>0),IF(OR(V19>10,V19<0,V20>10,V20<0),"Fehler",IF(ABS(T19)-ABS(U19)-(V19+V20)/2+10>0,IF(T19<0,-(ABS(T19)-ABS(U19)-(V19+V20)/2+10),T19-ABS(U19)-(V19+V20)/2+10),0)),0) -> 0 | AA19: =IF(AND(Z19>0,Z20>0),IF(OR(Z19>10,Z19<0,Z20>10,Z20<0),"Fehler",IF(ABS(X19)-ABS(Y19)-(Z19+Z20)/2+10>0,IF(X19<0,-(ABS(X19)-ABS(Y19)-(Z19+Z20)/2+10),X19-ABS(Y19)-(Z19+Z20)/2+10),0)),0) -> 0 | AB19: =ABS(G19)+ABS(K19)+ABS(O19)+ABS(S19)+ABS(W19)+ABS(AA19) -> 0
B21: =IF(A21>0,B19,"") ->  | C21: =IF(A21<>"", VLOOKUP(A21,'Wertungszettel M6'!A$7:B$36,2,0),"") ->  | G21: =IF(AND(F21>0,F22>0),IF(OR(F21>10,F21<0,F22>10,F22<0),"Fehler",IF(ABS(D21)-ABS(E21)-(F21+F22)/2+10>0,IF(D21<0,-(ABS(D21)-ABS(E21)-(F21+F22)/2+10),D21-ABS(E21)-(F21+F22)/2+10),0)),0) -> 0 | K21: =IF(AND(J21>0,J22>0),IF(OR(J21>10,J21<0,J22>10,J22<0),"Fehler",IF(ABS(H21)-ABS(I21)-(J21+J22)/2+10>0,IF(H21<0,-(ABS(H21)-ABS(I21)-(J21+J22)/2+10),H21-ABS(I21)-(J21+J22)/2+10),0)),0) -> 0 | O21: =IF(AND(N21>0,N22>0),IF(OR(N21>10,N21<0,N22>10,N22<0),"Fehler",IF(ABS(L21)-ABS(M21)-(N21+N22)/2+10>0,IF(L21<0,-(ABS(L21)-ABS(M21)-(N21+N22)/2+10),L21-ABS(M21)-(N21+N22)/2+10),0)),0) -> 0 | S21: =IF(AND(R21>0,R22>0),IF(OR(R21>10,R21<0,R22>10,R22<0),"Fehler",IF(ABS(P21)-ABS(Q21)-(R21+R22)/2+10>0,IF(P21<0,-(ABS(P21)-ABS(Q21)-(R21+R22)/2+10),P21-ABS(Q21)-(R21+R22)/2+10),0)),0) -> 0 | W21: =IF(AND(V21>0,V22>0),IF(OR(V21>10,V21<0,V22>10,V22<0),"Fehler",IF(ABS(T21)-ABS(U21)-(V21+V22)/2+10>0,IF(T21<0,-(ABS(T21)-ABS(U21)-(V21+V22)/2+10),T21-ABS(U21)-(V21+V22)/2+10),0)),0) -> 0 | AA21: =IF(AND(Z21>0,Z22>0),IF(OR(Z21>10,Z21<0,Z22>10,Z22<0),"Fehler",IF(ABS(X21)-ABS(Y21)-(Z21+Z22)/2+10>0,IF(X21<0,-(ABS(X21)-ABS(Y21)-(Z21+Z22)/2+10),X21-ABS(Y21)-(Z21+Z22)/2+10),0)),0) -> 0 | AB21: =ABS(G21)+ABS(K21)+ABS(O21)+ABS(S21)+ABS(W21)+ABS(AA21) -> 0
B23: =IF(A23>0,B21,"") ->  | C23: =IF(A23<>"", VLOOKUP(A23,'Wertungszettel M6'!A$7:B$36,2,0),"") ->  | G23: =IF(AND(F23>0,F24>0),IF(OR(F23>10,F23<0,F24>10,F24<0),"Fehler",IF(ABS(D23)-ABS(E23)-(F23+F24)/2+10>0,IF(D23<0,-(ABS(D23)-ABS(E23)-(F23+F24)/2+10),D23-ABS(E23)-(F23+F24)/2+10),0)),0) -> 0 | K23: =IF(AND(J23>0,J24>0),IF(OR(J23>10,J23<0,J24>10,J24<0),"Fehler",IF(ABS(H23)-ABS(I23)-(J23+J24)/2+10>0,IF(H23<0,-(ABS(H23)-ABS(I23)-(J23+J24)/2+10),H23-ABS(I23)-(J23+J24)/2+10),0)),0) -> 0 | O23: =IF(AND(N23>0,N24>0),IF(OR(N23>10,N23<0,N24>10,N24<0),"Fehler",IF(ABS(L23)-ABS(M23)-(N23+N24)/2+10>0,IF(L23<0,-(ABS(L23)-ABS(M23)-(N23+N24)/2+10),L23-ABS(M23)-(N23+N24)/2+10),0)),0) -> 0 | S23: =IF(AND(R23>0,R24>0),IF(OR(R23>10,R23<0,R24>10,R24<0),"Fehler",IF(ABS(P23)-ABS(Q23)-(R23+R24)/2+10>0,IF(P23<0,-(ABS(P23)-ABS(Q23)-(R23+R24)/2+10),P23-ABS(Q23)-(R23+R24)/2+10),0)),0) -> 0 | W23: =IF(AND(V23>0,V24>0),IF(OR(V23>10,V23<0,V24>10,V24<0),"Fehler",IF(ABS(T23)-ABS(U23)-(V23+V24)/2+10>0,IF(T23<0,-(ABS(T23)-ABS(U23)-(V23+V24)/2+10),T23-ABS(U23)-(V23+V24)/2+10),0)),0) -> 0 | AA23: =IF(AND(Z23>0,Z24>0),IF(OR(Z23>10,Z23<0,Z24>10,Z24<0),"Fehler",IF(ABS(X23)-ABS(Y23)-(Z23+Z24)/2+10>0,IF(X23<0,-(ABS(X23)-ABS(Y23)-(Z23+Z24)/2+10),X23-ABS(Y23)-(Z23+Z24)/2+10),0)),0) -> 0 | AB23: =ABS(G23)+ABS(K23)+ABS(O23)+ABS(S23)+ABS(W23)+ABS(AA23) -> 0
B25: =IF(A25>0,B23,"") ->  | C25: =IF(A25<>"", VLOOKUP(A25,'Wertungszettel M6'!A$7:B$36,2,0),"") ->  | G25: =IF(AND(F25>0,F26>0),IF(OR(F25>10,F25<0,F26>10,F26<0),"Fehler",IF(ABS(D25)-ABS(E25)-(F25+F26)/2+10>0,IF(D25<0,-(ABS(D25)-ABS(E25)-(F25+F26)/2+10),D25-ABS(E25)-(F25+F26)/2+10),0)),0) -> 0 | K25: =IF(AND(J25>0,J26>0),IF(OR(J25>10,J25<0,J26>10,J26<0),"Fehler",IF(ABS(H25)-ABS(I25)-(J25+J26)/2+10>0,IF(H25<0,-(ABS(H25)-ABS(I25)-(J25+J26)/2+10),H25-ABS(I25)-(J25+J26)/2+10),0)),0) -> 0 | O25: =IF(AND(N25>0,N26>0),IF(OR(N25>10,N25<0,N26>10,N26<0),"Fehler",IF(ABS(L25)-ABS(M25)-(N25+N26)/2+10>0,IF(L25<0,-(ABS(L25)-ABS(M25)-(N25+N26)/2+10),L25-ABS(M25)-(N25+N26)/2+10),0)),0) -> 0 | S25: =IF(AND(R25>0,R26>0),IF(OR(R25>10,R25<0,R26>10,R26<0),"Fehler",IF(ABS(P25)-ABS(Q25)-(R25+R26)/2+10>0,IF(P25<0,-(ABS(P25)-ABS(Q25)-(R25+R26)/2+10),P25-ABS(Q25)-(R25+R26)/2+10),0)),0) -> 0 | W25: =IF(AND(V25>0,V26>0),IF(OR(V25>10,V25<0,V26>10,V26<0),"Fehler",IF(ABS(T25)-ABS(U25)-(V25+V26)/2+10>0,IF(T25<0,-(ABS(T25)-ABS(U25)-(V25+V26)/2+10),T25-ABS(U25)-(V25+V26)/2+10),0)),0) -> 0 | AA25: =IF(AND(Z25>0,Z26>0),IF(OR(Z25>10,Z25<0,Z26>10,Z26<0),"Fehler",IF(ABS(X25)-ABS(Y25)-(Z25+Z26)/2+10>0,IF(X25<0,-(ABS(X25)-ABS(Y25)-(Z25+Z26)/2+10),X25-ABS(Y25)-(Z25+Z26)/2+10),0)),0) -> 0 | AB25: =ABS(G25)+ABS(K25)+ABS(O25)+ABS(S25)+ABS(W25)+ABS(AA25) -> 0
B27: =IF(A27>0,B25,"") ->  | C27: =IF(A27<>"", VLOOKUP(A27,'Wertungszettel M6'!A$7:B$36,2,0),"") ->  | G27: =IF(AND(F27>0,F28>0),IF(OR(F27>10,F27<0,F28>10,F28<0),"Fehler",IF(ABS(D27)-ABS(E27)-(F27+F28)/2+10>0,IF(D27<0,-(ABS(D27)-ABS(E27)-(F27+F28)/2+10),D27-ABS(E27)-(F27+F28)/2+10),0)),0) -> 0 | K27: =IF(AND(J27>0,J28>0),IF(OR(J27>10,J27<0,J28>10,J28<0),"Fehler",IF(ABS(H27)-ABS(I27)-(J27+J28)/2+10>0,IF(H27<0,-(ABS(H27)-ABS(I27)-(J27+J28)/2+10),H27-ABS(I27)-(J27+J28)/2+10),0)),0) -> 0 | O27: =IF(AND(N27>0,N28>0),IF(OR(N27>10,N27<0,N28>10,N28<0),"Fehler",IF(ABS(L27)-ABS(M27)-(N27+N28)/2+10>0,IF(L27<0,-(ABS(L27)-ABS(M27)-(N27+N28)/2+10),L27-ABS(M27)-(N27+N28)/2+10),0)),0) -> 0 | S27: =IF(AND(R27>0,R28>0),IF(OR(R27>10,R27<0,R28>10,R28<0),"Fehler",IF(ABS(P27)-ABS(Q27)-(R27+R28)/2+10>0,IF(P27<0,-(ABS(P27)-ABS(Q27)-(R27+R28)/2+10),P27-ABS(Q27)-(R27+R28)/2+10),0)),0) -> 0 | W27: =IF(AND(V27>0,V28>0),IF(OR(V27>10,V27<0,V28>10,V28<0),"Fehler",IF(ABS(T27)-ABS(U27)-(V27+V28)/2+10>0,IF(T27<0,-(ABS(T27)-ABS(U27)-(V27+V28)/2+10),T27-ABS(U27)-(V27+V28)/2+10),0)),0) -> 0 | AA27: =IF(AND(Z27>0,Z28>0),IF(OR(Z27>10,Z27<0,Z28>10,Z28<0),"Fehler",IF(ABS(X27)-ABS(Y27)-(Z27+Z28)/2+10>0,IF(X27<0,-(ABS(X27)-ABS(Y27)-(Z27+Z28)/2+10),X27-ABS(Y27)-(Z27+Z28)/2+10),0)),0) -> 0 | AB27: =ABS(G27)+ABS(K27)+ABS(O27)+ABS(S27)+ABS(W27)+ABS(AA27) -> 0
G30: =SUM(LARGE(G9:G28,1),LARGE(G9:G28,2),LARGE(G9:G28,3)) -> 47.35 | K30: =SUM(LARGE(K9:K28,1),LARGE(K9:K28,2),LARGE(K9:K28,3)) -> 43.1 | O30: =SUM(LARGE(O9:O28,1),LARGE(O9:O28,2),LARGE(O9:O28,3)) -> 46.2 | S30: =SUM(LARGE(S9:S28,1),LARGE(S9:S28,2),LARGE(S9:S28,3)) -> 44.9 | W30: =SUM(LARGE(W9:W28,1),LARGE(W9:W28,2),LARGE(W9:W28,3)) -> 44.1 | AA30: =SUM(LARGE(AA9:AA28,1),LARGE(AA9:AA28,2),LARGE(AA9:AA28,3)) -> 42.9 | AB30: =SUM(G30,K30,O30,S30,W30,AA30) -> 268.55

Sheet TG Hehlen Dielmissen
A1: Wettkampfbogen | M1: Datum: | O1: ='INFO Blatt'!B13 -> 2018-03-03
M3: Ort: | O3: ='INFO Blatt'!B11 -> Hehlen
N5: Liga: | O5: ='INFO Blatt'!B7 -> Schülerliga Süd
A7: Name | B7: Verein | C7: Jg | D7: Boden | H7: Pferd | L7: Ringe | P7: Sprung | T7: Barren | X7: Reck | AB7: Ges.
D8: D-Note | E8: Abzug OK | F8: E- Abzug | G8: Note | H8: D-Note | I8: Abzug OK | J8: E- Abzug | K8: Note | L8: D-Note | M8: Abzug OK | N8: E-Abzug | O8: Note | P8: D-Note | Q8: Abzug OK | R8: E-Abzug | S8: Note | T8: D-Note | U8: Abzug OK | V8: E-Abzug | W8: Note | X8: D-Note | Y8: Abzug OK | Z8: E-Abzug | AA8: Note
A9: Viktor Brauer | B9: =Formeln!A11 -> TG Hehlen Dielmissen | C9: =IF(A9<>"", VLOOKUP(A9,'Wertungszettel M7'!A$7:B$36,2,0),"") -> 07 | D9: 5 | F9: 1.2 | G9: =IF(AND(F9>0,F10>0),IF(OR(F9>10,F9<0,F10>10,F10<0),"Fehler",IF(ABS(D9)-ABS(E9)-(F9+F10)/2+10>0,IF(D9<0,-(ABS(D9)-ABS(E9)-(F9+F10)/2+10),D9-ABS(E9)-(F9+F10)/2+10),0)),0) -> 13.8 | H9: 5 | J9: 2.9 | K9: =IF(AND(J9>0,J10>0),IF(OR(J9>10,J9<0,J10>10,J10<0),"Fehler",IF(ABS(H9)-ABS(I9)-(J9+J10)/2+10>0,IF(H9<0,-(ABS(H9)-ABS(I9)-(J9+J10)/2+10),H9-ABS(I9)-(J9+J10)/2+10),0)),0) -> 12.1 | L9: 5 | N9: 2.1 | O9: =IF(AND(N9>0,N10>0),IF(OR(N9>10,N9<0,N10>10,N10<0),"Fehler",IF(ABS(L9)-ABS(M9)-(N9+N10)/2+10>0,IF(L9<0,-(ABS(L9)-ABS(M9)-(N9+N10)/2+10),L9-ABS(M9)-(N9+N10)/2+10),0)),0) -> 13 | P9: 5 | R9: 1 | S9: =IF(AND(R9>0,R10>0),IF(OR(R9>10,R9<0,R10>10,R10<0),"Fehler",IF(ABS(P9)-ABS(Q9)-(R9+R10)/2+10>0,IF(P9<0,-(ABS(P9)-ABS(Q9)-(R9+R10)/2+10),P9-ABS(Q9)-(R9+R10)/2+10),0)),0) -> 14 | T9: 5 | V9: 3.8 | W9: =IF(AND(V9>0,V10>0),IF(OR(V9>10,V9<0,V10>10,V10<0),"Fehler",IF(ABS(T9)-ABS(U9)-(V9+V10)/2+10>0,IF(T9<0,-(ABS(T9)-ABS(U9)-(V9+V10)/2+10),T9-ABS(U9)-(V9+V10)/2+10),0)),0) -> 11.1 | X9: 5 | Z9: 2.6 | AA9: =IF(AND(Z9>0,Z10>0),IF(OR(Z9>10,Z9<0,Z10>10,Z10<0),"Fehler",IF(ABS(X9)-ABS(Y9)-(Z9+Z10)/2+10>0,IF(X9<0,-(ABS(X9)-ABS(Y9)-(Z9+Z10)/2+10),X9-ABS(Y9)-(Z9+Z10)/2+10),0)),0) -> 12.25 | AB9: =ABS(G9)+ABS(K9)+ABS(O9)+ABS(S9)+ABS(W9)+ABS(AA9) -> 76.25
F10: 1.2 | J10: 2.9 | N10: 1.9 | R10: 1 | V10: 4 | Z10: 2.9
A11: Norwin Eilers | B11: =IF(A11>0,B9,"") -> TG Hehlen Dielmissen | C11: =IF(A11<>"", VLOOKUP(A11,'Wertungszettel M7'!A$7:B$36,2,0),"") -> 07 | D11: 5 | F11: 1.8 | G11: =IF(AND(F11>0,F12>0),IF(OR(F11>10,F11<0,F12>10,F12<0),"Fehler",IF(ABS(D11)-ABS(E11)-(F11+F12)/2+10>0,IF(D11<0,-(ABS(D11)-ABS(E11)-(F11+F12)/2+10),D11-ABS(E11)-(F11+F12)/2+10),0)),0) -> 13.1 | H11: 5 | J11: 3.4 | K11: =IF(AND(J11>0,J12>0),IF(OR(J11>10,J11<0,J12>10,J12<0),"Fehler",IF(ABS(H11)-ABS(I11)-(J11+J12)/2+10>0,IF(H11<0,-(ABS(H11)-ABS(I11)-(J11+J12)/2+10),H11-ABS(I11)-(J11+J12)/2+10),0)),0) -> 11.8 | L11: 6 | M11: 0.5 | N11: 2.6 | O11: =IF(AND(N11>0,N12>0),IF(OR(N11>10,N11<0,N12>10,N12<0),"Fehler",IF(ABS(L11)-ABS(M11)-(N11+N12)/2+10>0,IF(L11<0,-(ABS(L11)-ABS(M11)-(N11+N12)/2+10),L11-ABS(M11)-(N11+N12)/2+10),0)),0) -> 12.9 | P11: 5 | R11: 1.2 | S11: =IF(AND(R11>0,R12>0),IF(OR(R11>10,R11<0,R12>10,R12<0),"Fehler",IF(ABS(P11)-ABS(Q11)-(R11+R12)/2+10>0,IF(P11<0,-(ABS(P11)-ABS(Q11)-(R11+R12)/2+10),P11-ABS(Q11)-(R11+R12)/2+10),0)),0) -> 13.8 | T11: 5 | V11: 4.1 | W11: =IF(AND(V11>0,V12>0),IF(OR(V11>10,V11<0,V12>10,V12<0),"Fehler",IF(ABS(T11)-ABS(U11)-(V11+V12)/2+10>0,IF(T11<0,-(ABS(T11)-ABS(U11)-(V11+V12)/2+10),T11-ABS(U11)-(V11+V12)/2+10),0)),0) -> 11.1 | X11: 5 | Z11: 2.4 | AA11: =IF(AND(Z11>0,Z12>0),IF(OR(Z11>10,Z11<0,Z12>10,Z12<0),"Fehler",IF(ABS(X11)-ABS(Y11)-(Z11+Z12)/2+10>0,IF(X11<0,-(ABS(X11)-ABS(Y11)-(Z11+Z12)/2+10),X11-ABS(Y11)-(Z11+Z12)/2+10),0)),0) -> 12.6 | AB11: =ABS(G11)+ABS(K11)+ABS(O11)+ABS(S11)+ABS(W11)+ABS(AA11) -> 75.3 | AF11: Boden | AG11: =IF(G30>1,1,0) -> 1
F12: 2 | J12: 3 | N12: 2.6 | R12: 1.2 | V12: 3.7 | Z12: 2.4 | AF12: pauschenpferd | AG12: =IF(K30>1,1,0) -> 1
A13: Thore Gruppe | B13: =IF(A13>0,B11,"") -> TG Hehlen Dielmissen | C13: =IF(A13<>"", VLOOKUP(A13,'Wertungszettel M7'!A$7:B$36,2,0),"") -> 07 | D13: 5 | F13: 2.7 | G13: =IF(AND(F13>0,F14>0),IF(OR(F13>10,F13<0,F14>10,F14<0),"Fehler",IF(ABS(D13)-ABS(E13)-(F13+F14)/2+10>0,IF(D13<0,-(ABS(D13)-ABS(E13)-(F13+F14)/2+10),D13-ABS(E13)-(F13+F14)/2+10),0)),0) -> 12.4 | H13: 5 | J13: 4.2 | K13: =IF(AND(J13>0,J14>0),IF(OR(J13>10,J13<0,J14>10,J14<0),"Fehler",IF(ABS(H13)-ABS(I13)-(J13+J14)/2+10>0,IF(H13<0,-(ABS(H13)-ABS(I13)-(J13+J14)/2+10),H13-ABS(I13)-(J13+J14)/2+10),0)),0) -> 10.8 | L13: 5 | M13: 0.5 | N13: 2.3 | O13: =IF(AND(N13>0,N14>0),IF(OR(N13>10,N13<0,N14>10,N14<0),"Fehler",IF(ABS(L13)-ABS(M13)-(N13+N14)/2+10>0,IF(L13<0,-(ABS(L13)-ABS(M13)-(N13+N14)/2+10),L13-ABS(M13)-(N13+N14)/2+10),0)),0) -> 12.2 | P13: 5 | R13: 1.4 | S13: =IF(AND(R13>0,R14>0),IF(OR(R13>10,R13<0,R14>10,R14<0),"Fehler",IF(ABS(P13)-ABS(Q13)-(R13+R14)/2+10>0,IF(P13<0,-(ABS(P13)-ABS(Q13)-(R13+R14)/2+10),P13-ABS(Q13)-(R13+R14)/2+10),0)),0) -> 13.6 | T13: 5 | V13: 4 | W13: =IF(AND(V13>0,V14>0),IF(OR(V13>10,V13<0,V14>10,V14<0),"Fehler",IF(ABS(T13)-ABS(U13)-(V13+V14)/2+10>0,IF(T13<0,-(ABS(T13)-ABS(U13)-(V13+V14)/2+10),T13-ABS(U13)-(V13+V14)/2+10),0)),0) -> 11.25 | X13: 5 | Z13: 2.1 | AA13: =IF(AND(Z13>0,Z14>0),IF(OR(Z13>10,Z13<0,Z14>10,Z14<0),"Fehler",IF(ABS(X13)-ABS(Y13)-(Z13+Z14)/2+10>0,IF(X13<0,-(ABS(X13)-ABS(Y13)-(Z13+Z14)/2+10),X13-ABS(Y13)-(Z13+Z14)/2+10),0)),0) -> 12.7 | AB13: =ABS(G13)+ABS(K13)+ABS(O13)+ABS(S13)+ABS(W13)+ABS(AA13) -> 72.95 | AF13: ringe | AG13: =IF(O30>1,1,0) -> 1
F14: 2.5 | J14: 4.2 | N14: 2.3 | R14: 1.4 | V14: 3.5 | Z14: 2.5 | AF14: sprung | AG14: =IF(S30>1,1,0) -> 1
A15: Jakob Kammel | B15: =IF(A15>0,B13,"") -> TG Hehlen Dielmissen | C15: =IF(A15<>"", VLOOKUP(A15,'Wertungszettel M7'!A$7:B$36,2,0),"") -> 07 | G15: =IF(AND(F15>0,F16>0),IF(OR(F15>10,F15<0,F16>10,F16<0),"Fehler",IF(ABS(D15)-ABS(E15)-(F15+F16)/2+10>0,IF(D15<0,-(ABS(D15)-ABS(E15)-(F15+F16)/2+10),D15-ABS(E15)-(F15+F16)/2+10),0)),0) -> 0 | K15: =IF(AND(J15>0,J16>0),IF(OR(J15>10,J15<0,J16>10,J16<0),"Fehler",IF(ABS(H15)-ABS(I15)-(J15+J16)/2+10>0,IF(H15<0,-(ABS(H15)-ABS(I15)-(J15+J16)/2+10),H15-ABS(I15)-(J15+J16)/2+10),0)),0) -> 0 | O15: =IF(AND(N15>0,N16>0),IF(OR(N15>10,N15<0,N16>10,N16<0),"Fehler",IF(ABS(L15)-ABS(M15)-(N15+N16)/2+10>0,IF(L15<0,-(ABS(L15)-ABS(M15)-(N15+N16)/2+10),L15-ABS(M15)-(N15+N16)/2+10),0)),0) -> 0 | S15: =IF(AND(R15>0,R16>0),IF(OR(R15>10,R15<0,R16>10,R16<0),"Fehler",IF(ABS(P15)-ABS(Q15)-(R15+R16)/2+10>0,IF(P15<0,-(ABS(P15)-ABS(Q15)-(R15+R16)/2+10),P15-ABS(Q15)-(R15+R16)/2+10),0)),0) -> 0 | W15: =IF(AND(V15>0,V16>0),IF(OR(V15>10,V15<0,V16>10,V16<0),"Fehler",IF(ABS(T15)-ABS(U15)-(V15+V16)/2+10>0,IF(T15<0,-(ABS(T15)-ABS(U15)-(V15+V16)/2+10),T15-ABS(U15)-(V15+V16)/2+10),0)),0) -> 0 | AA15: =IF(AND(Z15>0,Z16>0),IF(OR(Z15>10,Z15<0,Z16>10,Z16<0),"Fehler",IF(ABS(X15)-ABS(Y15)-(Z15+Z16)/2+10>0,IF(X15<0,-(ABS(X15)-ABS(Y15)-(Z15+Z16)/2+10),X15-ABS(Y15)-(Z15+Z16)/2+10),0)),0) -> 0 | AB15: =ABS(G15)+ABS(K15)+ABS(O15)+ABS(S15)+ABS(W15)+ABS(AA15) -> 0 | AF15: Barren | AG15: =IF(W30>1,1,0) -> 1
AF16: Reck | AG16: =IF(AA30>1,1,0) -> 1
A17: Luca Puls | B17: =IF(A17>0,B15,"") -> TG Hehlen Dielmissen | C17: =IF(A17<>"", VLOOKUP(A17,'Wertungszettel M7'!A$7:B$36,2,0),"") -> 07 | G17: =IF(AND(F17>0,F18>0),IF(OR(F17>10,F17<0,F18>10,F18<0),"Fehler",IF(ABS(D17)-ABS(E17)-(F17+F18)/2+10>0,IF(D17<0,-(ABS(D17)-ABS(E17)-(F17+F18)/2+10),D17-ABS(E17)-(F17+F18)/2+10),0)),0) -> 0 | K17: =IF(AND(J17>0,J18>0),IF(OR(J17>10,J17<0,J18>10,J18<0),"Fehler",IF(ABS(H17)-ABS(I17)-(J17+J18)/2+10>0,IF(H17<0,-(ABS(H17)-ABS(I17)-(J17+J18)/2+10),H17-ABS(I17)-(J17+J18)/2+10),0)),0) -> 0 | O17: =IF(AND(N17>0,N18>0),IF(OR(N17>10,N17<0,N18>10,N18<0),"Fehler",IF(ABS(L17)-ABS(M17)-(N17+N18)/2+10>0,IF(L17<0,-(ABS(L17)-ABS(M17)-(N17+N18)/2+10),L17-ABS(M17)-(N17+N18)/2+10),0)),0) -> 0 | S17: =IF(AND(R17>0,R18>0),IF(OR(R17>10,R17<0,R18>10,R18<0),"Fehler",IF(ABS(P17)-ABS(Q17)-(R17+R18)/2+10>0,IF(P17<0,-(ABS(P17)-ABS(Q17)-(R17+R18)/2+10),P17-ABS(Q17)-(R17+R18)/2+10),0)),0) -> 0 | W17: =IF(AND(V17>0,V18>0),IF(OR(V17>10,V17<0,V18>10,V18<0),"Fehler",IF(ABS(T17)-ABS(U17)-(V17+V18)/2+10>0,IF(T17<0,-(ABS(T17)-ABS(U17)-(V17+V18)/2+10),T17-ABS(U17)-(V17+V18)/2+10),0)),0) -> 0 | AA17: =IF(AND(Z17>0,Z18>0),IF(OR(Z17>10,Z17<0,Z18>10,Z18<0),"Fehler",IF(ABS(X17)-ABS(Y17)-(Z17+Z18)/2+10>0,IF(X17<0,-(ABS(X17)-ABS(Y17)-(Z17+Z18)/2+10),X17-ABS(Y17)-(Z17+Z18)/2+10),0)),0) -> 0 | AB17: =ABS(G17)+ABS(K17)+ABS(O17)+ABS(S17)+ABS(W17)+ABS(AA17) -> 0
AF18: Gesamt | AG18: =SUM(AG11:AG17) -> 6
A19: Yvo Vehling | B19: =IF(A19>0,B17,"") -> TG Hehlen Dielmissen | C19: =IF(A19<>"", VLOOKUP(A19,'Wertungszettel M7'!A$7:B$36,2,0),"") -> 07 | D19: 5 | F19: 0.7 | G19: =IF(AND(F19>0,F20>0),IF(OR(F19>10,F19<0,F20>10,F20<0),"Fehler",IF(ABS(D19)-ABS(E19)-(F19+F20)/2+10>0,IF(D19<0,-(ABS(D19)-ABS(E19)-(F19+F20)/2+10),D19-ABS(E19)-(F19+F20)/2+10),0)),0) -> 14.2 | H19: 5 | J19: 2.5 | K19: =IF(AND(J19>0,J20>0),IF(OR(J19>10,J19<0,J20>10,J20<0),"Fehler",IF(ABS(H19)-ABS(I19)-(J19+J20)/2+10>0,IF(H19<0,-(ABS(H19)-ABS(I19)-(J19+J20)/2+10),H19-ABS(I19)-(J19+J20)/2+10),0)),0) -> 12.5 | L19: 5 | M19: 0.5 | N19: 2.6 | O19: =IF(AND(N19>0,N20>0),IF(OR(N19>10,N19<0,N20>10,N20<0),"Fehler",IF(ABS(L19)-ABS(M19)-(N19+N20)/2+10>0,IF(L19<0,-(ABS(L19)-ABS(M19)-(N19+N20)/2+10),L19-ABS(M19)-(N19+N20)/2+10),0)),0) -> 12 | P19: 5 | R19: 1 | S19: =IF(AND(R19>0,R20>0),IF(OR(R19>10,R19<0,R20>10,R20<0),"Fehler",IF(ABS(P19)-ABS(Q19)-(R19+R20)/2+10>0,IF(P19<0,-(ABS(P19)-ABS(Q19)-(R19+R20)/2+10),P19-ABS(Q19)-(R19+R20)/2+10),0)),0) -> 13.95 | T19: 5 | V19: 3.8 | W19: =IF(AND(V19>0,V20>0),IF(OR(V19>10,V19<0,V20>10,V20<0),"Fehler",IF(ABS(T19)-ABS(U19)-(V19+V20)/2+10>0,IF(T19<0,-(ABS(T19)-ABS(U19)-(V19+V20)/2+10),T19-ABS(U19)-(V19+V20)/2+10),0)),0) -> 11.35 | X19: 5 | Z19: 2.8 | AA19: =IF(AND(Z19>0,Z20>0),IF(OR(Z19>10,Z19<0,Z20>10,Z20<0),"Fehler",IF(ABS(X19)-ABS(Y19)-(Z19+Z20)/2+10>0,IF(X19<0,-(ABS(X19)-ABS(Y19)-(Z19+Z20)/2+10),X19-ABS(Y19)-(Z19+Z20)/2+10),0)),0) -> 12.15 | AB19: =ABS(G19)+ABS(K19)+ABS(O19)+ABS(S19)+ABS(W19)+ABS(AA19) -> 76.15
F20: 0.9 | J20: 2.5 | N20: 2.4 | R20: 1.1 | V20: 3.5 | Z20: 2.9
A21: Timm Zuchold | B21: =IF(A21>0,B19,"") -> TG Hehlen Dielmissen | C21: =IF(A21<>"", VLOOKUP(A21,'Wertungszettel M7'!A$7:B$36,2,0),"") -> 07 | G21: =IF(AND(F21>0,F22>0),IF(OR(F21>10,F21<0,F22>10,F22<0),"Fehler",IF(ABS(D21)-ABS(E21)-(F21+F22)/2+10>0,IF(D21<0,-(ABS(D21)-ABS(E21)-(F21+F22)/2+10),D21-ABS(E21)-(F21+F22)/2+10),0)),0) -> 0 | K21: =IF(AND(J21>0,J22>0),IF(OR(J21>10,J21<0,J22>10,J22<0),"Fehler",IF(ABS(H21)-ABS(I21)-(J21+J22)/2+10>0,IF(H21<0,-(ABS(H21)-ABS(I21)-(J21+J22)/2+10),H21-ABS(I21)-(J21+J22)/2+10),0)),0) -> 0 | O21: =IF(AND(N21>0,N22>0),IF(OR(N21>10,N21<0,N22>10,N22<0),"Fehler",IF(ABS(L21)-ABS(M21)-(N21+N22)/2+10>0,IF(L21<0,-(ABS(L21)-ABS(M21)-(N21+N22)/2+10),L21-ABS(M21)-(N21+N22)/2+10),0)),0) -> 0 | S21: =IF(AND(R21>0,R22>0),IF(OR(R21>10,R21<0,R22>10,R22<0),"Fehler",IF(ABS(P21)-ABS(Q21)-(R21+R22)/2+10>0,IF(P21<0,-(ABS(P21)-ABS(Q21)-(R21+R22)/2+10),P21-ABS(Q21)-(R21+R22)/2+10),0)),0) -> 0 | W21: =IF(AND(V21>0,V22>0),IF(OR(V21>10,V21<0,V22>10,V22<0),"Fehler",IF(ABS(T21)-ABS(U21)-(V21+V22)/2+10>0,IF(T21<0,-(ABS(T21)-ABS(U21)-(V21+V22)/2+10),T21-ABS(U21)-(V21+V22)/2+10),0)),0) -> 0 | AA21: =IF(AND(Z21>0,Z22>0),IF(OR(Z21>10,Z21<0,Z22>10,Z22<0),"Fehler",IF(ABS(X21)-ABS(Y21)-(Z21+Z22)/2+10>0,IF(X21<0,-(ABS(X21)-ABS(Y21)-(Z21+Z22)/2+10),X21-ABS(Y21)-(Z21+Z22)/2+10),0)),0) -> 0 | AB21: =ABS(G21)+ABS(K21)+ABS(O21)+ABS(S21)+ABS(W21)+ABS(AA21) -> 0
B23: =IF(A23>0,B21,"") ->  | C23: =IF(A23<>"", VLOOKUP(A23,'Wertungszettel M7'!A$7:B$36,2,0),"") ->  | G23: =IF(AND(F23>0,F24>0),IF(OR(F23>10,F23<0,F24>10,F24<0),"Fehler",IF(ABS(D23)-ABS(E23)-(F23+F24)/2+10>0,IF(D23<0,-(ABS(D23)-ABS(E23)-(F23+F24)/2+10),D23-ABS(E23)-(F23+F24)/2+10),0)),0) -> 0 | K23: =IF(AND(J23>0,J24>0),IF(OR(J23>10,J23<0,J24>10,J24<0),"Fehler",IF(ABS(H23)-ABS(I23)-(J23+J24)/2+10>0,IF(H23<0,-(ABS(H23)-ABS(I23)-(J23+J24)/2+10),H23-ABS(I23)-(J23+J24)/2+10),0)),0) -> 0 | O23: =IF(AND(N23>0,N24>0),IF(OR(N23>10,N23<0,N24>10,N24<0),"Fehler",IF(ABS(L23)-ABS(M23)-(N23+N24)/2+10>0,IF(L23<0,-(ABS(L23)-ABS(M23)-(N23+N24)/2+10),L23-ABS(M23)-(N23+N24)/2+10),0)),0) -> 0 | S23: =IF(AND(R23>0,R24>0),IF(OR(R23>10,R23<0,R24>10,R24<0),"Fehler",IF(ABS(P23)-ABS(Q23)-(R23+R24)/2+10>0,IF(P23<0,-(ABS(P23)-ABS(Q23)-(R23+R24)/2+10),P23-ABS(Q23)-(R23+R24)/2+10),0)),0) -> 0 | W23: =IF(AND(V23>0,V24>0),IF(OR(V23>10,V23<0,V24>10,V24<0),"Fehler",IF(ABS(T23)-ABS(U23)-(V23+V24)/2+10>0,IF(T23<0,-(ABS(T23)-ABS(U23)-(V23+V24)/2+10),T23-ABS(U23)-(V23+V24)/2+10),0)),0) -> 0 | AA23: =IF(AND(Z23>0,Z24>0),IF(OR(Z23>10,Z23<0,Z24>10,Z24<0),"Fehler",IF(ABS(X23)-ABS(Y23)-(Z23+Z24)/2+10>0,IF(X23<0,-(ABS(X23)-ABS(Y23)-(Z23+Z24)/2+10),X23-ABS(Y23)-(Z23+Z24)/2+10),0)),0) -> 0 | AB23: =ABS(G23)+ABS(K23)+ABS(O23)+ABS(S23)+ABS(W23)+ABS(AA23) -> 0
B25: =IF(A25>0,B23,"") ->  | C25: =IF(A25<>"", VLOOKUP(A25,'Wertungszettel M7'!A$7:B$36,2,0),"") ->  | G25: =IF(AND(F25>0,F26>0),IF(OR(F25>10,F25<0,F26>10,F26<0),"Fehler",IF(ABS(D25)-ABS(E25)-(F25+F26)/2+10>0,IF(D25<0,-(ABS(D25)-ABS(E25)-(F25+F26)/2+10),D25-ABS(E25)-(F25+F26)/2+10),0)),0) -> 0 | K25: =IF(AND(J25>0,J26>0),IF(OR(J25>10,J25<0,J26>10,J26<0),"Fehler",IF(ABS(H25)-ABS(I25)-(J25+J26)/2+10>0,IF(H25<0,-(ABS(H25)-ABS(I25)-(J25+J26)/2+10),H25-ABS(I25)-(J25+J26)/2+10),0)),0) -> 0 | O25: =IF(AND(N25>0,N26>0),IF(OR(N25>10,N25<0,N26>10,N26<0),"Fehler",IF(ABS(L25)-ABS(M25)-(N25+N26)/2+10>0,IF(L25<0,-(ABS(L25)-ABS(M25)-(N25+N26)/2+10),L25-ABS(M25)-(N25+N26)/2+10),0)),0) -> 0 | S25: =IF(AND(R25>0,R26>0),IF(OR(R25>10,R25<0,R26>10,R26<0),"Fehler",IF(ABS(P25)-ABS(Q25)-(R25+R26)/2+10>0,IF(P25<0,-(ABS(P25)-ABS(Q25)-(R25+R26)/2+10),P25-ABS(Q25)-(R25+R26)/2+10),0)),0) -> 0 | W25: =IF(AND(V25>0,V26>0),IF(OR(V25>10,V25<0,V26>10,V26<0),"Fehler",IF(ABS(T25)-ABS(U25)-(V25+V26)/2+10>0,IF(T25<0,-(ABS(T25)-ABS(U25)-(V25+V26)/2+10),T25-ABS(U25)-(V25+V26)/2+10),0)),0) -> 0 | AA25: =IF(AND(Z25>0,Z26>0),IF(OR(Z25>10,Z25<0,Z26>10,Z26<0),"Fehler",IF(ABS(X25)-ABS(Y25)-(Z25+Z26)/2+10>0,IF(X25<0,-(ABS(X25)-ABS(Y25)-(Z25+Z26)/2+10),X25-ABS(Y25)-(Z25+Z26)/2+10),0)),0) -> 0 | AB25: =ABS(G25)+ABS(K25)+ABS(O25)+ABS(S25)+ABS(W25)+ABS(AA25) -> 0
B27: =IF(A27>0,B25,"") ->  | C27: =IF(A27<>"", VLOOKUP(A27,'Wertungszettel M7'!A$7:B$36,2,0),"") ->  | G27: =IF(AND(F27>0,F28>0),IF(OR(F27>10,F27<0,F28>10,F28<0),"Fehler",IF(ABS(D27)-ABS(E27)-(F27+F28)/2+10>0,IF(D27<0,-(ABS(D27)-ABS(E27)-(F27+F28)/2+10),D27-ABS(E27)-(F27+F28)/2+10),0)),0) -> 0 | K27: =IF(AND(J27>0,J28>0),IF(OR(J27>10,J27<0,J28>10,J28<0),"Fehler",IF(ABS(H27)-ABS(I27)-(J27+J28)/2+10>0,IF(H27<0,-(ABS(H27)-ABS(I27)-(J27+J28)/2+10),H27-ABS(I27)-(J27+J28)/2+10),0)),0) -> 0 | O27: =IF(AND(N27>0,N28>0),IF(OR(N27>10,N27<0,N28>10,N28<0),"Fehler",IF(ABS(L27)-ABS(M27)-(N27+N28)/2+10>0,IF(L27<0,-(ABS(L27)-ABS(M27)-(N27+N28)/2+10),L27-ABS(M27)-(N27+N28)/2+10),0)),0) -> 0 | S27: =IF(AND(R27>0,R28>0),IF(OR(R27>10,R27<0,R28>10,R28<0),"Fehler",IF(ABS(P27)-ABS(Q27)-(R27+R28)/2+10>0,IF(P27<0,-(ABS(P27)-ABS(Q27)-(R27+R28)/2+10),P27-ABS(Q27)-(R27+R28)/2+10),0)),0) -> 0 | W27: =IF(AND(V27>0,V28>0),IF(OR(V27>10,V27<0,V28>10,V28<0),"Fehler",IF(ABS(T27)-ABS(U27)-(V27+V28)/2+10>0,IF(T27<0,-(ABS(T27)-ABS(U27)-(V27+V28)/2+10),T27-ABS(U27)-(V27+V28)/2+10),0)),0) -> 0 | AA27: =IF(AND(Z27>0,Z28>0),IF(OR(Z27>10,Z27<0,Z28>10,Z28<0),"Fehler",IF(ABS(X27)-ABS(Y27)-(Z27+Z28)/2+10>0,IF(X27<0,-(ABS(X27)-ABS(Y27)-(Z27+Z28)/2+10),X27-ABS(Y27)-(Z27+Z28)/2+10),0)),0) -> 0 | AB27: =ABS(G27)+ABS(K27)+ABS(O27)+ABS(S27)+ABS(W27)+ABS(AA27) -> 0
G30: =SUM(LARGE(G9:G28,1),LARGE(G9:G28,2),LARGE(G9:G28,3)) -> 41.1 | K30: =SUM(LARGE(K9:K28,1),LARGE(K9:K28,2),LARGE(K9:K28,3)) -> 36.4 | O30: =SUM(LARGE(O9:O28,1),LARGE(O9:O28,2),LARGE(O9:O28,3)) -> 38.1 | S30: =SUM(LARGE(S9:S28,1),LARGE(S9:S28,2),LARGE(S9:S28,3)) -> 41.75 | W30: =SUM(LARGE(W9:W28,1),LARGE(W9:W28,2),LARGE(W9:W28,3)) -> 33.7 | AA30: =SUM(LARGE(AA9:AA28,1),LARGE(AA9:AA28,2),LARGE(AA9:AA28,3)) -> 37.55 | AB30: =SUM(G30,K30,O30,S30,W30,AA30) -> 228.6

Sheet M8 (hidden)
A1: Wettkampfbogen | M1: Datum: | O1: ='INFO Blatt'!B13 -> 2018-03-03
M3: Ort: | O3: ='INFO Blatt'!B11 -> Hehlen
N5: Liga: | O5: ='INFO Blatt'!B7 -> Schülerliga Süd
A7: Name | B7: Verein | C7: Jg | D7: Boden | H7: Pferd | L7: Ringe | P7: Sprung | T7: Barren | X7: Reck | AB7: Ges.
D8: D-Note | E8: Abzug OK | F8: E- Abzug | G8: Note | H8: D-Note | I8: Abzug OK | J8: E- Abzug | K8: Note | L8: D-Note | M8: Abzug OK | N8: E-Abzug | O8: Note | P8: D-Note | Q8: Abzug OK | R8: E-Abzug | S8: Note | T8: D-Note | U8: Abzug OK | V8: E-Abzug | W8: Note | X8: D-Note | Y8: Abzug OK | Z8: E-Abzug | AA8: Note
B9: =Formeln!A12 -> M8 | C9: =IF(A9<>"", VLOOKUP(A9,'Wertungszettel M8'!A$7:B$36,2,0),"") ->  | G9: =IF(AND(F9>0,F10>0),IF(OR(F9>10,F9<0,F10>10,F10<0),"Fehler",IF(ABS(D9)-ABS(E9)-(F9+F10)/2+10>0,IF(D9<0,-(ABS(D9)-ABS(E9)-(F9+F10)/2+10),D9-ABS(E9)-(F9+F10)/2+10),0)),0) -> 0 | K9: =IF(AND(J9>0,J10>0),IF(OR(J9>10,J9<0,J10>10,J10<0),"Fehler",IF(ABS(H9)-ABS(I9)-(J9+J10)/2+10>0,IF(H9<0,-(ABS(H9)-ABS(I9)-(J9+J10)/2+10),H9-ABS(I9)-(J9+J10)/2+10),0)),0) -> 0 | O9: =IF(AND(N9>0,N10>0),IF(OR(N9>10,N9<0,N10>10,N10<0),"Fehler",IF(ABS(L9)-ABS(M9)-(N9+N10)/2+10>0,IF(L9<0,-(ABS(L9)-ABS(M9)-(N9+N10)/2+10),L9-ABS(M9)-(N9+N10)/2+10),0)),0) -> 0 | S9: =IF(AND(R9>0,R10>0),IF(OR(R9>10,R9<0,R10>10,R10<0),"Fehler",IF(ABS(P9)-ABS(Q9)-(R9+R10)/2+10>0,IF(P9<0,-(ABS(P9)-ABS(Q9)-(R9+R10)/2+10),P9-ABS(Q9)-(R9+R10)/2+10),0)),0) -> 0 | W9: =IF(AND(V9>0,V10>0),IF(OR(V9>10,V9<0,V10>10,V10<0),"Fehler",IF(ABS(T9)-ABS(U9)-(V9+V10)/2+10>0,IF(T9<0,-(ABS(T9)-ABS(U9)-(V9+V10)/2+10),T9-ABS(U9)-(V9+V10)/2+10),0)),0) -> 0 | AA9: =IF(AND(Z9>0,Z10>0),IF(OR(Z9>10,Z9<0,Z10>10,Z10<0),"Fehler",IF(ABS(X9)-ABS(Y9)-(Z9+Z10)/2+10>0,IF(X9<0,-(ABS(X9)-ABS(Y9)-(Z9+Z10)/2+10),X9-ABS(Y9)-(Z9+Z10)/2+10),0)),0) -> 0 | AB9: =ABS(G9)+ABS(K9)+ABS(O9)+ABS(S9)+ABS(W9)+ABS(AA9) -> 0
B11: =IF(A11>0,B9,"") ->  | C11: =IF(A11<>"", VLOOKUP(A11,'Wertungszettel M8'!A$7:B$36,2,0),"") ->  | G11: =IF(AND(F11>0,F12>0),IF(OR(F11>10,F11<0,F12>10,F12<0),"Fehler",IF(ABS(D11)-ABS(E11)-(F11+F12)/2+10>0,IF(D11<0,-(ABS(D11)-ABS(E11)-(F11+F12)/2+10),D11-ABS(E11)-(F11+F12)/2+10),0)),0) -> 0 | K11: =IF(AND(J11>0,J12>0),IF(OR(J11>10,J11<0,J12>10,J12<0),"Fehler",IF(ABS(H11)-ABS(I11)-(J11+J12)/2+10>0,IF(H11<0,-(ABS(H11)-ABS(I11)-(J11+J12)/2+10),H11-ABS(I11)-(J11+J12)/2+10),0)),0) -> 0 | O11: =IF(AND(N11>0,N12>0),IF(OR(N11>10,N11<0,N12>10,N12<0),"Fehler",IF(ABS(L11)-ABS(M11)-(N11+N12)/2+10>0,IF(L11<0,-(ABS(L11)-ABS(M11)-(N11+N12)/2+10),L11-ABS(M11)-(N11+N12)/2+10),0)),0) -> 0 | S11: =IF(AND(R11>0,R12>0),IF(OR(R11>10,R11<0,R12>10,R12<0),"Fehler",IF(ABS(P11)-ABS(Q11)-(R11+R12)/2+10>0,IF(P11<0,-(ABS(P11)-ABS(Q11)-(R11+R12)/2+10),P11-ABS(Q11)-(R11+R12)/2+10),0)),0) -> 0 | W11: =IF(AND(V11>0,V12>0),IF(OR(V11>10,V11<0,V12>10,V12<0),"Fehler",IF(ABS(T11)-ABS(U11)-(V11+V12)/2+10>0,IF(T11<0,-(ABS(T11)-ABS(U11)-(V11+V12)/2+10),T11-ABS(U11)-(V11+V12)/2+10),0)),0) -> 0 | AA11: =IF(AND(Z11>0,Z12>0),IF(OR(Z11>10,Z11<0,Z12>10,Z12<0),"Fehler",IF(ABS(X11)-ABS(Y11)-(Z11+Z12)/2+10>0,IF(X11<0,-(ABS(X11)-ABS(Y11)-(Z11+Z12)/2+10),X11-ABS(Y11)-(Z11+Z12)/2+10),0)),0) -> 0 | AB11: =ABS(G11)+ABS(K11)+ABS(O11)+ABS(S11)+ABS(W11)+ABS(AA11) -> 0 | AF11: Boden | AG11: =IF(G30>1,1,0) -> 0
AF12: pauschenpferd | AG12: =IF(K30>1,1,0) -> 0
B13: =IF(A13>0,B11,"") ->  | C13: =IF(A13<>"", VLOOKUP(A13,'Wertungszettel M8'!A$7:B$36,2,0),"") ->  | G13: =IF(AND(F13>0,F14>0),IF(OR(F13>10,F13<0,F14>10,F14<0),"Fehler",IF(ABS(D13)-ABS(E13)-(F13+F14)/2+10>0,IF(D13<0,-(ABS(D13)-ABS(E13)-(F13+F14)/2+10),D13-ABS(E13)-(F13+F14)/2+10),0)),0) -> 0 | K13: =IF(AND(J13>0,J14>0),IF(OR(J13>10,J13<0,J14>10,J14<0),"Fehler",IF(ABS(H13)-ABS(I13)-(J13+J14)/2+10>0,IF(H13<0,-(ABS(H13)-ABS(I13)-(J13+J14)/2+10),H13-ABS(I13)-(J13+J14)/2+10),0)),0) -> 0 | O13: =IF(AND(N13>0,N14>0),IF(OR(N13>10,N13<0,N14>10,N14<0),"Fehler",IF(ABS(L13)-ABS(M13)-(N13+N14)/2+10>0,IF(L13<0,-(ABS(L13)-ABS(M13)-(N13+N14)/2+10),L13-ABS(M13)-(N13+N14)/2+10),0)),0) -> 0 | S13: =IF(AND(R13>0,R14>0),IF(OR(R13>10,R13<0,R14>10,R14<0),"Fehler",IF(ABS(P13)-ABS(Q13)-(R13+R14)/2+10>0,IF(P13<0,-(ABS(P13)-ABS(Q13)-(R13+R14)/2+10),P13-ABS(Q13)-(R13+R14)/2+10),0)),0) -> 0 | W13: =IF(AND(V13>0,V14>0),IF(OR(V13>10,V13<0,V14>10,V14<0),"Fehler",IF(ABS(T13)-ABS(U13)-(V13+V14)/2+10>0,IF(T13<0,-(ABS(T13)-ABS(U13)-(V13+V14)/2+10),T13-ABS(U13)-(V13+V14)/2+10),0)),0) -> 0 | AA13: =IF(AND(Z13>0,Z14>0),IF(OR(Z13>10,Z13<0,Z14>10,Z14<0),"Fehler",IF(ABS(X13)-ABS(Y13)-(Z13+Z14)/2+10>0,IF(X13<0,-(ABS(X13)-ABS(Y13)-(Z13+Z14)/2+10),X13-ABS(Y13)-(Z13+Z14)/2+10),0)),0) -> 0 | AB13: =ABS(G13)+ABS(K13)+ABS(O13)+ABS(S13)+ABS(W13)+ABS(AA13) -> 0 | AF13: ringe | AG13: =IF(O30>1,1,0) -> 0
AF14: sprung | AG14: =IF(S30>1,1,0) -> 0
B15: =IF(A15>0,B13,"") ->  | C15: =IF(A15<>"", VLOOKUP(A15,'Wertungszettel M8'!A$7:B$36,2,0),"") ->  | G15: =IF(AND(F15>0,F16>0),IF(OR(F15>10,F15<0,F16>10,F16<0),"Fehler",IF(ABS(D15)-ABS(E15)-(F15+F16)/2+10>0,IF(D15<0,-(ABS(D15)-ABS(E15)-(F15+F16)/2+10),D15-ABS(E15)-(F15+F16)/2+10),0)),0) -> 0 | K15: =IF(AND(J15>0,J16>0),IF(OR(J15>10,J15<0,J16>10,J16<0),"Fehler",IF(ABS(H15)-ABS(I15)-(J15+J16)/2+10>0,IF(H15<0,-(ABS(H15)-ABS(I15)-(J15+J16)/2+10),H15-ABS(I15)-(J15+J16)/2+10),0)),0) -> 0 | O15: =IF(AND(N15>0,N16>0),IF(OR(N15>10,N15<0,N16>10,N16<0),"Fehler",IF(ABS(L15)-ABS(M15)-(N15+N16)/2+10>0,IF(L15<0,-(ABS(L15)-ABS(M15)-(N15+N16)/2+10),L15-ABS(M15)-(N15+N16)/2+10),0)),0) -> 0 | S15: =IF(AND(R15>0,R16>0),IF(OR(R15>10,R15<0,R16>10,R16<0),"Fehler",IF(ABS(P15)-ABS(Q15)-(R15+R16)/2+10>0,IF(P15<0,-(ABS(P15)-ABS(Q15)-(R15+R16)/2+10),P15-ABS(Q15)-(R15+R16)/2+10),0)),0) -> 0 | W15: =IF(AND(V15>0,V16>0),IF(OR(V15>10,V15<0,V16>10,V16<0),"Fehler",IF(ABS(T15)-ABS(U15)-(V15+V16)/2+10>0,IF(T15<0,-(ABS(T15)-ABS(U15)-(V15+V16)/2+10),T15-ABS(U15)-(V15+V16)/2+10),0)),0) -> 0 | AA15: =IF(AND(Z15>0,Z16>0),IF(OR(Z15>10,Z15<0,Z16>10,Z16<0),"Fehler",IF(ABS(X15)-ABS(Y15)-(Z15+Z16)/2+10>0,IF(X15<0,-(ABS(X15)-ABS(Y15)-(Z15+Z16)/2+10),X15-ABS(Y15)-(Z15+Z16)/2+10),0)),0) -> 0 | AB15: =ABS(G15)+ABS(K15)+ABS(O15)+ABS(S15)+ABS(W15)+ABS(AA15) -> 0 | AF15: Barren | AG15: =IF(W30>1,1,0) -> 0
AF16: Reck | AG16: =IF(AA30>1,1,0) -> 0
B17: =IF(A17>0,B15,"") ->  | C17: =IF(A17<>"", VLOOKUP(A17,'Wertungszettel M8'!A$7:B$36,2,0),"") ->  | G17: =IF(AND(F17>0,F18>0),IF(OR(F17>10,F17<0,F18>10,F18<0),"Fehler",IF(ABS(D17)-ABS(E17)-(F17+F18)/2+10>0,IF(D17<0,-(ABS(D17)-ABS(E17)-(F17+F18)/2+10),D17-ABS(E17)-(F17+F18)/2+10),0)),0) -> 0 | K17: =IF(AND(J17>0,J18>0),IF(OR(J17>10,J17<0,J18>10,J18<0),"Fehler",IF(ABS(H17)-ABS(I17)-(J17+J18)/2+10>0,IF(H17<0,-(ABS(H17)-ABS(I17)-(J17+J18)/2+10),H17-ABS(I17)-(J17+J18)/2+10),0)),0) -> 0 | O17: =IF(AND(N17>0,N18>0),IF(OR(N17>10,N17<0,N18>10,N18<0),"Fehler",IF(ABS(L17)-ABS(M17)-(N17+N18)/2+10>0,IF(L17<0,-(ABS(L17)-ABS(M17)-(N17+N18)/2+10),L17-ABS(M17)-(N17+N18)/2+10),0)),0) -> 0 | S17: =IF(AND(R17>0,R18>0),IF(OR(R17>10,R17<0,R18>10,R18<0),"Fehler",IF(ABS(P17)-ABS(Q17)-(R17+R18)/2+10>0,IF(P17<0,-(ABS(P17)-ABS(Q17)-(R17+R18)/2+10),P17-ABS(Q17)-(R17+R18)/2+10),0)),0) -> 0 | W17: =IF(AND(V17>0,V18>0),IF(OR(V17>10,V17<0,V18>10,V18<0),"Fehler",IF(ABS(T17)-ABS(U17)-(V17+V18)/2+10>0,IF(T17<0,-(ABS(T17)-ABS(U17)-(V17+V18)/2+10),T17-ABS(U17)-(V17+V18)/2+10),0)),0) -> 0 | AA17: =IF(AND(Z17>0,Z18>0),IF(OR(Z17>10,Z17<0,Z18>10,Z18<0),"Fehler",IF(ABS(X17)-ABS(Y17)-(Z17+Z18)/2+10>0,IF(X17<0,-(ABS(X17)-ABS(Y17)-(Z17+Z18)/2+10),X17-ABS(Y17)-(Z17+Z18)/2+10),0)),0) -> 0 | AB17: =ABS(G17)+ABS(K17)+ABS(O17)+ABS(S17)+ABS(W17)+ABS(AA17) -> 0
AF18: Gesamt | AG18: =SUM(AG11:AG17) -> 0
B19: =IF(A19>0,B17,"") ->  | C19: =IF(A19<>"", VLOOKUP(A19,'Wertungszettel M8'!A$7:B$36,2,0),"") ->  | G19: =IF(AND(F19>0,F20>0),IF(OR(F19>10,F19<0,F20>10,F20<0),"Fehler",IF(ABS(D19)-ABS(E19)-(F19+F20)/2+10>0,IF(D19<0,-(ABS(D19)-ABS(E19)-(F19+F20)/2+10),D19-ABS(E19)-(F19+F20)/2+10),0)),0) -> 0 | K19: =IF(AND(J19>0,J20>0),IF(OR(J19>10,J19<0,J20>10,J20<0),"Fehler",IF(ABS(H19)-ABS(I19)-(J19+J20)/2+10>0,IF(H19<0,-(ABS(H19)-ABS(I19)-(J19+J20)/2+10),H19-ABS(I19)-(J19+J20)/2+10),0)),0) -> 0 | O19: =IF(AND(N19>0,N20>0),IF(OR(N19>10,N19<0,N20>10,N20<0),"Fehler",IF(ABS(L19)-ABS(M19)-(N19+N20)/2+10>0,IF(L19<0,-(ABS(L19)-ABS(M19)-(N19+N20)/2+10),L19-ABS(M19)-(N19+N20)/2+10),0)),0) -> 0 | S19: =IF(AND(R19>0,R20>0),IF(OR(R19>10,R19<0,R20>10,R20<0),"Fehler",IF(ABS(P19)-ABS(Q19)-(R19+R20)/2+10>0,IF(P19<0,-(ABS(P19)-ABS(Q19)-(R19+R20)/2+10),P19-ABS(Q19)-(R19+R20)/2+10),0)),0) -> 0 | W19: =IF(AND(V19>0,V20>0),IF(OR(V19>10,V19<0,V20>10,V20<0),"Fehler",IF(ABS(T19)-ABS(U19)-(V19+V20)/2+10>0,IF(T19<0,-(ABS(T19)-ABS(U19)-(V19+V20)/2+10),T19-ABS(U19)-(V19+V20)/2+10),0)),0) -> 0 | AA19: =IF(AND(Z19>0,Z20>0),IF(OR(Z19>10,Z19<0,Z20>10,Z20<0),"Fehler",IF(ABS(X19)-ABS(Y19)-(Z19+Z20)/2+10>0,IF(X19<0,-(ABS(X19)-ABS(Y19)-(Z19+Z20)/2+10),X19-ABS(Y19)-(Z19+Z20)/2+10),0)),0) -> 0 | AB19: =ABS(G19)+ABS(K19)+ABS(O19)+ABS(S19)+ABS(W19)+ABS(AA19) -> 0
B21: =IF(A21>0,B19,"") ->  | C21: =IF(A21<>"", VLOOKUP(A21,'Wertungszettel M8'!A$7:B$36,2,0),"") ->  | G21: =IF(AND(F21>0,F22>0),IF(OR(F21>10,F21<0,F22>10,F22<0),"Fehler",IF(ABS(D21)-ABS(E21)-(F21+F22)/2+10>0,IF(D21<0,-(ABS(D21)-ABS(E21)-(F21+F22)/2+10),D21-ABS(E21)-(F21+F22)/2+10),0)),0) -> 0 | K21: =IF(AND(J21>0,J22>0),IF(OR(J21>10,J21<0,J22>10,J22<0),"Fehler",IF(ABS(H21)-ABS(I21)-(J21+J22)/2+10>0,IF(H21<0,-(ABS(H21)-ABS(I21)-(J21+J22)/2+10),H21-ABS(I21)-(J21+J22)/2+10),0)),0) -> 0 | O21: =IF(AND(N21>0,N22>0),IF(OR(N21>10,N21<0,N22>10,N22<0),"Fehler",IF(ABS(L21)-ABS(M21)-(N21+N22)/2+10>0,IF(L21<0,-(ABS(L21)-ABS(M21)-(N21+N22)/2+10),L21-ABS(M21)-(N21+N22)/2+10),0)),0) -> 0 | S21: =IF(AND(R21>0,R22>0),IF(OR(R21>10,R21<0,R22>10,R22<0),"Fehler",IF(ABS(P21)-ABS(Q21)-(R21+R22)/2+10>0,IF(P21<0,-(ABS(P21)-ABS(Q21)-(R21+R22)/2+10),P21-ABS(Q21)-(R21+R22)/2+10),0)),0) -> 0 | W21: =IF(AND(V21>0,V22>0),IF(OR(V21>10,V21<0,V22>10,V22<0),"Fehler",IF(ABS(T21)-ABS(U21)-(V21+V22)/2+10>0,IF(T21<0,-(ABS(T21)-ABS(U21)-(V21+V22)/2+10),T21-ABS(U21)-(V21+V22)/2+10),0)),0) -> 0 | AA21: =IF(AND(Z21>0,Z22>0),IF(OR(Z21>10,Z21<0,Z22>10,Z22<0),"Fehler",IF(ABS(X21)-ABS(Y21)-(Z21+Z22)/2+10>0,IF(X21<0,-(ABS(X21)-ABS(Y21)-(Z21+Z22)/2+10),X21-ABS(Y21)-(Z21+Z22)/2+10),0)),0) -> 0 | AB21: =ABS(G21)+ABS(K21)+ABS(O21)+ABS(S21)+ABS(W21)+ABS(AA21) -> 0
B23: =IF(A23>0,B21,"") ->  | C23: =IF(A23<>"", VLOOKUP(A23,'Wertungszettel M8'!A$7:B$36,2,0),"") ->  | G23: =IF(AND(F23>0,F24>0),IF(OR(F23>10,F23<0,F24>10,F24<0),"Fehler",IF(ABS(D23)-ABS(E23)-(F23+F24)/2+10>0,IF(D23<0,-(ABS(D23)-ABS(E23)-(F23+F24)/2+10),D23-ABS(E23)-(F23+F24)/2+10),0)),0) -> 0 | K23: =IF(AND(J23>0,J24>0),IF(OR(J23>10,J23<0,J24>10,J24<0),"Fehler",IF(ABS(H23)-ABS(I23)-(J23+J24)/2+10>0,IF(H23<0,-(ABS(H23)-ABS(I23)-(J23+J24)/2+10),H23-ABS(I23)-(J23+J24)/2+10),0)),0) -> 0 | O23: =IF(AND(N23>0,N24>0),IF(OR(N23>10,N23<0,N24>10,N24<0),"Fehler",IF(ABS(L23)-ABS(M23)-(N23+N24)/2+10>0,IF(L23<0,-(ABS(L23)-ABS(M23)-(N23+N24)/2+10),L23-ABS(M23)-(N23+N24)/2+10),0)),0) -> 0 | S23: =IF(AND(R23>0,R24>0),IF(OR(R23>10,R23<0,R24>10,R24<0),"Fehler",IF(ABS(P23)-ABS(Q23)-(R23+R24)/2+10>0,IF(P23<0,-(ABS(P23)-ABS(Q23)-(R23+R24)/2+10),P23-ABS(Q23)-(R23+R24)/2+10),0)),0) -> 0 | W23: =IF(AND(V23>0,V24>0),IF(OR(V23>10,V23<0,V24>10,V24<0),"Fehler",IF(ABS(T23)-ABS(U23)-(V23+V24)/2+10>0,IF(T23<0,-(ABS(T23)-ABS(U23)-(V23+V24)/2+10),T23-ABS(U23)-(V23+V24)/2+10),0)),0) -> 0 | AA23: =IF(AND(Z23>0,Z24>0),IF(OR(Z23>10,Z23<0,Z24>10,Z24<0),"Fehler",IF(ABS(X23)-ABS(Y23)-(Z23+Z24)/2+10>0,IF(X23<0,-(ABS(X23)-ABS(Y23)-(Z23+Z24)/2+10),X23-ABS(Y23)-(Z23+Z24)/2+10),0)),0) -> 0 | AB23: =ABS(G23)+ABS(K23)+ABS(O23)+ABS(S23)+ABS(W23)+ABS(AA23) -> 0
B25: =IF(A25>0,B23,"") ->  | C25: =IF(A25<>"", VLOOKUP(A25,'Wertungszettel M8'!A$7:B$36,2,0),"") ->  | G25: =IF(AND(F25>0,F26>0),IF(OR(F25>10,F25<0,F26>10,F26<0),"Fehler",IF(ABS(D25)-ABS(E25)-(F25+F26)/2+10>0,IF(D25<0,-(ABS(D25)-ABS(E25)-(F25+F26)/2+10),D25-ABS(E25)-(F25+F26)/2+10),0)),0) -> 0 | K25: =IF(AND(J25>0,J26>0),IF(OR(J25>10,J25<0,J26>10,J26<0),"Fehler",IF(ABS(H25)-ABS(I25)-(J25+J26)/2+10>0,IF(H25<0,-(ABS(H25)-ABS(I25)-(J25+J26)/2+10),H25-ABS(I25)-(J25+J26)/2+10),0)),0) -> 0 | O25: =IF(AND(N25>0,N26>0),IF(OR(N25>10,N25<0,N26>10,N26<0),"Fehler",IF(ABS(L25)-ABS(M25)-(N25+N26)/2+10>0,IF(L25<0,-(ABS(L25)-ABS(M25)-(N25+N26)/2+10),L25-ABS(M25)-(N25+N26)/2+10),0)),0) -> 0 | S25: =IF(AND(R25>0,R26>0),IF(OR(R25>10,R25<0,R26>10,R26<0),"Fehler",IF(ABS(P25)-ABS(Q25)-(R25+R26)/2+10>0,IF(P25<0,-(ABS(P25)-ABS(Q25)-(R25+R26)/2+10),P25-ABS(Q25)-(R25+R26)/2+10),0)),0) -> 0 | W25: =IF(AND(V25>0,V26>0),IF(OR(V25>10,V25<0,V26>10,V26<0),"Fehler",IF(ABS(T25)-ABS(U25)-(V25+V26)/2+10>0,IF(T25<0,-(ABS(T25)-ABS(U25)-(V25+V26)/2+10),T25-ABS(U25)-(V25+V26)/2+10),0)),0) -> 0 | AA25: =IF(AND(Z25>0,Z26>0),IF(OR(Z25>10,Z25<0,Z26>10,Z26<0),"Fehler",IF(ABS(X25)-ABS(Y25)-(Z25+Z26)/2+10>0,IF(X25<0,-(ABS(X25)-ABS(Y25)-(Z25+Z26)/2+10),X25-ABS(Y25)-(Z25+Z26)/2+10),0)),0) -> 0 | AB25: =ABS(G25)+ABS(K25)+ABS(O25)+ABS(S25)+ABS(W25)+ABS(AA25) -> 0
B27: =IF(A27>0,B25,"") ->  | C27: =IF(A27<>"", VLOOKUP(A27,'Wertungszettel M8'!A$7:B$36,2,0),"") ->  | G27: =IF(AND(F27>0,F28>0),IF(OR(F27>10,F27<0,F28>10,F28<0),"Fehler",IF(ABS(D27)-ABS(E27)-(F27+F28)/2+10>0,IF(D27<0,-(ABS(D27)-ABS(E27)-(F27+F28)/2+10),D27-ABS(E27)-(F27+F28)/2+10),0)),0) -> 0 | K27: =IF(AND(J27>0,J28>0),IF(OR(J27>10,J27<0,J28>10,J28<0),"Fehler",IF(ABS(H27)-ABS(I27)-(J27+J28)/2+10>0,IF(H27<0,-(ABS(H27)-ABS(I27)-(J27+J28)/2+10),H27-ABS(I27)-(J27+J28)/2+10),0)),0) -> 0 | O27: =IF(AND(N27>0,N28>0),IF(OR(N27>10,N27<0,N28>10,N28<0),"Fehler",IF(ABS(L27)-ABS(M27)-(N27+N28)/2+10>0,IF(L27<0,-(ABS(L27)-ABS(M27)-(N27+N28)/2+10),L27-ABS(M27)-(N27+N28)/2+10),0)),0) -> 0 | S27: =IF(AND(R27>0,R28>0),IF(OR(R27>10,R27<0,R28>10,R28<0),"Fehler",IF(ABS(P27)-ABS(Q27)-(R27+R28)/2+10>0,IF(P27<0,-(ABS(P27)-ABS(Q27)-(R27+R28)/2+10),P27-ABS(Q27)-(R27+R28)/2+10),0)),0) -> 0 | W27: =IF(AND(V27>0,V28>0),IF(OR(V27>10,V27<0,V28>10,V28<0),"Fehler",IF(ABS(T27)-ABS(U27)-(V27+V28)/2+10>0,IF(T27<0,-(ABS(T27)-ABS(U27)-(V27+V28)/2+10),T27-ABS(U27)-(V27+V28)/2+10),0)),0) -> 0 | AA27: =IF(AND(Z27>0,Z28>0),IF(OR(Z27>10,Z27<0,Z28>10,Z28<0),"Fehler",IF(ABS(X27)-ABS(Y27)-(Z27+Z28)/2+10>0,IF(X27<0,-(ABS(X27)-ABS(Y27)-(Z27+Z28)/2+10),X27-ABS(Y27)-(Z27+Z28)/2+10),0)),0) -> 0 | AB27: =ABS(G27)+ABS(K27)+ABS(O27)+ABS(S27)+ABS(W27)+ABS(AA27) -> 0
G30: =SUM(LARGE(G9:G28,1),LARGE(G9:G28,2),LARGE(G9:G28,3)) -> 0 | K30: =SUM(LARGE(K9:K28,1),LARGE(K9:K28,2),LARGE(K9:K28,3)) -> 0 | O30: =SUM(LARGE(O9:O28,1),LARGE(O9:O28,2),LARGE(O9:O28,3)) -> 0 | S30: =SUM(LARGE(S9:S28,1),LARGE(S9:S28,2),LARGE(S9:S28,3)) -> 0 | W30: =SUM(LARGE(W9:W28,1),LARGE(W9:W28,2),LARGE(W9:W28,3)) -> 0 | AA30: =SUM(LARGE(AA9:AA28,1),LARGE(AA9:AA28,2),LARGE(AA9:AA28,3)) -> 0 | AB30: =SUM(G30,K30,O30,S30,W30,AA30) -> 0

Sheet M9 (hidden)
A1: Wettkampfbogen | M1: Datum: | O1: ='INFO Blatt'!B13 -> 2018-03-03
M3: Ort: | O3: ='INFO Blatt'!B11 -> Hehlen
N5: Liga: | O5: ='INFO Blatt'!B7 -> Schülerliga Süd
A7: Name | B7: Verein | C7: Jg | D7: Boden | H7: Pferd | L7: Ringe | P7: Sprung | T7: Barren | X7: Reck | AB7: Ges.
D8: D-Note | E8: Abzug OK | F8: E- Abzug | G8: Note | H8: D-Note | I8: Abzug OK | J8: E- Abzug | K8: Note | L8: D-Note | M8: Abzug OK | N8: E-Abzug | O8: Note | P8: D-Note | Q8: Abzug OK | R8: E-Abzug | S8: Note | T8: D-Note | U8: Abzug OK | V8: E-Abzug | W8: Note | X8: D-Note | Y8: Abzug OK | Z8: E-Abzug | AA8: Note
B9: =Formeln!A13 -> M9 | C9: =IF(A9<>"", VLOOKUP(A9,'Wertungszettel M9'!A$7:B$36,2,0),"") ->  | G9: =IF(AND(F9>0,F10>0),IF(OR(F9>10,F9<0,F10>10,F10<0),"Fehler",IF(ABS(D9)-ABS(E9)-(F9+F10)/2+10>0,IF(D9<0,-(ABS(D9)-ABS(E9)-(F9+F10)/2+10),D9-ABS(E9)-(F9+F10)/2+10),0)),0) -> 0 | K9: =IF(AND(J9>0,J10>0),IF(OR(J9>10,J9<0,J10>10,J10<0),"Fehler",IF(ABS(H9)-ABS(I9)-(J9+J10)/2+10>0,IF(H9<0,-(ABS(H9)-ABS(I9)-(J9+J10)/2+10),H9-ABS(I9)-(J9+J10)/2+10),0)),0) -> 0 | O9: =IF(AND(N9>0,N10>0),IF(OR(N9>10,N9<0,N10>10,N10<0),"Fehler",IF(ABS(L9)-ABS(M9)-(N9+N10)/2+10>0,IF(L9<0,-(ABS(L9)-ABS(M9)-(N9+N10)/2+10),L9-ABS(M9)-(N9+N10)/2+10),0)),0) -> 0 | S9: =IF(AND(R9>0,R10>0),IF(OR(R9>10,R9<0,R10>10,R10<0),"Fehler",IF(ABS(P9)-ABS(Q9)-(R9+R10)/2+10>0,IF(P9<0,-(ABS(P9)-ABS(Q9)-(R9+R10)/2+10),P9-ABS(Q9)-(R9+R10)/2+10),0)),0) -> 0 | W9: =IF(AND(V9>0,V10>0),IF(OR(V9>10,V9<0,V10>10,V10<0),"Fehler",IF(ABS(T9)-ABS(U9)-(V9+V10)/2+10>0,IF(T9<0,-(ABS(T9)-ABS(U9)-(V9+V10)/2+10),T9-ABS(U9)-(V9+V10)/2+10),0)),0) -> 0 | AA9: =IF(AND(Z9>0,Z10>0),IF(OR(Z9>10,Z9<0,Z10>10,Z10<0),"Fehler",IF(ABS(X9)-ABS(Y9)-(Z9+Z10)/2+10>0,IF(X9<0,-(ABS(X9)-ABS(Y9)-(Z9+Z10)/2+10),X9-ABS(Y9)-(Z9+Z10)/2+10),0)),0) -> 0 | AB9: =ABS(G9)+ABS(K9)+ABS(O9)+ABS(S9)+ABS(W9)+ABS(AA9) -> 0
B11: =IF(A11>0,B9,"") ->  | C11: =IF(A11<>"", VLOOKUP(A11,'Wertungszettel M9'!A$7:B$36,2,0),"") ->  | G11: =IF(AND(F11>0,F12>0),IF(OR(F11>10,F11<0,F12>10,F12<0),"Fehler",IF(ABS(D11)-ABS(E11)-(F11+F12)/2+10>0,IF(D11<0,-(ABS(D11)-ABS(E11)-(F11+F12)/2+10),D11-ABS(E11)-(F11+F12)/2+10),0)),0) -> 0 | K11: =IF(AND(J11>0,J12>0),IF(OR(J11>10,J11<0,J12>10,J12<0),"Fehler",IF(ABS(H11)-ABS(I11)-(J11+J12)/2+10>0,IF(H11<0,-(ABS(H11)-ABS(I11)-(J11+J12)/2+10),H11-ABS(I11)-(J11+J12)/2+10),0)),0) -> 0 | O11: =IF(AND(N11>0,N12>0),IF(OR(N11>10,N11<0,N12>10,N12<0),"Fehler",IF(ABS(L11)-ABS(M11)-(N11+N12)/2+10>0,IF(L11<0,-(ABS(L11)-ABS(M11)-(N11+N12)/2+10),L11-ABS(M11)-(N11+N12)/2+10),0)),0) -> 0 | S11: =IF(AND(R11>0,R12>0),IF(OR(R11>10,R11<0,R12>10,R12<0),"Fehler",IF(ABS(P11)-ABS(Q11)-(R11+R12)/2+10>0,IF(P11<0,-(ABS(P11)-ABS(Q11)-(R11+R12)/2+10),P11-ABS(Q11)-(R11+R12)/2+10),0)),0) -> 0 | W11: =IF(AND(V11>0,V12>0),IF(OR(V11>10,V11<0,V12>10,V12<0),"Fehler",IF(ABS(T11)-ABS(U11)-(V11+V12)/2+10>0,IF(T11<0,-(ABS(T11)-ABS(U11)-(V11+V12)/2+10),T11-ABS(U11)-(V11+V12)/2+10),0)),0) -> 0 | AA11: =IF(AND(Z11>0,Z12>0),IF(OR(Z11>10,Z11<0,Z12>10,Z12<0),"Fehler",IF(ABS(X11)-ABS(Y11)-(Z11+Z12)/2+10>0,IF(X11<0,-(ABS(X11)-ABS(Y11)-(Z11+Z12)/2+10),X11-ABS(Y11)-(Z11+Z12)/2+10),0)),0) -> 0 | AB11: =ABS(G11)+ABS(K11)+ABS(O11)+ABS(S11)+ABS(W11)+ABS(AA11) -> 0
B13: =IF(A13>0,B11,"") ->  | C13: =IF(A13<>"", VLOOKUP(A13,'Wertungszettel M9'!A$7:B$36,2,0),"") ->  | G13: =IF(AND(F13>0,F14>0),IF(OR(F13>10,F13<0,F14>10,F14<0),"Fehler",IF(ABS(D13)-ABS(E13)-(F13+F14)/2+10>0,IF(D13<0,-(ABS(D13)-ABS(E13)-(F13+F14)/2+10),D13-ABS(E13)-(F13+F14)/2+10),0)),0) -> 0 | K13: =IF(AND(J13>0,J14>0),IF(OR(J13>10,J13<0,J14>10,J14<0),"Fehler",IF(ABS(H13)-ABS(I13)-(J13+J14)/2+10>0,IF(H13<0,-(ABS(H13)-ABS(I13)-(J13+J14)/2+10),H13-ABS(I13)-(J13+J14)/2+10),0)),0) -> 0 | O13: =IF(AND(N13>0,N14>0),IF(OR(N13>10,N13<0,N14>10,N14<0),"Fehler",IF(ABS(L13)-ABS(M13)-(N13+N14)/2+10>0,IF(L13<0,-(ABS(L13)-ABS(M13)-(N13+N14)/2+10),L13-ABS(M13)-(N13+N14)/2+10),0)),0) -> 0 | S13: =IF(AND(R13>0,R14>0),IF(OR(R13>10,R13<0,R14>10,R14<0),"Fehler",IF(ABS(P13)-ABS(Q13)-(R13+R14)/2+10>0,IF(P13<0,-(ABS(P13)-ABS(Q13)-(R13+R14)/2+10),P13-ABS(Q13)-(R13+R14)/2+10),0)),0) -> 0 | W13: =IF(AND(V13>0,V14>0),IF(OR(V13>10,V13<0,V14>10,V14<0),"Fehler",IF(ABS(T13)-ABS(U13)-(V13+V14)/2+10>0,IF(T13<0,-(ABS(T13)-ABS(U13)-(V13+V14)/2+10),T13-ABS(U13)-(V13+V14)/2+10),0)),0) -> 0 | AA13: =IF(AND(Z13>0,Z14>0),IF(OR(Z13>10,Z13<0,Z14>10,Z14<0),"Fehler",IF(ABS(X13)-ABS(Y13)-(Z13+Z14)/2+10>0,IF(X13<0,-(ABS(X13)-ABS(Y13)-(Z13+Z14)/2+10),X13-ABS(Y13)-(Z13+Z14)/2+10),0)),0) -> 0 | AB13: =ABS(G13)+ABS(K13)+ABS(O13)+ABS(S13)+ABS(W13)+ABS(AA13) -> 0
B15: =IF(A15>0,B13,"") ->  | C15: =IF(A15<>"", VLOOKUP(A15,'Wertungszettel M9'!A$7:B$36,2,0),"") ->  | G15: =IF(AND(F15>0,F16>0),IF(OR(F15>10,F15<0,F16>10,F16<0),"Fehler",IF(ABS(D15)-ABS(E15)-(F15+F16)/2+10>0,IF(D15<0,-(ABS(D15)-ABS(E15)-(F15+F16)/2+10),D15-ABS(E15)-(F15+F16)/2+10),0)),0) -> 0 | K15: =IF(AND(J15>0,J16>0),IF(OR(J15>10,J15<0,J16>10,J16<0),"Fehler",IF(ABS(H15)-ABS(I15)-(J15+J16)/2+10>0,IF(H15<0,-(ABS(H15)-ABS(I15)-(J15+J16)/2+10),H15-ABS(I15)-(J15+J16)/2+10),0)),0) -> 0 | O15: =IF(AND(N15>0,N16>0),IF(OR(N15>10,N15<0,N16>10,N16<0),"Fehler",IF(ABS(L15)-ABS(M15)-(N15+N16)/2+10>0,IF(L15<0,-(ABS(L15)-ABS(M15)-(N15+N16)/2+10),L15-ABS(M15)-(N15+N16)/2+10),0)),0) -> 0 | S15: =IF(AND(R15>0,R16>0),IF(OR(R15>10,R15<0,R16>10,R16<0),"Fehler",IF(ABS(P15)-ABS(Q15)-(R15+R16)/2+10>0,IF(P15<0,-(ABS(P15)-ABS(Q15)-(R15+R16)/2+10),P15-ABS(Q15)-(R15+R16)/2+10),0)),0) -> 0 | W15: =IF(AND(V15>0,V16>0),IF(OR(V15>10,V15<0,V16>10,V16<0),"Fehler",IF(ABS(T15)-ABS(U15)-(V15+V16)/2+10>0,IF(T15<0,-(ABS(T15)-ABS(U15)-(V15+V16)/2+10),T15-ABS(U15)-(V15+V16)/2+10),0)),0) -> 0 | AA15: =IF(AND(Z15>0,Z16>0),IF(OR(Z15>10,Z15<0,Z16>10,Z16<0),"Fehler",IF(ABS(X15)-ABS(Y15)-(Z15+Z16)/2+10>0,IF(X15<0,-(ABS(X15)-ABS(Y15)-(Z15+Z16)/2+10),X15-ABS(Y15)-(Z15+Z16)/2+10),0)),0) -> 0 | AB15: =ABS(G15)+ABS(K15)+ABS(O15)+ABS(S15)+ABS(W15)+ABS(AA15) -> 0
B17: =IF(A17>0,B15,"") ->  | C17: =IF(A17<>"", VLOOKUP(A17,'Wertungszettel M9'!A$7:B$36,2,0),"") ->  | G17: =IF(AND(F17>0,F18>0),IF(OR(F17>10,F17<0,F18>10,F18<0),"Fehler",IF(ABS(D17)-ABS(E17)-(F17+F18)/2+10>0,IF(D17<0,-(ABS(D17)-ABS(E17)-(F17+F18)/2+10),D17-ABS(E17)-(F17+F18)/2+10),0)),0) -> 0 | K17: =IF(AND(J17>0,J18>0),IF(OR(J17>10,J17<0,J18>10,J18<0),"Fehler",IF(ABS(H17)-ABS(I17)-(J17+J18)/2+10>0,IF(H17<0,-(ABS(H17)-ABS(I17)-(J17+J18)/2+10),H17-ABS(I17)-(J17+J18)/2+10),0)),0) -> 0 | O17: =IF(AND(N17>0,N18>0),IF(OR(N17>10,N17<0,N18>10,N18<0),"Fehler",IF(ABS(L17)-ABS(M17)-(N17+N18)/2+10>0,IF(L17<0,-(ABS(L17)-ABS(M17)-(N17+N18)/2+10),L17-ABS(M17)-(N17+N18)/2+10),0)),0) -> 0 | S17: =IF(AND(R17>0,R18>0),IF(OR(R17>10,R17<0,R18>10,R18<0),"Fehler",IF(ABS(P17)-ABS(Q17)-(R17+R18)/2+10>0,IF(P17<0,-(ABS(P17)-ABS(Q17)-(R17+R18)/2+10),P17-ABS(Q17)-(R17+R18)/2+10),0)),0) -> 0 | W17: =IF(AND(V17>0,V18>0),IF(OR(V17>10,V17<0,V18>10,V18<0),"Fehler",IF(ABS(T17)-ABS(U17)-(V17+V18)/2+10>0,IF(T17<0,-(ABS(T17)-ABS(U17)-(V17+V18)/2+10),T17-ABS(U17)-(V17+V18)/2+10),0)),0) -> 0 | AA17: =IF(AND(Z17>0,Z18>0),IF(OR(Z17>10,Z17<0,Z18>10,Z18<0),"Fehler",IF(ABS(X17)-ABS(Y17)-(Z17+Z18)/2+10>0,IF(X17<0,-(ABS(X17)-ABS(Y17)-(Z17+Z18)/2+10),X17-ABS(Y17)-(Z17+Z18)/2+10),0)),0) -> 0 | AB17: =ABS(G17)+ABS(K17)+ABS(O17)+ABS(S17)+ABS(W17)+ABS(AA17) -> 0
B19: =IF(A19>0,B17,"") ->  | C19: =IF(A19<>"", VLOOKUP(A19,'Wertungszettel M9'!A$7:B$36,2,0),"") ->  | G19: =IF(AND(F19>0,F20>0),IF(OR(F19>10,F19<0,F20>10,F20<0),"Fehler",IF(ABS(D19)-ABS(E19)-(F19+F20)/2+10>0,IF(D19<0,-(ABS(D19)-ABS(E19)-(F19+F20)/2+10),D19-ABS(E19)-(F19+F20)/2+10),0)),0) -> 0 | K19: =IF(AND(J19>0,J20>0),IF(OR(J19>10,J19<0,J20>10,J20<0),"Fehler",IF(ABS(H19)-ABS(I19)-(J19+J20)/2+10>0,IF(H19<0,-(ABS(H19)-ABS(I19)-(J19+J20)/2+10),H19-ABS(I19)-(J19+J20)/2+10),0)),0) -> 0 | O19: =IF(AND(N19>0,N20>0),IF(OR(N19>10,N19<0,N20>10,N20<0),"Fehler",IF(ABS(L19)-ABS(M19)-(N19+N20)/2+10>0,IF(L19<0,-(ABS(L19)-ABS(M19)-(N19+N20)/2+10),L19-ABS(M19)-(N19+N20)/2+10),0)),0) -> 0 | S19: =IF(AND(R19>0,R20>0),IF(OR(R19>10,R19<0,R20>10,R20<0),"Fehler",IF(ABS(P19)-ABS(Q19)-(R19+R20)/2+10>0,IF(P19<0,-(ABS(P19)-ABS(Q19)-(R19+R20)/2+10),P19-ABS(Q19)-(R19+R20)/2+10),0)),0) -> 0 | W19: =IF(AND(V19>0,V20>0),IF(OR(V19>10,V19<0,V20>10,V20<0),"Fehler",IF(ABS(T19)-ABS(U19)-(V19+V20)/2+10>0,IF(T19<0,-(ABS(T19)-ABS(U19)-(V19+V20)/2+10),T19-ABS(U19)-(V19+V20)/2+10),0)),0) -> 0 | AA19: =IF(AND(Z19>0,Z20>0),IF(OR(Z19>10,Z19<0,Z20>10,Z20<0),"Fehler",IF(ABS(X19)-ABS(Y19)-(Z19+Z20)/2+10>0,IF(X19<0,-(ABS(X19)-ABS(Y19)-(Z19+Z20)/2+10),X19-ABS(Y19)-(Z19+Z20)/2+10),0)),0) -> 0 | AB19: =ABS(G19)+ABS(K19)+ABS(O19)+ABS(S19)+ABS(W19)+ABS(AA19) -> 0
B21: =IF(A21>0,B19,"") ->  | C21: =IF(A21<>"", VLOOKUP(A21,'Wertungszettel M9'!A$7:B$36,2,0),"") ->  | G21: =IF(AND(F21>0,F22>0),IF(OR(F21>10,F21<0,F22>10,F22<0),"Fehler",IF(ABS(D21)-ABS(E21)-(F21+F22)/2+10>0,IF(D21<0,-(ABS(D21)-ABS(E21)-(F21+F22)/2+10),D21-ABS(E21)-(F21+F22)/2+10),0)),0) -> 0 | K21: =IF(AND(J21>0,J22>0),IF(OR(J21>10,J21<0,J22>10,J22<0),"Fehler",IF(ABS(H21)-ABS(I21)-(J21+J22)/2+10>0,IF(H21<0,-(ABS(H21)-ABS(I21)-(J21+J22)/2+10),H21-ABS(I21)-(J21+J22)/2+10),0)),0) -> 0 | O21: =IF(AND(N21>0,N22>0),IF(OR(N21>10,N21<0,N22>10,N22<0),"Fehler",IF(ABS(L21)-ABS(M21)-(N21+N22)/2+10>0,IF(L21<0,-(ABS(L21)-ABS(M21)-(N21+N22)/2+10),L21-ABS(M21)-(N21+N22)/2+10),0)),0) -> 0 | S21: =IF(AND(R21>0,R22>0),IF(OR(R21>10,R21<0,R22>10,R22<0),"Fehler",IF(ABS(P21)-ABS(Q21)-(R21+R22)/2+10>0,IF(P21<0,-(ABS(P21)-ABS(Q21)-(R21+R22)/2+10),P21-ABS(Q21)-(R21+R22)/2+10),0)),0) -> 0 | W21: =IF(AND(V21>0,V22>0),IF(OR(V21>10,V21<0,V22>10,V22<0),"Fehler",IF(ABS(T21)-ABS(U21)-(V21+V22)/2+10>0,IF(T21<0,-(ABS(T21)-ABS(U21)-(V21+V22)/2+10),T21-ABS(U21)-(V21+V22)/2+10),0)),0) -> 0 | AA21: =IF(AND(Z21>0,Z22>0),IF(OR(Z21>10,Z21<0,Z22>10,Z22<0),"Fehler",IF(ABS(X21)-ABS(Y21)-(Z21+Z22)/2+10>0,IF(X21<0,-(ABS(X21)-ABS(Y21)-(Z21+Z22)/2+10),X21-ABS(Y21)-(Z21+Z22)/2+10),0)),0) -> 0 | AB21: =ABS(G21)+ABS(K21)+ABS(O21)+ABS(S21)+ABS(W21)+ABS(AA21) -> 0
B23: =IF(A23>0,B21,"") ->  | C23: =IF(A23<>"", VLOOKUP(A23,'Wertungszettel M9'!A$7:B$36,2,0),"") ->  | G23: =IF(AND(F23>0,F24>0),IF(OR(F23>10,F23<0,F24>10,F24<0),"Fehler",IF(ABS(D23)-ABS(E23)-(F23+F24)/2+10>0,IF(D23<0,-(ABS(D23)-ABS(E23)-(F23+F24)/2+10),D23-ABS(E23)-(F23+F24)/2+10),0)),0) -> 0 | K23: =IF(AND(J23>0,J24>0),IF(OR(J23>10,J23<0,J24>10,J24<0),"Fehler",IF(ABS(H23)-ABS(I23)-(J23+J24)/2+10>0,IF(H23<0,-(ABS(H23)-ABS(I23)-(J23+J24)/2+10),H23-ABS(I23)-(J23+J24)/2+10),0)),0) -> 0 | O23: =IF(AND(N23>0,N24>0),IF(OR(N23>10,N23<0,N24>10,N24<0),"Fehler",IF(ABS(L23)-ABS(M23)-(N23+N24)/2+10>0,IF(L23<0,-(ABS(L23)-ABS(M23)-(N23+N24)/2+10),L23-ABS(M23)-(N23+N24)/2+10),0)),0) -> 0 | S23: =IF(AND(R23>0,R24>0),IF(OR(R23>10,R23<0,R24>10,R24<0),"Fehler",IF(ABS(P23)-ABS(Q23)-(R23+R24)/2+10>0,IF(P23<0,-(ABS(P23)-ABS(Q23)-(R23+R24)/2+10),P23-ABS(Q23)-(R23+R24)/2+10),0)),0) -> 0 | W23: =IF(AND(V23>0,V24>0),IF(OR(V23>10,V23<0,V24>10,V24<0),"Fehler",IF(ABS(T23)-ABS(U23)-(V23+V24)/2+10>0,IF(T23<0,-(ABS(T23)-ABS(U23)-(V23+V24)/2+10),T23-ABS(U23)-(V23+V24)/2+10),0)),0) -> 0 | AA23: =IF(AND(Z23>0,Z24>0),IF(OR(Z23>10,Z23<0,Z24>10,Z24<0),"Fehler",IF(ABS(X23)-ABS(Y23)-(Z23+Z24)/2+10>0,IF(X23<0,-(ABS(X23)-ABS(Y23)-(Z23+Z24)/2+10),X23-ABS(Y23)-(Z23+Z24)/2+10),0)),0) -> 0 | AB23: =ABS(G23)+ABS(K23)+ABS(O23)+ABS(S23)+ABS(W23)+ABS(AA23) -> 0
B25: =IF(A25>0,B23,"") ->  | C25: =IF(A25<>"", VLOOKUP(A25,'Wertungszettel M9'!A$7:B$36,2,0),"") ->  | G25: =IF(AND(F25>0,F26>0),IF(OR(F25>10,F25<0,F26>10,F26<0),"Fehler",IF(ABS(D25)-ABS(E25)-(F25+F26)/2+10>0,IF(D25<0,-(ABS(D25)-ABS(E25)-(F25+F26)/2+10),D25-ABS(E25)-(F25+F26)/2+10),0)),0) -> 0 | K25: =IF(AND(J25>0,J26>0),IF(OR(J25>10,J25<0,J26>10,J26<0),"Fehler",IF(ABS(H25)-ABS(I25)-(J25+J26)/2+10>0,IF(H25<0,-(ABS(H25)-ABS(I25)-(J25+J26)/2+10),H25-ABS(I25)-(J25+J26)/2+10),0)),0) -> 0 | O25: =IF(AND(N25>0,N26>0),IF(OR(N25>10,N25<0,N26>10,N26<0),"Fehler",IF(ABS(L25)-ABS(M25)-(N25+N26)/2+10>0,IF(L25<0,-(ABS(L25)-ABS(M25)-(N25+N26)/2+10),L25-ABS(M25)-(N25+N26)/2+10),0)),0) -> 0 | S25: =IF(AND(R25>0,R26>0),IF(OR(R25>10,R25<0,R26>10,R26<0),"Fehler",IF(ABS(P25)-ABS(Q25)-(R25+R26)/2+10>0,IF(P25<0,-(ABS(P25)-ABS(Q25)-(R25+R26)/2+10),P25-ABS(Q25)-(R25+R26)/2+10),0)),0) -> 0 | W25: =IF(AND(V25>0,V26>0),IF(OR(V25>10,V25<0,V26>10,V26<0),"Fehler",IF(ABS(T25)-ABS(U25)-(V25+V26)/2+10>0,IF(T25<0,-(ABS(T25)-ABS(U25)-(V25+V26)/2+10),T25-ABS(U25)-(V25+V26)/2+10),0)),0) -> 0 | AA25: =IF(AND(Z25>0,Z26>0),IF(OR(Z25>10,Z25<0,Z26>10,Z26<0),"Fehler",IF(ABS(X25)-ABS(Y25)-(Z25+Z26)/2+10>0,IF(X25<0,-(ABS(X25)-ABS(Y25)-(Z25+Z26)/2+10),X25-ABS(Y25)-(Z25+Z26)/2+10),0)),0) -> 0 | AB25: =ABS(G25)+ABS(K25)+ABS(O25)+ABS(S25)+ABS(W25)+ABS(AA25) -> 0
B27: =IF(A27>0,B25,"") ->  | C27: =IF(A27<>"", VLOOKUP(A27,'Wertungszettel M9'!A$7:B$36,2,0),"") ->  | G27: =IF(AND(F27>0,F28>0),IF(OR(F27>10,F27<0,F28>10,F28<0),"Fehler",IF(ABS(D27)-ABS(E27)-(F27+F28)/2+10>0,IF(D27<0,-(ABS(D27)-ABS(E27)-(F27+F28)/2+10),D27-ABS(E27)-(F27+F28)/2+10),0)),0) -> 0 | K27: =IF(AND(J27>0,J28>0),IF(OR(J27>10,J27<0,J28>10,J28<0),"Fehler",IF(ABS(H27)-ABS(I27)-(J27+J28)/2+10>0,IF(H27<0,-(ABS(H27)-ABS(I27)-(J27+J28)/2+10),H27-ABS(I27)-(J27+J28)/2+10),0)),0) -> 0 | O27: =IF(AND(N27>0,N28>0),IF(OR(N27>10,N27<0,N28>10,N28<0),"Fehler",IF(ABS(L27)-ABS(M27)-(N27+N28)/2+10>0,IF(L27<0,-(ABS(L27)-ABS(M27)-(N27+N28)/2+10),L27-ABS(M27)-(N27+N28)/2+10),0)),0) -> 0 | S27: =IF(AND(R27>0,R28>0),IF(OR(R27>10,R27<0,R28>10,R28<0),"Fehler",IF(ABS(P27)-ABS(Q27)-(R27+R28)/2+10>0,IF(P27<0,-(ABS(P27)-ABS(Q27)-(R27+R28)/2+10),P27-ABS(Q27)-(R27+R28)/2+10),0)),0) -> 0 | W27: =IF(AND(V27>0,V28>0),IF(OR(V27>10,V27<0,V28>10,V28<0),"Fehler",IF(ABS(T27)-ABS(U27)-(V27+V28)/2+10>0,IF(T27<0,-(ABS(T27)-ABS(U27)-(V27+V28)/2+10),T27-ABS(U27)-(V27+V28)/2+10),0)),0) -> 0 | AA27: =IF(AND(Z27>0,Z28>0),IF(OR(Z27>10,Z27<0,Z28>10,Z28<0),"Fehler",IF(ABS(X27)-ABS(Y27)-(Z27+Z28)/2+10>0,IF(X27<0,-(ABS(X27)-ABS(Y27)-(Z27+Z28)/2+10),X27-ABS(Y27)-(Z27+Z28)/2+10),0)),0) -> 0 | AB27: =ABS(G27)+ABS(K27)+ABS(O27)+ABS(S27)+ABS(W27)+ABS(AA27) -> 0
G30: =SUM(LARGE(G9:G28,1),LARGE(G9:G28,2),LARGE(G9:G28,3)) -> 0 | K30: =SUM(LARGE(K9:K28,1),LARGE(K9:K28,2),LARGE(K9:K28,3)) -> 0 | O30: =SUM(LARGE(O9:O28,1),LARGE(O9:O28,2),LARGE(O9:O28,3)) -> 0 | S30: =SUM(LARGE(S9:S28,1),LARGE(S9:S28,2),LARGE(S9:S28,3)) -> 0 | W30: =SUM(LARGE(W9:W28,1),LARGE(W9:W28,2),LARGE(W9:W28,3)) -> 0 | AA30: =SUM(LARGE(AA9:AA28,1),LARGE(AA9:AA28,2),LARGE(AA9:AA28,3)) -> 0 | AB30: =SUM(G30,K30,O30,S30,W30,AA30) -> 0

Sheet M10 (hidden)
A1: Wettkampfbogen | M1: Datum: | O1: ='INFO Blatt'!B13 -> 2018-03-03
M3: Ort: | O3: ='INFO Blatt'!B11 -> Hehlen
N5: Liga: | O5: ='INFO Blatt'!B7 -> Schülerliga Süd
A7: Name | B7: Verein | C7: Jg | D7: Boden | H7: Pferd | L7: Ringe | P7: Sprung | T7: Barren | X7: Reck | AB7: Ges.
D8: D-Note | E8: Abzug OK | F8: E- Abzug | G8: Note | H8: D-Note | I8: Abzug OK | J8: E- Abzug | K8: Note | L8: D-Note | M8: Abzug OK | N8: E-Abzug | O8: Note | P8: D-Note | Q8: Abzug OK | R8: E-Abzug | S8: Note | T8: D-Note | U8: Abzug OK | V8: E-Abzug | W8: Note | X8: D-Note | Y8: Abzug OK | Z8: E-Abzug | AA8: Note
B9: =Formeln!A14 -> M10 | C9: =IF(A9<>"", VLOOKUP(A9,'Wertungszettel M10'!A$7:B$36,2,0),"") ->  | G9: =IF(AND(F9>0,F10>0),IF(OR(F9>10,F9<0,F10>10,F10<0),"Fehler",IF(ABS(D9)-ABS(E9)-(F9+F10)/2+10>0,IF(D9<0,-(ABS(D9)-ABS(E9)-(F9+F10)/2+10),D9-ABS(E9)-(F9+F10)/2+10),0)),0) -> 0 | K9: =IF(AND(J9>0,J10>0),IF(OR(J9>10,J9<0,J10>10,J10<0),"Fehler",IF(ABS(H9)-ABS(I9)-(J9+J10)/2+10>0,IF(H9<0,-(ABS(H9)-ABS(I9)-(J9+J10)/2+10),H9-ABS(I9)-(J9+J10)/2+10),0)),0) -> 0 | O9: =IF(AND(N9>0,N10>0),IF(OR(N9>10,N9<0,N10>10,N10<0),"Fehler",IF(ABS(L9)-ABS(M9)-(N9+N10)/2+10>0,IF(L9<0,-(ABS(L9)-ABS(M9)-(N9+N10)/2+10),L9-ABS(M9)-(N9+N10)/2+10),0)),0) -> 0 | S9: =IF(AND(R9>0,R10>0),IF(OR(R9>10,R9<0,R10>10,R10<0),"Fehler",IF(ABS(P9)-ABS(Q9)-(R9+R10)/2+10>0,IF(P9<0,-(ABS(P9)-ABS(Q9)-(R9+R10)/2+10),P9-ABS(Q9)-(R9+R10)/2+10),0)),0) -> 0 | W9: =IF(AND(V9>0,V10>0),IF(OR(V9>10,V9<0,V10>10,V10<0),"Fehler",IF(ABS(T9)-ABS(U9)-(V9+V10)/2+10>0,IF(T9<0,-(ABS(T9)-ABS(U9)-(V9+V10)/2+10),T9-ABS(U9)-(V9+V10)/2+10),0)),0) -> 0 | AA9: =IF(AND(Z9>0,Z10>0),IF(OR(Z9>10,Z9<0,Z10>10,Z10<0),"Fehler",IF(ABS(X9)-ABS(Y9)-(Z9+Z10)/2+10>0,IF(X9<0,-(ABS(X9)-ABS(Y9)-(Z9+Z10)/2+10),X9-ABS(Y9)-(Z9+Z10)/2+10),0)),0) -> 0 | AB9: =ABS(G9)+ABS(K9)+ABS(O9)+ABS(S9)+ABS(W9)+ABS(AA9) -> 0
B11: =IF(A11>0,B9,"") ->  | C11: =IF(A11<>"", VLOOKUP(A11,'Wertungszettel M10'!A$7:B$36,2),"") ->  | G11: =IF(AND(F11>0,F12>0),IF(OR(F11>10,F11<0,F12>10,F12<0),"Fehler",IF(ABS(D11)-ABS(E11)-(F11+F12)/2+10>0,IF(D11<0,-(ABS(D11)-ABS(E11)-(F11+F12)/2+10),D11-ABS(E11)-(F11+F12)/2+10),0)),0) -> 0 | K11: =IF(AND(J11>0,J12>0),IF(OR(J11>10,J11<0,J12>10,J12<0),"Fehler",IF(ABS(H11)-ABS(I11)-(J11+J12)/2+10>0,IF(H11<0,-(ABS(H11)-ABS(I11)-(J11+J12)/2+10),H11-ABS(I11)-(J11+J12)/2+10),0)),0) -> 0 | O11: =IF(AND(N11>0,N12>0),IF(OR(N11>10,N11<0,N12>10,N12<0),"Fehler",IF(ABS(L11)-ABS(M11)-(N11+N12)/2+10>0,IF(L11<0,-(ABS(L11)-ABS(M11)-(N11+N12)/2+10),L11-ABS(M11)-(N11+N12)/2+10),0)),0) -> 0 | S11: =IF(AND(R11>0,R12>0),IF(OR(R11>10,R11<0,R12>10,R12<0),"Fehler",IF(ABS(P11)-ABS(Q11)-(R11+R12)/2+10>0,IF(P11<0,-(ABS(P11)-ABS(Q11)-(R11+R12)/2+10),P11-ABS(Q11)-(R11+R12)/2+10),0)),0) -> 0 | W11: =IF(AND(V11>0,V12>0),IF(OR(V11>10,V11<0,V12>10,V12<0),"Fehler",IF(ABS(T11)-ABS(U11)-(V11+V12)/2+10>0,IF(T11<0,-(ABS(T11)-ABS(U11)-(V11+V12)/2+10),T11-ABS(U11)-(V11+V12)/2+10),0)),0) -> 0 | AA11: =IF(AND(Z11>0,Z12>0),IF(OR(Z11>10,Z11<0,Z12>10,Z12<0),"Fehler",IF(ABS(X11)-ABS(Y11)-(Z11+Z12)/2+10>0,IF(X11<0,-(ABS(X11)-ABS(Y11)-(Z11+Z12)/2+10),X11-ABS(Y11)-(Z11+Z12)/2+10),0)),0) -> 0 | AB11: =ABS(G11)+ABS(K11)+ABS(O11)+ABS(S11)+ABS(W11)+ABS(AA11) -> 0
B13: =IF(A13>0,B11,"") ->  | C13: =IF(A13<>"", VLOOKUP(A13,'Wertungszettel M10'!A$7:B$36,2),"") ->  | G13: =IF(AND(F13>0,F14>0),IF(OR(F13>10,F13<0,F14>10,F14<0),"Fehler",IF(ABS(D13)-ABS(E13)-(F13+F14)/2+10>0,IF(D13<0,-(ABS(D13)-ABS(E13)-(F13+F14)/2+10),D13-ABS(E13)-(F13+F14)/2+10),0)),0) -> 0 | K13: =IF(AND(J13>0,J14>0),IF(OR(J13>10,J13<0,J14>10,J14<0),"Fehler",IF(ABS(H13)-ABS(I13)-(J13+J14)/2+10>0,IF(H13<0,-(ABS(H13)-ABS(I13)-(J13+J14)/2+10),H13-ABS(I13)-(J13+J14)/2+10),0)),0) -> 0 | O13: =IF(AND(N13>0,N14>0),IF(OR(N13>10,N13<0,N14>10,N14<0),"Fehler",IF(ABS(L13)-ABS(M13)-(N13+N14)/2+10>0,IF(L13<0,-(ABS(L13)-ABS(M13)-(N13+N14)/2+10),L13-ABS(M13)-(N13+N14)/2+10),0)),0) -> 0 | S13: =IF(AND(R13>0,R14>0),IF(OR(R13>10,R13<0,R14>10,R14<0),"Fehler",IF(ABS(P13)-ABS(Q13)-(R13+R14)/2+10>0,IF(P13<0,-(ABS(P13)-ABS(Q13)-(R13+R14)/2+10),P13-ABS(Q13)-(R13+R14)/2+10),0)),0) -> 0 | W13: =IF(AND(V13>0,V14>0),IF(OR(V13>10,V13<0,V14>10,V14<0),"Fehler",IF(ABS(T13)-ABS(U13)-(V13+V14)/2+10>0,IF(T13<0,-(ABS(T13)-ABS(U13)-(V13+V14)/2+10),T13-ABS(U13)-(V13+V14)/2+10),0)),0) -> 0 | AA13: =IF(AND(Z13>0,Z14>0),IF(OR(Z13>10,Z13<0,Z14>10,Z14<0),"Fehler",IF(ABS(X13)-ABS(Y13)-(Z13+Z14)/2+10>0,IF(X13<0,-(ABS(X13)-ABS(Y13)-(Z13+Z14)/2+10),X13-ABS(Y13)-(Z13+Z14)/2+10),0)),0) -> 0 | AB13: =ABS(G13)+ABS(K13)+ABS(O13)+ABS(S13)+ABS(W13)+ABS(AA13) -> 0
B15: =IF(A15>0,B13,"") ->  | C15: =IF(A15<>"", VLOOKUP(A15,'Wertungszettel M10'!A$7:B$36,2),"") ->  | G15: =IF(AND(F15>0,F16>0),IF(OR(F15>10,F15<0,F16>10,F16<0),"Fehler",IF(ABS(D15)-ABS(E15)-(F15+F16)/2+10>0,IF(D15<0,-(ABS(D15)-ABS(E15)-(F15+F16)/2+10),D15-ABS(E15)-(F15+F16)/2+10),0)),0) -> 0 | K15: =IF(AND(J15>0,J16>0),IF(OR(J15>10,J15<0,J16>10,J16<0),"Fehler",IF(ABS(H15)-ABS(I15)-(J15+J16)/2+10>0,IF(H15<0,-(ABS(H15)-ABS(I15)-(J15+J16)/2+10),H15-ABS(I15)-(J15+J16)/2+10),0)),0) -> 0 | O15: =IF(AND(N15>0,N16>0),IF(OR(N15>10,N15<0,N16>10,N16<0),"Fehler",IF(ABS(L15)-ABS(M15)-(N15+N16)/2+10>0,IF(L15<0,-(ABS(L15)-ABS(M15)-(N15+N16)/2+10),L15-ABS(M15)-(N15+N16)/2+10),0)),0) -> 0 | S15: =IF(AND(R15>0,R16>0),IF(OR(R15>10,R15<0,R16>10,R16<0),"Fehler",IF(ABS(P15)-ABS(Q15)-(R15+R16)/2+10>0,IF(P15<0,-(ABS(P15)-ABS(Q15)-(R15+R16)/2+10),P15-ABS(Q15)-(R15+R16)/2+10),0)),0) -> 0 | W15: =IF(AND(V15>0,V16>0),IF(OR(V15>10,V15<0,V16>10,V16<0),"Fehler",IF(ABS(T15)-ABS(U15)-(V15+V16)/2+10>0,IF(T15<0,-(ABS(T15)-ABS(U15)-(V15+V16)/2+10),T15-ABS(U15)-(V15+V16)/2+10),0)),0) -> 0 | AA15: =IF(AND(Z15>0,Z16>0),IF(OR(Z15>10,Z15<0,Z16>10,Z16<0),"Fehler",IF(ABS(X15)-ABS(Y15)-(Z15+Z16)/2+10>0,IF(X15<0,-(ABS(X15)-ABS(Y15)-(Z15+Z16)/2+10),X15-ABS(Y15)-(Z15+Z16)/2+10),0)),0) -> 0 | AB15: =ABS(G15)+ABS(K15)+ABS(O15)+ABS(S15)+ABS(W15)+ABS(AA15) -> 0
B17: =IF(A17>0,B15,"") ->  | C17: =IF(A17<>"", VLOOKUP(A17,'Wertungszettel M10'!A$7:B$36,2),"") ->  | G17: =IF(AND(F17>0,F18>0),IF(OR(F17>10,F17<0,F18>10,F18<0),"Fehler",IF(ABS(D17)-ABS(E17)-(F17+F18)/2+10>0,IF(D17<0,-(ABS(D17)-ABS(E17)-(F17+F18)/2+10),D17-ABS(E17)-(F17+F18)/2+10),0)),0) -> 0 | K17: =IF(AND(J17>0,J18>0),IF(OR(J17>10,J17<0,J18>10,J18<0),"Fehler",IF(ABS(H17)-ABS(I17)-(J17+J18)/2+10>0,IF(H17<0,-(ABS(H17)-ABS(I17)-(J17+J18)/2+10),H17-ABS(I17)-(J17+J18)/2+10),0)),0) -> 0 | O17: =IF(AND(N17>0,N18>0),IF(OR(N17>10,N17<0,N18>10,N18<0),"Fehler",IF(ABS(L17)-ABS(M17)-(N17+N18)/2+10>0,IF(L17<0,-(ABS(L17)-ABS(M17)-(N17+N18)/2+10),L17-ABS(M17)-(N17+N18)/2+10),0)),0) -> 0 | S17: =IF(AND(R17>0,R18>0),IF(OR(R17>10,R17<0,R18>10,R18<0),"Fehler",IF(ABS(P17)-ABS(Q17)-(R17+R18)/2+10>0,IF(P17<0,-(ABS(P17)-ABS(Q17)-(R17+R18)/2+10),P17-ABS(Q17)-(R17+R18)/2+10),0)),0) -> 0 | W17: =IF(AND(V17>0,V18>0),IF(OR(V17>10,V17<0,V18>10,V18<0),"Fehler",IF(ABS(T17)-ABS(U17)-(V17+V18)/2+10>0,IF(T17<0,-(ABS(T17)-ABS(U17)-(V17+V18)/2+10),T17-ABS(U17)-(V17+V18)/2+10),0)),0) -> 0 | AA17: =IF(AND(Z17>0,Z18>0),IF(OR(Z17>10,Z17<0,Z18>10,Z18<0),"Fehler",IF(ABS(X17)-ABS(Y17)-(Z17+Z18)/2+10>0,IF(X17<0,-(ABS(X17)-ABS(Y17)-(Z17+Z18)/2+10),X17-ABS(Y17)-(Z17+Z18)/2+10),0)),0) -> 0 | AB17: =ABS(G17)+ABS(K17)+ABS(O17)+ABS(S17)+ABS(W17)+ABS(AA17) -> 0
B19: =IF(A19>0,B17,"") ->  | C19: =IF(A19<>"", VLOOKUP(A19,'Wertungszettel M10'!A$7:B$36,2),"") ->  | G19: =IF(AND(F19>0,F20>0),IF(OR(F19>10,F19<0,F20>10,F20<0),"Fehler",IF(ABS(D19)-ABS(E19)-(F19+F20)/2+10>0,IF(D19<0,-(ABS(D19)-ABS(E19)-(F19+F20)/2+10),D19-ABS(E19)-(F19+F20)/2+10),0)),0) -> 0 | K19: =IF(AND(J19>0,J20>0),IF(OR(J19>10,J19<0,J20>10,J20<0),"Fehler",IF(ABS(H19)-ABS(I19)-(J19+J20)/2+10>0,IF(H19<0,-(ABS(H19)-ABS(I19)-(J19+J20)/2+10),H19-ABS(I19)-(J19+J20)/2+10),0)),0) -> 0 | O19: =IF(AND(N19>0,N20>0),IF(OR(N19>10,N19<0,N20>10,N20<0),"Fehler",IF(ABS(L19)-ABS(M19)-(N19+N20)/2+10>0,IF(L19<0,-(ABS(L19)-ABS(M19)-(N19+N20)/2+10),L19-ABS(M19)-(N19+N20)/2+10),0)),0) -> 0 | S19: =IF(AND(R19>0,R20>0),IF(OR(R19>10,R19<0,R20>10,R20<0),"Fehler",IF(ABS(P19)-ABS(Q19)-(R19+R20)/2+10>0,IF(P19<0,-(ABS(P19)-ABS(Q19)-(R19+R20)/2+10),P19-ABS(Q19)-(R19+R20)/2+10),0)),0) -> 0 | W19: =IF(AND(V19>0,V20>0),IF(OR(V19>10,V19<0,V20>10,V20<0),"Fehler",IF(ABS(T19)-ABS(U19)-(V19+V20)/2+10>0,IF(T19<0,-(ABS(T19)-ABS(U19)-(V19+V20)/2+10),T19-ABS(U19)-(V19+V20)/2+10),0)),0) -> 0 | AA19: =IF(AND(Z19>0,Z20>0),IF(OR(Z19>10,Z19<0,Z20>10,Z20<0),"Fehler",IF(ABS(X19)-ABS(Y19)-(Z19+Z20)/2+10>0,IF(X19<0,-(ABS(X19)-ABS(Y19)-(Z19+Z20)/2+10),X19-ABS(Y19)-(Z19+Z20)/2+10),0)),0) -> 0 | AB19: =ABS(G19)+ABS(K19)+ABS(O19)+ABS(S19)+ABS(W19)+ABS(AA19) -> 0
B21: =IF(A21>0,B19,"") ->  | C21: =IF(A21<>"", VLOOKUP(A21,'Wertungszettel M10'!A$7:B$36,2),"") ->  | G21: =IF(AND(F21>0,F22>0),IF(OR(F21>10,F21<0,F22>10,F22<0),"Fehler",IF(ABS(D21)-ABS(E21)-(F21+F22)/2+10>0,IF(D21<0,-(ABS(D21)-ABS(E21)-(F21+F22)/2+10),D21-ABS(E21)-(F21+F22)/2+10),0)),0) -> 0 | K21: =IF(AND(J21>0,J22>0),IF(OR(J21>10,J21<0,J22>10,J22<0),"Fehler",IF(ABS(H21)-ABS(I21)-(J21+J22)/2+10>0,IF(H21<0,-(ABS(H21)-ABS(I21)-(J21+J22)/2+10),H21-ABS(I21)-(J21+J22)/2+10),0)),0) -> 0 | O21: =IF(AND(N21>0,N22>0),IF(OR(N21>10,N21<0,N22>10,N22<0),"Fehler",IF(ABS(L21)-ABS(M21)-(N21+N22)/2+10>0,IF(L21<0,-(ABS(L21)-ABS(M21)-(N21+N22)/2+10),L21-ABS(M21)-(N21+N22)/2+10),0)),0) -> 0 | S21: =IF(AND(R21>0,R22>0),IF(OR(R21>10,R21<0,R22>10,R22<0),"Fehler",IF(ABS(P21)-ABS(Q21)-(R21+R22)/2+10>0,IF(P21<0,-(ABS(P21)-ABS(Q21)-(R21+R22)/2+10),P21-ABS(Q21)-(R21+R22)/2+10),0)),0) -> 0 | W21: =IF(AND(V21>0,V22>0),IF(OR(V21>10,V21<0,V22>10,V22<0),"Fehler",IF(ABS(T21)-ABS(U21)-(V21+V22)/2+10>0,IF(T21<0,-(ABS(T21)-ABS(U21)-(V21+V22)/2+10),T21-ABS(U21)-(V21+V22)/2+10),0)),0) -> 0 | AA21: =IF(AND(Z21>0,Z22>0),IF(OR(Z21>10,Z21<0,Z22>10,Z22<0),"Fehler",IF(ABS(X21)-ABS(Y21)-(Z21+Z22)/2+10>0,IF(X21<0,-(ABS(X21)-ABS(Y21)-(Z21+Z22)/2+10),X21-ABS(Y21)-(Z21+Z22)/2+10),0)),0) -> 0 | AB21: =ABS(G21)+ABS(K21)+ABS(O21)+ABS(S21)+ABS(W21)+ABS(AA21) -> 0
B23: =IF(A23>0,B21,"") ->  | C23: =IF(A23<>"", VLOOKUP(A23,'Wertungszettel M10'!A$7:B$36,2),"") ->  | G23: =IF(AND(F23>0,F24>0),IF(OR(F23>10,F23<0,F24>10,F24<0),"Fehler",IF(ABS(D23)-ABS(E23)-(F23+F24)/2+10>0,IF(D23<0,-(ABS(D23)-ABS(E23)-(F23+F24)/2+10),D23-ABS(E23)-(F23+F24)/2+10),0)),0) -> 0 | K23: =IF(AND(J23>0,J24>0),IF(OR(J23>10,J23<0,J24>10,J24<0),"Fehler",IF(ABS(H23)-ABS(I23)-(J23+J24)/2+10>0,IF(H23<0,-(ABS(H23)-ABS(I23)-(J23+J24)/2+10),H23-ABS(I23)-(J23+J24)/2+10),0)),0) -> 0 | O23: =IF(AND(N23>0,N24>0),IF(OR(N23>10,N23<0,N24>10,N24<0),"Fehler",IF(ABS(L23)-ABS(M23)-(N23+N24)/2+10>0,IF(L23<0,-(ABS(L23)-ABS(M23)-(N23+N24)/2+10),L23-ABS(M23)-(N23+N24)/2+10),0)),0) -> 0 | S23: =IF(AND(R23>0,R24>0),IF(OR(R23>10,R23<0,R24>10,R24<0),"Fehler",IF(ABS(P23)-ABS(Q23)-(R23+R24)/2+10>0,IF(P23<0,-(ABS(P23)-ABS(Q23)-(R23+R24)/2+10),P23-ABS(Q23)-(R23+R24)/2+10),0)),0) -> 0 | W23: =IF(AND(V23>0,V24>0),IF(OR(V23>10,V23<0,V24>10,V24<0),"Fehler",IF(ABS(T23)-ABS(U23)-(V23+V24)/2+10>0,IF(T23<0,-(ABS(T23)-ABS(U23)-(V23+V24)/2+10),T23-ABS(U23)-(V23+V24)/2+10),0)),0) -> 0 | AA23: =IF(AND(Z23>0,Z24>0),IF(OR(Z23>10,Z23<0,Z24>10,Z24<0),"Fehler",IF(ABS(X23)-ABS(Y23)-(Z23+Z24)/2+10>0,IF(X23<0,-(ABS(X23)-ABS(Y23)-(Z23+Z24)/2+10),X23-ABS(Y23)-(Z23+Z24)/2+10),0)),0) -> 0 | AB23: =ABS(G23)+ABS(K23)+ABS(O23)+ABS(S23)+ABS(W23)+ABS(AA23) -> 0
B25: =IF(A25>0,B23,"") ->  | C25: =IF(A25<>"", VLOOKUP(A25,'Wertungszettel M10'!A$7:B$36,2),"") ->  | G25: =IF(AND(F25>0,F26>0),IF(OR(F25>10,F25<0,F26>10,F26<0),"Fehler",IF(ABS(D25)-ABS(E25)-(F25+F26)/2+10>0,IF(D25<0,-(ABS(D25)-ABS(E25)-(F25+F26)/2+10),D25-ABS(E25)-(F25+F26)/2+10),0)),0) -> 0 | K25: =IF(AND(J25>0,J26>0),IF(OR(J25>10,J25<0,J26>10,J26<0),"Fehler",IF(ABS(H25)-ABS(I25)-(J25+J26)/2+10>0,IF(H25<0,-(ABS(H25)-ABS(I25)-(J25+J26)/2+10),H25-ABS(I25)-(J25+J26)/2+10),0)),0) -> 0 | O25: =IF(AND(N25>0,N26>0),IF(OR(N25>10,N25<0,N26>10,N26<0),"Fehler",IF(ABS(L25)-ABS(M25)-(N25+N26)/2+10>0,IF(L25<0,-(ABS(L25)-ABS(M25)-(N25+N26)/2+10),L25-ABS(M25)-(N25+N26)/2+10),0)),0) -> 0 | S25: =IF(AND(R25>0,R26>0),IF(OR(R25>10,R25<0,R26>10,R26<0),"Fehler",IF(ABS(P25)-ABS(Q25)-(R25+R26)/2+10>0,IF(P25<0,-(ABS(P25)-ABS(Q25)-(R25+R26)/2+10),P25-ABS(Q25)-(R25+R26)/2+10),0)),0) -> 0 | W25: =IF(AND(V25>0,V26>0),IF(OR(V25>10,V25<0,V26>10,V26<0),"Fehler",IF(ABS(T25)-ABS(U25)-(V25+V26)/2+10>0,IF(T25<0,-(ABS(T25)-ABS(U25)-(V25+V26)/2+10),T25-ABS(U25)-(V25+V26)/2+10),0)),0) -> 0 | AA25: =IF(AND(Z25>0,Z26>0),IF(OR(Z25>10,Z25<0,Z26>10,Z26<0),"Fehler",IF(ABS(X25)-ABS(Y25)-(Z25+Z26)/2+10>0,IF(X25<0,-(ABS(X25)-ABS(Y25)-(Z25+Z26)/2+10),X25-ABS(Y25)-(Z25+Z26)/2+10),0)),0) -> 0 | AB25: =ABS(G25)+ABS(K25)+ABS(O25)+ABS(S25)+ABS(W25)+ABS(AA25) -> 0
B27: =IF(A27>0,B25,"") ->  | C27: =IF(A27<>"", VLOOKUP(A27,'Wertungszettel M10'!A$7:B$36,2),"") ->  | G27: =IF(AND(F27>0,F28>0),IF(OR(F27>10,F27<0,F28>10,F28<0),"Fehler",IF(ABS(D27)-ABS(E27)-(F27+F28)/2+10>0,IF(D27<0,-(ABS(D27)-ABS(E27)-(F27+F28)/2+10),D27-ABS(E27)-(F27+F28)/2+10),0)),0) -> 0 | K27: =IF(AND(J27>0,J28>0),IF(OR(J27>10,J27<0,J28>10,J28<0),"Fehler",IF(ABS(H27)-ABS(I27)-(J27+J28)/2+10>0,IF(H27<0,-(ABS(H27)-ABS(I27)-(J27+J28)/2+10),H27-ABS(I27)-(J27+J28)/2+10),0)),0) -> 0 | O27: =IF(AND(N27>0,N28>0),IF(OR(N27>10,N27<0,N28>10,N28<0),"Fehler",IF(ABS(L27)-ABS(M27)-(N27+N28)/2+10>0,IF(L27<0,-(ABS(L27)-ABS(M27)-(N27+N28)/2+10),L27-ABS(M27)-(N27+N28)/2+10),0)),0) -> 0 | S27: =IF(AND(R27>0,R28>0),IF(OR(R27>10,R27<0,R28>10,R28<0),"Fehler",IF(ABS(P27)-ABS(Q27)-(R27+R28)/2+10>0,IF(P27<0,-(ABS(P27)-ABS(Q27)-(R27+R28)/2+10),P27-ABS(Q27)-(R27+R28)/2+10),0)),0) -> 0 | W27: =IF(AND(V27>0,V28>0),IF(OR(V27>10,V27<0,V28>10,V28<0),"Fehler",IF(ABS(T27)-ABS(U27)-(V27+V28)/2+10>0,IF(T27<0,-(ABS(T27)-ABS(U27)-(V27+V28)/2+10),T27-ABS(U27)-(V27+V28)/2+10),0)),0) -> 0 | AA27: =IF(AND(Z27>0,Z28>0),IF(OR(Z27>10,Z27<0,Z28>10,Z28<0),"Fehler",IF(ABS(X27)-ABS(Y27)-(Z27+Z28)/2+10>0,IF(X27<0,-(ABS(X27)-ABS(Y27)-(Z27+Z28)/2+10),X27-ABS(Y27)-(Z27+Z28)/2+10),0)),0) -> 0 | AB27: =ABS(G27)+ABS(K27)+ABS(O27)+ABS(S27)+ABS(W27)+ABS(AA27) -> 0
G30: =SUM(LARGE(G9:G28,1),LARGE(G9:G28,2),LARGE(G9:G28,3)) -> 0 | K30: =SUM(LARGE(K9:K28,1),LARGE(K9:K28,2),LARGE(K9:K28,3)) -> 0 | O30: =SUM(LARGE(O9:O28,1),LARGE(O9:O28,2),LARGE(O9:O28,3)) -> 0 | S30: =SUM(LARGE(S9:S28,1),LARGE(S9:S28,2),LARGE(S9:S28,3)) -> 0 | W30: =SUM(LARGE(W9:W28,1),LARGE(W9:W28,2),LARGE(W9:W28,3)) -> 0 | AA30: =SUM(LARGE(AA9:AA28,1),LARGE(AA9:AA28,2),LARGE(AA9:AA28,3)) -> 0 | AB30: =SUM(G30,K30,O30,S30,W30,AA30) -> 0

Sheet Wertungszettel M1
A1: Wettkampfbogen | C1: Ort / Datum : | D1: ='INFO Blatt'!B11 -> Hehlen | F1: ='INFO Blatt'!B13 -> 2018-03-03
C2: Mannschaft: | D2: =Formeln!A5 -> MTV Boffzen | F2: Wertungsvorschriften
C3: Liga: | D3: ='INFO Blatt'!B7 -> Schülerliga Süd | F3: ='INFO Blatt'!B5 -> P-Stufen
A5: Name | B5: Jg | C5: Boden
C6: D-Note | D6: Abzug OK | E6: E- Abzug | F6: Note
A7: Erik Komnick | B7: 04
A9: Moritz Böhm | B9: 04
A11: Marc Ormann | B11: 04
A13: Erik Schäfer | B13: 05
A15: Emil Meisner | B15: 06
A38: Name | B38: Jg | C38: Pauschenpferd
C39: D-Note | D39: Abzug OK | E39: E- Abzug | F39: Note
A40: =IF(A7>0,A7,"") -> Erik Komnick | B40: =IF(B7>0,B7,"") -> 04
A42: =IF(A9>0,A9,"") -> Moritz Böhm | B42: 04
A44: =IF(A11>0,A11,"") -> Marc Ormann | B44: 04
A46: =IF(A13>0,A13,"") -> Erik Schäfer | B46: 05
A48: =IF(A15>0,A15,"") -> Emil Meisner | B48: 06
A50: =IF(A17>0,A17,"") -> 
A52: =IF(A19>0,A19,"") -> 
A54: =IF(A21>0,A21,"") -> 
A56: =IF(A23>0,A23,"") -> 
A58: =IF(A25>0,A25,"") -> 
A60: =IF(A27>0,A27,"") -> 
A62: =IF(A29>0,A29,"") -> 
A64: =IF(A31>0,A31,"") -> 
A66: =IF(A33>0,A33,"") -> 
A68: =IF(A35>0,A35,"") -> 
A71: Name | B71: Jg | C71: Ringe
C72: D-Note | D72: Abzug OK | E72: E- Abzug | F72: Note
A73: =IF(A40>0,A40,"") -> Erik Komnick | B73: =IF(B40>0,B40,"") -> 04
A75: =IF(A42>0,A42,"") -> Moritz Böhm | B75: 04
A77: =IF(A44>0,A44,"") -> Marc Ormann | B77: 04
A79: =IF(A46>0,A46,"") -> Erik Schäfer | B79: 05
A81: =IF(A48>0,A48,"") -> Emil Meisner | B81: 06
A83: =IF(A50>0,A50,"") -> 
A85: =IF(A52>0,A52,"") -> 
A87: =IF(A54>0,A54,"") -> 
A89: =IF(A56>0,A56,"") -> 
A91: =IF(A58>0,A58,"") -> 
A93: =IF(A60>0,A60,"") -> 
A95: =IF(A62>0,A62,"") -> 
A97: =IF(A64>0,A64,"") -> 
A99: =IF(A66>0,A66,"") -> 
A101: =IF(A68>0,A68,"") -> 
A104: Name | B104: Jg | C104: Sprung
C105: D-Note | D105: Abzug OK | E105: E- Abzug | F105: Note
A106: =IF(A73>0,A73,"") -> Erik Komnick | B106: =IF(B73>0,B73,"") -> 04
A108: =IF(A75>0,A75,"") -> Moritz Böhm | B108: 04
A110: =IF(A77>0,A77,"") -> Marc Ormann | B110: 04
A112: =IF(A79>0,A79,"") -> Erik Schäfer | B112: 05
A114: =IF(A81>0,A81,"") -> Emil Meisner | B114: 06
A116: =IF(A83>0,A83,"") -> 
A118: =IF(A85>0,A85,"") -> 
A120: =IF(A87>0,A87,"") -> 
A122: =IF(A89>0,A89,"") -> 
A124: =IF(A91>0,A91,"") -> 
A126: =IF(A93>0,A93,"") -> 
A128: =IF(A95>0,A95,"") -> 
A130: =IF(A97>0,A97,"") -> 
A132: =IF(A99>0,A99,"") -> 
A134: =IF(A101>0,A101,"") -> 
A137: Name | B137: Jg | C137: Barren
C138: D-Note | D138: Abzug OK | E138: E- Abzug | F138: Note
A139: =IF(A106>0,A106,"") -> Erik Komnick | B139: =IF(B106>0,B106,"") -> 04
A141: =IF(A108>0,A108,"") -> Moritz Böhm | B141: 04
A143: =IF(A110>0,A110,"") -> Marc Ormann | B143: 04
A145: =IF(A112>0,A112,"") -> Erik Schäfer | B145: 05
A147: =IF(A114>0,A114,"") -> Emil Meisner | B147: 06
A149: =IF(A116>0,A116,"") -> 
A151: =IF(A118>0,A118,"") -> 
A153: =IF(A120>0,A120,"") -> 
A155: =IF(A122>0,A122,"") -> 
A157: =IF(A124>0,A124,"") -> 
A159: =IF(A126>0,A126,"") -> 
A161: =IF(A128>0,A128,"") -> 
A163: =IF(A130>0,A130,"") -> 
A165: =IF(A132>0,A132,"") -> 
A167: =IF(A134>0,A134,"") -> 
A170: Name | B170: Jg | C170: Reck
C171: D-Note | D171: Abzug OK | E171: E- Abzug | F171: Note
A172: =IF(A139>0,A139,"") -> Erik Komnick | B172: =IF(B139>0,B139,"") -> 04
A174: =IF(A141>0,A141,"") -> Moritz Böhm | B174: 04
A176: =IF(A143>0,A143,"") -> Marc Ormann | B176: 04
A178: =IF(A145>0,A145,"") -> Erik Schäfer | B178: 05
A180: =IF(A147>0,A147,"") -> Emil Meisner | B180: 06
A182: =IF(A149>0,A149,"") -> 
A184: =IF(A151>0,A151,"") -> 
A186: =IF(A153>0,A153,"") -> 
A188: =IF(A155>0,A155,"") -> 
A190: =IF(A157>0,A157,"") -> 
A192: =IF(A159>0,A159,"") -> 
A194: =IF(A161>0,A161,"") -> 
A196: =IF(A163>0,A163,"") -> 
A198: =IF(A165>0,A165,"") -> 
A200: =IF(A167>0,A167,"") -> 

Sheet Wertungszettel M2
A1: Wettkampfbogen | C1: Ort / Datum : | D1: ='INFO Blatt'!B11 -> Hehlen | F1: ='INFO Blatt'!B13 -> 2018-03-03
C2: Mannschaft: | D2: =Formeln!A6 -> TC Jahn Hehlen | F2: Wertungsvorschriften
C3: Liga: | D3: ='INFO Blatt'!B7 -> Schülerliga Süd | F3: ='INFO Blatt'!B5 -> P-Stufen
A5: Name | B5: Jg | C5: Boden
C6: D-Note | D6: Abzug OK | E6: E- Abzug | F6: Note
A7: Paul Bähr | B7: 05
A9: Benjamin Berg | B9: 07
A11: Niklas Bohlender | B11: 04
A13: Niclas Brinkmann | B13: 05
A15: Jonas Firedrich | B15: 07
A17: Ilja Kant | B17: 06
A19: Tom Weper | B19: 06
A21: Frederik Zwickert | B21: 07
A38: Name | B38: Jg | C38: Pauschenpferd
C39: D-Note | D39: Abzug OK | E39: E- Abzug | F39: Note
A40: =IF(A7>0,A7,"") -> Paul Bähr | B40: =IF(B7>0,B7,"") -> 05
A42: =IF(A9>0,A9,"") -> Benjamin Berg | B42: 07
A44: =IF(A11>0,A11,"") -> Niklas Bohlender | B44: 04
A46: =IF(A13>0,A13,"") -> Niclas Brinkmann | B46: 05
A48: =IF(A15>0,A15,"") -> Jonas Firedrich | B48: 07
A50: =IF(A17>0,A17,"") -> Ilja Kant | B50: 06
A52: =IF(A19>0,A19,"") -> Tom Weper | B52: 06
A54: =IF(A21>0,A21,"") -> Frederik Zwickert | B54: 07
A56: =IF(A23>0,A23,"") -> 
A58: =IF(A25>0,A25,"") -> 
A60: =IF(A27>0,A27,"") -> 
A62: =IF(A29>0,A29,"") -> 
A64: =IF(A31>0,A31,"") -> 
A66: =IF(A33>0,A33,"") -> 
A68: =IF(A35>0,A35,"") -> 
A71: Name | B71: Jg | C71: Ringe
C72: D-Note | D72: Abzug OK | E72: E- Abzug | F72: Note
A73: =IF(A40>0,A40,"") -> Paul Bähr | B73: =IF(B40>0,B40,"") -> 05
A75: =IF(A42>0,A42,"") -> Benjamin Berg | B75: 07
A77: =IF(A44>0,A44,"") -> Niklas Bohlender | B77: 04
A79: =IF(A46>0,A46,"") -> Niclas Brinkmann | B79: 05
A81: =IF(A48>0,A48,"") -> Jonas Firedrich | B81: 07
A83: =IF(A50>0,A50,"") -> Ilja Kant | B83: 06
A85: =IF(A52>0,A52,"") -> Tom Weper | B85: 06
A87: =IF(A54>0,A54,"") -> Frederik Zwickert | B87: 07
A89: =IF(A56>0,A56,"") -> 
A91: =IF(A58>0,A58,"") -> 
A93: =IF(A60>0,A60,"") -> 
A95: =IF(A62>0,A62,"") -> 
A97: =IF(A64>0,A64,"") -> 
A99: =IF(A66>0,A66,"") -> 
A101: =IF(A68>0,A68,"") -> 
A104: Name | B104: Jg | C104: Sprung
C105: D-Note | D105: Abzug OK | E105: E- Abzug | F105: Note
A106: =IF(A73>0,A73,"") -> Paul Bähr | B106: =IF(B73>0,B73,"") -> 05
A108: =IF(A75>0,A75,"") -> Benjamin Berg | B108: 07
A110: =IF(A77>0,A77,"") -> Niklas Bohlender | B110: 04
A112: =IF(A79>0,A79,"") -> Niclas Brinkmann | B112: 05
A114: =IF(A81>0,A81,"") -> Jonas Firedrich | B114: 07
A116: =IF(A83>0,A83,"") -> Ilja Kant | B116: 06
A118: =IF(A85>0,A85,"") -> Tom Weper | B118: 06
A120: =IF(A87>0,A87,"") -> Frederik Zwickert | B120: 07
A122: =IF(A89>0,A89,"") -> 
A124: =IF(A91>0,A91,"") -> 
A126: =IF(A93>0,A93,"") -> 
A128: =IF(A95>0,A95,"") -> 
A130: =IF(A97>0,A97,"") -> 
A132: =IF(A99>0,A99,"") -> 
A134: =IF(A101>0,A101,"") -> 
A137: Name | B137: Jg | C137: Barren
C138: D-Note | D138: Abzug OK | E138: E- Abzug | F138: Note
A139: =IF(A106>0,A106,"") -> Paul Bähr | B139: =IF(B106>0,B106,"") -> 05
A141: =IF(A108>0,A108,"") -> Benjamin Berg | B141: 07
A143: =IF(A110>0,A110,"") -> Niklas Bohlender | B143: 04
A145: =IF(A112>0,A112,"") -> Niclas Brinkmann | B145: 05
A147: =IF(A114>0,A114,"") -> Jonas Firedrich | B147: 07
A149: =IF(A116>0,A116,"") -> Ilja Kant | B149: 06
A151: =IF(A118>0,A118,"") -> Tom Weper | B151: 06
A153: =IF(A120>0,A120,"") -> Frederik Zwickert | B153: 07
A155: =IF(A122>0,A122,"") -> 
A157: =IF(A124>0,A124,"") -> 
A159: =IF(A126>0,A126,"") -> 
A161: =IF(A128>0,A128,"") -> 
A163: =IF(A130>0,A130,"") -> 
A165: =IF(A132>0,A132,"") -> 
A167: =IF(A134>0,A134,"") -> 
A170: Name | B170: Jg | C170: Reck
C171: D-Note | D171: Abzug OK | E171: E- Abzug | F171: Note
A172: =IF(A139>0,A139,"") -> Paul Bähr | B172: =IF(B139>0,B139,"") -> 05
A174: =IF(A141>0,A141,"") -> Benjamin Berg | B174: 07
A176: =IF(A143>0,A143,"") -> Niklas Bohlender | B176: 04
A178: =IF(A145>0,A145,"") -> Niclas Brinkmann | B178: 05
A180: =IF(A147>0,A147,"") -> Jonas Firedrich | B180: 07
A182: =IF(A149>0,A149,"") -> Ilja Kant | B182: 06
A184: =IF(A151>0,A151,"") -> Tom Weper | B184: 06
A186: =IF(A153>0,A153,"") -> Frederik Zwickert | B186: 07
A188: =IF(A155>0,A155,"") -> 
A190: =IF(A157>0,A157,"") -> 
A192: =IF(A159>0,A159,"") -> 
A194: =IF(A161>0,A161,"") -> 
A196: =IF(A163>0,A163,"") -> 
A198: =IF(A165>0,A165,"") -> 
A200: =IF(A167>0,A167,"") -> 

Sheet Wertungszettel M3
A1: Wettkampfbogen | C1: Ort / Datum : | D1: ='INFO Blatt'!B11 -> Hehlen | F1: ='INFO Blatt'!B13 -> 2018-03-03
C2: Mannschaft: | D2: =Formeln!A7 -> TG Oker Salzgitter 1 | F2: Wertungsvorschriften
C3: Liga: | D3: ='INFO Blatt'!B7 -> Schülerliga Süd | F3: ='INFO Blatt'!B5 -> P-Stufen
A5: Name | B5: Jg | C5: Boden
C6: D-Note | D6: Abzug OK | E6: E- Abzug | F6: Note
A7: Nils Honisch | B7: 04
A9: Tim Honisch | B9: 06
A11: Jarik Siebold | B11: 06
A13: Robert Knoke | B13: 05
A15: Leon Müller | B15: 05
A17: Jannis Volkmer | B17: 05
A19: Christian Rath | B19: 06
A38: Name | B38: Jg | C38: Pauschenpferd
C39: D-Note | D39: Abzug OK | E39: E- Abzug | F39: Note
A40: =IF(A7>0,A7,"") -> Nils Honisch | B40: =IF(B7>0,B7,"") -> 04
A42: =IF(A9>0,A9,"") -> Tim Honisch | B42: 06
A44: =IF(A11>0,A11,"") -> Jarik Siebold | B44: 06
A46: =IF(A13>0,A13,"") -> Robert Knoke | B46: 05
A48: =IF(A15>0,A15,"") -> Leon Müller | B48: 05
A50: =IF(A17>0,A17,"") -> Jannis Volkmer | B50: 05
A52: =IF(#REF!>0,#REF!,"") ->  | B52: =IF(#REF!>0,#REF!,"") -> 
A54: =IF(A21>0,A21,"") -> 
A56: =IF(A23>0,A23,"") -> 
A58: =IF(A25>0,A25,"") -> 
A60: =IF(A27>0,A27,"") -> 
A62: =IF(A29>0,A29,"") -> 
A64: =IF(A31>0,A31,"") -> 
A66: =IF(A33>0,A33,"") -> 
A68: =IF(A35>0,A35,"") -> 
A71: Name | B71: Jg | C71: Ringe
C72: D-Note | D72: Abzug OK | E72: E- Abzug | F72: Note
A73: =IF(A40>0,A40,"") -> Nils Honisch | B73: =IF(B40>0,B40,"") -> 04
A75: =IF(A42>0,A42,"") -> Tim Honisch | B75: 06
A77: =IF(A44>0,A44,"") -> Jarik Siebold | B77: 06
A79: =IF(A46>0,A46,"") -> Robert Knoke | B79: 05
A81: =IF(A48>0,A48,"") -> Leon Müller | B81: 05
A83: =IF(A50>0,A50,"") -> Jannis Volkmer | B83: 05
A85: =IF(A52>0,A52,"") -> 
A87: =IF(A54>0,A54,"") -> 
A89: =IF(A56>0,A56,"") -> 
A91: =IF(A58>0,A58,"") -> 
A93: =IF(A60>0,A60,"") -> 
A95: =IF(A62>0,A62,"") -> 
A97: =IF(A64>0,A64,"") -> 
A99: =IF(A66>0,A66,"") -> 
A101: =IF(A68>0,A68,"") -> 
A104: Name | B104: Jg | C104: Sprung
C105: D-Note | D105: Abzug OK | E105: E- Abzug | F105: Note
A106: =IF(A73>0,A73,"") -> Nils Honisch | B106: =IF(B73>0,B73,"") -> 04
A108: =IF(A75>0,A75,"") -> Tim Honisch | B108: 06
A110: =IF(A77>0,A77,"") -> Jarik Siebold | B110: 06
A112: =IF(A79>0,A79,"") -> Robert Knoke | B112: 05
A114: =IF(A81>0,A81,"") -> Leon Müller | B114: 05
A116: =IF(A83>0,A83,"") -> Jannis Volkmer | B116: 05
A118: =IF(A85>0,A85,"") -> 
A120: =IF(A87>0,A87,"") -> 
A122: =IF(A89>0,A89,"") -> 
A124: =IF(A91>0,A91,"") -> 
A126: =IF(A93>0,A93,"") -> 
A128: =IF(A95>0,A95,"") -> 
A130: =IF(A97>0,A97,"") -> 
A132: =IF(A99>0,A99,"") -> 
A134: =IF(A101>0,A101,"") -> 
A137: Name | B137: Jg | C137: Barren
C138: D-Note | D138: Abzug OK | E138: E- Abzug | F138: Note
A139: =IF(A106>0,A106,"") -> Nils Honisch | B139: =IF(B106>0,B106,"") -> 04
A141: =IF(A108>0,A108,"") -> Tim Honisch | B141: 06
A143: =IF(A110>0,A110,"") -> Jarik Siebold | B143: 06
A145: =IF(A112>0,A112,"") -> Robert Knoke | B145: 05
A147: =IF(A114>0,A114,"") -> Leon Müller | B147: 05
A149: =IF(A116>0,A116,"") -> Jannis Volkmer | B149: 05
A151: =IF(A118>0,A118,"") -> 
A153: =IF(A120>0,A120,"") -> 
A155: =IF(A122>0,A122,"") -> 
A157: =IF(A124>0,A124,"") -> 
A159: =IF(A126>0,A126,"") -> 
A161: =IF(A128>0,A128,"") -> 
A163: =IF(A130>0,A130,"") -> 
A165: =IF(A132>0,A132,"") -> 
A167: =IF(A134>0,A134,"") -> 
A170: Name | B170: Jg | C170: Reck
C171: D-Note | D171: Abzug OK | E171: E- Abzug | F171: Note
A172: =IF(A139>0,A139,"") -> Nils Honisch | B172: =IF(B139>0,B139,"") -> 04
A174: =IF(A141>0,A141,"") -> Tim Honisch | B174: 06
A176: =IF(A143>0,A143,"") -> Jarik Siebold | B176: 06
A178: =IF(A145>0,A145,"") -> Robert Knoke | B178: 05
A180: =IF(A147>0,A147,"") -> Leon Müller | B180: 05
A182: =IF(A149>0,A149,"") -> Jannis Volkmer | B182: 05
A184: =IF(A151>0,A151,"") -> 
A186: =IF(A153>0,A153,"") -> 
A188: =IF(A155>0,A155,"") -> 
A190: =IF(A157>0,A157,"") -> 
A192: =IF(A159>0,A159,"") -> 
A194: =IF(A161>0,A161,"") -> 
A196: =IF(A163>0,A163,"") -> 
A198: =IF(A165>0,A165,"") -> 
A200: =IF(A167>0,A167,"") -> 

Sheet Wertungszettel M4
A1: Wettkampfbogen | C1: Ort / Datum : | D1: ='INFO Blatt'!B11 -> Hehlen | F1: ='INFO Blatt'!B13 -> 2018-03-03
C2: Mannschaft: | D2: =Formeln!A8 -> TG Oker Salzgitter 2 | F2: Wertungsvorschriften
C3: Liga: | D3: ='INFO Blatt'!B7 -> Schülerliga Süd | F3: ='INFO Blatt'!B5 -> P-Stufen
A5: Name | B5: Jg | C5: Boden
C6: D-Note | D6: Abzug OK | E6: E- Abzug | F6: Note
A7: Patrick Gernowski | B7: 04
A9: Jamie Schnabel | B9: 05
A11: Emmanuel Taube | B11: 05
A13: Eric Siebenhaar | B13: 07
A15: Lasse Sticka | B15: 07
A19: Samuel Treu | B19: 04
A21: Furkan Temizyürek | B21: 05
A38: Name | B38: Jg | C38: Pauschenpferd
C39: D-Note | D39: Abzug OK | E39: E- Abzug | F39: Note
A40: =IF(A7>0,A7,"") -> Patrick Gernowski | B40: =IF(B7>0,B7,"") -> 04
A42: =IF(A9>0,A9,"") -> Jamie Schnabel | B42: 05
A44: =IF(A11>0,A11,"") -> Emmanuel Taube | B44: 05
A46: =IF(A13>0,A13,"") -> Eric Siebenhaar | B46: 07
A48: =IF(A15>0,A15,"") -> Lasse Sticka | B48: 07
A50: =IF('Wertungszettel M3'!A19>0,'Wertungszettel M3'!A19,"") -> Christian Rath | B50: =IF('Wertungszettel M3'!B19>0,'Wertungszettel M3'!B19,"") -> 06
A52: =IF(A19>0,A19,"") -> Samuel Treu | B52: 04
A54: =IF(A21>0,A21,"") -> Furkan Temizyürek | B54: 05
A56: =IF(A23>0,A23,"") -> 
A58: =IF(A25>0,A25,"") -> 
A60: =IF(A27>0,A27,"") -> 
A62: =IF(A29>0,A29,"") -> 
A64: =IF(A31>0,A31,"") -> 
A66: =IF(A33>0,A33,"") -> 
A68: =IF(A35>0,A35,"") -> 
A71: Name | B71: Jg | C71: Ringe
C72: D-Note | D72: Abzug OK | E72: E- Abzug | F72: Note
A73: =IF(A40>0,A40,"") -> Patrick Gernowski | B73: =IF(B40>0,B40,"") -> 04
A75: =IF(A42>0,A42,"") -> Jamie Schnabel | B75: 05
A77: =IF(A44>0,A44,"") -> Emmanuel Taube | B77: 05
A79: =IF(A46>0,A46,"") -> Eric Siebenhaar | B79: 07
A81: =IF(A48>0,A48,"") -> Lasse Sticka | B81: 07
A83: =IF(A50>0,A50,"") -> Christian Rath | B83: 06
A85: =IF(A52>0,A52,"") -> Samuel Treu | B85: 04
A87: =IF(A54>0,A54,"") -> Furkan Temizyürek | B87: 05
A89: =IF(A56>0,A56,"") -> 
A91: =IF(A58>0,A58,"") -> 
A93: =IF(A60>0,A60,"") -> 
A95: =IF(A62>0,A62,"") -> 
A97: =IF(A64>0,A64,"") -> 
A99: =IF(A66>0,A66,"") -> 
A101: =IF(A68>0,A68,"") -> 
A104: Name | B104: Jg | C104: Sprung
C105: D-Note | D105: Abzug OK | E105: E- Abzug | F105: Note
A106: =IF(A73>0,A73,"") -> Patrick Gernowski | B106: =IF(B73>0,B73,"") -> 04
A108: =IF(A75>0,A75,"") -> Jamie Schnabel | B108: 05
A110: =IF(A77>0,A77,"") -> Emmanuel Taube | B110: 05
A112: =IF(A79>0,A79,"") -> Eric Siebenhaar | B112: 07
A114: =IF(A81>0,A81,"") -> Lasse Sticka | B114: 07
A116: =IF(A83>0,A83,"") -> Christian Rath | B116: 06
A118: =IF(A85>0,A85,"") -> Samuel Treu | B118: 04
A120: =IF(A87>0,A87,"") -> Furkan Temizyürek | B120: 05
A122: =IF(A89>0,A89,"") -> 
A124: =IF(A91>0,A91,"") -> 
A126: =IF(A93>0,A93,"") -> 
A128: =IF(A95>0,A95,"") -> 
A130: =IF(A97>0,A97,"") -> 
A132: =IF(A99>0,A99,"") -> 
A134: =IF(A101>0,A101,"") -> 
A137: Name | B137: Jg | C137: Barren
C138: D-Note | D138: Abzug OK | E138: E- Abzug | F138: Note
A139: =IF(A106>0,A106,"") -> Patrick Gernowski | B139: =IF(B106>0,B106,"") -> 04
A141: =IF(A108>0,A108,"") -> Jamie Schnabel | B141: 05
A143: =IF(A110>0,A110,"") -> Emmanuel Taube | B143: 05
A145: =IF(A112>0,A112,"") -> Eric Siebenhaar | B145: 07
A147: =IF(A114>0,A114,"") -> Lasse Sticka | B147: 07
A149: =IF(A116>0,A116,"") -> Christian Rath | B149: 06
A151: =IF(A118>0,A118,"") -> Samuel Treu | B151: 04
A153: =IF(A120>0,A120,"") -> Furkan Temizyürek | B153: 05
A155: =IF(A122>0,A122,"") -> 
A157: =IF(A124>0,A124,"") -> 
A159: =IF(A126>0,A126,"") -> 
A161: =IF(A128>0,A128,"") -> 
A163: =IF(A130>0,A130,"") -> 
A165: =IF(A132>0,A132,"") -> 
A167: =IF(A134>0,A134,"") -> 
A170: Name | B170: Jg | C170: Reck
C171: D-Note | D171: Abzug OK | E171: E- Abzug | F171: Note
A172: =IF(A139>0,A139,"") -> Patrick Gernowski | B172: =IF(B139>0,B139,"") -> 04
A174: =IF(A141>0,A141,"") -> Jamie Schnabel | B174: 05
A176: =IF(A143>0,A143,"") -> Emmanuel Taube | B176: 05
A178: =IF(A145>0,A145,"") -> Eric Siebenhaar | B178: 07
A180: =IF(A147>0,A147,"") -> Lasse Sticka | B180: 07
A182: =IF(A149>0,A149,"") -> Christian Rath | B182: 06
A184: =IF(A151>0,A151,"") -> Samuel Treu | B184: 04
A186: =IF(A153>0,A153,"") -> Furkan Temizyürek | B186: 05
A188: =IF(A155>0,A155,"") -> 
A190: =IF(A157>0,A157,"") -> 
A192: =IF(A159>0,A159,"") -> 
A194: =IF(A161>0,A161,"") -> 
A196: =IF(A163>0,A163,"") -> 
A198: =IF(A165>0,A165,"") -> 
A200: =IF(A167>0,A167,"") -> 

Sheet Wertungszettel M5
A1: Wettkampfbogen | C1: Ort / Datum : | D1: ='INFO Blatt'!B11 -> Hehlen | F1: ='INFO Blatt'!B13 -> 2018-03-03
C2: Mannschaft: | D2: =Formeln!A9 -> Einbecker SV 1 | F2: Wertungsvorschriften
C3: Liga: | D3: ='INFO Blatt'!B7 -> Schülerliga Süd | F3: ='INFO Blatt'!B5 -> P-Stufen
A5: Name | B5: Jg | C5: Boden
C6: D-Note | D6: Abzug OK | E6: E- Abzug | F6: Note
A7: Tom Leonhard | B7: 07
A9: Eugen Dahl | B9: 05
A11: Dominic Kobben | B11: 05
A13: Illes Törjek | B13: 06
A15: Marlon Sassin | B15: 09
A17: Nicolas Buchholz | B17: 05
A19: Dins Kozlovskis | B19: 06
A21: Fiete Linneweber | B21: 07
A23: Joel Eitemeier | B23: 06
A38: Name | B38: Jg | C38: Pauschenpferd
C39: D-Note | D39: Abzug OK | E39: E- Abzug | F39: Note
A40: =IF(A7>0,A7,"") -> Tom Leonhard | B40: =IF(B7>0,B7,"") -> 07
A42: =IF(A9>0,A9,"") -> Eugen Dahl | B42: 05
A44: =IF(A11>0,A11,"") -> Dominic Kobben | B44: 05
A46: =IF(A13>0,A13,"") -> Illes Törjek | B46: 06
A48: =IF(A15>0,A15,"") -> Marlon Sassin | B48: 09
A50: =IF(A17>0,A17,"") -> Nicolas Buchholz | B50: 05
A52: =IF(A19>0,A19,"") -> Dins Kozlovskis | B52: 06
A54: =IF(A21>0,A21,"") -> Fiete Linneweber | B54: 07
A56: =IF(A23>0,A23,"") -> Joel Eitemeier | B56: 06
A58: =IF(A25>0,A25,"") -> 
A60: =IF(A27>0,A27,"") -> 
A62: =IF(A29>0,A29,"") -> 
A64: =IF(A31>0,A31,"") -> 
A66: =IF(A33>0,A33,"") -> 
A68: =IF(A35>0,A35,"") -> 
A71: Name | B71: Jg | C71: Ringe
C72: D-Note | D72: Abzug OK | E72: E- Abzug | F72: Note
A73: =IF(A40>0,A40,"") -> Tom Leonhard | B73: =IF(B40>0,B40,"") -> 07
A75: =IF(A42>0,A42,"") -> Eugen Dahl | B75: 05
A77: =IF(A44>0,A44,"") -> Dominic Kobben | B77: 05
A79: =IF(A46>0,A46,"") -> Illes Törjek | B79: 06
A81: =IF(A48>0,A48,"") -> Marlon Sassin | B81: 09
A83: =IF(A50>0,A50,"") -> Nicolas Buchholz | B83: 05
A85: =IF(A52>0,A52,"") -> Dins Kozlovskis | B85: 06
A87: =IF(A54>0,A54,"") -> Fiete Linneweber | B87: 07
A89: =IF(A56>0,A56,"") -> Joel Eitemeier | B89: 06
A91: =IF(A58>0,A58,"") -> 
A93: =IF(A60>0,A60,"") -> 
A95: =IF(A62>0,A62,"") -> 
A97: =IF(A64>0,A64,"") -> 
A99: =IF(A66>0,A66,"") -> 
A101: =IF(A68>0,A68,"") -> 
A104: Name | B104: Jg | C104: Sprung
C105: D-Note | D105: Abzug OK | E105: E- Abzug | F105: Note
A106: =IF(A73>0,A73,"") -> Tom Leonhard | B106: =IF(B73>0,B73,"") -> 07
A108: =IF(A75>0,A75,"") -> Eugen Dahl | B108: 05
A110: =IF(A77>0,A77,"") -> Dominic Kobben | B110: 05
A112: =IF(A79>0,A79,"") -> Illes Törjek | B112: 06
A114: =IF(A81>0,A81,"") -> Marlon Sassin | B114: 09
A116: =IF(A83>0,A83,"") -> Nicolas Buchholz | B116: 05
A118: =IF(A85>0,A85,"") -> Dins Kozlovskis | B118: 06
A120: =IF(A87>0,A87,"") -> Fiete Linneweber | B120: 07
A122: =IF(A89>0,A89,"") -> Joel Eitemeier | B122: 06
A124: =IF(A91>0,A91,"") -> 
A126: =IF(A93>0,A93,"") -> 
A128: =IF(A95>0,A95,"") -> 
A130: =IF(A97>0,A97,"") -> 
A132: =IF(A99>0,A99,"") -> 
A134: =IF(A101>0,A101,"") -> 
A137: Name | B137: Jg | C137: Barren
C138: D-Note | D138: Abzug OK | E138: E- Abzug | F138: Note
A139: =IF(A106>0,A106,"") -> Tom Leonhard | B139: =IF(B106>0,B106,"") -> 07
A141: =IF(A108>0,A108,"") -> Eugen Dahl | B141: 05
A143: =IF(A110>0,A110,"") -> Dominic Kobben | B143: 05
A145: =IF(A112>0,A112,"") -> Illes Törjek | B145: 06
A147: =IF(A114>0,A114,"") -> Marlon Sassin | B147: 09
A149: =IF(A116>0,A116,"") -> Nicolas Buchholz | B149: 05
A151: =IF(A118>0,A118,"") -> Dins Kozlovskis | B151: 06
A153: =IF(A120>0,A120,"") -> Fiete Linneweber | B153: 07
A155: =IF(A122>0,A122,"") -> Joel Eitemeier | B155: 06
A157: =IF(A124>0,A124,"") -> 
A159: =IF(A126>0,A126,"") -> 
A161: =IF(A128>0,A128,"") -> 
A163: =IF(A130>0,A130,"") -> 
A165: =IF(A132>0,A132,"") -> 
A167: =IF(A134>0,A134,"") -> 
A170: Name | B170: Jg | C170: Reck
C171: D-Note | D171: Abzug OK | E171: E- Abzug | F171: Note
A172: =IF(A139>0,A139,"") -> Tom Leonhard | B172: =IF(B139>0,B139,"") -> 07
A174: =IF(A141>0,A141,"") -> Eugen Dahl | B174: 05
A176: =IF(A143>0,A143,"") -> Dominic Kobben | B176: 05
A178: =IF(A145>0,A145,"") -> Illes Törjek | B178: 06
A180: =IF(A147>0,A147,"") -> Marlon Sassin | B180: 09
A182: =IF(A149>0,A149,"") -> Nicolas Buchholz | B182: 05
A184: =IF(A151>0,A151,"") -> Dins Kozlovskis | B184: 06
A186: =IF(A153>0,A153,"") -> Fiete Linneweber | B186: 07
A188: =IF(A155>0,A155,"") -> Joel Eitemeier | B188: 06
A190: =IF(A157>0,A157,"") -> 
A192: =IF(A159>0,A159,"") -> 
A194: =IF(A161>0,A161,"") -> 
A196: =IF(A163>0,A163,"") -> 
A198: =IF(A165>0,A165,"") -> 
A200: =IF(A167>0,A167,"") -> 

Sheet Wertungszettel M6
A1: Wettkampfbogen | C1: Ort / Datum : | D1: ='INFO Blatt'!B11 -> Hehlen | F1: ='INFO Blatt'!B13 -> 2018-03-03
C2: Mannschaft: | D2: =Formeln!A10 -> Einbecker SV 2 | F2: Wertungsvorschriften
C3: Liga: | D3: ='INFO Blatt'!B7 -> Schülerliga Süd | F3: ='INFO Blatt'!B5 -> P-Stufen
A5: Name | B5: Jg | C5: Boden
C6: D-Note | D6: Abzug OK | E6: E- Abzug | F6: Note
A7: Wiliam Lampe | B7: 07
A9: Dominik Kumarasamy | B9: 07
A11: Leon Freye | B11: 07
A13: Johann Mickat | B13: 06
A15: Lu Rosebrock | B15: 06
A38: Name | B38: Jg | C38: Pauschenpferd
C39: D-Note | D39: Abzug OK | E39: E- Abzug | F39: Note
A40: =IF(A7>0,A7,"") -> Wiliam Lampe | B40: =IF(B7>0,B7,"") -> 07
A42: =IF(A9>0,A9,"") -> Dominik Kumarasamy | B42: 07
A44: =IF(A11>0,A11,"") -> Leon Freye | B44: 07
A46: =IF(A13>0,A13,"") -> Johann Mickat | B46: 06
A48: =IF(A15>0,A15,"") -> Lu Rosebrock | B48: 06
A50: =IF(A17>0,A17,"") -> 
A52: =IF(A19>0,A19,"") -> 
A54: =IF(A21>0,A21,"") -> 
A56: =IF(A23>0,A23,"") -> 
A58: =IF(A25>0,A25,"") -> 
A60: =IF(A27>0,A27,"") -> 
A62: =IF(A29>0,A29,"") -> 
A64: =IF(A31>0,A31,"") -> 
A66: =IF(A33>0,A33,"") -> 
A68: =IF(A35>0,A35,"") -> 
A71: Name | B71: Jg | C71: Ringe
C72: D-Note | D72: Abzug OK | E72: E- Abzug | F72: Note
A73: =IF(A40>0,A40,"") -> Wiliam Lampe | B73: =IF(B40>0,B40,"") -> 07
A75: =IF(A42>0,A42,"") -> Dominik Kumarasamy | B75: 07
A77: =IF(A44>0,A44,"") -> Leon Freye | B77: 07
A79: =IF(A46>0,A46,"") -> Johann Mickat | B79: 06
A81: =IF(A48>0,A48,"") -> Lu Rosebrock | B81: 06
A83: =IF(A50>0,A50,"") -> 
A85: =IF(A52>0,A52,"") -> 
A87: =IF(A54>0,A54,"") -> 
A89: =IF(A56>0,A56,"") -> 
A91: =IF(A58>0,A58,"") -> 
A93: =IF(A60>0,A60,"") -> 
A95: =IF(A62>0,A62,"") -> 
A97: =IF(A64>0,A64,"") -> 
A99: =IF(A66>0,A66,"") -> 
A101: =IF(A68>0,A68,"") -> 
A104: Name | B104: Jg | C104: Sprung
C105: D-Note | D105: Abzug OK | E105: E- Abzug | F105: Note
A106: =IF(A73>0,A73,"") -> Wiliam Lampe | B106: =IF(B73>0,B73,"") -> 07
A108: =IF(A75>0,A75,"") -> Dominik Kumarasamy | B108: 07
A110: =IF(A77>0,A77,"") -> Leon Freye | B110: 07
A112: =IF(A79>0,A79,"") -> Johann Mickat | B112: 06
A114: =IF(A81>0,A81,"") -> Lu Rosebrock | B114: 06
A116: =IF(A83>0,A83,"") -> 
A118: =IF(A85>0,A85,"") -> 
A120: =IF(A87>0,A87,"") -> 
A122: =IF(A89>0,A89,"") -> 
A124: =IF(A91>0,A91,"") -> 
A126: =IF(A93>0,A93,"") -> 
A128: =IF(A95>0,A95,"") -> 
A130: =IF(A97>0,A97,"") -> 
A132: =IF(A99>0,A99,"") -> 
A134: =IF(A101>0,A101,"") -> 
A137: Name | B137: Jg | C137: Barren
C138: D-Note | D138: Abzug OK | E138: E- Abzug | F138: Note
A139: =IF(A106>0,A106,"") -> Wiliam Lampe | B139: =IF(B106>0,B106,"") -> 07
A141: =IF(A108>0,A108,"") -> Dominik Kumarasamy | B141: 07
A143: =IF(A110>0,A110,"") -> Leon Freye | B143: 07
A145: =IF(A112>0,A112,"") -> Johann Mickat | B145: 06
A147: =IF(A114>0,A114,"") -> Lu Rosebrock | B147: 06
A149: =IF(A116>0,A116,"") -> 
A151: =IF(A118>0,A118,"") -> 
A153: =IF(A120>0,A120,"") -> 
A155: =IF(A122>0,A122,"") -> 
A157: =IF(A124>0,A124,"") -> 
A159: =IF(A126>0,A126,"") -> 
A161: =IF(A128>0,A128,"") -> 
A163: =IF(A130>0,A130,"") -> 
A165: =IF(A132>0,A132,"") -> 
A167: =IF(A134>0,A134,"") -> 
A170: Name | B170: Jg | C170: Reck
C171: D-Note | D171: Abzug OK | E171: E- Abzug | F171: Note
A172: =IF(A139>0,A139,"") -> Wiliam Lampe | B172: =IF(B139>0,B139,"") -> 07
A174: =IF(A141>0,A141,"") -> Dominik Kumarasamy | B174: 07
A176: =IF(A143>0,A143,"") -> Leon Freye | B176: 07
A178: =IF(A145>0,A145,"") -> Johann Mickat | B178: 06
A180: =IF(A147>0,A147,"") -> Lu Rosebrock | B180: 06
A182: =IF(A149>0,A149,"") -> 
A184: =IF(A151>0,A151,"") -> 
A186: =IF(A153>0,A153,"") -> 
A188: =IF(A155>0,A155,"") -> 
A190: =IF(A157>0,A157,"") -> 
A192: =IF(A159>0,A159,"") -> 
A194: =IF(A161>0,A161,"") -> 
A196: =IF(A163>0,A163,"") -> 
A198: =IF(A165>0,A165,"") -> 
A200: =IF(A167>0,A167,"") -> 

Sheet Wertungszettel M7
A1: Wettkampfbogen | C1: Ort / Datum : | D1: ='INFO Blatt'!B11 -> Hehlen | F1: ='INFO Blatt'!B13 -> 2018-03-03
C2: Mannschaft: | D2: =Formeln!A11 -> TG Hehlen Dielmissen | F2: Wertungsvorschriften
C3: Liga: | D3: ='INFO Blatt'!B7 -> Schülerliga Süd | F3: ='INFO Blatt'!B5 -> P-Stufen
A5: Name | B5: Jg | C5: Boden
C6: D-Note | D6: Abzug OK | E6: E- Abzug | F6: Note
A7: Viktor Brauer | B7: 07
A9: Norwin Eilers | B9: 07
A11: Thore Gruppe | B11: 07
A13: Jakob Kammel | B13: 07
A15: Luca Puls | B15: 07
A17: Yvo Vehling | B17: 07
A19: Timm Zuchold | B19: 07
A38: Name | B38: Jg | C38: Pauschenpferd
C39: D-Note | D39: Abzug OK | E39: E- Abzug | F39: Note
A40: =IF(A7>0,A7,"") -> Viktor Brauer | B40: =IF(B7>0,B7,"") -> 07
A42: =IF(A9>0,A9,"") -> Norwin Eilers | B42: 07
A44: =IF(A11>0,A11,"") -> Thore Gruppe | B44: 07
A46: =IF(A13>0,A13,"") -> Jakob Kammel | B46: 07
A48: =IF(A15>0,A15,"") -> Luca Puls | B48: 07
A50: =IF(A17>0,A17,"") -> Yvo Vehling | B50: 07
A52: =IF(A19>0,A19,"") -> Timm Zuchold | B52: 07
A54: =IF(A21>0,A21,"") -> 
A56: =IF(A23>0,A23,"") -> 
A58: =IF(A25>0,A25,"") -> 
A60: =IF(A27>0,A27,"") -> 
A62: =IF(A29>0,A29,"") -> 
A64: =IF(A31>0,A31,"") -> 
A66: =IF(A33>0,A33,"") -> 
A68: =IF(A35>0,A35,"") -> 
A71: Name | B71: Jg | C71: Ringe
C72: D-Note | D72: Abzug OK | E72: E- Abzug | F72: Note
A73: =IF(A40>0,A40,"") -> Viktor Brauer | B73: =IF(B40>0,B40,"") -> 07
A75: =IF(A42>0,A42,"") -> Norwin Eilers | B75: 07
A77: =IF(A44>0,A44,"") -> Thore Gruppe | B77: 07
A79: =IF(A46>0,A46,"") -> Jakob Kammel | B79: 07
A81: =IF(A48>0,A48,"") -> Luca Puls | B81: 07
A83: =IF(A50>0,A50,"") -> Yvo Vehling | B83: 07
A85: =IF(A52>0,A52,"") -> Timm Zuchold | B85: 07
A87: =IF(A54>0,A54,"") -> 
A89: =IF(A56>0,A56,"") -> 
A91: =IF(A58>0,A58,"") -> 
A93: =IF(A60>0,A60,"") -> 
A95: =IF(A62>0,A62,"") -> 
A97: =IF(A64>0,A64,"") -> 
A99: =IF(A66>0,A66,"") -> 
A101: =IF(A68>0,A68,"") -> 
A104: Name | B104: Jg | C104: Sprung
C105: D-Note | D105: Abzug OK | E105: E- Abzug | F105: Note
A106: =IF(A73>0,A73,"") -> Viktor Brauer | B106: =IF(B73>0,B73,"") -> 07
A108: =IF(A75>0,A75,"") -> Norwin Eilers | B108: 07
A110: =IF(A77>0,A77,"") -> Thore Gruppe | B110: 07
A112: =IF(A79>0,A79,"") -> Jakob Kammel | B112: 07
A114: =IF(A81>0,A81,"") -> Luca Puls | B114: 07
A116: =IF(A83>0,A83,"") -> Yvo Vehling | B116: 07
A118: =IF(A85>0,A85,"") -> Timm Zuchold | B118: 07
A120: =IF(A87>0,A87,"") -> 
A122: =IF(A89>0,A89,"") -> 
A124: =IF(A91>0,A91,"") -> 
A126: =IF(A93>0,A93,"") -> 
A128: =IF(A95>0,A95,"") -> 
A130: =IF(A97>0,A97,"") -> 
A132: =IF(A99>0,A99,"") -> 
A134: =IF(A101>0,A101,"") -> 
A137: Name | B137: Jg | C137: Barren
C138: D-Note | D138: Abzug OK | E138: E- Abzug | F138: Note
A139: =IF(A106>0,A106,"") -> Viktor Brauer | B139: =IF(B106>0,B106,"") -> 07
A141: =IF(A108>0,A108,"") -> Norwin Eilers | B141: 07
A143: =IF(A110>0,A110,"") -> Thore Gruppe | B143: 07
A145: =IF(A112>0,A112,"") -> Jakob Kammel | B145: 07
A147: =IF(A114>0,A114,"") -> Luca Puls | B147: 07
A149: =IF(A116>0,A116,"") -> Yvo Vehling | B149: 07
A151: =IF(A118>0,A118,"") -> Timm Zuchold | B151: 07
A153: =IF(A120>0,A120,"") -> 
A155: =IF(A122>0,A122,"") -> 
A157: =IF(A124>0,A124,"") -> 
A159: =IF(A126>0,A126,"") -> 
A161: =IF(A128>0,A128,"") -> 
A163: =IF(A130>0,A130,"") -> 
A165: =IF(A132>0,A132,"") -> 
A167: =IF(A134>0,A134,"") -> 
A170: Name | B170: Jg | C170: Reck
C171: D-Note | D171: Abzug OK | E171: E- Abzug | F171: Note
A172: =IF(A139>0,A139,"") -> Viktor Brauer | B172: =IF(B139>0,B139,"") -> 07
A174: =IF(A141>0,A141,"") -> Norwin Eilers | B174: 07
A176: =IF(A143>0,A143,"") -> Thore Gruppe | B176: 07
A178: =IF(A145>0,A145,"") -> Jakob Kammel | B178: 07
A180: =IF(A147>0,A147,"") -> Luca Puls | B180: 07
A182: =IF(A149>0,A149,"") -> Yvo Vehling | B182: 07
A184: =IF(A151>0,A151,"") -> Timm Zuchold | B184: 07
A186: =IF(A153>0,A153,"") -> 
A188: =IF(A155>0,A155,"") -> 
A190: =IF(A157>0,A157,"") -> 
A192: =IF(A159>0,A159,"") -> 
A194: =IF(A161>0,A161,"") -> 
A196: =IF(A163>0,A163,"") -> 
A198: =IF(A165>0,A165,"") -> 
A200: =IF(A167>0,A167,"") -> 

Sheet Wertungszettel M8 (hidden)
A1: Wettkampfbogen | C1: Ort / Datum : | D1: ='INFO Blatt'!B11 -> Hehlen | F1: ='INFO Blatt'!B13 -> 2018-03-03
C2: Mannschaft: | D2: =Formeln!A12 -> M8 | F2: Wertungsvorschriften
C3: Liga: | D3: ='INFO Blatt'!B7 -> Schülerliga Süd | F3: ='INFO Blatt'!B5 -> P-Stufen
A5: Name | B5: Jg | C5: Boden
C6: D-Note | D6: Abzug OK | E6: E- Abzug | F6: Note
A38: Name | B38: Jg | C38: Pauschenpferd
C39: D-Note | D39: Abzug OK | E39: E- Abzug | F39: Note
A40: =IF(A7>0,A7,"") ->  | B40: =IF(B7>0,B7,"") -> 
A42: =IF(A9>0,A9,"") -> 
A44: =IF(A11>0,A11,"") -> 
A46: =IF(A13>0,A13,"") -> 
A48: =IF(A15>0,A15,"") -> 
A50: =IF(A17>0,A17,"") -> 
A52: =IF(A19>0,A19,"") -> 
A54: =IF(A21>0,A21,"") -> 
A56: =IF(A23>0,A23,"") -> 
A58: =IF(A25>0,A25,"") -> 
A60: =IF(A27>0,A27,"") -> 
A62: =IF(A29>0,A29,"") -> 
A64: =IF(A31>0,A31,"") -> 
A66: =IF(A33>0,A33,"") -> 
A68: =IF(A35>0,A35,"") -> 
A71: Name | B71: Jg | C71: Ringe
C72: D-Note | D72: Abzug OK | E72: E- Abzug | F72: Note
A73: =IF(A40>0,A40,"") ->  | B73: =IF(B40>0,B40,"") -> 
A75: =IF(A42>0,A42,"") -> 
A77: =IF(A44>0,A44,"") -> 
A79: =IF(A46>0,A46,"") -> 
A81: =IF(A48>0,A48,"") -> 
A83: =IF(A50>0,A50,"") -> 
A85: =IF(A52>0,A52,"") -> 
A87: =IF(A54>0,A54,"") -> 
A89: =IF(A56>0,A56,"") -> 
A91: =IF(A58>0,A58,"") -> 
A93: =IF(A60>0,A60,"") -> 
A95: =IF(A62>0,A62,"") -> 
A97: =IF(A64>0,A64,"") -> 
A99: =IF(A66>0,A66,"") -> 
A101: =IF(A68>0,A68,"") -> 
A104: Name | B104: Jg | C104: Sprung
C105: D-Note | D105: Abzug OK | E105: E- Abzug | F105: Note
A106: =IF(A73>0,A73,"") ->  | B106: =IF(B73>0,B73,"") -> 
A108: =IF(A75>0,A75,"") -> 
A110: =IF(A77>0,A77,"") -> 
A112: =IF(A79>0,A79,"") -> 
A114: =IF(A81>0,A81,"") -> 
A116: =IF(A83>0,A83,"") -> 
A118: =IF(A85>0,A85,"") -> 
A120: =IF(A87>0,A87,"") -> 
A122: =IF(A89>0,A89,"") -> 
A124: =IF(A91>0,A91,"") -> 
A126: =IF(A93>0,A93,"") -> 
A128: =IF(A95>0,A95,"") -> 
A130: =IF(A97>0,A97,"") -> 
A132: =IF(A99>0,A99,"") -> 
A134: =IF(A101>0,A101,"") -> 
A137: Name | B137: Jg | C137: Barren
C138: D-Note | D138: Abzug OK | E138: E- Abzug | F138: Note
A139: =IF(A106>0,A106,"") ->  | B139: =IF(B106>0,B106,"") -> 
A141: =IF(A108>0,A108,"") -> 
A143: =IF(A110>0,A110,"") -> 
A145: =IF(A112>0,A112,"") -> 
A147: =IF(A114>0,A114,"") -> 
A149: =IF(A116>0,A116,"") -> 
A151: =IF(A118>0,A118,"") -> 
A153: =IF(A120>0,A120,"") -> 
A155: =IF(A122>0,A122,"") -> 
A157: =IF(A124>0,A124,"") -> 
A159: =IF(A126>0,A126,"") -> 
A161: =IF(A128>0,A128,"") -> 
A163: =IF(A130>0,A130,"") -> 
A165: =IF(A132>0,A132,"") -> 
A167: =IF(A134>0,A134,"") -> 
A170: Name | B170: Jg | C170: Reck
C171: D-Note | D171: Abzug OK | E171: E- Abzug | F171: Note
A172: =IF(A139>0,A139,"") ->  | B172: =IF(B139>0,B139,"") -> 
A174: =IF(A141>0,A141,"") -> 
A176: =IF(A143>0,A143,"") -> 
A178: =IF(A145>0,A145,"") -> 
A180: =IF(A147>0,A147,"") -> 
A182: =IF(A149>0,A149,"") -> 
A184: =IF(A151>0,A151,"") -> 
A186: =IF(A153>0,A153,"") -> 
A188: =IF(A155>0,A155,"") -> 
A190: =IF(A157>0,A157,"") -> 
A192: =IF(A159>0,A159,"") -> 
A194: =IF(A161>0,A161,"") -> 
A196: =IF(A163>0,A163,"") -> 
A198: =IF(A165>0,A165,"") -> 
A200: =IF(A167>0,A167,"") -> 

Sheet Wertungszettel M9 (hidden)
A1: Wettkampfbogen | E1: Ort / Datum : | G1: ='INFO Blatt'!B11 -> Hehlen | J1: ='INFO Blatt'!B13 -> 2018-03-03
E2: Mannschaft: | G2: =Formeln!A13 -> M9 | M2: Wertungsvorschriften
E3: Liga: | G3: ='INFO Blatt'!B7 -> Schülerliga Süd | M3: ='INFO Blatt'!B5 -> P-Stufen
A5: Name | B5: Jg | C5: Boden | G5: Ringe | K5: Barren
C6: D-Note | D6: Abzug OK | E6: E- Abzug | F6: Note | G6: D-Note | H6: Abzug OK | I6: E- Abzug | J6: Note | K6: D-Note | L6: Abzug OK | M6: E-Abzug | N6: Note
A7: 9 | B7: =IF('Einbeck 1'!C9>0,'Einbeck 1'!C9,"") -> 07
B9: =IF('Einbeck 1'!C11>0,'Einbeck 1'!C11,"") -> 05
B11: =IF('Einbeck 1'!C13>0,'Einbeck 1'!C13,"") -> 05
B13: =IF('Einbeck 1'!C15>0,'Einbeck 1'!C15,"") -> 06
B15: =IF('Einbeck 1'!C17>0,'Einbeck 1'!C17,"") -> 09
B17: =IF('Einbeck 1'!C19>0,'Einbeck 1'!C19,"") -> 05
B19: =IF('Einbeck 1'!C21>0,'Einbeck 1'!C21,"") -> 06
B21: =IF('Einbeck 1'!C23>0,'Einbeck 1'!C23,"") -> 07
B23: =IF('Einbeck 1'!C25>0,'Einbeck 1'!C25,"") -> 06
B25: =IF('Einbeck 1'!C27>0,'Einbeck 1'!C27,"") -> 
B33: =IF('Einbeck 1'!C31>0,'Einbeck 1'!C31,"") -> 
B35: =IF('Einbeck 1'!C33>0,'Einbeck 1'!C33,"") -> 
A38: Name | B38: Jg | C38: Pauschenpferd | G38: Sprung | K38: Reck
C39: D-Note | D39: Abzug OK | E39: E- Abzug | F39: Note | G39: D-Note | H39: Abzug OK | I39: E- Abzug | J39: Note | K39: D-Note | L39: Abzug OK | M39: E-Abzug | N39: Note
A40: =IF(A7>0,A7,"") -> 9 | B40: =IF(B7>0,B7,"") -> 07
A42: =IF(A9>0,A9,"") ->  | B42: 05
A44: =IF(A11>0,A11,"") ->  | B44: 05
A46: =IF(A13>0,A13,"") ->  | B46: 06
A48: =IF(A15>0,A15,"") ->  | B48: 09
A50: =IF(A17>0,A17,"") ->  | B50: 05
A52: =IF(A19>0,A19,"") ->  | B52: 06
A54: =IF(A21>0,A21,"") ->  | B54: 07
A56: =IF(A23>0,A23,"") ->  | B56: 06
A58: =IF(A25>0,A25,"") -> 
A60: =IF(A27>0,A27,"") -> 
A62: =IF(A29>0,A29,"") -> 
A64: =IF(A31>0,A31,"") -> 
A66: =IF(A33>0,A33,"") -> 
A68: =IF(A35>0,A35,"") -> 

Sheet Wertungszettel M10 (hidden)
A1: Wettkampfbogen | E1: Ort / Datum : | G1: ='INFO Blatt'!B11 -> Hehlen | J1: ='INFO Blatt'!B13 -> 2018-03-03
E2: Mannschaft: | G2: =Formeln!A14 -> M10 | M2: Wertungsvorschriften
E3: Liga: | G3: ='INFO Blatt'!B7 -> Schülerliga Süd | M3: ='INFO Blatt'!B5 -> P-Stufen
A5: Name | B5: Jg | C5: Boden | G5: Ringe | K5: Barren
C6: D-Note | D6: Abzug OK | E6: E- Abzug | F6: Note | G6: D-Note | H6: Abzug OK | I6: E- Abzug | J6: Note | K6: D-Note | L6: Abzug OK | M6: E-Abzug | N6: Note
A7: 10 | B7: =IF('Einbeck 2'!C9>0,'Einbeck 2'!C9,"") -> 07
B9: =IF('Einbeck 2'!C11>0,'Einbeck 2'!C11,"") -> 07
B11: =IF('Einbeck 2'!C13>0,'Einbeck 2'!C13,"") -> 07
B13: =IF('Einbeck 2'!C15>0,'Einbeck 2'!C15,"") -> 06
B15: =IF('Einbeck 2'!C17>0,'Einbeck 2'!C17,"") -> 06
B17: =IF('Einbeck 2'!C19>0,'Einbeck 2'!C19,"") -> 
B19: =IF('Einbeck 2'!C21>0,'Einbeck 2'!C21,"") -> 
B21: =IF('Einbeck 2'!C23>0,'Einbeck 2'!C23,"") -> 
B23: =IF('Einbeck 2'!C25>0,'Einbeck 2'!C25,"") -> 
B25: =IF('Einbeck 2'!C27>0,'Einbeck 2'!C27,"") -> 
B31: =IF('Einbeck 2'!C29>0,'Einbeck 2'!C29,"") -> 
B33: =IF('Einbeck 2'!C31>0,'Einbeck 2'!C31,"") -> 
B35: =IF('Einbeck 2'!C33>0,'Einbeck 2'!C33,"") -> 
A38: Name | B38: Jg | C38: Pauschenpferd | G38: Sprung | K38: Reck
C39: D-Note | D39: Abzug OK | E39: E- Abzug | F39: Note | G39: D-Note | H39: Abzug OK | I39: E- Abzug | J39: Note | K39: D-Note | L39: Abzug OK | M39: E-Abzug | N39: Note
A40: =IF(A7>0,A7,"") -> 10 | B40: =IF(B7>0,B7,"") -> 07
A42: =IF(A9>0,A9,"") ->  | B42: 07
A44: =IF(A11>0,A11,"") ->  | B44: 07
A46: =IF(A13>0,A13,"") ->  | B46: 06
A48: =IF(A15>0,A15,"") ->  | B48: 06
A50: =IF(A17>0,A17,"") -> 
A52: =IF(A19>0,A19,"") -> 
A54: =IF(A21>0,A21,"") -> 
A56: =IF(A23>0,A23,"") -> 
A58: =IF(A25>0,A25,"") -> 
A60: =IF(A27>0,A27,"") -> 
A62: =IF(A29>0,A29,"") -> 
A64: =IF(A31>0,A31,"") -> 
A66: =IF(A33>0,A33,"") -> 
A68: =IF(A35>0,A35,"") -> 
